Workbook

Sheet Introduction (hidden)

Sheet Start
D9: Project details
D11: Planning authority:
D12: Project name: | F12: Land off Lesmond Cresent, Middlecliff
D13: Applicant:
D14: Application type:
D15: Planning application reference:
D16: Assessor: | F16: Matthew Moore
D17: Reviewer:
D18: Revision:
D19: Assessment date:
D20: Planning authority reviewer:
D22: Cell style conventions
F24: Enter data
F25: Automatic lookup
F26: Result
F56: Automatic lookup
F57: Calculation
F58: Free text
F59: Result

Sheet Instructions

Sheet Main Menu
Q3: Street tree helper
Q4: Tree size | R4: Tree number | S4: Area
Q5: Small | S5: =R5*'G-3 Multipliers'!$Z$4 -> 0
Q6: Medium | S6: =R6*'G-3 Multipliers'!$Z$5 -> 0
Q7: Large | S7: =R7*'G-3 Multipliers'!$Z$6 -> 0
Q8: Total | R8: =SUM(R5:R7) -> 0 | S8: =SUM(S5:S7) -> 0

Sheet Results

Sheet Detailed Results
B2: =IF(Start!$F$12="","",Start!$F$12) -> Land off Lesmond Cresent, Middlecliff
B3: =MID(CELL("filename",A1),FIND("]",CELL("filename",A1))+1,256) -> 
B7: Summary Figures
B10: Net project biodiversity units (including all on-site & off-site habitat retention/creation) | F10: Habitat units | H10: =IFERROR('Headline Results'!$H$26:$I$26,"Check Data") -> -0.6676598103
F11: Hedgerow units | H11: =IFERROR('Headline Results'!$H$27:$I$27,"Check Data") -> 0
F12: River units | H12: =IFERROR('Headline Results'!$H$28:$I$28,"Check Data") -> 0
B14: Total project biodiversity % change (including all On-site & Off-site Habitat Creation + Retained Habitats) | F14: Habitat units | H14: =IFERROR('Headline Results'!$H$30:$I$30,"Check Data") -> -0.6450819423
F15: Hedgerow units | H15: =IFERROR('Headline Results'!$H$31:$I$31,"Check Data") -> 0
F16: River units | H16: =IFERROR('Headline Results'!$H$32:$I$32,"Check Data") -> 0
B18: On-site habitat retention and enhancement | G18: Area lost by distinctiveness band
C20: Habitats | D20: Hedgerows | E20: Rivers | G20: Category | H20: Area lost (hectares) | I20: Area lost (%)
B21: Total site area / length | C21: =IF('Detailed Results'!$H$22=0,'A-1 Site Habitat Baseline'!$E$259,"Error") -> 0.24 | D21: ='B-1 Site Hedge Baseline'!$E$258 -> 0.095 | E21: ='C-1 Site River Baseline'!$E$258 -> 0
B22: Total site units | C22: =IF('Detailed Results'!$H$22=0,'A-1 Site Habitat Baseline'!$Q$259,"Error") -> 1.035 | D22: ='B-1 Site Hedge Baseline'!$Q$258 -> 0.437 | E22: ='C-1 Site River Baseline'!$N$258 -> 0 | G22: ='G-1 All Habitats'!$S$3 -> V.High | H22: =SUMIF('A-1 Site Habitat Baseline'!$F$11:$F$258,'Detailed Results'!G22,'A-1 Site Habitat Baseline'!$Y$11:$Y$258) -> 0 | I22: =IF(H22=0,"",(H22/(SUM($H$22:$H$29)))*100) -> 
B24: Area / length retained | C24: =IF('Detailed Results'!$H$22=0,'A-1 Site Habitat Baseline'!$S$259,"Error") -> 0 | D24: ='B-1 Site Hedge Baseline'!$S$258 -> 0.095 | E24: ='C-1 Site River Baseline'!$P$258 -> 0 | G24: ='G-1 All Habitats'!$S$4 -> High | H24: =SUMIF('A-1 Site Habitat Baseline'!$F$11:$F$258,'Detailed Results'!G24,'A-1 Site Habitat Baseline'!$Y$11:$Y$258) -> 0 | I24: =IF(H24=0,"",(H24/(SUM($H$22:$H$29)))*100) -> 
B25: Units Retained | C25: =IF('Detailed Results'!$H$22=0,'A-1 Site Habitat Baseline'!$V$259,"Error") -> 0 | D25: ='B-1 Site Hedge Baseline'!U258 -> 0.437 | E25: ='C-1 Site River Baseline'!$R$258 -> 0
G26: ='G-1 All Habitats'!$S5 -> Medium | H26: =SUMIF('A-1 Site Habitat Baseline'!$F$11:$F$258,'Detailed Results'!G26,'A-1 Site Habitat Baseline'!$Y$11:$Y$258) -> 0.21 | I26: =IF(H26=0,"",(H26/(SUM($H$22:$H$29)))*100) -> 87.5
B27: Area / length enhanced | C27: =IF('Detailed Results'!$H$22=0,'A-1 Site Habitat Baseline'!$T$259,"Error") -> 0 | D27: ='B-1 Site Hedge Baseline'!$T$258 -> 0 | E27: ='C-1 Site River Baseline'!$Q$258 -> 0
B28: Baseline units enhanced | C28: =IF('Detailed Results'!$H$22=0,'A-1 Site Habitat Baseline'!$W$259,"Error") -> 0 | D28: ='B-1 Site Hedge Baseline'!$V$258 -> 0 | E28: ='C-1 Site River Baseline'!$S$258 -> 0 | G28: ='G-1 All Habitats'!$S$6 -> Low | H28: =SUMIF('A-1 Site Habitat Baseline'!$F$11:$F$258,'Detailed Results'!G28,'A-1 Site Habitat Baseline'!$Y$11:$Y$258) -> 0.03 | I28: =IF(H28=0,"",(H28/(SUM($H$22:$H$29)))*100) -> 12.5
B30: Area / length succession | C30: =IF('Detailed Results'!$H$22=0,'A-1 Site Habitat Baseline'!$U$259,"Error") -> 0 | G30: ='G-1 All Habitats'!$S$7 -> V.Low | H30: =SUMIF('A-1 Site Habitat Baseline'!$P$11:$P$258,'Detailed Results'!G30,'A-1 Site Habitat Baseline'!$Y$11:$Y$258) -> 0 | I30: =IF(H30=0,"",(H30/(SUM($H$22:$H$29)))*100) -> 
B31: Units succession | C31: =IF('Detailed Results'!$H$22=0,'A-1 Site Habitat Baseline'!$X$259,"Error") -> 0
B33: Area / length lost | C33: =IF('Detailed Results'!$H$22=0,'A-1 Site Habitat Baseline'!$Y$259,"Error") -> 0.24 | D33: ='B-1 Site Hedge Baseline'!$W$258 -> 0 | E33: ='C-1 Site River Baseline'!$T$258 -> 0
B34: Units lost | C34: =IF('Detailed Results'!$H$22=0,'A-1 Site Habitat Baseline'!$Z$259,"Error") -> 1.035 | D34: ='B-1 Site Hedge Baseline'!$X$258 -> 0 | E34: ='C-1 Site River Baseline'!$U$258 -> 0
B49: On-site | C49: Baseline | E49: Post development on site | G49: Onsite Change | J49: Overall Change
B50: Habitat group | C50: Existing area | D50: Existing value | E50: Proposed area | F50: Proposed value | G50: Area change | H50: Onsite Unit change | J50: Area change | K50: Unit change
B51: Cropland | C51: ='G-2 Habitat groups'!$AO$4 -> 0 | D51: ='G-2 Habitat groups'!$AP$4 -> 0 | E51: ='G-2 Habitat groups'!$AQ$4 -> 0 | F51: ='G-2 Habitat groups'!$AR$4 -> 0 | G51: =E51-C51 -> 0 | H51: =F51-D51 -> 0 | J51: =$G51+$G70 -> 0 | K51: =$H51+$H70 -> 0
B52: Grassland | C52: ='G-2 Habitat groups'!$AO$5 -> 0.21 | D52: ='G-2 Habitat groups'!$AP$5 -> 0.966 | E52: ='G-2 Habitat groups'!$AS$5 -> -0.21 | F52: ='G-2 Habitat groups'!$AT$5 -> -0.966 | G52: =E52-C52 -> -0.42 | H52: =F52-D52 -> -1.932 | J52: =$G52+$G71 -> -0.42 | K52: =$H52+$H71 -> -1.932
B53: Heathland and shrub | C53: ='G-2 Habitat groups'!$AO$6 -> 0 | D53: ='G-2 Habitat groups'!$AP$6 -> 0 | E53: ='G-2 Habitat groups'!$AS$6 -> 0.0167 | F53: ='G-2 Habitat groups'!$AT$6 -> 0.1380658397 | G53: 0.0167 | H53: 0.1380658397 | J53: 0.0167 | K53: 0.1380658397
B54: Rivers and lakes | C54: ='G-2 Habitat groups'!$AO$7 -> 0 | D54: ='G-2 Habitat groups'!$AP$7 -> 0 | E54: ='G-2 Habitat groups'!$AS$7 -> 0 | F54: ='G-2 Habitat groups'!$AT$7 -> 0 | G54: 0 | H54: 0 | J54: 0 | K54: 0
B55: Sparsely vegetated land | C55: ='G-2 Habitat groups'!$AO$8 -> 0.02 | D55: ='G-2 Habitat groups'!$AP$8 -> 0.046 | E55: ='G-2 Habitat groups'!$AS$8 -> -0.02 | F55: ='G-2 Habitat groups'!$AT$8 -> -0.046 | G55: -0.04 | H55: -0.092 | J55: -0.04 | K55: -0.092
B56: Urban | C56: ='G-2 Habitat groups'!$AO$9 -> 0.01 | D56: ='G-2 Habitat groups'!$AP$9 -> 0.023 | E56: ='G-2 Habitat groups'!$AS$9 -> 0.2133 | F56: ='G-2 Habitat groups'!$AT$9 -> 0.20627435 | G56: 0.2033 | H56: 0.18327435 | J56: 0.2033 | K56: 0.18327435
B57: Wetland | C57: ='G-2 Habitat groups'!$AO$10 -> 0 | D57: ='G-2 Habitat groups'!$AP$10 -> 0 | E57: ='G-2 Habitat groups'!$AS$10 -> 0 | F57: ='G-2 Habitat groups'!$AT$10 -> 0 | G57: 0 | H57: 0 | J57: 0 | K57: 0
B58: Woodland and forest | C58: ='G-2 Habitat groups'!$AO$11 -> 0 | D58: ='G-2 Habitat groups'!$AP$11 -> 0 | E58: ='G-2 Habitat groups'!$AS$11 -> 0 | F58: ='G-2 Habitat groups'!$AT$11 -> 0 | G58: 0 | H58: 0 | J58: 0 | K58: 0
B59: Intertidal sediment | C59: ='G-2 Habitat groups'!$AO$12 -> 0 | D59: ='G-2 Habitat groups'!$AP$12 -> 0 | E59: ='G-2 Habitat groups'!$AS$12 -> 0 | F59: ='G-2 Habitat groups'!$AT$12 -> 0 | G59: 0 | H59: 0 | J59: 0 | K59: 0
B60: Coastal saltmarsh | C60: ='G-2 Habitat groups'!$AO$13 -> 0 | D60: ='G-2 Habitat groups'!$AP$13 -> 0 | E60: ='G-2 Habitat groups'!$AS$13 -> 0 | F60: ='G-2 Habitat groups'!$AT$13 -> 0 | G60: 0 | H60: 0 | J60: 0 | K60: 0
B61: Rocky shore | C61: ='G-2 Habitat groups'!$AO$14 -> 0 | D61: ='G-2 Habitat groups'!$AP$14 -> 0 | E61: ='G-2 Habitat groups'!$AS$14 -> 0 | F61: ='G-2 Habitat groups'!$AT$14 -> 0 | G61: 0 | H61: 0 | J61: 0 | K61: 0
B62: Coastal lagoons | C62: ='G-2 Habitat groups'!$AO$15 -> 0 | D62: ='G-2 Habitat groups'!$AP$15 -> 0 | E62: ='G-2 Habitat groups'!$AS$15 -> 0 | F62: ='G-2 Habitat groups'!$AT$15 -> 0 | G62: 0 | H62: 0 | J62: 0 | K62: 0
B68: Off-site | C68: Baseline | E68: Post development Off-site | G68: Off-site Change
B69: Habitat group | C69: Existing area | D69: Off-site Existing value | E69: Proposed area | F69: Off site Proposed value | G69: Area change | H69: Offsite Unit change
B70: Cropland | C70: ='G-2 Habitat groups'!$AO$20 -> 0 | D70: ='G-2 Habitat groups'!$AP$20 -> 0 | E70: ='G-2 Habitat groups'!$AQ$20 -> 0 | F70: ='G-2 Habitat groups'!$AR$20 -> 0 | G70: =E70-C70 -> 0 | H70: =F70-D70 -> 0
B71: Grassland | C71: ='G-2 Habitat groups'!$AO$21 -> 0 | D71: ='G-2 Habitat groups'!$AP$21 -> 0 | E71: ='G-2 Habitat groups'!$AQ$21 -> 0 | F71: ='G-2 Habitat groups'!$AR$21 -> 0 | G71: 0 | H71: 0
B72: Heathland and shrub | C72: ='G-2 Habitat groups'!$AO$22 -> 0 | D72: ='G-2 Habitat groups'!$AP$22 -> 0 | E72: ='G-2 Habitat groups'!$AQ$22 -> 0 | F72: ='G-2 Habitat groups'!$AR$22 -> 0 | G72: 0 | H72: 0
B73: Rivers and lakes | C73: ='G-2 Habitat groups'!$AO$23 -> 0 | D73: ='G-2 Habitat groups'!$AP$23 -> 0 | E73: ='G-2 Habitat groups'!$AQ$23 -> 0 | F73: ='G-2 Habitat groups'!$AR$23 -> 0 | G73: 0 | H73: 0
B74: Sparsely vegetated land | C74: ='G-2 Habitat groups'!$AO$24 -> 0 | D74: ='G-2 Habitat groups'!$AP$24 -> 0 | E74: ='G-2 Habitat groups'!$AQ$24 -> 0 | F74: ='G-2 Habitat groups'!$AR$24 -> 0 | G74: 0 | H74: 0
B75: Urban | C75: ='G-2 Habitat groups'!$AO$25 -> 0 | D75: ='G-2 Habitat groups'!$AP$25 -> 0 | E75: ='G-2 Habitat groups'!$AQ$25 -> 0 | F75: ='G-2 Habitat groups'!$AR$25 -> 0 | G75: 0 | H75: 0
B76: Wetland | C76: ='G-2 Habitat groups'!$AO$26 -> 0 | D76: ='G-2 Habitat groups'!$AP$26 -> 0 | E76: ='G-2 Habitat groups'!$AQ$26 -> 0 | F76: ='G-2 Habitat groups'!$AR$26 -> 0 | G76: 0 | H76: 0
B77: Woodland and forest | C77: ='G-2 Habitat groups'!$AO$27 -> 0 | D77: ='G-2 Habitat groups'!$AP$27 -> 0 | E77: ='G-2 Habitat groups'!$AQ$27 -> 0 | F77: ='G-2 Habitat groups'!$AR$27 -> 0 | G77: 0 | H77: 0
B78: Intertidal sediment | C78: ='G-2 Habitat groups'!$AO$28 -> 0 | D78: ='G-2 Habitat groups'!$AP$28 -> 0 | E78: ='G-2 Habitat groups'!$AQ$28 -> 0 | F78: ='G-2 Habitat groups'!$AR$28 -> 0 | G78: 0 | H78: 0
B79: Coastal saltmarsh | C79: ='G-2 Habitat groups'!$AO$29 -> 0 | D79: ='G-2 Habitat groups'!$AP$29 -> 0 | E79: ='G-2 Habitat groups'!$AQ$29 -> 0 | F79: ='G-2 Habitat groups'!$AR$29 -> 0 | G79: 0 | H79: 0
B80: Rocky shore | C80: ='G-2 Habitat groups'!$AO$30 -> 0 | D80: ='G-2 Habitat groups'!$AP$30 -> 0 | E80: ='G-2 Habitat groups'!$AQ$30 -> 0 | F80: ='G-2 Habitat groups'!$AR$30 -> 0 | G80: 0 | H80: 0
B81: Coastal lagoons | C81: ='G-2 Habitat groups'!$AO$31 -> 0 | D81: ='G-2 Habitat groups'!$AP$31 -> 0 | E81: ='G-2 Habitat groups'!$AQ$31 -> 0 | F81: ='G-2 Habitat groups'!$AR$31 -> 0 | G81: 0 | H81: 0
B87: Combined | C87: Baseline | E87: Combined Post development | G87: Combined change
B88: Habitat group | C88: Existing area | D88: Existing value | E88: Proposed area | F88: Proposed value | G88: Proposed area | H88: Proposed value
B89: Cropland | C89: =C51+C70 -> 0 | D89: =D51+D70 -> 0 | E89: 0 | F89: 0 | G89: 0 | H89: 0
B90: Grassland | C90: =C52+C71 -> 0.21 | D90: =D52+D71 -> 0.966 | E90: -0.21 | F90: -0.966 | G90: -0.42 | H90: -1.932
B91: Heathland and shrub | C91: =C53+C72 -> 0 | D91: 0 | E91: 0.0167 | F91: 0.1380658397 | G91: 0.0167 | H91: 0.1380658397
B92: Rivers and lakes | C92: 0 | D92: 0 | E92: 0 | F92: 0 | G92: 0 | H92: 0
B93: Sparsely vegetated land | C93: 0.02 | D93: 0.046 | E93: -0.02 | F93: -0.046 | G93: -0.04 | H93: -0.092
B94: Urban | C94: 0.01 | D94: 0.023 | E94: 0.2133 | F94: 0.20627435 | G94: 0.2033 | H94: 0.18327435
B95: Wetland | C95: 0 | D95: 0 | E95: 0 | F95: 0 | G95: 0 | H95: 0
B96: Woodland and forest | C96: 0 | D96: 0 | E96: 0 | F96: 0 | G96: 0 | H96: 0
B97: Intertidal sediment | C97: 0 | D97: 0 | E97: 0 | F97: 0 | G97: 0 | H97: 0
B98: Coastal saltmarsh | C98: 0 | D98: 0 | E98: 0 | F98: 0 | G98: 0 | H98: 0
B99: Rocky shore | C99: 0 | D99: 0 | E99: 0 | F99: 0 | G99: 0 | H99: 0
B100: Coastal lagoons | C100: 0 | D100: 0 | E100: 0 | F100: 0 | G100: 0 | H100: 0

Sheet Trading Summary (hidden)
C3: =IF(AND(O137>=0,O53+O89>=0),"Overall Trading Acceptable","Check Proposed Habitat Trading") -> Check Proposed Habitat Trading
C7: Very high
C8: Habitat group | D8: Group | E8: Existing area lost
C9: ='G-2 Habitat groups'!AY5 -> Grassland - Lowland dry acid grassland | D9: ='G-2 Habitat groups'!AZ5 -> Grassland | E9: =SUMIF('A-1 Site Habitat Baseline'!$D$11:$D$258,'Trading Summary'!C9,'A-1 Site Habitat Baseline'!$AE$11:$AE$258) -> 0
C10: ='G-2 Habitat groups'!AY6 -> Heathland and shrub - Mountain heaths and willow scrub | D10: ='G-2 Habitat groups'!AZ6 -> Heathland and shrub | E10: =SUMIF('A-1 Site Habitat Baseline'!$D$11:$D$258,'Trading Summary'!C10,'A-1 Site Habitat Baseline'!$AE$11:$AE$258) -> 0
C11: ='G-2 Habitat groups'!AY7 -> Sparsely vegetated land - Limestone pavement | D11: ='G-2 Habitat groups'!AZ7 -> Sparsely vegetated land | E11: =SUMIF('A-1 Site Habitat Baseline'!$D$11:$D$258,'Trading Summary'!C11,'A-1 Site Habitat Baseline'!$AE$11:$AE$258) -> 0
C12: ='G-2 Habitat groups'!AY8 -> Wetland - Blanket bog | D12: ='G-2 Habitat groups'!AZ8 -> Wetland | E12: =SUMIF('A-1 Site Habitat Baseline'!$D$11:$D$258,'Trading Summary'!C12,'A-1 Site Habitat Baseline'!$AE$11:$AE$258) -> 0
C13: ='G-2 Habitat groups'!AY9 -> Wetland - Depressions on Peat Substrates (H7150) | D13: ='G-2 Habitat groups'!AZ9 -> Wetland | E13: =SUMIF('A-1 Site Habitat Baseline'!$D$11:$D$258,'Trading Summary'!C13,'A-1 Site Habitat Baseline'!$AE$11:$AE$258) -> 0
C14: ='G-2 Habitat groups'!AY10 -> Wetland - Fens (upland and lowland) | D14: ='G-2 Habitat groups'!AZ10 -> Wetland | E14: =SUMIF('A-1 Site Habitat Baseline'!$D$11:$D$258,'Trading Summary'!C14,'A-1 Site Habitat Baseline'!$AE$11:$AE$258) -> 0
C15: ='G-2 Habitat groups'!AY11 -> Wetland - Lowland raised bog | D15: ='G-2 Habitat groups'!AZ11 -> Wetland | E15: =SUMIF('A-1 Site Habitat Baseline'!$D$11:$D$258,'Trading Summary'!C15,'A-1 Site Habitat Baseline'!$AE$11:$AE$258) -> 0
C16: ='G-2 Habitat groups'!AY12 -> Wetland – Oceanic Valley Mire[1] (D2.1) | D16: ='G-2 Habitat groups'!AZ12 -> Wetland | E16: =SUMIF('A-1 Site Habitat Baseline'!$D$11:$D$258,'Trading Summary'!C16,'A-1 Site Habitat Baseline'!$AE$11:$AE$258) -> 0
C17: ='G-2 Habitat groups'!AY13 -> Wetland - Purple moor grass and rush pastures | D17: ='G-2 Habitat groups'!AZ13 -> Wetland | E17: =SUMIF('A-1 Site Habitat Baseline'!$D$11:$D$258,'Trading Summary'!C17,'A-1 Site Habitat Baseline'!$AE$11:$AE$258) -> 0
C18: ='G-2 Habitat groups'!AY14 -> Wetland - Transition mires and quaking bogs (H7140) | D18: ='G-2 Habitat groups'!AZ14 -> Wetland | E18: =SUMIF('A-1 Site Habitat Baseline'!$D$11:$D$258,'Trading Summary'!C18,'A-1 Site Habitat Baseline'!$AE$11:$AE$258) -> 0
C19: ='G-2 Habitat groups'!AY15 -> Grassland - Lowland meadows | D19: ='G-2 Habitat groups'!AZ15 -> Grassland | E19: =SUMIF('A-1 Site Habitat Baseline'!$D$11:$D$258,'Trading Summary'!C19,'A-1 Site Habitat Baseline'!$AE$11:$AE$258) -> 0
C20: ='G-2 Habitat groups'!AY16 -> Grassland - Upland hay meadows | D20: ='G-2 Habitat groups'!AZ16 -> Grassland | E20: =SUMIF('A-1 Site Habitat Baseline'!$D$11:$D$258,'Trading Summary'!C20,'A-1 Site Habitat Baseline'!$AE$11:$AE$258) -> 0
C21: ='G-2 Habitat groups'!AY17 -> lakes - Aquifer fed naturally fluctuating water bodies | D21: ='G-2 Habitat groups'!AZ17 -> Lakes | E21: =SUMIF('A-1 Site Habitat Baseline'!$D$11:$D$258,'Trading Summary'!C21,'A-1 Site Habitat Baseline'!$AE$11:$AE$258) -> 0
C22: ='G-2 Habitat groups'!AY18 -> Sparsely vegetated land - Calaminarian grasslands | D22: ='G-2 Habitat groups'!AZ18 -> Sparsely vegetated land | E22: =SUMIF('A-1 Site Habitat Baseline'!$D$11:$D$258,'Trading Summary'!C22,'A-1 Site Habitat Baseline'!$AE$11:$AE$258) -> 0
C23: ='G-2 Habitat groups'!AY19 -> Rocky shore - High energy littoral rock - on bedrock | D23: ='G-2 Habitat groups'!AZ19 -> Rocky shore | E23: =SUMIF('A-1 Site Habitat Baseline'!$D$11:$D$258,'Trading Summary'!C23,'A-1 Site Habitat Baseline'!$AE$11:$AE$258) -> 0
C24: ='G-2 Habitat groups'!AY20 -> Rocky shore - Moderate energy littoral rock - on bedrock | D24: ='G-2 Habitat groups'!AZ20 -> Rocky shore | E24: =SUMIF('A-1 Site Habitat Baseline'!$D$11:$D$258,'Trading Summary'!C24,'A-1 Site Habitat Baseline'!$AE$11:$AE$258) -> 0
C25: ='G-2 Habitat groups'!AY21 -> Rocky shore - Low energy littoral rock - on bedrock | D25: ='G-2 Habitat groups'!AZ21 -> Rocky shore | E25: =SUMIF('A-1 Site Habitat Baseline'!$D$11:$D$258,'Trading Summary'!C25,'A-1 Site Habitat Baseline'!$AE$11:$AE$258) -> 0 | N25: Any rows highlighted in red within this table highlight habitat types that require further compensation in order to deliver the required number of units to reach no net loss
C26: ='G-2 Habitat groups'!AY22 -> Rocky shore - Features of littoral rock - on bedrock | D26: ='G-2 Habitat groups'!AZ22 -> Rocky shore | E26: =SUMIF('A-1 Site Habitat Baseline'!$D$11:$D$258,'Trading Summary'!C26,'A-1 Site Habitat Baseline'!$AE$11:$AE$258) -> 0
C27: ='G-2 Habitat groups'!AY23 -> Intertidal sediment - Littoral sediments dominated by aquatic angiosperms - on bedrock | D27: ='G-2 Habitat groups'!AZ23 -> Intertidal sediment | E27: =SUMIF('A-1 Site Habitat Baseline'!$D$11:$D$258,'Trading Summary'!C27,'A-1 Site Habitat Baseline'!$AE$11:$AE$258) -> 0
C28: ='G-2 Habitat groups'!AY24 -> Intertidal sediment - Littoral biogenic reefs - on bedrock | D28: ='G-2 Habitat groups'!AZ24 -> Intertidal sediment | E28: =SUMIF('A-1 Site Habitat Baseline'!$D$11:$D$258,'Trading Summary'!C28,'A-1 Site Habitat Baseline'!$AE$11:$AE$258) -> 0
C29: Total impact to be addressed through separate mechanism | E29: =SUM(E9:E28) -> 0
C35: High
C36: Habitat group | D36: Group | E36: On-Site units lost | F36: Units delivered on-site | G36: On Site Unit Change | H36: Units delivered off-site | I36: Project wide Unit Change | J36: Percentage change above loss | K36: losses not yet accounted for
C37: ='G-2 Habitat groups'!AY31 -> Cropland - Traditional orchards | D37: ='G-2 Habitat groups'!AZ31 -> Cropland | E37: ='G-2 Habitat groups'!BB31 -> 0 | F37: ='G-2 Habitat groups'!BD31 -> 0 | G37: ='G-2 Habitat groups'!BF31 -> 0 | H37: ='G-2 Habitat groups'!BH31 -> 0 | I37: ='G-2 Habitat groups'!BI31 -> 0 | K37: ='G-2 Habitat groups'!BJ31 -> 
C38: ='G-2 Habitat groups'!AY32 -> Grassland - Floodplain Wetland Mosaic (CFGM) | D38: ='G-2 Habitat groups'!AZ32 -> Grassland | E38: ='G-2 Habitat groups'!BB32 -> 0 | F38: ='G-2 Habitat groups'!BD32 -> 0 | G38: ='G-2 Habitat groups'!BF32 -> 0 | H38: ='G-2 Habitat groups'!BH32 -> 0 | I38: ='G-2 Habitat groups'!BI32 -> 0 | K38: ='G-2 Habitat groups'!BJ32 -> 
C39: ='G-2 Habitat groups'!AY33 -> Grassland - Lowland calcareous grassland | D39: ='G-2 Habitat groups'!AZ33 -> Grassland | E39: ='G-2 Habitat groups'!BB33 -> 0 | F39: ='G-2 Habitat groups'!BD33 -> 0 | G39: ='G-2 Habitat groups'!BF33 -> 0 | H39: ='G-2 Habitat groups'!BH33 -> 0 | I39: ='G-2 Habitat groups'!BI33 -> 0 | K39: ='G-2 Habitat groups'!BJ33 ->  | M39: cumulative positive - this sums only the positive values in order for them to be utilised to offset any deficit in lower distinctiveness bands | O39: =SUMIF(I37:I78,">0") -> 0
C40: ='G-2 Habitat groups'!AY34 -> Grassland - Tall herb communities | D40: ='G-2 Habitat groups'!AZ34 -> Grassland | E40: ='G-2 Habitat groups'!BB34 -> 0 | F40: ='G-2 Habitat groups'!BD34 -> 0 | G40: ='G-2 Habitat groups'!BF34 -> 0 | H40: ='G-2 Habitat groups'!BH34 -> 0 | I40: ='G-2 Habitat groups'!BI34 -> 0 | K40: ='G-2 Habitat groups'!BJ34 -> 
C41: ='G-2 Habitat groups'!AY35 -> Grassland - Upland calcareous grassland | D41: ='G-2 Habitat groups'!AZ35 -> Grassland | E41: ='G-2 Habitat groups'!BB35 -> 0 | F41: ='G-2 Habitat groups'!BD35 -> 0 | G41: ='G-2 Habitat groups'!BF35 -> 0 | H41: ='G-2 Habitat groups'!BH35 -> 0 | I41: ='G-2 Habitat groups'!BI35 -> 0 | K41: ='G-2 Habitat groups'!BJ35 -> 
C42: ='G-2 Habitat groups'!AY36 -> Heathland and shrub - Lowland Heathland | D42: ='G-2 Habitat groups'!AZ36 -> Grassland | E42: ='G-2 Habitat groups'!BB36 -> 0 | F42: ='G-2 Habitat groups'!BD36 -> 0 | G42: ='G-2 Habitat groups'!BF36 -> 0 | H42: ='G-2 Habitat groups'!BH36 -> 0 | I42: ='G-2 Habitat groups'!BI36 -> 0 | K42: ='G-2 Habitat groups'!BJ36 -> 
C43: ='G-2 Habitat groups'!AY37 -> Heathland and shrub - Sea buckthorn scrub (Annex 1) | D43: ='G-2 Habitat groups'!AZ37 -> Heathland and shrub | E43: ='G-2 Habitat groups'!BB37 -> 0 | F43: ='G-2 Habitat groups'!BD37 -> 0 | G43: ='G-2 Habitat groups'!BF37 -> 0 | H43: ='G-2 Habitat groups'!BH37 -> 0 | I43: ='G-2 Habitat groups'!BI37 -> 0 | K43: ='G-2 Habitat groups'!BJ37 -> 
C44: ='G-2 Habitat groups'!AY38 -> Heathland and shrub - Upland Heathland | D44: ='G-2 Habitat groups'!AZ38 -> Heathland and shrub | E44: ='G-2 Habitat groups'!BB38 -> 0 | F44: ='G-2 Habitat groups'!BD38 -> 0 | G44: ='G-2 Habitat groups'!BF38 -> 0 | H44: ='G-2 Habitat groups'!BH38 -> 0 | I44: ='G-2 Habitat groups'!BI38 -> 0 | K44: ='G-2 Habitat groups'!BJ38 -> 
C45: ='G-2 Habitat groups'!AY39 -> Lakes - High alkalinity lakes | D45: ='G-2 Habitat groups'!AZ39 -> Lakes | E45: ='G-2 Habitat groups'!BB39 -> 0 | F45: ='G-2 Habitat groups'!BD39 -> 0 | G45: ='G-2 Habitat groups'!BF39 -> 0 | H45: ='G-2 Habitat groups'!BH39 -> 0 | I45: ='G-2 Habitat groups'!BI39 -> 0 | K45: ='G-2 Habitat groups'!BJ39 -> 
C46: ='G-2 Habitat groups'!AY40 -> Lakes - Low alkalinity lakes | D46: ='G-2 Habitat groups'!AZ40 -> Lakes | E46: ='G-2 Habitat groups'!BB40 -> 0 | F46: ='G-2 Habitat groups'!BD40 -> 0 | G46: ='G-2 Habitat groups'!BF40 -> 0 | H46: ='G-2 Habitat groups'!BH40 -> 0 | I46: ='G-2 Habitat groups'!BI40 -> 0 | K46: ='G-2 Habitat groups'!BJ40 -> 
C47: ='G-2 Habitat groups'!AY41 -> Lakes - Marl Lakes | D47: ='G-2 Habitat groups'!AZ41 -> Lakes | E47: ='G-2 Habitat groups'!BB41 -> 0 | F47: ='G-2 Habitat groups'!BD41 -> 0 | G47: ='G-2 Habitat groups'!BF41 -> 0 | H47: ='G-2 Habitat groups'!BH41 -> 0 | I47: ='G-2 Habitat groups'!BI41 -> 0 | K47: ='G-2 Habitat groups'!BJ41 -> 
C48: ='G-2 Habitat groups'!AY42 -> Lakes - Moderate alkalinity lakes | D48: ='G-2 Habitat groups'!AZ42 -> Lakes | E48: ='G-2 Habitat groups'!BB42 -> 0 | F48: ='G-2 Habitat groups'!BD42 -> 0 | G48: ='G-2 Habitat groups'!BF42 -> 0 | H48: ='G-2 Habitat groups'!BH42 -> 0 | I48: ='G-2 Habitat groups'!BI42 -> 0 | K48: ='G-2 Habitat groups'!BJ42 -> 
C49: ='G-2 Habitat groups'!AY43 -> Lakes - Peat Lakes | D49: ='G-2 Habitat groups'!AZ43 -> Lakes | E49: ='G-2 Habitat groups'!BB43 -> 0 | F49: ='G-2 Habitat groups'!BD43 -> 0 | G49: ='G-2 Habitat groups'!BF43 -> 0 | H49: ='G-2 Habitat groups'!BH43 -> 0 | I49: ='G-2 Habitat groups'!BI43 -> 0 | K49: ='G-2 Habitat groups'!BJ43 -> 
C50: ='G-2 Habitat groups'!AY44 -> Lakes - Ponds (Priority Habitat) | D50: ='G-2 Habitat groups'!AZ44 -> Lakes | E50: ='G-2 Habitat groups'!BB44 -> 0 | F50: ='G-2 Habitat groups'!BD44 -> 0 | G50: ='G-2 Habitat groups'!BF44 -> 0 | H50: ='G-2 Habitat groups'!BH44 -> 0 | I50: ='G-2 Habitat groups'!BI44 -> 0 | K50: ='G-2 Habitat groups'!BJ44 ->  | N50: =IF(AND(O52<0,O53<0),"Error - Trading Down & Not Like For Like",IF(O52<0,"Error - Trading Down",IF(AND(O52>=0,O53<0),"Error - Compensation Not Like For Like","High Trading Acceptable"))) -> High Trading Acceptable
C51: ='G-2 Habitat groups'!AY45 -> Lakes - Temporary lakes, ponds and pools | D51: ='G-2 Habitat groups'!AZ45 -> Lakes | E51: ='G-2 Habitat groups'!BB45 -> 0 | F51: ='G-2 Habitat groups'!BD45 -> 0 | G51: ='G-2 Habitat groups'!BF45 -> 0 | H51: ='G-2 Habitat groups'!BH45 -> 0 | I51: ='G-2 Habitat groups'!BI45 -> 0 | K51: ='G-2 Habitat groups'!BJ45 -> 
C52: ='G-2 Habitat groups'!AY46 -> Sparsely vegetated land - Coastal sand dunes | D52: ='G-2 Habitat groups'!AZ46 -> Sparsely vegetated land | E52: ='G-2 Habitat groups'!BB46 -> 0 | F52: ='G-2 Habitat groups'!BD46 -> 0 | G52: ='G-2 Habitat groups'!BF46 -> 0 | H52: ='G-2 Habitat groups'!BH46 -> 0 | I52: ='G-2 Habitat groups'!BI46 -> 0 | K52: ='G-2 Habitat groups'!BJ46 ->  | N52: Trading Down Liability High Distinctiveness/Units | O52: =IF(G79+H79+O39<0,G79+H79,0) -> 0
C53: ='G-2 Habitat groups'!AY47 -> Sparsely vegetated land - Coastal vegetated shingle | D53: ='G-2 Habitat groups'!AZ47 -> Sparsely vegetated land | E53: ='G-2 Habitat groups'!BB47 -> 0 | F53: ='G-2 Habitat groups'!BD47 -> 0 | G53: ='G-2 Habitat groups'!BF47 -> 0 | H53: ='G-2 Habitat groups'!BH47 -> 0 | I53: ='G-2 Habitat groups'!BI47 -> 0 | K53: ='G-2 Habitat groups'!BJ47 ->  | N53: Not Like For Like/Units | O53: =IF(K79="","",K79) -> 0
C54: ='G-2 Habitat groups'!AY48 -> Sparsely vegetated land - Inland rock outcrop and scree habitats | D54: ='G-2 Habitat groups'!AZ48 -> Sparsely vegetated land | E54: ='G-2 Habitat groups'!BB48 -> 0 | F54: ='G-2 Habitat groups'!BD48 -> 0 | G54: ='G-2 Habitat groups'!BF48 -> 0 | H54: ='G-2 Habitat groups'!BH48 -> 0 | I54: ='G-2 Habitat groups'!BI48 -> 0 | K54: ='G-2 Habitat groups'!BJ48 -> 
C55: ='G-2 Habitat groups'!AY49 -> Sparsely vegetated land - Maritime cliff and slopes | D55: ='G-2 Habitat groups'!AZ49 -> Sparsely vegetated land | E55: ='G-2 Habitat groups'!BB49 -> 0 | F55: ='G-2 Habitat groups'!BD49 -> 0 | G55: ='G-2 Habitat groups'!BF49 -> 0 | H55: ='G-2 Habitat groups'!BH49 -> 0 | I55: ='G-2 Habitat groups'!BI49 -> 0 | K55: ='G-2 Habitat groups'!BJ49 -> 
C56: ='G-2 Habitat groups'!AY50 -> Urban - Open Mosaic Habitats on Previously Developed Land | D56: ='G-2 Habitat groups'!AZ50 -> Urban | E56: ='G-2 Habitat groups'!BB50 -> 0 | F56: ='G-2 Habitat groups'!BD50 -> 0 | G56: ='G-2 Habitat groups'!BF50 -> 0 | H56: ='G-2 Habitat groups'!BH50 -> 0 | I56: ='G-2 Habitat groups'!BI50 -> 0 | K56: ='G-2 Habitat groups'!BJ50 -> 
C57: ='G-2 Habitat groups'!AY51 -> Wetland - Reedbeds | D57: ='G-2 Habitat groups'!AZ51 -> Wetland | E57: ='G-2 Habitat groups'!BB51 -> 0 | F57: ='G-2 Habitat groups'!BD51 -> 0 | G57: ='G-2 Habitat groups'!BF51 -> 0 | H57: ='G-2 Habitat groups'!BH51 -> 0 | I57: ='G-2 Habitat groups'!BI51 -> 0 | K57: ='G-2 Habitat groups'!BJ51 -> 
C58: ='G-2 Habitat groups'!AY52 -> Woodland and forest - Lowland beech and yew woodland | D58: ='G-2 Habitat groups'!AZ52 -> Woodland and forest | E58: ='G-2 Habitat groups'!BB52 -> 0 | F58: ='G-2 Habitat groups'!BD52 -> 0 | G58: ='G-2 Habitat groups'!BF52 -> 0 | H58: ='G-2 Habitat groups'!BH52 -> 0 | I58: ='G-2 Habitat groups'!BI52 -> 0 | K58: ='G-2 Habitat groups'!BJ52 -> 
C59: ='G-2 Habitat groups'!AY53 -> Woodland and forest - Lowland mixed deciduous woodland | D59: ='G-2 Habitat groups'!AZ53 -> Woodland and forest | E59: ='G-2 Habitat groups'!BB53 -> 0 | F59: ='G-2 Habitat groups'!BD53 -> 0 | G59: ='G-2 Habitat groups'!BF53 -> 0 | H59: ='G-2 Habitat groups'!BH53 -> 0 | I59: ='G-2 Habitat groups'!BI53 -> 0 | K59: ='G-2 Habitat groups'!BJ53 -> 
C60: ='G-2 Habitat groups'!AY54 -> Woodland and forest - Native pine woodlands | D60: ='G-2 Habitat groups'!AZ54 -> Woodland and forest | E60: ='G-2 Habitat groups'!BB54 -> 0 | F60: ='G-2 Habitat groups'!BD54 -> 0 | G60: ='G-2 Habitat groups'!BF54 -> 0 | H60: ='G-2 Habitat groups'!BH54 -> 0 | I60: ='G-2 Habitat groups'!BI54 -> 0 | K60: ='G-2 Habitat groups'!BJ54 -> 
C61: ='G-2 Habitat groups'!AY55 -> Woodland and forest - Upland birchwoods | D61: ='G-2 Habitat groups'!AZ55 -> Woodland and forest | E61: ='G-2 Habitat groups'!BB55 -> 0 | F61: ='G-2 Habitat groups'!BD55 -> 0 | G61: ='G-2 Habitat groups'!BF55 -> 0 | H61: ='G-2 Habitat groups'!BH55 -> 0 | I61: ='G-2 Habitat groups'!BI55 -> 0 | K61: ='G-2 Habitat groups'!BJ55 -> 
C62: ='G-2 Habitat groups'!AY56 -> Woodland and forest - Upland mixed ashwoods | D62: ='G-2 Habitat groups'!AZ56 -> Woodland and forest | E62: ='G-2 Habitat groups'!BB56 -> 0 | F62: ='G-2 Habitat groups'!BD56 -> 0 | G62: ='G-2 Habitat groups'!BF56 -> 0 | H62: ='G-2 Habitat groups'!BH56 -> 0 | I62: ='G-2 Habitat groups'!BI56 -> 0 | K62: ='G-2 Habitat groups'!BJ56 -> 
C63: ='G-2 Habitat groups'!AY57 -> Woodland and forest - Upland oakwood | D63: ='G-2 Habitat groups'!AZ57 -> Woodland and forest | E63: ='G-2 Habitat groups'!BB57 -> 0 | F63: ='G-2 Habitat groups'!BD57 -> 0 | G63: ='G-2 Habitat groups'!BF57 -> 0 | H63: ='G-2 Habitat groups'!BH57 -> 0 | I63: ='G-2 Habitat groups'!BI57 -> 0 | K63: ='G-2 Habitat groups'!BJ57 -> 
C64: ='G-2 Habitat groups'!AY58 -> Woodland and forest - Wet woodland | D64: ='G-2 Habitat groups'!AZ58 -> Woodland and forest | E64: ='G-2 Habitat groups'!BB58 -> 0 | F64: ='G-2 Habitat groups'!BD58 -> 0 | G64: ='G-2 Habitat groups'!BF58 -> 0 | H64: ='G-2 Habitat groups'!BH58 -> 0 | I64: ='G-2 Habitat groups'!BI58 -> 0 | K64: ='G-2 Habitat groups'!BJ58 -> 
C65: ='G-2 Habitat groups'!AY59 -> Woodland and forest - Wood-pasture and parkland | D65: ='G-2 Habitat groups'!AZ59 -> Woodland and forest | E65: ='G-2 Habitat groups'!BB59 -> 0 | F65: ='G-2 Habitat groups'!BD59 -> 0 | G65: ='G-2 Habitat groups'!BF59 -> 0 | H65: ='G-2 Habitat groups'!BH59 -> 0 | I65: ='G-2 Habitat groups'!BI59 -> 0 | K65: ='G-2 Habitat groups'!BJ59 -> 
C66: ='G-2 Habitat groups'!AY60 -> Coastal lagoons - Coastal lagoons | D66: ='G-2 Habitat groups'!AZ60 -> Coastal lagoons | E66: ='G-2 Habitat groups'!BB60 -> 0 | F66: ='G-2 Habitat groups'!BD60 -> 0 | G66: ='G-2 Habitat groups'!BF60 -> 0 | H66: ='G-2 Habitat groups'!BH60 -> 0 | I66: ='G-2 Habitat groups'!BI60 -> 0 | K66: ='G-2 Habitat groups'!BJ60 -> 
C67: ='G-2 Habitat groups'!AY61 -> Rocky shore - High energy littoral rock | D67: ='G-2 Habitat groups'!AZ61 -> Rocky shore | E67: ='G-2 Habitat groups'!BB61 -> 0 | F67: ='G-2 Habitat groups'!BD61 -> 0 | G67: ='G-2 Habitat groups'!BF61 -> 0 | H67: ='G-2 Habitat groups'!BH61 -> 0 | I67: ='G-2 Habitat groups'!BI61 -> 0 | K67: ='G-2 Habitat groups'!BJ61 -> 
C68: ='G-2 Habitat groups'!AY62 -> Rocky shore - Moderate energy littoral rock | D68: ='G-2 Habitat groups'!AZ62 -> Rocky shore | E68: ='G-2 Habitat groups'!BB62 -> 0 | F68: ='G-2 Habitat groups'!BD62 -> 0 | G68: ='G-2 Habitat groups'!BF62 -> 0 | H68: ='G-2 Habitat groups'!BH62 -> 0 | I68: ='G-2 Habitat groups'!BI62 -> 0 | K68: ='G-2 Habitat groups'!BJ62 -> 
C69: ='G-2 Habitat groups'!AY63 -> Rocky shore - Low energy littoral rock | D69: ='G-2 Habitat groups'!AZ63 -> Rocky shore | E69: ='G-2 Habitat groups'!BB63 -> 0 | F69: ='G-2 Habitat groups'!BD63 -> 0 | G69: ='G-2 Habitat groups'!BF63 -> 0 | H69: ='G-2 Habitat groups'!BH63 -> 0 | I69: ='G-2 Habitat groups'!BI63 -> 0 | K69: ='G-2 Habitat groups'!BJ63 -> 
C70: ='G-2 Habitat groups'!AY64 -> Rocky shore - Features of littoral rock | D70: ='G-2 Habitat groups'!AZ64 -> Rocky shore | E70: ='G-2 Habitat groups'!BB64 -> 0 | F70: ='G-2 Habitat groups'!BD64 -> 0 | G70: ='G-2 Habitat groups'!BF64 -> 0 | H70: ='G-2 Habitat groups'!BH64 -> 0 | I70: ='G-2 Habitat groups'!BI64 -> 0 | K70: ='G-2 Habitat groups'!BJ64 -> 
C71: ='G-2 Habitat groups'!AY65 -> Intertidal sediment - Littoral coarse sediment | D71: ='G-2 Habitat groups'!AZ65 -> Intertidal sediment | E71: ='G-2 Habitat groups'!BB65 -> 0 | F71: ='G-2 Habitat groups'!BD65 -> 0 | G71: ='G-2 Habitat groups'!BF65 -> 0 | H71: ='G-2 Habitat groups'!BH65 -> 0 | I71: ='G-2 Habitat groups'!BI65 -> 0 | K71: ='G-2 Habitat groups'!BJ65 -> 
C72: ='G-2 Habitat groups'!AY66 -> Intertidal sediment - Littoral sand and muddy sand | D72: ='G-2 Habitat groups'!AZ66 -> Intertidal sediment | E72: ='G-2 Habitat groups'!BB66 -> 0 | F72: ='G-2 Habitat groups'!BD66 -> 0 | G72: ='G-2 Habitat groups'!BF66 -> 0 | H72: ='G-2 Habitat groups'!BH66 -> 0 | I72: ='G-2 Habitat groups'!BI66 -> 0 | K72: ='G-2 Habitat groups'!BJ66 -> 
C73: ='G-2 Habitat groups'!AY67 -> Intertidal sediment - Littoral mud | D73: ='G-2 Habitat groups'!AZ67 -> Intertidal sediment | E73: ='G-2 Habitat groups'!BB67 -> 0 | F73: ='G-2 Habitat groups'!BD67 -> 0 | G73: ='G-2 Habitat groups'!BF67 -> 0 | H73: ='G-2 Habitat groups'!BH67 -> 0 | I73: ='G-2 Habitat groups'!BI67 -> 0 | K73: ='G-2 Habitat groups'!BJ67 -> 
C74: ='G-2 Habitat groups'!AY68 -> Intertidal sediment - Littoral mixed sediments | D74: ='G-2 Habitat groups'!AZ68 -> Intertidal sediment | E74: ='G-2 Habitat groups'!BB68 -> 0 | F74: ='G-2 Habitat groups'!BD68 -> 0 | G74: ='G-2 Habitat groups'!BF68 -> 0 | H74: ='G-2 Habitat groups'!BH68 -> 0 | I74: ='G-2 Habitat groups'!BI68 -> 0 | K74: ='G-2 Habitat groups'!BJ68 -> 
C75: ='G-2 Habitat groups'!AY69 -> Coastal Saltmarsh -saltmarshes and saline reedbeds | D75: ='G-2 Habitat groups'!AZ69 -> Coastal Saltmarsh | E75: ='G-2 Habitat groups'!BB69 -> 0 | F75: ='G-2 Habitat groups'!BD69 -> 0 | G75: ='G-2 Habitat groups'!BF69 -> 0 | H75: ='G-2 Habitat groups'!BH69 -> 0 | I75: ='G-2 Habitat groups'!BI69 -> 0 | K75: ='G-2 Habitat groups'!BJ69 -> 
C76: ='G-2 Habitat groups'!AY70 -> Intertidal sediment - Littoral sediments dominated by aquatic angiosperms | D76: ='G-2 Habitat groups'!AZ70 -> Intertidal sediment | E76: ='G-2 Habitat groups'!BB70 -> 0 | F76: ='G-2 Habitat groups'!BD70 -> 0 | G76: ='G-2 Habitat groups'!BF70 -> 0 | H76: ='G-2 Habitat groups'!BH70 -> 0 | I76: ='G-2 Habitat groups'!BI70 -> 0 | K76: ='G-2 Habitat groups'!BJ70 -> 
C77: ='G-2 Habitat groups'!AY71 -> Intertidal sediment - Littoral biogenic reefs | D77: ='G-2 Habitat groups'!AZ71 -> Intertidal sediment | E77: ='G-2 Habitat groups'!BB71 -> 0 | F77: ='G-2 Habitat groups'!BD71 -> 0 | G77: ='G-2 Habitat groups'!BF71 -> 0 | H77: ='G-2 Habitat groups'!BH71 -> 0 | I77: ='G-2 Habitat groups'!BI71 -> 0 | K77: ='G-2 Habitat groups'!BJ71 -> 
C78: ='G-2 Habitat groups'!AY72 -> Intertidal sediment - Features of littoral sediment | D78: ='G-2 Habitat groups'!AZ72 -> Intertidal sediment | E78: ='G-2 Habitat groups'!BB72 -> 0 | F78: ='G-2 Habitat groups'!BD72 -> 0 | G78: ='G-2 Habitat groups'!BF72 -> 0 | H78: ='G-2 Habitat groups'!BH72 -> 0 | I78: ='G-2 Habitat groups'!BI72 -> 0 | K78: ='G-2 Habitat groups'!BJ72 -> 
G79: =SUM(G37:G78) -> 0 | H79: =SUM(H37:H78) -> 0 | I79: =SUM(I37:I78) -> 0 | K79: =SUM(K37:K78) -> 0
C83: Medium
C84: Habitat Group | D84: Group | E84: On-Site units lost | F84: Units delivered on-site | G84: On site unit change | H84: Units delivered off-site | I84: Project wide unit change | J84: Percentage change above loss | K84: losses not yet accounted for | N84: Medium cumulative offset plus high surplus, this number must be a positive when offsite compensation is factored in | O84: =SUMIF(I85:I116,">0")+O39 -> 0.1380658397
C85: ='G-2 Habitat groups'!AY82 -> Cropland - Arable field margins cultivated annually | D85: ='G-2 Habitat groups'!AZ82 -> Cropland | E85: ='G-2 Habitat groups'!BB82 -> 0 | F85: ='G-2 Habitat groups'!BD82 -> 0 | G85: ='G-2 Habitat groups'!BF82 -> 0 | H85: ='G-2 Habitat groups'!BH82 -> 0 | I85: ='G-2 Habitat groups'!BI82 -> 0 | K85: ='G-2 Habitat groups'!BJ82 -> 
C86: ='G-2 Habitat groups'!AY83 -> Cropland - Arable field margins game bird mix | D86: ='G-2 Habitat groups'!AZ83 -> Cropland | E86: ='G-2 Habitat groups'!BB83 -> 0 | F86: ='G-2 Habitat groups'!BD83 -> 0 | G86: ='G-2 Habitat groups'!BF83 -> 0 | H86: ='G-2 Habitat groups'!BH83 -> 0 | I86: ='G-2 Habitat groups'!BI83 -> 0 | K86: ='G-2 Habitat groups'!BJ83 ->  | N86: =IF(AND(O88<0,O89<0),"Error - Trading Down & Not Like For Like",IF(O88<0,"Error - Trading Down",IF(AND(O88>=0,O89<0),"Error - Compensation not Like For Like or Better - acceptable if same broad habitat type","Medium Trading Acceptable"))) -> Error - Trading Down & Not Like For Like
C87: ='G-2 Habitat groups'!AY84 -> Cropland - Arable field margins pollen & nectar | D87: ='G-2 Habitat groups'!AZ84 -> Cropland | E87: ='G-2 Habitat groups'!BB84 -> 0 | F87: ='G-2 Habitat groups'!BD84 -> 0 | G87: ='G-2 Habitat groups'!BF84 -> 0 | H87: ='G-2 Habitat groups'!BH84 -> 0 | I87: ='G-2 Habitat groups'!BI84 -> 0 | K87: ='G-2 Habitat groups'!BJ84 -> 
C88: ='G-2 Habitat groups'!AY85 -> Cropland - Arable field margins tussocky | D88: ='G-2 Habitat groups'!AZ85 -> Cropland | E88: ='G-2 Habitat groups'!BB85 -> 0 | F88: ='G-2 Habitat groups'!BD85 -> 0 | G88: ='G-2 Habitat groups'!BF85 -> 0 | H88: ='G-2 Habitat groups'!BH85 -> 0 | I88: ='G-2 Habitat groups'!BI85 -> 0 | K88: ='G-2 Habitat groups'!BJ85 ->  | N88: Trading Down Liability Medium Distinctiveness/Units | O88: =IF(G117+H117+O84<0,G117+H117,0) -> -0.8279341603
C89: ='G-2 Habitat groups'!AY86 -> Cropland - Cereal crops winter stubble | D89: ='G-2 Habitat groups'!AZ86 -> Cropland | E89: ='G-2 Habitat groups'!BB86 -> 0 | F89: ='G-2 Habitat groups'!BD86 -> 0 | G89: ='G-2 Habitat groups'!BF86 -> 0 | H89: ='G-2 Habitat groups'!BH86 -> 0 | I89: ='G-2 Habitat groups'!BI86 -> 0 | K89: ='G-2 Habitat groups'!BJ86 ->  | N89: Not Like For Like or Better/Units | O89: =IF(K117="","",K117) -> -0.966
C90: ='G-2 Habitat groups'!AY87 -> Grassland - Bracken | D90: ='G-2 Habitat groups'!AZ87 -> Grassland | E90: ='G-2 Habitat groups'!BB87 -> 0 | F90: ='G-2 Habitat groups'!BD87 -> 0 | G90: ='G-2 Habitat groups'!BF87 -> 0 | H90: ='G-2 Habitat groups'!BH87 -> 0 | I90: ='G-2 Habitat groups'!BI87 -> 0 | K90: ='G-2 Habitat groups'!BJ87 -> 
C91: ='G-2 Habitat groups'!AY88 -> Grassland - Other lowland acid grassland | D91: ='G-2 Habitat groups'!AZ88 -> Grassland | E91: ='G-2 Habitat groups'!BB88 -> 0 | F91: ='G-2 Habitat groups'!BD88 -> 0 | G91: ='G-2 Habitat groups'!BF88 -> 0 | H91: ='G-2 Habitat groups'!BH88 -> 0 | I91: ='G-2 Habitat groups'!BI88 -> 0 | K91: ='G-2 Habitat groups'!BJ88 ->  | N91: Cumulative Trading Error | O91: =O52+O88 -> -0.8279341603
C92: ='G-2 Habitat groups'!AY89 -> Grassland - Other neutral grassland | D92: ='G-2 Habitat groups'!AZ89 -> Grassland | E92: ='G-2 Habitat groups'!BB89 -> 0.966 | F92: ='G-2 Habitat groups'!BD89 -> 0 | G92: ='G-2 Habitat groups'!BF89 -> -0.966 | H92: ='G-2 Habitat groups'!BH89 -> 0 | I92: ='G-2 Habitat groups'!BI89 -> -0.966 | K92: ='G-2 Habitat groups'!BJ89 -> -0.966
C93: ='G-2 Habitat groups'!AY90 -> Grassland - Upland acid grassland | D93: ='G-2 Habitat groups'!AZ90 -> Grassland | E93: ='G-2 Habitat groups'!BB90 -> 0 | F93: ='G-2 Habitat groups'!BD90 -> 0 | G93: ='G-2 Habitat groups'!BF90 -> 0 | H93: ='G-2 Habitat groups'!BH90 -> 0 | I93: ='G-2 Habitat groups'!BI90 -> 0 | K93: ='G-2 Habitat groups'!BJ90 -> 
C94: ='G-2 Habitat groups'!AY91 -> Heathland and shrub - Blackthorn scrub | D94: ='G-2 Habitat groups'!AZ91 -> Heathland and shrub | E94: ='G-2 Habitat groups'!BB91 -> 0 | F94: ='G-2 Habitat groups'!BD91 -> 0 | G94: ='G-2 Habitat groups'!BF91 -> 0 | H94: ='G-2 Habitat groups'!BH91 -> 0 | I94: ='G-2 Habitat groups'!BI91 -> 0 | K94: ='G-2 Habitat groups'!BJ91 -> 
C95: ='G-2 Habitat groups'!AY92 -> Heathland and shrub - Bramble scrub | D95: ='G-2 Habitat groups'!AZ92 -> Heathland and shrub | E95: ='G-2 Habitat groups'!BB92 -> 0 | F95: ='G-2 Habitat groups'!BD92 -> 0 | G95: ='G-2 Habitat groups'!BF92 -> 0 | H95: ='G-2 Habitat groups'!BH92 -> 0 | I95: ='G-2 Habitat groups'!BI92 -> 0 | K95: ='G-2 Habitat groups'!BJ92 -> 
C96: ='G-2 Habitat groups'!AY93 -> Heathland and shrub - Gorse scrub | D96: ='G-2 Habitat groups'!AZ93 -> Heathland and shrub | E96: ='G-2 Habitat groups'!BB93 -> 0 | F96: ='G-2 Habitat groups'!BD93 -> 0 | G96: ='G-2 Habitat groups'!BF93 -> 0 | H96: ='G-2 Habitat groups'!BH93 -> 0 | I96: ='G-2 Habitat groups'!BI93 -> 0 | K96: ='G-2 Habitat groups'!BJ93 -> 
C97: ='G-2 Habitat groups'!AY94 -> Heathland and shrub - Hawthorn scrub | D97: ='G-2 Habitat groups'!AZ94 -> Heathland and shrub | E97: ='G-2 Habitat groups'!BB94 -> 0 | F97: ='G-2 Habitat groups'!BD94 -> 0 | G97: ='G-2 Habitat groups'!BF94 -> 0 | H97: ='G-2 Habitat groups'!BH94 -> 0 | I97: ='G-2 Habitat groups'!BI94 -> 0 | K97: ='G-2 Habitat groups'!BJ94 -> 
C98: ='G-2 Habitat groups'!AY95 -> Heathland and shrub - Hazel scrub | D98: ='G-2 Habitat groups'!AZ95 -> Heathland and shrub | E98: ='G-2 Habitat groups'!BB95 -> 0 | F98: ='G-2 Habitat groups'!BD95 -> 0 | G98: ='G-2 Habitat groups'!BF95 -> 0 | H98: ='G-2 Habitat groups'!BH95 -> 0 | I98: ='G-2 Habitat groups'!BI95 -> 0 | K98: ='G-2 Habitat groups'!BJ95 -> 
C99: ='G-2 Habitat groups'!AY96 -> Heathland and shrub - Mixed scrub | D99: ='G-2 Habitat groups'!AZ96 -> Heathland and shrub | E99: ='G-2 Habitat groups'!BB96 -> 0 | F99: ='G-2 Habitat groups'!BD96 -> 0.1380658397 | G99: ='G-2 Habitat groups'!BF96 -> 0.1380658397 | H99: ='G-2 Habitat groups'!BH96 -> 0 | I99: ='G-2 Habitat groups'!BI96 -> 0.1380658397 | K99: ='G-2 Habitat groups'!BJ96 -> 
C100: ='G-2 Habitat groups'!AY97 -> Heathland and shrub - Sea buckthorn scrub (other) | D100: ='G-2 Habitat groups'!AZ97 -> Heathland and shrub | E100: ='G-2 Habitat groups'!BB97 -> 0 | F100: ='G-2 Habitat groups'!BD97 -> 0 | G100: ='G-2 Habitat groups'!BF97 -> 0 | H100: ='G-2 Habitat groups'!BH97 -> 0 | I100: ='G-2 Habitat groups'!BI97 -> 0 | K100: ='G-2 Habitat groups'!BJ97 -> 
C101: ='G-2 Habitat groups'!AY98 -> Lakes - Ditches | D101: ='G-2 Habitat groups'!AZ98 -> Lakes | E101: ='G-2 Habitat groups'!BB98 -> 0 | F101: ='G-2 Habitat groups'!BD98 -> 0 | G101: ='G-2 Habitat groups'!BF98 -> 0 | H101: ='G-2 Habitat groups'!BH98 -> 0 | I101: ='G-2 Habitat groups'!BI98 -> 0 | K101: ='G-2 Habitat groups'!BJ98 -> 
C102: ='G-2 Habitat groups'!AY99 -> Lakes - Reservoirs | D102: ='G-2 Habitat groups'!AZ99 -> Lakes | E102: ='G-2 Habitat groups'!BB99 -> 0 | F102: ='G-2 Habitat groups'!BD99 -> 0 | G102: ='G-2 Habitat groups'!BF99 -> 0 | H102: ='G-2 Habitat groups'!BH99 -> 0 | I102: ='G-2 Habitat groups'!BI99 -> 0 | K102: ='G-2 Habitat groups'!BJ99 -> 
C103: ='G-2 Habitat groups'!AY100 -> Sparsely vegetated land - Calaminarian grasslands | D103: ='G-2 Habitat groups'!AZ100 -> Sparsely vegetated land | E103: ='G-2 Habitat groups'!BB100 -> 0 | F103: ='G-2 Habitat groups'!BD100 -> 0 | G103: ='G-2 Habitat groups'!BF100 -> 0 | H103: ='G-2 Habitat groups'!BH100 -> 0 | I103: ='G-2 Habitat groups'!BI100 -> 0 | K103: ='G-2 Habitat groups'!BJ100 -> 
C104: ='G-2 Habitat groups'!AY101 -> Sparsely vegetated land - Other inland rock and scree | D104: ='G-2 Habitat groups'!AZ101 -> Sparsely vegetated land | E104: ='G-2 Habitat groups'!BB101 -> 0 | F104: ='G-2 Habitat groups'!BD101 -> 0 | G104: ='G-2 Habitat groups'!BF101 -> 0 | H104: ='G-2 Habitat groups'!BH101 -> 0 | I104: ='G-2 Habitat groups'!BI101 -> 0 | K104: ='G-2 Habitat groups'!BJ101 -> 
C105: ='G-2 Habitat groups'!AY102 -> Urban - Allotments | D105: ='G-2 Habitat groups'!AZ102 -> Urban | E105: ='G-2 Habitat groups'!BB102 -> 0 | F105: ='G-2 Habitat groups'!BD102 -> 0 | G105: ='G-2 Habitat groups'!BF102 -> 0 | H105: ='G-2 Habitat groups'!BH102 -> 0 | I105: ='G-2 Habitat groups'!BI102 -> 0 | K105: ='G-2 Habitat groups'!BJ102 -> 
C106: ='G-2 Habitat groups'!AY103 -> Urban - Artificial lake or pond | D106: ='G-2 Habitat groups'!AZ103 -> Urban | E106: ='G-2 Habitat groups'!BB103 -> 0 | F106: ='G-2 Habitat groups'!BD103 -> 0 | G106: ='G-2 Habitat groups'!BF103 -> 0 | H106: ='G-2 Habitat groups'!BH103 -> 0 | I106: ='G-2 Habitat groups'!BI103 -> 0 | K106: ='G-2 Habitat groups'!BJ103 -> 
C107: ='G-2 Habitat groups'!AY104 -> Urban - Brown roof | D107: ='G-2 Habitat groups'!AZ104 -> Urban | E107: ='G-2 Habitat groups'!BB104 -> 0 | F107: ='G-2 Habitat groups'!BD104 -> 0 | G107: ='G-2 Habitat groups'!BF104 -> 0 | H107: ='G-2 Habitat groups'!BH104 -> 0 | I107: ='G-2 Habitat groups'!BI104 -> 0 | K107: ='G-2 Habitat groups'!BJ104 -> 
C108: ='G-2 Habitat groups'!AY105 -> Urban - Cemeteries and churchyards | D108: ='G-2 Habitat groups'!AZ105 -> Urban | E108: ='G-2 Habitat groups'!BB105 -> 0 | F108: ='G-2 Habitat groups'!BD105 -> 0 | G108: ='G-2 Habitat groups'!BF105 -> 0 | H108: ='G-2 Habitat groups'!BH105 -> 0 | I108: ='G-2 Habitat groups'!BI105 -> 0 | K108: ='G-2 Habitat groups'!BJ105 -> 
C109: ='G-2 Habitat groups'!AY106 -> Urban - Extensive green roof | D109: ='G-2 Habitat groups'!AZ106 -> Urban | E109: ='G-2 Habitat groups'!BB106 -> 0 | F109: ='G-2 Habitat groups'!BD106 -> 0 | G109: ='G-2 Habitat groups'!BF106 -> 0 | H109: ='G-2 Habitat groups'!BH106 -> 0 | I109: ='G-2 Habitat groups'!BI106 -> 0 | K109: ='G-2 Habitat groups'!BJ106 -> 
C110: ='G-2 Habitat groups'!AY107 -> Urban - Orchard | D110: ='G-2 Habitat groups'!AZ107 -> Urban | E110: ='G-2 Habitat groups'!BB107 -> 0 | F110: ='G-2 Habitat groups'!BD107 -> 0 | G110: ='G-2 Habitat groups'!BF107 -> 0 | H110: ='G-2 Habitat groups'!BH107 -> 0 | I110: ='G-2 Habitat groups'!BI107 -> 0 | K110: ='G-2 Habitat groups'!BJ107 -> 
C111: ='G-2 Habitat groups'!AY108 -> Urban - Woodland | D111: ='G-2 Habitat groups'!AZ108 -> Urban | E111: ='G-2 Habitat groups'!BB108 -> 0 | F111: ='G-2 Habitat groups'!BD108 -> 0 | G111: ='G-2 Habitat groups'!BF108 -> 0 | H111: ='G-2 Habitat groups'!BH108 -> 0 | I111: ='G-2 Habitat groups'!BI108 -> 0 | K111: ='G-2 Habitat groups'!BJ108 -> 
C112: ='G-2 Habitat groups'!AY109 -> Woodland and forest - Felled | D112: ='G-2 Habitat groups'!AZ109 -> Woodland and forest | E112: ='G-2 Habitat groups'!BB109 -> 0 | F112: ='G-2 Habitat groups'!BD109 -> 0 | G112: ='G-2 Habitat groups'!BF109 -> 0 | H112: ='G-2 Habitat groups'!BH109 -> 0 | I112: ='G-2 Habitat groups'!BI109 -> 0 | K112: ='G-2 Habitat groups'!BJ109 -> 
C113: ='G-2 Habitat groups'!AY110 -> Woodland and forest - Other Scot's Pine woodland | D113: ='G-2 Habitat groups'!AZ110 -> Woodland and forest | E113: ='G-2 Habitat groups'!BB110 -> 0 | F113: ='G-2 Habitat groups'!BD110 -> 0 | G113: ='G-2 Habitat groups'!BF110 -> 0 | H113: ='G-2 Habitat groups'!BH110 -> 0 | I113: ='G-2 Habitat groups'!BI110 -> 0 | K113: ='G-2 Habitat groups'!BJ110 -> 
C114: ='G-2 Habitat groups'!AY111 -> Woodland and forest - Other woodland; broadleaved | D114: ='G-2 Habitat groups'!AZ111 -> Woodland and forest | E114: ='G-2 Habitat groups'!BB111 -> 0 | F114: ='G-2 Habitat groups'!BD111 -> 0 | G114: ='G-2 Habitat groups'!BF111 -> 0 | H114: ='G-2 Habitat groups'!BH111 -> 0 | I114: ='G-2 Habitat groups'!BI111 -> 0 | K114: ='G-2 Habitat groups'!BJ111 -> 
C115: ='G-2 Habitat groups'!AY112 -> Woodland and forest - Other woodland; mixed | D115: ='G-2 Habitat groups'!AZ112 -> Woodland and forest | E115: ='G-2 Habitat groups'!BB112 -> 0 | F115: ='G-2 Habitat groups'!BD112 -> 0 | G115: ='G-2 Habitat groups'!BF112 -> 0 | H115: ='G-2 Habitat groups'!BH112 -> 0 | I115: ='G-2 Habitat groups'!BI112 -> 0 | K115: ='G-2 Habitat groups'!BJ112 -> 
C116: ='G-2 Habitat groups'!AY113 -> Woodland and forest - Other woodland; Young Trees planted | D116: ='G-2 Habitat groups'!AZ113 -> Woodland and forest | E116: ='G-2 Habitat groups'!BB113 -> 0 | F116: ='G-2 Habitat groups'!BD113 -> 0 | G116: ='G-2 Habitat groups'!BF113 -> 0 | H116: ='G-2 Habitat groups'!BH113 -> 0 | I116: ='G-2 Habitat groups'!BI113 -> 0 | K116: ='G-2 Habitat groups'!BJ113 -> 
G117: =SUM(G85:G116) -> -0.8279341603 | H117: =SUM(H85:H116) -> 0 | I117: =SUM(I85:I116) -> -0.8279341603 | K117: =SUM(K85:K116) -> -0.966
C121: Low
C122: Habitat group | D122: Group | E122: On-site units lost | F122: Units delivered on-site | G122: On site unit change | H122: Units delivered off-site | I122: Project wide unit change | J122: Percentage change above loss | K122: losses not yet accounted for | N122: Low cumulative offset plus high and medium surplus, this number must be a positive when offsite compensation is factored in | O122: =SUMIF(I123:I158,">0")+O84 -> 0.3673401897
C123: ='G-2 Habitat groups'!AY121 -> Cropland - Cereal crops | D123: ='G-2 Habitat groups'!AZ121 -> Cropland | E123: ='G-2 Habitat groups'!BB121 -> 0 | F123: ='G-2 Habitat groups'!BD121 -> 0 | G123: ='G-2 Habitat groups'!BF121 -> 0 | H123: ='G-2 Habitat groups'!BH121 -> 0 | I123: ='G-2 Habitat groups'!BI121 -> 0 | K123: ='G-2 Habitat groups'!BJ121 -> 
C124: ='G-2 Habitat groups'!AY122 -> Cropland - Cereal crops other | D124: ='G-2 Habitat groups'!AZ122 -> Cropland | E124: ='G-2 Habitat groups'!BB122 -> 0 | F124: ='G-2 Habitat groups'!BD122 -> 0 | G124: ='G-2 Habitat groups'!BF122 -> 0 | H124: ='G-2 Habitat groups'!BH122 -> 0 | I124: ='G-2 Habitat groups'!BI122 -> 0 | K124: ='G-2 Habitat groups'!BJ122 -> 
C125: ='G-2 Habitat groups'!AY123 -> Cropland - Horticulture | D125: ='G-2 Habitat groups'!AZ123 -> Cropland | E125: ='G-2 Habitat groups'!BB123 -> 0 | F125: ='G-2 Habitat groups'!BD123 -> 0 | G125: ='G-2 Habitat groups'!BF123 -> 0 | H125: ='G-2 Habitat groups'!BH123 -> 0 | I125: ='G-2 Habitat groups'!BI123 -> 0 | K125: ='G-2 Habitat groups'!BJ123 -> 
C126: ='G-2 Habitat groups'!AY124 -> Cropland - Intensive orchards | D126: ='G-2 Habitat groups'!AZ124 -> Cropland | E126: ='G-2 Habitat groups'!BB124 -> 0 | F126: ='G-2 Habitat groups'!BD124 -> 0 | G126: ='G-2 Habitat groups'!BF124 -> 0 | H126: ='G-2 Habitat groups'!BH124 -> 0 | I126: ='G-2 Habitat groups'!BI124 -> 0 | K126: ='G-2 Habitat groups'!BJ124 -> 
C127: ='G-2 Habitat groups'!AY125 -> Cropland - Non-cereal crops | D127: ='G-2 Habitat groups'!AZ125 -> Cropland | E127: ='G-2 Habitat groups'!BB125 -> 0 | F127: ='G-2 Habitat groups'!BD125 -> 0 | G127: ='G-2 Habitat groups'!BF125 -> 0 | H127: ='G-2 Habitat groups'!BH125 -> 0 | I127: ='G-2 Habitat groups'!BI125 -> 0 | K127: ='G-2 Habitat groups'!BJ125 -> 
C128: ='G-2 Habitat groups'!AY126 -> Cropland - Temporary grass and clover leys | D128: ='G-2 Habitat groups'!AZ126 -> Cropland | E128: ='G-2 Habitat groups'!BB126 -> 0 | F128: ='G-2 Habitat groups'!BD126 -> 0 | G128: ='G-2 Habitat groups'!BF126 -> 0 | H128: ='G-2 Habitat groups'!BH126 -> 0 | I128: ='G-2 Habitat groups'!BI126 -> 0 | K128: ='G-2 Habitat groups'!BJ126 -> 
C129: ='G-2 Habitat groups'!AY127 -> Grassland - Modified grassland | D129: ='G-2 Habitat groups'!AZ127 -> Grassland | E129: ='G-2 Habitat groups'!BB127 -> 0 | F129: ='G-2 Habitat groups'!BD127 -> 0 | G129: ='G-2 Habitat groups'!BF127 -> 0 | H129: ='G-2 Habitat groups'!BH127 -> 0 | I129: ='G-2 Habitat groups'!BI127 -> 0 | K129: ='G-2 Habitat groups'!BJ127 -> 
C130: ='G-2 Habitat groups'!AY128 -> Heathland and shrub - Rhododendron scrub | D130: ='G-2 Habitat groups'!AZ128 -> Grassland | E130: ='G-2 Habitat groups'!BB128 -> 0 | F130: ='G-2 Habitat groups'!BD128 -> 0 | G130: ='G-2 Habitat groups'!BF128 -> 0 | H130: ='G-2 Habitat groups'!BH128 -> 0 | I130: ='G-2 Habitat groups'!BI128 -> 0 | K130: ='G-2 Habitat groups'!BJ128 -> 
C131: ='G-2 Habitat groups'!AY129 -> Sparsely vegetated land - Ruderal/Ephemeral | D131: ='G-2 Habitat groups'!AZ129 -> Heathland and shrub | E131: ='G-2 Habitat groups'!BB129 -> 0.046 | F131: ='G-2 Habitat groups'!BD129 -> 0 | G131: ='G-2 Habitat groups'!BF129 -> -0.046 | H131: ='G-2 Habitat groups'!BH129 -> 0 | I131: ='G-2 Habitat groups'!BI129 -> -0.046 | K131: ='G-2 Habitat groups'!BJ129 -> -0.046 | N131: =IF(O133<0,"Error - Trading Down","Low Trading Acceptable") -> Low Trading Acceptable
C132: ='G-2 Habitat groups'!AY130 -> Urban - Bioswale | D132: ='G-2 Habitat groups'!AZ130 -> Sparsely vegetated land | E132: ='G-2 Habitat groups'!BB130 -> 0 | F132: ='G-2 Habitat groups'!BD130 -> 0 | G132: ='G-2 Habitat groups'!BF130 -> 0 | H132: ='G-2 Habitat groups'!BH130 -> 0 | I132: ='G-2 Habitat groups'!BI130 -> 0 | K132: ='G-2 Habitat groups'!BJ130 -> 
C133: ='G-2 Habitat groups'!AY131 -> Urban - Façade-bound green wall | D133: ='G-2 Habitat groups'!AZ131 -> Urban | E133: ='G-2 Habitat groups'!BB131 -> 0 | F133: ='G-2 Habitat groups'!BD131 -> 0 | G133: ='G-2 Habitat groups'!BF131 -> 0 | H133: ='G-2 Habitat groups'!BH131 -> 0 | I133: ='G-2 Habitat groups'!BI131 -> 0 | K133: ='G-2 Habitat groups'!BJ131 ->  | N133: Trading Down Liability High Distinctiveness/Units | O133: =IF(G159+H159+O122<0,G159+H159,0) -> 0
C134: ='G-2 Habitat groups'!AY132 -> Urban - Ground based green wall | D134: ='G-2 Habitat groups'!AZ132 -> Urban | E134: ='G-2 Habitat groups'!BB132 -> 0 | F134: ='G-2 Habitat groups'!BD132 -> 0 | G134: ='G-2 Habitat groups'!BF132 -> 0 | H134: ='G-2 Habitat groups'!BH132 -> 0 | I134: ='G-2 Habitat groups'!BI132 -> 0 | K134: ='G-2 Habitat groups'!BJ132 -> 
C135: ='G-2 Habitat groups'!AY133 -> Urban - Ground level planters | D135: ='G-2 Habitat groups'!AZ133 -> Urban | E135: ='G-2 Habitat groups'!BB133 -> 0 | F135: ='G-2 Habitat groups'!BD133 -> 0 | G135: ='G-2 Habitat groups'!BF133 -> 0 | H135: ='G-2 Habitat groups'!BH133 -> 0 | I135: ='G-2 Habitat groups'!BI133 -> 0 | K135: ='G-2 Habitat groups'!BJ133 -> 
C136: ='G-2 Habitat groups'!AY134 -> Urban - Intensive green roof | D136: ='G-2 Habitat groups'!AZ134 -> Urban | E136: ='G-2 Habitat groups'!BB134 -> 0 | F136: ='G-2 Habitat groups'!BD134 -> 0 | G136: ='G-2 Habitat groups'!BF134 -> 0 | H136: ='G-2 Habitat groups'!BH134 -> 0 | I136: ='G-2 Habitat groups'!BI134 -> 0 | K136: ='G-2 Habitat groups'!BJ134 -> 
C137: ='G-2 Habitat groups'!AY135 -> Urban - Introduced shrub | D137: ='G-2 Habitat groups'!AZ135 -> Urban | E137: ='G-2 Habitat groups'!BB135 -> 0 | F137: ='G-2 Habitat groups'!BD135 -> 0 | G137: ='G-2 Habitat groups'!BF135 -> 0 | H137: ='G-2 Habitat groups'!BH135 -> 0 | I137: ='G-2 Habitat groups'!BI135 -> 0 | K137: ='G-2 Habitat groups'!BJ135 ->  | N137: Cumulative Trading Error | O137: =O91+O133 -> -0.8279341603
C138: ='G-2 Habitat groups'!AY136 -> Urban - Amenity grassland | D138: ='G-2 Habitat groups'!AZ136 -> Urban | E138: ='G-2 Habitat groups'!BB136 -> 0.023 | F138: ='G-2 Habitat groups'!BD136 -> 0 | G138: ='G-2 Habitat groups'!BF136 -> -0.023 | H138: ='G-2 Habitat groups'!BH136 -> 0 | I138: ='G-2 Habitat groups'!BI136 -> -0.023 | K138: ='G-2 Habitat groups'!BJ136 -> -0.023
C139: ='G-2 Habitat groups'!AY137 -> Urban - Rain garden | D139: ='G-2 Habitat groups'!AZ137 -> Urban | E139: ='G-2 Habitat groups'!BB137 -> 0 | F139: ='G-2 Habitat groups'!BD137 -> 0 | G139: ='G-2 Habitat groups'!BF137 -> 0 | H139: ='G-2 Habitat groups'!BH137 -> 0 | I139: ='G-2 Habitat groups'!BI137 -> 0 | K139: ='G-2 Habitat groups'!BJ137 ->  | N139: =IF(AND(O137>=0,O53+O89>=0),"Overall Trading Acceptable","Check Proposed Habitat Trading") -> Check Proposed Habitat Trading
C140: ='G-2 Habitat groups'!AY138 -> Urban - Sand pit quarry or open cast mine | D140: ='G-2 Habitat groups'!AZ138 -> Urban | E140: ='G-2 Habitat groups'!BB138 -> 0 | F140: ='G-2 Habitat groups'!BD138 -> 0 | G140: ='G-2 Habitat groups'!BF138 -> 0 | H140: ='G-2 Habitat groups'!BH138 -> 0 | I140: ='G-2 Habitat groups'!BI138 -> 0 | K140: ='G-2 Habitat groups'!BJ138 -> 
C141: ='G-2 Habitat groups'!AY139 -> Urban - Street Tree | D141: ='G-2 Habitat groups'!AZ139 -> Urban | E141: ='G-2 Habitat groups'!BB139 -> 0 | F141: ='G-2 Habitat groups'!BD139 -> 0 | G141: ='G-2 Habitat groups'!BF139 -> 0 | H141: ='G-2 Habitat groups'!BH139 -> 0 | I141: ='G-2 Habitat groups'!BI139 -> 0 | K141: ='G-2 Habitat groups'!BJ139 -> 
C142: ='G-2 Habitat groups'!AY140 -> Urban - Suburban/ mosaic of developed/ natural surface | D142: ='G-2 Habitat groups'!AZ140 -> Urban | E142: ='G-2 Habitat groups'!BB140 -> 0 | F142: ='G-2 Habitat groups'!BD140 -> 0 | G142: ='G-2 Habitat groups'!BF140 -> 0 | H142: ='G-2 Habitat groups'!BH140 -> 0 | I142: ='G-2 Habitat groups'!BI140 -> 0 | K142: ='G-2 Habitat groups'!BJ140 -> 
C143: ='G-2 Habitat groups'!AY141 -> Urban - Sustainable urban drainage feature | D143: ='G-2 Habitat groups'!AZ141 -> Urban | E143: ='G-2 Habitat groups'!BB141 -> 0 | F143: ='G-2 Habitat groups'!BD141 -> 0 | G143: ='G-2 Habitat groups'!BF141 -> 0 | H143: ='G-2 Habitat groups'!BH141 -> 0 | I143: ='G-2 Habitat groups'!BI141 -> 0 | K143: ='G-2 Habitat groups'!BJ141 -> 
C144: ='G-2 Habitat groups'!AY142 -> Urban - Vacant/derelict land/ bareground | D144: ='G-2 Habitat groups'!AZ142 -> Urban | E144: ='G-2 Habitat groups'!BB142 -> 0 | F144: ='G-2 Habitat groups'!BD142 -> 0 | G144: ='G-2 Habitat groups'!BF142 -> 0 | H144: ='G-2 Habitat groups'!BH142 -> 0 | I144: ='G-2 Habitat groups'!BI142 -> 0 | K144: ='G-2 Habitat groups'!BJ142 -> 
C145: ='G-2 Habitat groups'!AY143 -> Urban - Vegetated garden | D145: ='G-2 Habitat groups'!AZ143 -> Urban | E145: ='G-2 Habitat groups'!BB143 -> 0 | F145: ='G-2 Habitat groups'!BD143 -> 0.22927435 | G145: ='G-2 Habitat groups'!BF143 -> 0.22927435 | H145: ='G-2 Habitat groups'!BH143 -> 0 | I145: ='G-2 Habitat groups'!BI143 -> 0.22927435 | K145: ='G-2 Habitat groups'!BJ143 -> 
C146: ='G-2 Habitat groups'!AY144 -> Woodland and forest - Other coniferous woodland | D146: ='G-2 Habitat groups'!AZ144 -> Urban | E146: ='G-2 Habitat groups'!BB144 -> 0 | F146: ='G-2 Habitat groups'!BD144 -> 0 | G146: ='G-2 Habitat groups'!BF144 -> 0 | H146: ='G-2 Habitat groups'!BH144 -> 0 | I146: ='G-2 Habitat groups'!BI144 -> 0 | K146: ='G-2 Habitat groups'!BJ144 -> 
C147: ='G-2 Habitat groups'!AY145 -> Woodland and forest - Other coniferous woodland | D147: ='G-2 Habitat groups'!AZ145 -> Woodland and forest | E147: ='G-2 Habitat groups'!BB145 -> 0 | F147: ='G-2 Habitat groups'!BD145 -> 0 | G147: ='G-2 Habitat groups'!BF145 -> 0 | H147: ='G-2 Habitat groups'!BH145 -> 0 | I147: ='G-2 Habitat groups'!BI145 -> 0 | K147: ='G-2 Habitat groups'!BJ145 -> 
C148: ='G-2 Habitat groups'!AY146 -> Rocky shore - Artificial high energy littoral rock | D148: ='G-2 Habitat groups'!AZ146 -> Rocky shore | E148: ='G-2 Habitat groups'!BB146 -> 0 | F148: ='G-2 Habitat groups'!BD146 -> 0 | G148: ='G-2 Habitat groups'!BF146 -> 0 | H148: ='G-2 Habitat groups'!BH146 -> 0 | I148: ='G-2 Habitat groups'!BI146 -> 0 | K148: ='G-2 Habitat groups'!BJ146 -> 
C149: ='G-2 Habitat groups'!AY147 -> Rocky shore - Artificial moderate energy littoral rock | D149: ='G-2 Habitat groups'!AZ147 -> Rocky shore | E149: ='G-2 Habitat groups'!BB147 -> 0 | F149: ='G-2 Habitat groups'!BD147 -> 0 | G149: ='G-2 Habitat groups'!BF147 -> 0 | H149: ='G-2 Habitat groups'!BH147 -> 0 | I149: ='G-2 Habitat groups'!BI147 -> 0 | K149: ='G-2 Habitat groups'!BJ147 -> 
C150: ='G-2 Habitat groups'!AY148 -> Rocky shore - Artificial low energy littoral rock | D150: ='G-2 Habitat groups'!AZ148 -> Rocky shore | E150: ='G-2 Habitat groups'!BB148 -> 0 | F150: ='G-2 Habitat groups'!BD148 -> 0 | G150: ='G-2 Habitat groups'!BF148 -> 0 | H150: ='G-2 Habitat groups'!BH148 -> 0 | I150: ='G-2 Habitat groups'!BI148 -> 0 | K150: ='G-2 Habitat groups'!BJ148 -> 
C151: ='G-2 Habitat groups'!AY149 -> Rocky shore - Artificial features of littoral rock | D151: ='G-2 Habitat groups'!AZ149 -> Rocky shore | E151: ='G-2 Habitat groups'!BB149 -> 0 | F151: ='G-2 Habitat groups'!BD149 -> 0 | G151: ='G-2 Habitat groups'!BF149 -> 0 | H151: ='G-2 Habitat groups'!BH149 -> 0 | I151: ='G-2 Habitat groups'!BI149 -> 0 | K151: ='G-2 Habitat groups'!BJ149 -> 
C152: ='G-2 Habitat groups'!AY150 -> Intertidal sediment - Artificial littoral coarse sediment | D152: ='G-2 Habitat groups'!AZ150 -> Intertidal sediment | E152: ='G-2 Habitat groups'!BB150 -> 0 | F152: ='G-2 Habitat groups'!BD150 -> 0 | G152: ='G-2 Habitat groups'!BF150 -> 0 | H152: ='G-2 Habitat groups'!BH150 -> 0 | I152: ='G-2 Habitat groups'!BI150 -> 0 | K152: ='G-2 Habitat groups'!BJ150 -> 
C153: ='G-2 Habitat groups'!AY151 -> Intertidal sediment - Artificial littoral sand and muddy sand | D153: ='G-2 Habitat groups'!AZ151 -> Intertidal sediment | E153: ='G-2 Habitat groups'!BB151 -> 0 | F153: ='G-2 Habitat groups'!BD151 -> 0 | G153: ='G-2 Habitat groups'!BF151 -> 0 | H153: ='G-2 Habitat groups'!BH151 -> 0 | I153: ='G-2 Habitat groups'!BI151 -> 0 | K153: ='G-2 Habitat groups'!BJ151 -> 
C154: ='G-2 Habitat groups'!AY152 -> Intertidal sediment - Artificial littoral mud | D154: ='G-2 Habitat groups'!AZ152 -> Intertidal sediment | E154: ='G-2 Habitat groups'!BB152 -> 0 | F154: ='G-2 Habitat groups'!BD152 -> 0 | G154: ='G-2 Habitat groups'!BF152 -> 0 | H154: ='G-2 Habitat groups'!BH152 -> 0 | I154: ='G-2 Habitat groups'!BI152 -> 0 | K154: ='G-2 Habitat groups'!BJ152 -> 
C155: ='G-2 Habitat groups'!AY153 -> Intertidal sediment - Artificial littoral mixed sediments | D155: ='G-2 Habitat groups'!AZ153 -> Intertidal sediment | E155: ='G-2 Habitat groups'!BB153 -> 0 | F155: ='G-2 Habitat groups'!BD153 -> 0 | G155: ='G-2 Habitat groups'!BF153 -> 0 | H155: ='G-2 Habitat groups'!BH153 -> 0 | I155: ='G-2 Habitat groups'!BI153 -> 0 | K155: ='G-2 Habitat groups'!BJ153 -> 
C156: ='G-2 Habitat groups'!AY154 -> Intertidal sediment - Artificial littoral sediments dominated by aquatic angiosperms | D156: ='G-2 Habitat groups'!AZ154 -> Intertidal sediment | E156: ='G-2 Habitat groups'!BB154 -> 0 | F156: ='G-2 Habitat groups'!BD154 -> 0 | G156: ='G-2 Habitat groups'!BF154 -> 0 | H156: ='G-2 Habitat groups'!BH154 -> 0 | I156: ='G-2 Habitat groups'!BI154 -> 0 | K156: ='G-2 Habitat groups'!BJ154 -> 
C157: ='G-2 Habitat groups'!AY155 -> Intertidal sediment - Artificial littoral biogenic reefs | D157: ='G-2 Habitat groups'!AZ155 -> Intertidal sediment | E157: ='G-2 Habitat groups'!BB155 -> 0 | F157: ='G-2 Habitat groups'!BD155 -> 0 | G157: ='G-2 Habitat groups'!BF155 -> 0 | H157: ='G-2 Habitat groups'!BH155 -> 0 | I157: ='G-2 Habitat groups'!BI155 -> 0 | K157: ='G-2 Habitat groups'!BJ155 -> 
C158: ='G-2 Habitat groups'!AY156 -> Intertidal sediment - Artificial features of littoral sediment | D158: ='G-2 Habitat groups'!AZ156 -> Intertidal sediment | E158: ='G-2 Habitat groups'!BB156 -> 0 | F158: ='G-2 Habitat groups'!BD156 -> 0 | G158: ='G-2 Habitat groups'!BF156 -> 0 | H158: ='G-2 Habitat groups'!BH156 -> 0 | I158: ='G-2 Habitat groups'!BI156 -> 0 | K158: ='G-2 Habitat groups'!BJ156 -> 
G159: =SUM(G123:G158) -> 0.16027435 | I159: =SUM(I123:I158) -> 0.16027435 | K159: =SUM(K123:K158) -> -0.069

Sheet A-3 Site Habitat Enhancement (hidden)
B2: =IF(Start!$F$12="","",Start!$F$12) -> Land off Lesmond Cresent, Middlecliff
B3: =MID(CELL("filename",A1),FIND("]",CELL("filename",A1))+1,256) -> 
E4: =IF(D4="","",IF(ISNA(VLOOKUP($B4,'A-1 Site Habitat Baseline'!$B$1:$O$258,3,FALSE)),"",(VLOOKUP($B4,'A-1 Site Habitat Baseline'!$B$1:$O$258,3,FALSE)))) -> 
P9: Post development/ post intervention habitats
C10: Baseline habitats | P10: Change in distinctiveness and condition | S10: Area (hectares) | T10: Distinctiveness | U10: Score | V10: Condition | W10: Score | X10: Ecological connectivity | AA10: Strategic significance | AD10: Temporal multiplier | AF10: Difficulty multipliers | AH10: Habitat units delivered | AI10: Comments
B11: Baseline ref | C11: Baseline habitat | D11: Total habitat area | E11: Baseline distinctiveness band | F11: Baseline distinctiveness score | G11: Baseline condition category | H11: Baseline condition score | I11: Baseline ecological connectivity | J11: Baseline connectivity | K11: Baseline connectivity score | L11: Baseline strategic significance category | M11: Baseline strategic significance score | N11: Baseline habitat units | O11: Suggested action to address habitat losses | P11: Proposed habitat (Pre-populated but can be overridden) | Q11: Distinctiveness change | R11: Condition change | X11: Ecological connectivity score | Y11: Connectivity | Z11: Connectivity multiplier | AA11: Strategic significance | AB11: Strategic significance | AC11: Strategic position multiplier | AD11: Time to target condition/years | AE11: Time to target multiplier | AF11: Difficulty of enhancement category | AG11: Difficulty of enhancement multiplier | AI11: Assessor comments | AJ11: Reviewer comments
B12: ='A-1 Site Habitat Baseline'!AN11 ->  | C12: =IF(B12="","",IF(ISNA(VLOOKUP($B12,'A-1 Site Habitat Baseline'!$B$1:$O$258,3,FALSE)),"",(VLOOKUP($B12,'A-1 Site Habitat Baseline'!$B$1:$O$258,3,FALSE)))) ->  | D12: =IF(B12="","",IF(ISNA(VLOOKUP($B12,'A-1 Site Habitat Baseline'!$B$1:$O$258,4,FALSE)),"",(VLOOKUP($B12,'A-1 Site Habitat Baseline'!$B$1:$O$258,4,FALSE)))) ->  | E12: =IF(B12="","",IF(ISNA(VLOOKUP($B12,'A-1 Site Habitat Baseline'!$B$1:$O$258,5,FALSE)),"",(VLOOKUP($B12,'A-1 Site Habitat Baseline'!$B$1:$O$258,5,FALSE)))) ->  | F12: =IF(B12="","",IF(ISNA(VLOOKUP($B12,'A-1 Site Habitat Baseline'!$B$1:$O$258,6,FALSE)),"",(VLOOKUP($B12,'A-1 Site Habitat Baseline'!$B$1:$O$258,6,FALSE)))) ->  | G12: =IF(B12="","",IF(ISNA(VLOOKUP($B12,'A-1 Site Habitat Baseline'!$B$1:$O$258,7,FALSE)),"",(VLOOKUP($B12,'A-1 Site Habitat Baseline'!$B$1:$O$258,7,FALSE)))) ->  | H12: =IF(B12="","",IF(ISNA(VLOOKUP($B12,'A-1 Site Habitat Baseline'!$B$1:$O$258,8,FALSE)),"",(VLOOKUP($B12,'A-1 Site Habitat Baseline'!$B$1:$O$258,8,FALSE)))) ->  | I12: =IF(B12="","",IF(ISNA(VLOOKUP($B12,'A-1 Site Habitat Baseline'!$B$1:$O$258,9,FALSE)),"",(VLOOKUP($B12,'A-1 Site Habitat Baseline'!$B$1:$O$258,9,FALSE)))) ->  | J12: =IF(B12="","",IF(ISNA(VLOOKUP($B12,'A-1 Site Habitat Baseline'!$B$1:$O$258,10,FALSE)),"",(VLOOKUP($B12,'A-1 Site Habitat Baseline'!$B$1:$O$258,10,FALSE)))) ->  | K12: =IF(B12="","",IF(ISNA(VLOOKUP($B12,'A-1 Site Habitat Baseline'!$B$1:$O$258,11,FALSE)),"",(VLOOKUP($B12,'A-1 Site Habitat Baseline'!$B$1:$O$258,11,FALSE)))) ->  | L12: =IF(B12="","",IF(ISNA(VLOOKUP($B12,'A-1 Site Habitat Baseline'!$B$1:$O$258,13,FALSE)),"",(VLOOKUP($B12,'A-1 Site Habitat Baseline'!$B$1:$O$258,13,FALSE)))) ->  | M12: =IF(B12="","",IF(ISNA(VLOOKUP($B12,'A-1 Site Habitat Baseline'!$B$1:$O$258,14,FALSE)),"",(VLOOKUP($B12,'A-1 Site Habitat Baseline'!$B$1:$O$258,14,FALSE)))) ->  | N12: =IF(B12="","",IF(ISNA(VLOOKUP($B12,'A-1 Site Habitat Baseline'!$B$1:$Z$258,16,FALSE)),"",(VLOOKUP($B12,'A-1 Site Habitat Baseline'!$B$1:$Z$258,16,FALSE)))) ->  | O12: =IF(B12="","",IF(ISNA(VLOOKUP($B12,'A-1 Site Habitat Baseline'!$B$1:$Z$258,15,FALSE)),"",(VLOOKUP($B12,'A-1 Site Habitat Baseline'!$B$1:$Z$258,15,FALSE)))) ->  | P12: =C12 ->  | Q12: =IF(B12="","",IF(AND(U12<F12,P12='G-1 All Habitats'!$A$65),E12&" - "&T12,IF(U12<F12,"Error Trading Down",E12&" - "&T12))) ->  | R12: =IF(C12="","",IF(AND(LEFT(C12,55)<>LEFT(P12,55),Q12= "High - High"),"Error - Not like for like",IF(AND(F12=U12,H12>W12),"Error - Can not reduce condition",IF(AND(F12=U12,H12=W12),"Error - No enhancement",IF(AND(U12<F12,P12='G-1 All Habitats'!$A$65),G12&" - "&V12,IF(U12<F12,"Error Trading Down",IF(AND(C12<>P12,F12<U12),"Lower Distinctiveness Habitat"&" - "&V12,G12&" - "&V12))))))) ->  | S12: =IF(P12="","",VLOOKUP(B12,BaselineHabSite,19,FALSE)) ->  | T12: =IF(P12="","",VLOOKUP(P12,'G-1 All Habitats'!$A$2:$L$135,10,FALSE)) ->  | U12: =IFERROR(VLOOKUP(T12,'G-1 All Habitats'!$S$3:$T$7,2,FALSE),"") ->  | W12: =IFERROR(INDEX('G-8 Condition Look up'!$A$3:$H$136,MATCH(P12,'G-8 Condition Look up'!$A$3:$A$136,0),MATCH(V12,'G-8 Condition Look up'!$A$3:$H$3,0)),"") ->  | Y12: =IF($X12="","",IF(VLOOKUP($X12,'G-3 Multipliers'!$H$3:$J$7,2,FALSE)=0,"Spatial Data Missing",VLOOKUP($X12,'G-3 Multipliers'!$H$3:$J$7,2,FALSE))) ->  | Z12: =IF($X12="","",IF(VLOOKUP($X12,'G-3 Multipliers'!$H$3:$J$7,3,FALSE)=0,"Spatial Data Missing",VLOOKUP($X12,'G-3 Multipliers'!$H$3:$J$7,3,FALSE))) ->  | AB12: =IF(AA12="","",IF(VLOOKUP(AA12,'G-3 Multipliers'!$L$3:$N$6,2,FALSE)=0,"Spatial Data Missing",VLOOKUP(AA12,'G-3 Multipliers'!$L$3:$N$6,2,FALSE))) ->  | AC12: =IF(AA12="","",IF(VLOOKUP(AA12,'G-3 Multipliers'!$L$3:$N$6,3,FALSE)=0,"Spatial Data Missing",VLOOKUP(AA12,'G-3 Multipliers'!$L$3:$N$6,3,FALSE))) ->  | AD12: =IFERROR(IF(R12="Error Trading Down","Error Trading Down",INDEX(EnhanceTemporal,MATCH(P12,EnhanceHabitat,0),MATCH(R12,EnhanceCondition,0))),"") ->  | AE12: =IFERROR(VLOOKUP(AD12,'G-4 Temporal multipliers'!$A$4:$C$36,3,FALSE),"") ->  | AF12: =IF(P12="","",VLOOKUP(P12,'G-3 Multipliers'!$A$2:$E$142,4,FALSE)) ->  | AG12: =IF(P12="","",VLOOKUP(P12,'G-3 Multipliers'!$A$2:$E$142,5,FALSE)) ->  | AH12: =IF(C12="","",((((S12*U12*W12)-(S12*F12*H12))*(AG12*AE12))+(S12*F12*H12))*(Z12*AC12)) -> 
B13: ='A-1 Site Habitat Baseline'!AN12 ->  | C13: =IF(B13="","",IF(ISNA(VLOOKUP($B13,'A-1 Site Habitat Baseline'!$B$1:$O$258,3,FALSE)),"",(VLOOKUP($B13,'A-1 Site Habitat Baseline'!$B$1:$O$258,3,FALSE)))) ->  | D13: =IF(B13="","",IF(ISNA(VLOOKUP($B13,'A-1 Site Habitat Baseline'!$B$1:$O$258,4,FALSE)),"",(VLOOKUP($B13,'A-1 Site Habitat Baseline'!$B$1:$O$258,4,FALSE)))) ->  | E13: =IF(B13="","",IF(ISNA(VLOOKUP($B13,'A-1 Site Habitat Baseline'!$B$1:$O$258,5,FALSE)),"",(VLOOKUP($B13,'A-1 Site Habitat Baseline'!$B$1:$O$258,5,FALSE)))) ->  | F13: =IF(B13="","",IF(ISNA(VLOOKUP($B13,'A-1 Site Habitat Baseline'!$B$1:$O$258,6,FALSE)),"",(VLOOKUP($B13,'A-1 Site Habitat Baseline'!$B$1:$O$258,6,FALSE)))) ->  | G13: =IF(B13="","",IF(ISNA(VLOOKUP($B13,'A-1 Site Habitat Baseline'!$B$1:$O$258,7,FALSE)),"",(VLOOKUP($B13,'A-1 Site Habitat Baseline'!$B$1:$O$258,7,FALSE)))) ->  | H13: =IF(B13="","",IF(ISNA(VLOOKUP($B13,'A-1 Site Habitat Baseline'!$B$1:$O$258,8,FALSE)),"",(VLOOKUP($B13,'A-1 Site Habitat Baseline'!$B$1:$O$258,8,FALSE)))) ->  | I13: =IF(B13="","",IF(ISNA(VLOOKUP($B13,'A-1 Site Habitat Baseline'!$B$1:$O$258,9,FALSE)),"",(VLOOKUP($B13,'A-1 Site Habitat Baseline'!$B$1:$O$258,9,FALSE)))) ->  | J13: =IF(B13="","",IF(ISNA(VLOOKUP($B13,'A-1 Site Habitat Baseline'!$B$1:$O$258,10,FALSE)),"",(VLOOKUP($B13,'A-1 Site Habitat Baseline'!$B$1:$O$258,10,FALSE)))) ->  | K13: =IF(B13="","",IF(ISNA(VLOOKUP($B13,'A-1 Site Habitat Baseline'!$B$1:$O$258,11,FALSE)),"",(VLOOKUP($B13,'A-1 Site Habitat Baseline'!$B$1:$O$258,11,FALSE)))) ->  | L13: =IF(B13="","",IF(ISNA(VLOOKUP($B13,'A-1 Site Habitat Baseline'!$B$1:$O$258,13,FALSE)),"",(VLOOKUP($B13,'A-1 Site Habitat Baseline'!$B$1:$O$258,13,FALSE)))) ->  | M13: =IF(B13="","",IF(ISNA(VLOOKUP($B13,'A-1 Site Habitat Baseline'!$B$1:$O$258,14,FALSE)),"",(VLOOKUP($B13,'A-1 Site Habitat Baseline'!$B$1:$O$258,14,FALSE)))) ->  | N13: =IF(B13="","",IF(ISNA(VLOOKUP($B13,'A-1 Site Habitat Baseline'!$B$1:$Z$258,16,FALSE)),"",(VLOOKUP($B13,'A-1 Site Habitat Baseline'!$B$1:$Z$258,16,FALSE)))) ->  | O13: =IF(B13="","",IF(ISNA(VLOOKUP($B13,'A-1 Site Habitat Baseline'!$B$1:$Z$258,15,FALSE)),"",(VLOOKUP($B13,'A-1 Site Habitat Baseline'!$B$1:$Z$258,15,FALSE)))) ->  | P13: =C13 ->  | Q13: =IF(B13="","",IF(AND(U13<F13,P13='G-1 All Habitats'!$A$65),E13&" - "&T13,IF(U13<F13,"Error Trading Down",E13&" - "&T13))) ->  | R13: =IF(C13="","",IF(AND(LEFT(C13,55)<>LEFT(P13,55),Q13= "High - High"),"Error - Not like for like",IF(AND(F13=U13,H13>W13),"Error - Can not reduce condition",IF(AND(F13=U13,H13=W13),"Error - No enhancement",IF(AND(U13<F13,P13='G-1 All Habitats'!$A$65),G13&" - "&V13,IF(U13<F13,"Error Trading Down",IF(AND(C13<>P13,F13<U13),"Lower Distinctiveness Habitat"&" - "&V13,G13&" - "&V13))))))) ->  | T13: =IF(P13="","",VLOOKUP(P13,'G-1 All Habitats'!$A$2:$L$135,10,FALSE)) ->  | U13: =IFERROR(VLOOKUP(T13,'G-1 All Habitats'!$S$3:$T$7,2,FALSE),"") ->  | W13: =IFERROR(INDEX('G-8 Condition Look up'!$A$3:$H$136,MATCH(P13,'G-8 Condition Look up'!$A$3:$A$136,0),MATCH(V13,'G-8 Condition Look up'!$A$3:$H$3,0)),"") ->  | Y13: =IF($X13="","",IF(VLOOKUP($X13,'G-3 Multipliers'!$H$3:$J$7,2,FALSE)=0,"Spatial Data Missing",VLOOKUP($X13,'G-3 Multipliers'!$H$3:$J$7,2,FALSE))) ->  | Z13: =IF($X13="","",IF(VLOOKUP($X13,'G-3 Multipliers'!$H$3:$J$7,3,FALSE)=0,"Spatial Data Missing",VLOOKUP($X13,'G-3 Multipliers'!$H$3:$J$7,3,FALSE))) ->  | AB13: =IF(AA13="","",IF(VLOOKUP(AA13,'G-3 Multipliers'!$L$3:$N$6,2,FALSE)=0,"Spatial Data Missing",VLOOKUP(AA13,'G-3 Multipliers'!$L$3:$N$6,2,FALSE))) ->  | AC13: =IF(AA13="","",IF(VLOOKUP(AA13,'G-3 Multipliers'!$L$3:$N$6,3,FALSE)=0,"Spatial Data Missing",VLOOKUP(AA13,'G-3 Multipliers'!$L$3:$N$6,3,FALSE))) ->  | AD13: =IFERROR(IF(R13="Error Trading Down","Error Trading Down",INDEX(EnhanceTemporal,MATCH(P13,EnhanceHabitat,0),MATCH(R13,EnhanceCondition,0))),"") ->  | AE13: =IFERROR(VLOOKUP(AD13,'G-4 Temporal multipliers'!$A$4:$C$36,3,FALSE),"") ->  | AF13: =IF(P13="","",VLOOKUP(P13,'G-3 Multipliers'!$A$2:$E$142,4,FALSE)) ->  | AG13: =IF(P13="","",VLOOKUP(P13,'G-3 Multipliers'!$A$2:$E$142,5,FALSE)) ->  | AH13: =IF(C13="","",((((S13*U13*W13)-(S13*F13*H13))*(AG13*AE13))+(S13*F13*H13))*(Z13*AC13)) -> 
B14: ='A-1 Site Habitat Baseline'!AN13 ->  | C14: =IF(B14="","",IF(ISNA(VLOOKUP($B14,'A-1 Site Habitat Baseline'!$B$1:$O$258,3,FALSE)),"",(VLOOKUP($B14,'A-1 Site Habitat Baseline'!$B$1:$O$258,3,FALSE)))) ->  | D14: =IF(B14="","",IF(ISNA(VLOOKUP($B14,'A-1 Site Habitat Baseline'!$B$1:$O$258,4,FALSE)),"",(VLOOKUP($B14,'A-1 Site Habitat Baseline'!$B$1:$O$258,4,FALSE)))) ->  | E14: =IF(B14="","",IF(ISNA(VLOOKUP($B14,'A-1 Site Habitat Baseline'!$B$1:$O$258,5,FALSE)),"",(VLOOKUP($B14,'A-1 Site Habitat Baseline'!$B$1:$O$258,5,FALSE)))) ->  | F14: =IF(B14="","",IF(ISNA(VLOOKUP($B14,'A-1 Site Habitat Baseline'!$B$1:$O$258,6,FALSE)),"",(VLOOKUP($B14,'A-1 Site Habitat Baseline'!$B$1:$O$258,6,FALSE)))) ->  | G14: =IF(B14="","",IF(ISNA(VLOOKUP($B14,'A-1 Site Habitat Baseline'!$B$1:$O$258,7,FALSE)),"",(VLOOKUP($B14,'A-1 Site Habitat Baseline'!$B$1:$O$258,7,FALSE)))) ->  | H14: =IF(B14="","",IF(ISNA(VLOOKUP($B14,'A-1 Site Habitat Baseline'!$B$1:$O$258,8,FALSE)),"",(VLOOKUP($B14,'A-1 Site Habitat Baseline'!$B$1:$O$258,8,FALSE)))) ->  | I14: =IF(B14="","",IF(ISNA(VLOOKUP($B14,'A-1 Site Habitat Baseline'!$B$1:$O$258,9,FALSE)),"",(VLOOKUP($B14,'A-1 Site Habitat Baseline'!$B$1:$O$258,9,FALSE)))) ->  | J14: =IF(B14="","",IF(ISNA(VLOOKUP($B14,'A-1 Site Habitat Baseline'!$B$1:$O$258,10,FALSE)),"",(VLOOKUP($B14,'A-1 Site Habitat Baseline'!$B$1:$O$258,10,FALSE)))) ->  | K14: =IF(B14="","",IF(ISNA(VLOOKUP($B14,'A-1 Site Habitat Baseline'!$B$1:$O$258,11,FALSE)),"",(VLOOKUP($B14,'A-1 Site Habitat Baseline'!$B$1:$O$258,11,FALSE)))) ->  | L14: =IF(B14="","",IF(ISNA(VLOOKUP($B14,'A-1 Site Habitat Baseline'!$B$1:$O$258,13,FALSE)),"",(VLOOKUP($B14,'A-1 Site Habitat Baseline'!$B$1:$O$258,13,FALSE)))) ->  | M14: =IF(B14="","",IF(ISNA(VLOOKUP($B14,'A-1 Site Habitat Baseline'!$B$1:$O$258,14,FALSE)),"",(VLOOKUP($B14,'A-1 Site Habitat Baseline'!$B$1:$O$258,14,FALSE)))) ->  | N14: =IF(B14="","",IF(ISNA(VLOOKUP($B14,'A-1 Site Habitat Baseline'!$B$1:$Z$258,16,FALSE)),"",(VLOOKUP($B14,'A-1 Site Habitat Baseline'!$B$1:$Z$258,16,FALSE)))) ->  | O14: =IF(B14="","",IF(ISNA(VLOOKUP($B14,'A-1 Site Habitat Baseline'!$B$1:$Z$258,15,FALSE)),"",(VLOOKUP($B14,'A-1 Site Habitat Baseline'!$B$1:$Z$258,15,FALSE)))) ->  | Q14: =IF(B14="","",IF(AND(U14<F14,P14='G-1 All Habitats'!$A$65),E14&" - "&T14,IF(U14<F14,"Error Trading Down",E14&" - "&T14))) ->  | R14: =IF(C14="","",IF(AND(LEFT(C14,55)<>LEFT(P14,55),Q14= "High - High"),"Error - Not like for like",IF(AND(F14=U14,H14>W14),"Error - Can not reduce condition",IF(AND(F14=U14,H14=W14),"Error - No enhancement",IF(AND(U14<F14,P14='G-1 All Habitats'!$A$65),G14&" - "&V14,IF(U14<F14,"Error Trading Down",IF(AND(C14<>P14,F14<U14),"Lower Distinctiveness Habitat"&" - "&V14,G14&" - "&V14))))))) ->  | T14: =IF(P14="","",VLOOKUP(P14,'G-1 All Habitats'!$A$2:$L$135,10,FALSE)) ->  | U14: =IFERROR(VLOOKUP(T14,'G-1 All Habitats'!$S$3:$T$7,2,FALSE),"") ->  | W14: =IFERROR(INDEX('G-8 Condition Look up'!$A$3:$H$136,MATCH(P14,'G-8 Condition Look up'!$A$3:$A$136,0),MATCH(V14,'G-8 Condition Look up'!$A$3:$H$3,0)),"") ->  | Y14: =IF($X14="","",IF(VLOOKUP($X14,'G-3 Multipliers'!$H$3:$J$7,2,FALSE)=0,"Spatial Data Missing",VLOOKUP($X14,'G-3 Multipliers'!$H$3:$J$7,2,FALSE))) ->  | Z14: =IF($X14="","",IF(VLOOKUP($X14,'G-3 Multipliers'!$H$3:$J$7,3,FALSE)=0,"Spatial Data Missing",VLOOKUP($X14,'G-3 Multipliers'!$H$3:$J$7,3,FALSE))) ->  | AB14: =IF(AA14="","",IF(VLOOKUP(AA14,'G-3 Multipliers'!$L$3:$N$6,2,FALSE)=0,"Spatial Data Missing",VLOOKUP(AA14,'G-3 Multipliers'!$L$3:$N$6,2,FALSE))) ->  | AC14: =IF(AA14="","",IF(VLOOKUP(AA14,'G-3 Multipliers'!$L$3:$N$6,3,FALSE)=0,"Spatial Data Missing",VLOOKUP(AA14,'G-3 Multipliers'!$L$3:$N$6,3,FALSE))) ->  | AE14: =IFERROR(VLOOKUP(AD14,'G-4 Temporal multipliers'!$A$4:$C$36,3,FALSE),"") ->  | AF14: =IF(P14="","",VLOOKUP(P14,'G-3 Multipliers'!$A$2:$E$142,4,FALSE)) ->  | AG14: =IF(P14="","",VLOOKUP(P14,'G-3 Multipliers'!$A$2:$E$142,5,FALSE)) -> 
B15: ='A-1 Site Habitat Baseline'!AN14 ->  | C15: =IF(B15="","",IF(ISNA(VLOOKUP($B15,'A-1 Site Habitat Baseline'!$B$1:$O$258,3,FALSE)),"",(VLOOKUP($B15,'A-1 Site Habitat Baseline'!$B$1:$O$258,3,FALSE)))) ->  | D15: =IF(B15="","",IF(ISNA(VLOOKUP($B15,'A-1 Site Habitat Baseline'!$B$1:$O$258,4,FALSE)),"",(VLOOKUP($B15,'A-1 Site Habitat Baseline'!$B$1:$O$258,4,FALSE)))) ->  | E15: =IF(B15="","",IF(ISNA(VLOOKUP($B15,'A-1 Site Habitat Baseline'!$B$1:$O$258,5,FALSE)),"",(VLOOKUP($B15,'A-1 Site Habitat Baseline'!$B$1:$O$258,5,FALSE)))) ->  | F15: =IF(B15="","",IF(ISNA(VLOOKUP($B15,'A-1 Site Habitat Baseline'!$B$1:$O$258,6,FALSE)),"",(VLOOKUP($B15,'A-1 Site Habitat Baseline'!$B$1:$O$258,6,FALSE)))) ->  | G15: =IF(B15="","",IF(ISNA(VLOOKUP($B15,'A-1 Site Habitat Baseline'!$B$1:$O$258,7,FALSE)),"",(VLOOKUP($B15,'A-1 Site Habitat Baseline'!$B$1:$O$258,7,FALSE)))) ->  | H15: =IF(B15="","",IF(ISNA(VLOOKUP($B15,'A-1 Site Habitat Baseline'!$B$1:$O$258,8,FALSE)),"",(VLOOKUP($B15,'A-1 Site Habitat Baseline'!$B$1:$O$258,8,FALSE)))) ->  | I15: =IF(B15="","",IF(ISNA(VLOOKUP($B15,'A-1 Site Habitat Baseline'!$B$1:$O$258,9,FALSE)),"",(VLOOKUP($B15,'A-1 Site Habitat Baseline'!$B$1:$O$258,9,FALSE)))) ->  | J15: =IF(B15="","",IF(ISNA(VLOOKUP($B15,'A-1 Site Habitat Baseline'!$B$1:$O$258,10,FALSE)),"",(VLOOKUP($B15,'A-1 Site Habitat Baseline'!$B$1:$O$258,10,FALSE)))) ->  | K15: =IF(B15="","",IF(ISNA(VLOOKUP($B15,'A-1 Site Habitat Baseline'!$B$1:$O$258,11,FALSE)),"",(VLOOKUP($B15,'A-1 Site Habitat Baseline'!$B$1:$O$258,11,FALSE)))) ->  | L15: =IF(B15="","",IF(ISNA(VLOOKUP($B15,'A-1 Site Habitat Baseline'!$B$1:$O$258,13,FALSE)),"",(VLOOKUP($B15,'A-1 Site Habitat Baseline'!$B$1:$O$258,13,FALSE)))) ->  | M15: =IF(B15="","",IF(ISNA(VLOOKUP($B15,'A-1 Site Habitat Baseline'!$B$1:$O$258,14,FALSE)),"",(VLOOKUP($B15,'A-1 Site Habitat Baseline'!$B$1:$O$258,14,FALSE)))) ->  | N15: =IF(B15="","",IF(ISNA(VLOOKUP($B15,'A-1 Site Habitat Baseline'!$B$1:$Z$258,16,FALSE)),"",(VLOOKUP($B15,'A-1 Site Habitat Baseline'!$B$1:$Z$258,16,FALSE)))) ->  | O15: =IF(B15="","",IF(ISNA(VLOOKUP($B15,'A-1 Site Habitat Baseline'!$B$1:$Z$258,15,FALSE)),"",(VLOOKUP($B15,'A-1 Site Habitat Baseline'!$B$1:$Z$258,15,FALSE)))) ->  | Q15: =IF(B15="","",IF(AND(U15<F15,P15='G-1 All Habitats'!$A$65),E15&" - "&T15,IF(U15<F15,"Error Trading Down",E15&" - "&T15))) ->  | R15: =IF(C15="","",IF(AND(LEFT(C15,55)<>LEFT(P15,55),Q15= "High - High"),"Error - Not like for like",IF(AND(F15=U15,H15>W15),"Error - Can not reduce condition",IF(AND(F15=U15,H15=W15),"Error - No enhancement",IF(AND(U15<F15,P15='G-1 All Habitats'!$A$65),G15&" - "&V15,IF(U15<F15,"Error Trading Down",IF(AND(C15<>P15,F15<U15),"Lower Distinctiveness Habitat"&" - "&V15,G15&" - "&V15))))))) ->  | T15: =IF(P15="","",VLOOKUP(P15,'G-1 All Habitats'!$A$2:$L$135,10,FALSE)) ->  | U15: =IFERROR(VLOOKUP(T15,'G-1 All Habitats'!$S$3:$T$7,2,FALSE),"") ->  | W15: =IFERROR(INDEX('G-8 Condition Look up'!$A$3:$H$136,MATCH(P15,'G-8 Condition Look up'!$A$3:$A$136,0),MATCH(V15,'G-8 Condition Look up'!$A$3:$H$3,0)),"") ->  | Y15: =IF($X15="","",IF(VLOOKUP($X15,'G-3 Multipliers'!$H$3:$J$7,2,FALSE)=0,"Spatial Data Missing",VLOOKUP($X15,'G-3 Multipliers'!$H$3:$J$7,2,FALSE))) ->  | Z15: =IF($X15="","",IF(VLOOKUP($X15,'G-3 Multipliers'!$H$3:$J$7,3,FALSE)=0,"Spatial Data Missing",VLOOKUP($X15,'G-3 Multipliers'!$H$3:$J$7,3,FALSE))) ->  | AB15: =IF(AA15="","",IF(VLOOKUP(AA15,'G-3 Multipliers'!$L$3:$N$6,2,FALSE)=0,"Spatial Data Missing",VLOOKUP(AA15,'G-3 Multipliers'!$L$3:$N$6,2,FALSE))) ->  | AC15: =IF(AA15="","",IF(VLOOKUP(AA15,'G-3 Multipliers'!$L$3:$N$6,3,FALSE)=0,"Spatial Data Missing",VLOOKUP(AA15,'G-3 Multipliers'!$L$3:$N$6,3,FALSE))) ->  | AE15: =IFERROR(VLOOKUP(AD15,'G-4 Temporal multipliers'!$A$4:$C$36,3,FALSE),"") ->  | AF15: =IF(P15="","",VLOOKUP(P15,'G-3 Multipliers'!$A$2:$E$142,4,FALSE)) ->  | AG15: =IF(P15="","",VLOOKUP(P15,'G-3 Multipliers'!$A$2:$E$142,5,FALSE)) -> 
B16: ='A-1 Site Habitat Baseline'!AN15 ->  | C16: =IF(B16="","",IF(ISNA(VLOOKUP($B16,'A-1 Site Habitat Baseline'!$B$1:$O$258,3,FALSE)),"",(VLOOKUP($B16,'A-1 Site Habitat Baseline'!$B$1:$O$258,3,FALSE)))) ->  | D16: =IF(B16="","",IF(ISNA(VLOOKUP($B16,'A-1 Site Habitat Baseline'!$B$1:$O$258,4,FALSE)),"",(VLOOKUP($B16,'A-1 Site Habitat Baseline'!$B$1:$O$258,4,FALSE)))) ->  | E16: =IF(B16="","",IF(ISNA(VLOOKUP($B16,'A-1 Site Habitat Baseline'!$B$1:$O$258,5,FALSE)),"",(VLOOKUP($B16,'A-1 Site Habitat Baseline'!$B$1:$O$258,5,FALSE)))) ->  | F16: =IF(B16="","",IF(ISNA(VLOOKUP($B16,'A-1 Site Habitat Baseline'!$B$1:$O$258,6,FALSE)),"",(VLOOKUP($B16,'A-1 Site Habitat Baseline'!$B$1:$O$258,6,FALSE)))) ->  | G16: =IF(B16="","",IF(ISNA(VLOOKUP($B16,'A-1 Site Habitat Baseline'!$B$1:$O$258,7,FALSE)),"",(VLOOKUP($B16,'A-1 Site Habitat Baseline'!$B$1:$O$258,7,FALSE)))) ->  | H16: =IF(B16="","",IF(ISNA(VLOOKUP($B16,'A-1 Site Habitat Baseline'!$B$1:$O$258,8,FALSE)),"",(VLOOKUP($B16,'A-1 Site Habitat Baseline'!$B$1:$O$258,8,FALSE)))) ->  | I16: =IF(B16="","",IF(ISNA(VLOOKUP($B16,'A-1 Site Habitat Baseline'!$B$1:$O$258,9,FALSE)),"",(VLOOKUP($B16,'A-1 Site Habitat Baseline'!$B$1:$O$258,9,FALSE)))) ->  | J16: =IF(B16="","",IF(ISNA(VLOOKUP($B16,'A-1 Site Habitat Baseline'!$B$1:$O$258,10,FALSE)),"",(VLOOKUP($B16,'A-1 Site Habitat Baseline'!$B$1:$O$258,10,FALSE)))) ->  | K16: =IF(B16="","",IF(ISNA(VLOOKUP($B16,'A-1 Site Habitat Baseline'!$B$1:$O$258,11,FALSE)),"",(VLOOKUP($B16,'A-1 Site Habitat Baseline'!$B$1:$O$258,11,FALSE)))) ->  | L16: =IF(B16="","",IF(ISNA(VLOOKUP($B16,'A-1 Site Habitat Baseline'!$B$1:$O$258,13,FALSE)),"",(VLOOKUP($B16,'A-1 Site Habitat Baseline'!$B$1:$O$258,13,FALSE)))) ->  | M16: =IF(B16="","",IF(ISNA(VLOOKUP($B16,'A-1 Site Habitat Baseline'!$B$1:$O$258,14,FALSE)),"",(VLOOKUP($B16,'A-1 Site Habitat Baseline'!$B$1:$O$258,14,FALSE)))) ->  | N16: =IF(B16="","",IF(ISNA(VLOOKUP($B16,'A-1 Site Habitat Baseline'!$B$1:$Z$258,16,FALSE)),"",(VLOOKUP($B16,'A-1 Site Habitat Baseline'!$B$1:$Z$258,16,FALSE)))) ->  | O16: =IF(B16="","",IF(ISNA(VLOOKUP($B16,'A-1 Site Habitat Baseline'!$B$1:$Z$258,15,FALSE)),"",(VLOOKUP($B16,'A-1 Site Habitat Baseline'!$B$1:$Z$258,15,FALSE)))) ->  | Q16: =IF(B16="","",IF(AND(U16<F16,P16='G-1 All Habitats'!$A$65),E16&" - "&T16,IF(U16<F16,"Error Trading Down",E16&" - "&T16))) ->  | R16: =IF(C16="","",IF(AND(LEFT(C16,55)<>LEFT(P16,55),Q16= "High - High"),"Error - Not like for like",IF(AND(F16=U16,H16>W16),"Error - Can not reduce condition",IF(AND(F16=U16,H16=W16),"Error - No enhancement",IF(AND(U16<F16,P16='G-1 All Habitats'!$A$65),G16&" - "&V16,IF(U16<F16,"Error Trading Down",IF(AND(C16<>P16,F16<U16),"Lower Distinctiveness Habitat"&" - "&V16,G16&" - "&V16))))))) ->  | T16: =IF(P16="","",VLOOKUP(P16,'G-1 All Habitats'!$A$2:$L$135,10,FALSE)) ->  | U16: =IFERROR(VLOOKUP(T16,'G-1 All Habitats'!$S$3:$T$7,2,FALSE),"") ->  | W16: =IFERROR(INDEX('G-8 Condition Look up'!$A$3:$H$136,MATCH(P16,'G-8 Condition Look up'!$A$3:$A$136,0),MATCH(V16,'G-8 Condition Look up'!$A$3:$H$3,0)),"") ->  | Y16: =IF($X16="","",IF(VLOOKUP($X16,'G-3 Multipliers'!$H$3:$J$7,2,FALSE)=0,"Spatial Data Missing",VLOOKUP($X16,'G-3 Multipliers'!$H$3:$J$7,2,FALSE))) ->  | Z16: =IF($X16="","",IF(VLOOKUP($X16,'G-3 Multipliers'!$H$3:$J$7,3,FALSE)=0,"Spatial Data Missing",VLOOKUP($X16,'G-3 Multipliers'!$H$3:$J$7,3,FALSE))) ->  | AB16: =IF(AA16="","",IF(VLOOKUP(AA16,'G-3 Multipliers'!$L$3:$N$6,2,FALSE)=0,"Spatial Data Missing",VLOOKUP(AA16,'G-3 Multipliers'!$L$3:$N$6,2,FALSE))) ->  | AC16: =IF(AA16="","",IF(VLOOKUP(AA16,'G-3 Multipliers'!$L$3:$N$6,3,FALSE)=0,"Spatial Data Missing",VLOOKUP(AA16,'G-3 Multipliers'!$L$3:$N$6,3,FALSE))) ->  | AE16: =IFERROR(VLOOKUP(AD16,'G-4 Temporal multipliers'!$A$4:$C$36,3,FALSE),"") ->  | AF16: =IF(P16="","",VLOOKUP(P16,'G-3 Multipliers'!$A$2:$E$142,4,FALSE)) ->  | AG16: =IF(P16="","",VLOOKUP(P16,'G-3 Multipliers'!$A$2:$E$142,5,FALSE)) -> 
B17: ='A-1 Site Habitat Baseline'!AN16 ->  | C17: =IF(B17="","",IF(ISNA(VLOOKUP($B17,'A-1 Site Habitat Baseline'!$B$1:$O$258,3,FALSE)),"",(VLOOKUP($B17,'A-1 Site Habitat Baseline'!$B$1:$O$258,3,FALSE)))) ->  | D17: =IF(B17="","",IF(ISNA(VLOOKUP($B17,'A-1 Site Habitat Baseline'!$B$1:$O$258,4,FALSE)),"",(VLOOKUP($B17,'A-1 Site Habitat Baseline'!$B$1:$O$258,4,FALSE)))) ->  | E17: =IF(B17="","",IF(ISNA(VLOOKUP($B17,'A-1 Site Habitat Baseline'!$B$1:$O$258,5,FALSE)),"",(VLOOKUP($B17,'A-1 Site Habitat Baseline'!$B$1:$O$258,5,FALSE)))) ->  | F17: =IF(B17="","",IF(ISNA(VLOOKUP($B17,'A-1 Site Habitat Baseline'!$B$1:$O$258,6,FALSE)),"",(VLOOKUP($B17,'A-1 Site Habitat Baseline'!$B$1:$O$258,6,FALSE)))) ->  | G17: =IF(B17="","",IF(ISNA(VLOOKUP($B17,'A-1 Site Habitat Baseline'!$B$1:$O$258,7,FALSE)),"",(VLOOKUP($B17,'A-1 Site Habitat Baseline'!$B$1:$O$258,7,FALSE)))) ->  | H17: =IF(B17="","",IF(ISNA(VLOOKUP($B17,'A-1 Site Habitat Baseline'!$B$1:$O$258,8,FALSE)),"",(VLOOKUP($B17,'A-1 Site Habitat Baseline'!$B$1:$O$258,8,FALSE)))) ->  | I17: =IF(B17="","",IF(ISNA(VLOOKUP($B17,'A-1 Site Habitat Baseline'!$B$1:$O$258,9,FALSE)),"",(VLOOKUP($B17,'A-1 Site Habitat Baseline'!$B$1:$O$258,9,FALSE)))) ->  | J17: =IF(B17="","",IF(ISNA(VLOOKUP($B17,'A-1 Site Habitat Baseline'!$B$1:$O$258,10,FALSE)),"",(VLOOKUP($B17,'A-1 Site Habitat Baseline'!$B$1:$O$258,10,FALSE)))) ->  | K17: =IF(B17="","",IF(ISNA(VLOOKUP($B17,'A-1 Site Habitat Baseline'!$B$1:$O$258,11,FALSE)),"",(VLOOKUP($B17,'A-1 Site Habitat Baseline'!$B$1:$O$258,11,FALSE)))) ->  | L17: =IF(B17="","",IF(ISNA(VLOOKUP($B17,'A-1 Site Habitat Baseline'!$B$1:$O$258,13,FALSE)),"",(VLOOKUP($B17,'A-1 Site Habitat Baseline'!$B$1:$O$258,13,FALSE)))) ->  | M17: =IF(B17="","",IF(ISNA(VLOOKUP($B17,'A-1 Site Habitat Baseline'!$B$1:$O$258,14,FALSE)),"",(VLOOKUP($B17,'A-1 Site Habitat Baseline'!$B$1:$O$258,14,FALSE)))) ->  | N17: =IF(B17="","",IF(ISNA(VLOOKUP($B17,'A-1 Site Habitat Baseline'!$B$1:$Z$258,16,FALSE)),"",(VLOOKUP($B17,'A-1 Site Habitat Baseline'!$B$1:$Z$258,16,FALSE)))) ->  | O17: =IF(B17="","",IF(ISNA(VLOOKUP($B17,'A-1 Site Habitat Baseline'!$B$1:$Z$258,15,FALSE)),"",(VLOOKUP($B17,'A-1 Site Habitat Baseline'!$B$1:$Z$258,15,FALSE)))) ->  | Q17: =IF(B17="","",IF(AND(U17<F17,P17='G-1 All Habitats'!$A$65),E17&" - "&T17,IF(U17<F17,"Error Trading Down",E17&" - "&T17))) ->  | R17: =IF(C17="","",IF(AND(LEFT(C17,55)<>LEFT(P17,55),Q17= "High - High"),"Error - Not like for like",IF(AND(F17=U17,H17>W17),"Error - Can not reduce condition",IF(AND(F17=U17,H17=W17),"Error - No enhancement",IF(AND(U17<F17,P17='G-1 All Habitats'!$A$65),G17&" - "&V17,IF(U17<F17,"Error Trading Down",IF(AND(C17<>P17,F17<U17),"Lower Distinctiveness Habitat"&" - "&V17,G17&" - "&V17))))))) ->  | T17: =IF(P17="","",VLOOKUP(P17,'G-1 All Habitats'!$A$2:$L$135,10,FALSE)) ->  | U17: =IFERROR(VLOOKUP(T17,'G-1 All Habitats'!$S$3:$T$7,2,FALSE),"") ->  | W17: =IFERROR(INDEX('G-8 Condition Look up'!$A$3:$H$136,MATCH(P17,'G-8 Condition Look up'!$A$3:$A$136,0),MATCH(V17,'G-8 Condition Look up'!$A$3:$H$3,0)),"") ->  | Y17: =IF($X17="","",IF(VLOOKUP($X17,'G-3 Multipliers'!$H$3:$J$7,2,FALSE)=0,"Spatial Data Missing",VLOOKUP($X17,'G-3 Multipliers'!$H$3:$J$7,2,FALSE))) ->  | Z17: =IF($X17="","",IF(VLOOKUP($X17,'G-3 Multipliers'!$H$3:$J$7,3,FALSE)=0,"Spatial Data Missing",VLOOKUP($X17,'G-3 Multipliers'!$H$3:$J$7,3,FALSE))) ->  | AB17: =IF(AA17="","",IF(VLOOKUP(AA17,'G-3 Multipliers'!$L$3:$N$6,2,FALSE)=0,"Spatial Data Missing",VLOOKUP(AA17,'G-3 Multipliers'!$L$3:$N$6,2,FALSE))) ->  | AC17: =IF(AA17="","",IF(VLOOKUP(AA17,'G-3 Multipliers'!$L$3:$N$6,3,FALSE)=0,"Spatial Data Missing",VLOOKUP(AA17,'G-3 Multipliers'!$L$3:$N$6,3,FALSE))) ->  | AE17: =IFERROR(VLOOKUP(AD17,'G-4 Temporal multipliers'!$A$4:$C$36,3,FALSE),"") ->  | AF17: =IF(P17="","",VLOOKUP(P17,'G-3 Multipliers'!$A$2:$E$142,4,FALSE)) ->  | AG17: =IF(P17="","",VLOOKUP(P17,'G-3 Multipliers'!$A$2:$E$142,5,FALSE)) -> 
B18: ='A-1 Site Habitat Baseline'!AN17 ->  | C18: =IF(B18="","",IF(ISNA(VLOOKUP($B18,'A-1 Site Habitat Baseline'!$B$1:$O$258,3,FALSE)),"",(VLOOKUP($B18,'A-1 Site Habitat Baseline'!$B$1:$O$258,3,FALSE)))) ->  | D18: =IF(B18="","",IF(ISNA(VLOOKUP($B18,'A-1 Site Habitat Baseline'!$B$1:$O$258,4,FALSE)),"",(VLOOKUP($B18,'A-1 Site Habitat Baseline'!$B$1:$O$258,4,FALSE)))) ->  | E18: =IF(B18="","",IF(ISNA(VLOOKUP($B18,'A-1 Site Habitat Baseline'!$B$1:$O$258,5,FALSE)),"",(VLOOKUP($B18,'A-1 Site Habitat Baseline'!$B$1:$O$258,5,FALSE)))) ->  | F18: =IF(B18="","",IF(ISNA(VLOOKUP($B18,'A-1 Site Habitat Baseline'!$B$1:$O$258,6,FALSE)),"",(VLOOKUP($B18,'A-1 Site Habitat Baseline'!$B$1:$O$258,6,FALSE)))) ->  | G18: =IF(B18="","",IF(ISNA(VLOOKUP($B18,'A-1 Site Habitat Baseline'!$B$1:$O$258,7,FALSE)),"",(VLOOKUP($B18,'A-1 Site Habitat Baseline'!$B$1:$O$258,7,FALSE)))) ->  | H18: =IF(B18="","",IF(ISNA(VLOOKUP($B18,'A-1 Site Habitat Baseline'!$B$1:$O$258,8,FALSE)),"",(VLOOKUP($B18,'A-1 Site Habitat Baseline'!$B$1:$O$258,8,FALSE)))) ->  | I18: =IF(B18="","",IF(ISNA(VLOOKUP($B18,'A-1 Site Habitat Baseline'!$B$1:$O$258,9,FALSE)),"",(VLOOKUP($B18,'A-1 Site Habitat Baseline'!$B$1:$O$258,9,FALSE)))) ->  | J18: =IF(B18="","",IF(ISNA(VLOOKUP($B18,'A-1 Site Habitat Baseline'!$B$1:$O$258,10,FALSE)),"",(VLOOKUP($B18,'A-1 Site Habitat Baseline'!$B$1:$O$258,10,FALSE)))) ->  | K18: =IF(B18="","",IF(ISNA(VLOOKUP($B18,'A-1 Site Habitat Baseline'!$B$1:$O$258,11,FALSE)),"",(VLOOKUP($B18,'A-1 Site Habitat Baseline'!$B$1:$O$258,11,FALSE)))) ->  | L18: =IF(B18="","",IF(ISNA(VLOOKUP($B18,'A-1 Site Habitat Baseline'!$B$1:$O$258,13,FALSE)),"",(VLOOKUP($B18,'A-1 Site Habitat Baseline'!$B$1:$O$258,13,FALSE)))) ->  | M18: =IF(B18="","",IF(ISNA(VLOOKUP($B18,'A-1 Site Habitat Baseline'!$B$1:$O$258,14,FALSE)),"",(VLOOKUP($B18,'A-1 Site Habitat Baseline'!$B$1:$O$258,14,FALSE)))) ->  | N18: =IF(B18="","",IF(ISNA(VLOOKUP($B18,'A-1 Site Habitat Baseline'!$B$1:$Z$258,16,FALSE)),"",(VLOOKUP($B18,'A-1 Site Habitat Baseline'!$B$1:$Z$258,16,FALSE)))) ->  | O18: =IF(B18="","",IF(ISNA(VLOOKUP($B18,'A-1 Site Habitat Baseline'!$B$1:$Z$258,15,FALSE)),"",(VLOOKUP($B18,'A-1 Site Habitat Baseline'!$B$1:$Z$258,15,FALSE)))) ->  | Q18: =IF(B18="","",IF(AND(U18<F18,P18='G-1 All Habitats'!$A$65),E18&" - "&T18,IF(U18<F18,"Error Trading Down",E18&" - "&T18))) ->  | R18: =IF(C18="","",IF(AND(LEFT(C18,55)<>LEFT(P18,55),Q18= "High - High"),"Error - Not like for like",IF(AND(F18=U18,H18>W18),"Error - Can not reduce condition",IF(AND(F18=U18,H18=W18),"Error - No enhancement",IF(AND(U18<F18,P18='G-1 All Habitats'!$A$65),G18&" - "&V18,IF(U18<F18,"Error Trading Down",IF(AND(C18<>P18,F18<U18),"Lower Distinctiveness Habitat"&" - "&V18,G18&" - "&V18))))))) ->  | T18: =IF(P18="","",VLOOKUP(P18,'G-1 All Habitats'!$A$2:$L$135,10,FALSE)) ->  | U18: =IFERROR(VLOOKUP(T18,'G-1 All Habitats'!$S$3:$T$7,2,FALSE),"") ->  | W18: =IFERROR(INDEX('G-8 Condition Look up'!$A$3:$H$136,MATCH(P18,'G-8 Condition Look up'!$A$3:$A$136,0),MATCH(V18,'G-8 Condition Look up'!$A$3:$H$3,0)),"") ->  | Y18: =IF($X18="","",IF(VLOOKUP($X18,'G-3 Multipliers'!$H$3:$J$7,2,FALSE)=0,"Spatial Data Missing",VLOOKUP($X18,'G-3 Multipliers'!$H$3:$J$7,2,FALSE))) ->  | Z18: =IF($X18="","",IF(VLOOKUP($X18,'G-3 Multipliers'!$H$3:$J$7,3,FALSE)=0,"Spatial Data Missing",VLOOKUP($X18,'G-3 Multipliers'!$H$3:$J$7,3,FALSE))) ->  | AB18: =IF(AA18="","",IF(VLOOKUP(AA18,'G-3 Multipliers'!$L$3:$N$6,2,FALSE)=0,"Spatial Data Missing",VLOOKUP(AA18,'G-3 Multipliers'!$L$3:$N$6,2,FALSE))) ->  | AC18: =IF(AA18="","",IF(VLOOKUP(AA18,'G-3 Multipliers'!$L$3:$N$6,3,FALSE)=0,"Spatial Data Missing",VLOOKUP(AA18,'G-3 Multipliers'!$L$3:$N$6,3,FALSE))) ->  | AE18: =IFERROR(VLOOKUP(AD18,'G-4 Temporal multipliers'!$A$4:$C$36,3,FALSE),"") ->  | AF18: =IF(P18="","",VLOOKUP(P18,'G-3 Multipliers'!$A$2:$E$142,4,FALSE)) ->  | AG18: =IF(P18="","",VLOOKUP(P18,'G-3 Multipliers'!$A$2:$E$142,5,FALSE)) -> 
B19: ='A-1 Site Habitat Baseline'!AN18 ->  | C19: =IF(B19="","",IF(ISNA(VLOOKUP($B19,'A-1 Site Habitat Baseline'!$B$1:$O$258,3,FALSE)),"",(VLOOKUP($B19,'A-1 Site Habitat Baseline'!$B$1:$O$258,3,FALSE)))) ->  | D19: =IF(B19="","",IF(ISNA(VLOOKUP($B19,'A-1 Site Habitat Baseline'!$B$1:$O$258,4,FALSE)),"",(VLOOKUP($B19,'A-1 Site Habitat Baseline'!$B$1:$O$258,4,FALSE)))) ->  | E19: =IF(B19="","",IF(ISNA(VLOOKUP($B19,'A-1 Site Habitat Baseline'!$B$1:$O$258,5,FALSE)),"",(VLOOKUP($B19,'A-1 Site Habitat Baseline'!$B$1:$O$258,5,FALSE)))) ->  | F19: =IF(B19="","",IF(ISNA(VLOOKUP($B19,'A-1 Site Habitat Baseline'!$B$1:$O$258,6,FALSE)),"",(VLOOKUP($B19,'A-1 Site Habitat Baseline'!$B$1:$O$258,6,FALSE)))) ->  | G19: =IF(B19="","",IF(ISNA(VLOOKUP($B19,'A-1 Site Habitat Baseline'!$B$1:$O$258,7,FALSE)),"",(VLOOKUP($B19,'A-1 Site Habitat Baseline'!$B$1:$O$258,7,FALSE)))) ->  | H19: =IF(B19="","",IF(ISNA(VLOOKUP($B19,'A-1 Site Habitat Baseline'!$B$1:$O$258,8,FALSE)),"",(VLOOKUP($B19,'A-1 Site Habitat Baseline'!$B$1:$O$258,8,FALSE)))) ->  | I19: =IF(B19="","",IF(ISNA(VLOOKUP($B19,'A-1 Site Habitat Baseline'!$B$1:$O$258,9,FALSE)),"",(VLOOKUP($B19,'A-1 Site Habitat Baseline'!$B$1:$O$258,9,FALSE)))) ->  | J19: =IF(B19="","",IF(ISNA(VLOOKUP($B19,'A-1 Site Habitat Baseline'!$B$1:$O$258,10,FALSE)),"",(VLOOKUP($B19,'A-1 Site Habitat Baseline'!$B$1:$O$258,10,FALSE)))) ->  | K19: =IF(B19="","",IF(ISNA(VLOOKUP($B19,'A-1 Site Habitat Baseline'!$B$1:$O$258,11,FALSE)),"",(VLOOKUP($B19,'A-1 Site Habitat Baseline'!$B$1:$O$258,11,FALSE)))) ->  | L19: =IF(B19="","",IF(ISNA(VLOOKUP($B19,'A-1 Site Habitat Baseline'!$B$1:$O$258,13,FALSE)),"",(VLOOKUP($B19,'A-1 Site Habitat Baseline'!$B$1:$O$258,13,FALSE)))) ->  | M19: =IF(B19="","",IF(ISNA(VLOOKUP($B19,'A-1 Site Habitat Baseline'!$B$1:$O$258,14,FALSE)),"",(VLOOKUP($B19,'A-1 Site Habitat Baseline'!$B$1:$O$258,14,FALSE)))) ->  | N19: =IF(B19="","",IF(ISNA(VLOOKUP($B19,'A-1 Site Habitat Baseline'!$B$1:$Z$258,16,FALSE)),"",(VLOOKUP($B19,'A-1 Site Habitat Baseline'!$B$1:$Z$258,16,FALSE)))) ->  | O19: =IF(B19="","",IF(ISNA(VLOOKUP($B19,'A-1 Site Habitat Baseline'!$B$1:$Z$258,15,FALSE)),"",(VLOOKUP($B19,'A-1 Site Habitat Baseline'!$B$1:$Z$258,15,FALSE)))) ->  | Q19: =IF(B19="","",IF(AND(U19<F19,P19='G-1 All Habitats'!$A$65),E19&" - "&T19,IF(U19<F19,"Error Trading Down",E19&" - "&T19))) ->  | R19: =IF(C19="","",IF(AND(LEFT(C19,55)<>LEFT(P19,55),Q19= "High - High"),"Error - Not like for like",IF(AND(F19=U19,H19>W19),"Error - Can not reduce condition",IF(AND(F19=U19,H19=W19),"Error - No enhancement",IF(AND(U19<F19,P19='G-1 All Habitats'!$A$65),G19&" - "&V19,IF(U19<F19,"Error Trading Down",IF(AND(C19<>P19,F19<U19),"Lower Distinctiveness Habitat"&" - "&V19,G19&" - "&V19))))))) ->  | T19: =IF(P19="","",VLOOKUP(P19,'G-1 All Habitats'!$A$2:$L$135,10,FALSE)) ->  | U19: =IFERROR(VLOOKUP(T19,'G-1 All Habitats'!$S$3:$T$7,2,FALSE),"") ->  | W19: =IFERROR(INDEX('G-8 Condition Look up'!$A$3:$H$136,MATCH(P19,'G-8 Condition Look up'!$A$3:$A$136,0),MATCH(V19,'G-8 Condition Look up'!$A$3:$H$3,0)),"") ->  | Y19: =IF($X19="","",IF(VLOOKUP($X19,'G-3 Multipliers'!$H$3:$J$7,2,FALSE)=0,"Spatial Data Missing",VLOOKUP($X19,'G-3 Multipliers'!$H$3:$J$7,2,FALSE))) ->  | Z19: =IF($X19="","",IF(VLOOKUP($X19,'G-3 Multipliers'!$H$3:$J$7,3,FALSE)=0,"Spatial Data Missing",VLOOKUP($X19,'G-3 Multipliers'!$H$3:$J$7,3,FALSE))) ->  | AB19: =IF(AA19="","",IF(VLOOKUP(AA19,'G-3 Multipliers'!$L$3:$N$6,2,FALSE)=0,"Spatial Data Missing",VLOOKUP(AA19,'G-3 Multipliers'!$L$3:$N$6,2,FALSE))) ->  | AC19: =IF(AA19="","",IF(VLOOKUP(AA19,'G-3 Multipliers'!$L$3:$N$6,3,FALSE)=0,"Spatial Data Missing",VLOOKUP(AA19,'G-3 Multipliers'!$L$3:$N$6,3,FALSE))) ->  | AE19: =IFERROR(VLOOKUP(AD19,'G-4 Temporal multipliers'!$A$4:$C$36,3,FALSE),"") ->  | AF19: =IF(P19="","",VLOOKUP(P19,'G-3 Multipliers'!$A$2:$E$142,4,FALSE)) ->  | AG19: =IF(P19="","",VLOOKUP(P19,'G-3 Multipliers'!$A$2:$E$142,5,FALSE)) -> 
B20: ='A-1 Site Habitat Baseline'!AN19 ->  | C20: =IF(B20="","",IF(ISNA(VLOOKUP($B20,'A-1 Site Habitat Baseline'!$B$1:$O$258,3,FALSE)),"",(VLOOKUP($B20,'A-1 Site Habitat Baseline'!$B$1:$O$258,3,FALSE)))) ->  | D20: =IF(B20="","",IF(ISNA(VLOOKUP($B20,'A-1 Site Habitat Baseline'!$B$1:$O$258,4,FALSE)),"",(VLOOKUP($B20,'A-1 Site Habitat Baseline'!$B$1:$O$258,4,FALSE)))) ->  | E20: =IF(B20="","",IF(ISNA(VLOOKUP($B20,'A-1 Site Habitat Baseline'!$B$1:$O$258,5,FALSE)),"",(VLOOKUP($B20,'A-1 Site Habitat Baseline'!$B$1:$O$258,5,FALSE)))) ->  | F20: =IF(B20="","",IF(ISNA(VLOOKUP($B20,'A-1 Site Habitat Baseline'!$B$1:$O$258,6,FALSE)),"",(VLOOKUP($B20,'A-1 Site Habitat Baseline'!$B$1:$O$258,6,FALSE)))) ->  | G20: =IF(B20="","",IF(ISNA(VLOOKUP($B20,'A-1 Site Habitat Baseline'!$B$1:$O$258,7,FALSE)),"",(VLOOKUP($B20,'A-1 Site Habitat Baseline'!$B$1:$O$258,7,FALSE)))) ->  | H20: =IF(B20="","",IF(ISNA(VLOOKUP($B20,'A-1 Site Habitat Baseline'!$B$1:$O$258,8,FALSE)),"",(VLOOKUP($B20,'A-1 Site Habitat Baseline'!$B$1:$O$258,8,FALSE)))) ->  | I20: =IF(B20="","",IF(ISNA(VLOOKUP($B20,'A-1 Site Habitat Baseline'!$B$1:$O$258,9,FALSE)),"",(VLOOKUP($B20,'A-1 Site Habitat Baseline'!$B$1:$O$258,9,FALSE)))) ->  | J20: =IF(B20="","",IF(ISNA(VLOOKUP($B20,'A-1 Site Habitat Baseline'!$B$1:$O$258,10,FALSE)),"",(VLOOKUP($B20,'A-1 Site Habitat Baseline'!$B$1:$O$258,10,FALSE)))) ->  | K20: =IF(B20="","",IF(ISNA(VLOOKUP($B20,'A-1 Site Habitat Baseline'!$B$1:$O$258,11,FALSE)),"",(VLOOKUP($B20,'A-1 Site Habitat Baseline'!$B$1:$O$258,11,FALSE)))) ->  | L20: =IF(B20="","",IF(ISNA(VLOOKUP($B20,'A-1 Site Habitat Baseline'!$B$1:$O$258,13,FALSE)),"",(VLOOKUP($B20,'A-1 Site Habitat Baseline'!$B$1:$O$258,13,FALSE)))) ->  | M20: =IF(B20="","",IF(ISNA(VLOOKUP($B20,'A-1 Site Habitat Baseline'!$B$1:$O$258,14,FALSE)),"",(VLOOKUP($B20,'A-1 Site Habitat Baseline'!$B$1:$O$258,14,FALSE)))) ->  | N20: =IF(B20="","",IF(ISNA(VLOOKUP($B20,'A-1 Site Habitat Baseline'!$B$1:$Z$258,16,FALSE)),"",(VLOOKUP($B20,'A-1 Site Habitat Baseline'!$B$1:$Z$258,16,FALSE)))) ->  | O20: =IF(B20="","",IF(ISNA(VLOOKUP($B20,'A-1 Site Habitat Baseline'!$B$1:$Z$258,15,FALSE)),"",(VLOOKUP($B20,'A-1 Site Habitat Baseline'!$B$1:$Z$258,15,FALSE)))) ->  | Q20: =IF(B20="","",IF(AND(U20<F20,P20='G-1 All Habitats'!$A$65),E20&" - "&T20,IF(U20<F20,"Error Trading Down",E20&" - "&T20))) ->  | R20: =IF(C20="","",IF(AND(LEFT(C20,55)<>LEFT(P20,55),Q20= "High - High"),"Error - Not like for like",IF(AND(F20=U20,H20>W20),"Error - Can not reduce condition",IF(AND(F20=U20,H20=W20),"Error - No enhancement",IF(AND(U20<F20,P20='G-1 All Habitats'!$A$65),G20&" - "&V20,IF(U20<F20,"Error Trading Down",IF(AND(C20<>P20,F20<U20),"Lower Distinctiveness Habitat"&" - "&V20,G20&" - "&V20))))))) ->  | T20: =IF(P20="","",VLOOKUP(P20,'G-1 All Habitats'!$A$2:$L$135,10,FALSE)) ->  | U20: =IFERROR(VLOOKUP(T20,'G-1 All Habitats'!$S$3:$T$7,2,FALSE),"") ->  | W20: =IFERROR(INDEX('G-8 Condition Look up'!$A$3:$H$136,MATCH(P20,'G-8 Condition Look up'!$A$3:$A$136,0),MATCH(V20,'G-8 Condition Look up'!$A$3:$H$3,0)),"") ->  | Y20: =IF($X20="","",IF(VLOOKUP($X20,'G-3 Multipliers'!$H$3:$J$7,2,FALSE)=0,"Spatial Data Missing",VLOOKUP($X20,'G-3 Multipliers'!$H$3:$J$7,2,FALSE))) ->  | Z20: =IF($X20="","",IF(VLOOKUP($X20,'G-3 Multipliers'!$H$3:$J$7,3,FALSE)=0,"Spatial Data Missing",VLOOKUP($X20,'G-3 Multipliers'!$H$3:$J$7,3,FALSE))) ->  | AB20: =IF(AA20="","",IF(VLOOKUP(AA20,'G-3 Multipliers'!$L$3:$N$6,2,FALSE)=0,"Spatial Data Missing",VLOOKUP(AA20,'G-3 Multipliers'!$L$3:$N$6,2,FALSE))) ->  | AC20: =IF(AA20="","",IF(VLOOKUP(AA20,'G-3 Multipliers'!$L$3:$N$6,3,FALSE)=0,"Spatial Data Missing",VLOOKUP(AA20,'G-3 Multipliers'!$L$3:$N$6,3,FALSE))) ->  | AE20: =IFERROR(VLOOKUP(AD20,'G-4 Temporal multipliers'!$A$4:$C$36,3,FALSE),"") ->  | AF20: =IF(P20="","",VLOOKUP(P20,'G-3 Multipliers'!$A$2:$E$142,4,FALSE)) ->  | AG20: =IF(P20="","",VLOOKUP(P20,'G-3 Multipliers'!$A$2:$E$142,5,FALSE)) -> 
B21: ='A-1 Site Habitat Baseline'!AN20 ->  | C21: =IF(B21="","",IF(ISNA(VLOOKUP($B21,'A-1 Site Habitat Baseline'!$B$1:$O$258,3,FALSE)),"",(VLOOKUP($B21,'A-1 Site Habitat Baseline'!$B$1:$O$258,3,FALSE)))) ->  | D21: =IF(B21="","",IF(ISNA(VLOOKUP($B21,'A-1 Site Habitat Baseline'!$B$1:$O$258,4,FALSE)),"",(VLOOKUP($B21,'A-1 Site Habitat Baseline'!$B$1:$O$258,4,FALSE)))) ->  | E21: =IF(B21="","",IF(ISNA(VLOOKUP($B21,'A-1 Site Habitat Baseline'!$B$1:$O$258,5,FALSE)),"",(VLOOKUP($B21,'A-1 Site Habitat Baseline'!$B$1:$O$258,5,FALSE)))) ->  | F21: =IF(B21="","",IF(ISNA(VLOOKUP($B21,'A-1 Site Habitat Baseline'!$B$1:$O$258,6,FALSE)),"",(VLOOKUP($B21,'A-1 Site Habitat Baseline'!$B$1:$O$258,6,FALSE)))) ->  | G21: =IF(B21="","",IF(ISNA(VLOOKUP($B21,'A-1 Site Habitat Baseline'!$B$1:$O$258,7,FALSE)),"",(VLOOKUP($B21,'A-1 Site Habitat Baseline'!$B$1:$O$258,7,FALSE)))) ->  | H21: =IF(B21="","",IF(ISNA(VLOOKUP($B21,'A-1 Site Habitat Baseline'!$B$1:$O$258,8,FALSE)),"",(VLOOKUP($B21,'A-1 Site Habitat Baseline'!$B$1:$O$258,8,FALSE)))) ->  | I21: =IF(B21="","",IF(ISNA(VLOOKUP($B21,'A-1 Site Habitat Baseline'!$B$1:$O$258,9,FALSE)),"",(VLOOKUP($B21,'A-1 Site Habitat Baseline'!$B$1:$O$258,9,FALSE)))) ->  | J21: =IF(B21="","",IF(ISNA(VLOOKUP($B21,'A-1 Site Habitat Baseline'!$B$1:$O$258,10,FALSE)),"",(VLOOKUP($B21,'A-1 Site Habitat Baseline'!$B$1:$O$258,10,FALSE)))) ->  | K21: =IF(B21="","",IF(ISNA(VLOOKUP($B21,'A-1 Site Habitat Baseline'!$B$1:$O$258,11,FALSE)),"",(VLOOKUP($B21,'A-1 Site Habitat Baseline'!$B$1:$O$258,11,FALSE)))) ->  | L21: =IF(B21="","",IF(ISNA(VLOOKUP($B21,'A-1 Site Habitat Baseline'!$B$1:$O$258,13,FALSE)),"",(VLOOKUP($B21,'A-1 Site Habitat Baseline'!$B$1:$O$258,13,FALSE)))) ->  | M21: =IF(B21="","",IF(ISNA(VLOOKUP($B21,'A-1 Site Habitat Baseline'!$B$1:$O$258,14,FALSE)),"",(VLOOKUP($B21,'A-1 Site Habitat Baseline'!$B$1:$O$258,14,FALSE)))) ->  | N21: =IF(B21="","",IF(ISNA(VLOOKUP($B21,'A-1 Site Habitat Baseline'!$B$1:$Z$258,16,FALSE)),"",(VLOOKUP($B21,'A-1 Site Habitat Baseline'!$B$1:$Z$258,16,FALSE)))) ->  | O21: =IF(B21="","",IF(ISNA(VLOOKUP($B21,'A-1 Site Habitat Baseline'!$B$1:$Z$258,15,FALSE)),"",(VLOOKUP($B21,'A-1 Site Habitat Baseline'!$B$1:$Z$258,15,FALSE)))) ->  | Q21: =IF(B21="","",IF(AND(U21<F21,P21='G-1 All Habitats'!$A$65),E21&" - "&T21,IF(U21<F21,"Error Trading Down",E21&" - "&T21))) ->  | R21: =IF(C21="","",IF(AND(LEFT(C21,55)<>LEFT(P21,55),Q21= "High - High"),"Error - Not like for like",IF(AND(F21=U21,H21>W21),"Error - Can not reduce condition",IF(AND(F21=U21,H21=W21),"Error - No enhancement",IF(AND(U21<F21,P21='G-1 All Habitats'!$A$65),G21&" - "&V21,IF(U21<F21,"Error Trading Down",IF(AND(C21<>P21,F21<U21),"Lower Distinctiveness Habitat"&" - "&V21,G21&" - "&V21))))))) ->  | T21: =IF(P21="","",VLOOKUP(P21,'G-1 All Habitats'!$A$2:$L$135,10,FALSE)) ->  | U21: =IFERROR(VLOOKUP(T21,'G-1 All Habitats'!$S$3:$T$7,2,FALSE),"") ->  | W21: =IFERROR(INDEX('G-8 Condition Look up'!$A$3:$H$136,MATCH(P21,'G-8 Condition Look up'!$A$3:$A$136,0),MATCH(V21,'G-8 Condition Look up'!$A$3:$H$3,0)),"") ->  | Y21: =IF($X21="","",IF(VLOOKUP($X21,'G-3 Multipliers'!$H$3:$J$7,2,FALSE)=0,"Spatial Data Missing",VLOOKUP($X21,'G-3 Multipliers'!$H$3:$J$7,2,FALSE))) ->  | Z21: =IF($X21="","",IF(VLOOKUP($X21,'G-3 Multipliers'!$H$3:$J$7,3,FALSE)=0,"Spatial Data Missing",VLOOKUP($X21,'G-3 Multipliers'!$H$3:$J$7,3,FALSE))) ->  | AB21: =IF(AA21="","",IF(VLOOKUP(AA21,'G-3 Multipliers'!$L$3:$N$6,2,FALSE)=0,"Spatial Data Missing",VLOOKUP(AA21,'G-3 Multipliers'!$L$3:$N$6,2,FALSE))) ->  | AC21: =IF(AA21="","",IF(VLOOKUP(AA21,'G-3 Multipliers'!$L$3:$N$6,3,FALSE)=0,"Spatial Data Missing",VLOOKUP(AA21,'G-3 Multipliers'!$L$3:$N$6,3,FALSE))) ->  | AE21: =IFERROR(VLOOKUP(AD21,'G-4 Temporal multipliers'!$A$4:$C$36,3,FALSE),"") ->  | AF21: =IF(P21="","",VLOOKUP(P21,'G-3 Multipliers'!$A$2:$E$142,4,FALSE)) ->  | AG21: =IF(P21="","",VLOOKUP(P21,'G-3 Multipliers'!$A$2:$E$142,5,FALSE)) -> 
B22: ='A-1 Site Habitat Baseline'!AN21 ->  | C22: =IF(B22="","",IF(ISNA(VLOOKUP($B22,'A-1 Site Habitat Baseline'!$B$1:$O$258,3,FALSE)),"",(VLOOKUP($B22,'A-1 Site Habitat Baseline'!$B$1:$O$258,3,FALSE)))) ->  | D22: =IF(B22="","",IF(ISNA(VLOOKUP($B22,'A-1 Site Habitat Baseline'!$B$1:$O$258,4,FALSE)),"",(VLOOKUP($B22,'A-1 Site Habitat Baseline'!$B$1:$O$258,4,FALSE)))) ->  | E22: =IF(B22="","",IF(ISNA(VLOOKUP($B22,'A-1 Site Habitat Baseline'!$B$1:$O$258,5,FALSE)),"",(VLOOKUP($B22,'A-1 Site Habitat Baseline'!$B$1:$O$258,5,FALSE)))) ->  | F22: =IF(B22="","",IF(ISNA(VLOOKUP($B22,'A-1 Site Habitat Baseline'!$B$1:$O$258,6,FALSE)),"",(VLOOKUP($B22,'A-1 Site Habitat Baseline'!$B$1:$O$258,6,FALSE)))) ->  | G22: =IF(B22="","",IF(ISNA(VLOOKUP($B22,'A-1 Site Habitat Baseline'!$B$1:$O$258,7,FALSE)),"",(VLOOKUP($B22,'A-1 Site Habitat Baseline'!$B$1:$O$258,7,FALSE)))) ->  | H22: =IF(B22="","",IF(ISNA(VLOOKUP($B22,'A-1 Site Habitat Baseline'!$B$1:$O$258,8,FALSE)),"",(VLOOKUP($B22,'A-1 Site Habitat Baseline'!$B$1:$O$258,8,FALSE)))) ->  | I22: =IF(B22="","",IF(ISNA(VLOOKUP($B22,'A-1 Site Habitat Baseline'!$B$1:$O$258,9,FALSE)),"",(VLOOKUP($B22,'A-1 Site Habitat Baseline'!$B$1:$O$258,9,FALSE)))) ->  | J22: =IF(B22="","",IF(ISNA(VLOOKUP($B22,'A-1 Site Habitat Baseline'!$B$1:$O$258,10,FALSE)),"",(VLOOKUP($B22,'A-1 Site Habitat Baseline'!$B$1:$O$258,10,FALSE)))) ->  | K22: =IF(B22="","",IF(ISNA(VLOOKUP($B22,'A-1 Site Habitat Baseline'!$B$1:$O$258,11,FALSE)),"",(VLOOKUP($B22,'A-1 Site Habitat Baseline'!$B$1:$O$258,11,FALSE)))) ->  | L22: =IF(B22="","",IF(ISNA(VLOOKUP($B22,'A-1 Site Habitat Baseline'!$B$1:$O$258,13,FALSE)),"",(VLOOKUP($B22,'A-1 Site Habitat Baseline'!$B$1:$O$258,13,FALSE)))) ->  | M22: =IF(B22="","",IF(ISNA(VLOOKUP($B22,'A-1 Site Habitat Baseline'!$B$1:$O$258,14,FALSE)),"",(VLOOKUP($B22,'A-1 Site Habitat Baseline'!$B$1:$O$258,14,FALSE)))) ->  | N22: =IF(B22="","",IF(ISNA(VLOOKUP($B22,'A-1 Site Habitat Baseline'!$B$1:$Z$258,16,FALSE)),"",(VLOOKUP($B22,'A-1 Site Habitat Baseline'!$B$1:$Z$258,16,FALSE)))) ->  | O22: =IF(B22="","",IF(ISNA(VLOOKUP($B22,'A-1 Site Habitat Baseline'!$B$1:$Z$258,15,FALSE)),"",(VLOOKUP($B22,'A-1 Site Habitat Baseline'!$B$1:$Z$258,15,FALSE)))) ->  | Q22: =IF(B22="","",IF(AND(U22<F22,P22='G-1 All Habitats'!$A$65),E22&" - "&T22,IF(U22<F22,"Error Trading Down",E22&" - "&T22))) ->  | R22: =IF(C22="","",IF(AND(LEFT(C22,55)<>LEFT(P22,55),Q22= "High - High"),"Error - Not like for like",IF(AND(F22=U22,H22>W22),"Error - Can not reduce condition",IF(AND(F22=U22,H22=W22),"Error - No enhancement",IF(AND(U22<F22,P22='G-1 All Habitats'!$A$65),G22&" - "&V22,IF(U22<F22,"Error Trading Down",IF(AND(C22<>P22,F22<U22),"Lower Distinctiveness Habitat"&" - "&V22,G22&" - "&V22))))))) ->  | T22: =IF(P22="","",VLOOKUP(P22,'G-1 All Habitats'!$A$2:$L$135,10,FALSE)) ->  | U22: =IFERROR(VLOOKUP(T22,'G-1 All Habitats'!$S$3:$T$7,2,FALSE),"") ->  | W22: =IFERROR(INDEX('G-8 Condition Look up'!$A$3:$H$136,MATCH(P22,'G-8 Condition Look up'!$A$3:$A$136,0),MATCH(V22,'G-8 Condition Look up'!$A$3:$H$3,0)),"") ->  | Y22: =IF($X22="","",IF(VLOOKUP($X22,'G-3 Multipliers'!$H$3:$J$7,2,FALSE)=0,"Spatial Data Missing",VLOOKUP($X22,'G-3 Multipliers'!$H$3:$J$7,2,FALSE))) ->  | Z22: =IF($X22="","",IF(VLOOKUP($X22,'G-3 Multipliers'!$H$3:$J$7,3,FALSE)=0,"Spatial Data Missing",VLOOKUP($X22,'G-3 Multipliers'!$H$3:$J$7,3,FALSE))) ->  | AB22: =IF(AA22="","",IF(VLOOKUP(AA22,'G-3 Multipliers'!$L$3:$N$6,2,FALSE)=0,"Spatial Data Missing",VLOOKUP(AA22,'G-3 Multipliers'!$L$3:$N$6,2,FALSE))) ->  | AC22: =IF(AA22="","",IF(VLOOKUP(AA22,'G-3 Multipliers'!$L$3:$N$6,3,FALSE)=0,"Spatial Data Missing",VLOOKUP(AA22,'G-3 Multipliers'!$L$3:$N$6,3,FALSE))) ->  | AE22: =IFERROR(VLOOKUP(AD22,'G-4 Temporal multipliers'!$A$4:$C$36,3,FALSE),"") ->  | AF22: =IF(P22="","",VLOOKUP(P22,'G-3 Multipliers'!$A$2:$E$142,4,FALSE)) ->  | AG22: =IF(P22="","",VLOOKUP(P22,'G-3 Multipliers'!$A$2:$E$142,5,FALSE)) -> 
B23: ='A-1 Site Habitat Baseline'!AN22 ->  | C23: =IF(B23="","",IF(ISNA(VLOOKUP($B23,'A-1 Site Habitat Baseline'!$B$1:$O$258,3,FALSE)),"",(VLOOKUP($B23,'A-1 Site Habitat Baseline'!$B$1:$O$258,3,FALSE)))) ->  | D23: =IF(B23="","",IF(ISNA(VLOOKUP($B23,'A-1 Site Habitat Baseline'!$B$1:$O$258,4,FALSE)),"",(VLOOKUP($B23,'A-1 Site Habitat Baseline'!$B$1:$O$258,4,FALSE)))) ->  | E23: =IF(B23="","",IF(ISNA(VLOOKUP($B23,'A-1 Site Habitat Baseline'!$B$1:$O$258,5,FALSE)),"",(VLOOKUP($B23,'A-1 Site Habitat Baseline'!$B$1:$O$258,5,FALSE)))) ->  | F23: =IF(B23="","",IF(ISNA(VLOOKUP($B23,'A-1 Site Habitat Baseline'!$B$1:$O$258,6,FALSE)),"",(VLOOKUP($B23,'A-1 Site Habitat Baseline'!$B$1:$O$258,6,FALSE)))) ->  | G23: =IF(B23="","",IF(ISNA(VLOOKUP($B23,'A-1 Site Habitat Baseline'!$B$1:$O$258,7,FALSE)),"",(VLOOKUP($B23,'A-1 Site Habitat Baseline'!$B$1:$O$258,7,FALSE)))) ->  | H23: =IF(B23="","",IF(ISNA(VLOOKUP($B23,'A-1 Site Habitat Baseline'!$B$1:$O$258,8,FALSE)),"",(VLOOKUP($B23,'A-1 Site Habitat Baseline'!$B$1:$O$258,8,FALSE)))) ->  | I23: =IF(B23="","",IF(ISNA(VLOOKUP($B23,'A-1 Site Habitat Baseline'!$B$1:$O$258,9,FALSE)),"",(VLOOKUP($B23,'A-1 Site Habitat Baseline'!$B$1:$O$258,9,FALSE)))) ->  | J23: =IF(B23="","",IF(ISNA(VLOOKUP($B23,'A-1 Site Habitat Baseline'!$B$1:$O$258,10,FALSE)),"",(VLOOKUP($B23,'A-1 Site Habitat Baseline'!$B$1:$O$258,10,FALSE)))) ->  | K23: =IF(B23="","",IF(ISNA(VLOOKUP($B23,'A-1 Site Habitat Baseline'!$B$1:$O$258,11,FALSE)),"",(VLOOKUP($B23,'A-1 Site Habitat Baseline'!$B$1:$O$258,11,FALSE)))) ->  | L23: =IF(B23="","",IF(ISNA(VLOOKUP($B23,'A-1 Site Habitat Baseline'!$B$1:$O$258,13,FALSE)),"",(VLOOKUP($B23,'A-1 Site Habitat Baseline'!$B$1:$O$258,13,FALSE)))) ->  | M23: =IF(B23="","",IF(ISNA(VLOOKUP($B23,'A-1 Site Habitat Baseline'!$B$1:$O$258,14,FALSE)),"",(VLOOKUP($B23,'A-1 Site Habitat Baseline'!$B$1:$O$258,14,FALSE)))) ->  | N23: =IF(B23="","",IF(ISNA(VLOOKUP($B23,'A-1 Site Habitat Baseline'!$B$1:$Z$258,16,FALSE)),"",(VLOOKUP($B23,'A-1 Site Habitat Baseline'!$B$1:$Z$258,16,FALSE)))) ->  | O23: =IF(B23="","",IF(ISNA(VLOOKUP($B23,'A-1 Site Habitat Baseline'!$B$1:$Z$258,15,FALSE)),"",(VLOOKUP($B23,'A-1 Site Habitat Baseline'!$B$1:$Z$258,15,FALSE)))) ->  | Q23: =IF(B23="","",IF(AND(U23<F23,P23='G-1 All Habitats'!$A$65),E23&" - "&T23,IF(U23<F23,"Error Trading Down",E23&" - "&T23))) ->  | R23: =IF(C23="","",IF(AND(LEFT(C23,55)<>LEFT(P23,55),Q23= "High - High"),"Error - Not like for like",IF(AND(F23=U23,H23>W23),"Error - Can not reduce condition",IF(AND(F23=U23,H23=W23),"Error - No enhancement",IF(AND(U23<F23,P23='G-1 All Habitats'!$A$65),G23&" - "&V23,IF(U23<F23,"Error Trading Down",IF(AND(C23<>P23,F23<U23),"Lower Distinctiveness Habitat"&" - "&V23,G23&" - "&V23))))))) ->  | T23: =IF(P23="","",VLOOKUP(P23,'G-1 All Habitats'!$A$2:$L$135,10,FALSE)) ->  | U23: =IFERROR(VLOOKUP(T23,'G-1 All Habitats'!$S$3:$T$7,2,FALSE),"") ->  | W23: =IFERROR(INDEX('G-8 Condition Look up'!$A$3:$H$136,MATCH(P23,'G-8 Condition Look up'!$A$3:$A$136,0),MATCH(V23,'G-8 Condition Look up'!$A$3:$H$3,0)),"") ->  | Y23: =IF($X23="","",IF(VLOOKUP($X23,'G-3 Multipliers'!$H$3:$J$7,2,FALSE)=0,"Spatial Data Missing",VLOOKUP($X23,'G-3 Multipliers'!$H$3:$J$7,2,FALSE))) ->  | Z23: =IF($X23="","",IF(VLOOKUP($X23,'G-3 Multipliers'!$H$3:$J$7,3,FALSE)=0,"Spatial Data Missing",VLOOKUP($X23,'G-3 Multipliers'!$H$3:$J$7,3,FALSE))) ->  | AB23: =IF(AA23="","",IF(VLOOKUP(AA23,'G-3 Multipliers'!$L$3:$N$6,2,FALSE)=0,"Spatial Data Missing",VLOOKUP(AA23,'G-3 Multipliers'!$L$3:$N$6,2,FALSE))) ->  | AC23: =IF(AA23="","",IF(VLOOKUP(AA23,'G-3 Multipliers'!$L$3:$N$6,3,FALSE)=0,"Spatial Data Missing",VLOOKUP(AA23,'G-3 Multipliers'!$L$3:$N$6,3,FALSE))) ->  | AE23: =IFERROR(VLOOKUP(AD23,'G-4 Temporal multipliers'!$A$4:$C$36,3,FALSE),"") ->  | AF23: =IF(P23="","",VLOOKUP(P23,'G-3 Multipliers'!$A$2:$E$142,4,FALSE)) ->  | AG23: =IF(P23="","",VLOOKUP(P23,'G-3 Multipliers'!$A$2:$E$142,5,FALSE)) -> 
B24: ='A-1 Site Habitat Baseline'!AN23 ->  | C24: =IF(B24="","",IF(ISNA(VLOOKUP($B24,'A-1 Site Habitat Baseline'!$B$1:$O$258,3,FALSE)),"",(VLOOKUP($B24,'A-1 Site Habitat Baseline'!$B$1:$O$258,3,FALSE)))) ->  | D24: =IF(B24="","",IF(ISNA(VLOOKUP($B24,'A-1 Site Habitat Baseline'!$B$1:$O$258,4,FALSE)),"",(VLOOKUP($B24,'A-1 Site Habitat Baseline'!$B$1:$O$258,4,FALSE)))) ->  | E24: =IF(B24="","",IF(ISNA(VLOOKUP($B24,'A-1 Site Habitat Baseline'!$B$1:$O$258,5,FALSE)),"",(VLOOKUP($B24,'A-1 Site Habitat Baseline'!$B$1:$O$258,5,FALSE)))) ->  | F24: =IF(B24="","",IF(ISNA(VLOOKUP($B24,'A-1 Site Habitat Baseline'!$B$1:$O$258,6,FALSE)),"",(VLOOKUP($B24,'A-1 Site Habitat Baseline'!$B$1:$O$258,6,FALSE)))) ->  | G24: =IF(B24="","",IF(ISNA(VLOOKUP($B24,'A-1 Site Habitat Baseline'!$B$1:$O$258,7,FALSE)),"",(VLOOKUP($B24,'A-1 Site Habitat Baseline'!$B$1:$O$258,7,FALSE)))) ->  | H24: =IF(B24="","",IF(ISNA(VLOOKUP($B24,'A-1 Site Habitat Baseline'!$B$1:$O$258,8,FALSE)),"",(VLOOKUP($B24,'A-1 Site Habitat Baseline'!$B$1:$O$258,8,FALSE)))) ->  | I24: =IF(B24="","",IF(ISNA(VLOOKUP($B24,'A-1 Site Habitat Baseline'!$B$1:$O$258,9,FALSE)),"",(VLOOKUP($B24,'A-1 Site Habitat Baseline'!$B$1:$O$258,9,FALSE)))) ->  | J24: =IF(B24="","",IF(ISNA(VLOOKUP($B24,'A-1 Site Habitat Baseline'!$B$1:$O$258,10,FALSE)),"",(VLOOKUP($B24,'A-1 Site Habitat Baseline'!$B$1:$O$258,10,FALSE)))) ->  | K24: =IF(B24="","",IF(ISNA(VLOOKUP($B24,'A-1 Site Habitat Baseline'!$B$1:$O$258,11,FALSE)),"",(VLOOKUP($B24,'A-1 Site Habitat Baseline'!$B$1:$O$258,11,FALSE)))) ->  | L24: =IF(B24="","",IF(ISNA(VLOOKUP($B24,'A-1 Site Habitat Baseline'!$B$1:$O$258,13,FALSE)),"",(VLOOKUP($B24,'A-1 Site Habitat Baseline'!$B$1:$O$258,13,FALSE)))) ->  | M24: =IF(B24="","",IF(ISNA(VLOOKUP($B24,'A-1 Site Habitat Baseline'!$B$1:$O$258,14,FALSE)),"",(VLOOKUP($B24,'A-1 Site Habitat Baseline'!$B$1:$O$258,14,FALSE)))) ->  | N24: =IF(B24="","",IF(ISNA(VLOOKUP($B24,'A-1 Site Habitat Baseline'!$B$1:$Z$258,16,FALSE)),"",(VLOOKUP($B24,'A-1 Site Habitat Baseline'!$B$1:$Z$258,16,FALSE)))) ->  | O24: =IF(B24="","",IF(ISNA(VLOOKUP($B24,'A-1 Site Habitat Baseline'!$B$1:$Z$258,15,FALSE)),"",(VLOOKUP($B24,'A-1 Site Habitat Baseline'!$B$1:$Z$258,15,FALSE)))) ->  | Q24: =IF(B24="","",IF(AND(U24<F24,P24='G-1 All Habitats'!$A$65),E24&" - "&T24,IF(U24<F24,"Error Trading Down",E24&" - "&T24))) ->  | R24: =IF(C24="","",IF(AND(LEFT(C24,55)<>LEFT(P24,55),Q24= "High - High"),"Error - Not like for like",IF(AND(F24=U24,H24>W24),"Error - Can not reduce condition",IF(AND(F24=U24,H24=W24),"Error - No enhancement",IF(AND(U24<F24,P24='G-1 All Habitats'!$A$65),G24&" - "&V24,IF(U24<F24,"Error Trading Down",IF(AND(C24<>P24,F24<U24),"Lower Distinctiveness Habitat"&" - "&V24,G24&" - "&V24))))))) ->  | T24: =IF(P24="","",VLOOKUP(P24,'G-1 All Habitats'!$A$2:$L$135,10,FALSE)) ->  | U24: =IFERROR(VLOOKUP(T24,'G-1 All Habitats'!$S$3:$T$7,2,FALSE),"") ->  | W24: =IFERROR(INDEX('G-8 Condition Look up'!$A$3:$H$136,MATCH(P24,'G-8 Condition Look up'!$A$3:$A$136,0),MATCH(V24,'G-8 Condition Look up'!$A$3:$H$3,0)),"") ->  | Y24: =IF($X24="","",IF(VLOOKUP($X24,'G-3 Multipliers'!$H$3:$J$7,2,FALSE)=0,"Spatial Data Missing",VLOOKUP($X24,'G-3 Multipliers'!$H$3:$J$7,2,FALSE))) ->  | Z24: =IF($X24="","",IF(VLOOKUP($X24,'G-3 Multipliers'!$H$3:$J$7,3,FALSE)=0,"Spatial Data Missing",VLOOKUP($X24,'G-3 Multipliers'!$H$3:$J$7,3,FALSE))) ->  | AB24: =IF(AA24="","",IF(VLOOKUP(AA24,'G-3 Multipliers'!$L$3:$N$6,2,FALSE)=0,"Spatial Data Missing",VLOOKUP(AA24,'G-3 Multipliers'!$L$3:$N$6,2,FALSE))) ->  | AC24: =IF(AA24="","",IF(VLOOKUP(AA24,'G-3 Multipliers'!$L$3:$N$6,3,FALSE)=0,"Spatial Data Missing",VLOOKUP(AA24,'G-3 Multipliers'!$L$3:$N$6,3,FALSE))) ->  | AE24: =IFERROR(VLOOKUP(AD24,'G-4 Temporal multipliers'!$A$4:$C$36,3,FALSE),"") ->  | AF24: =IF(P24="","",VLOOKUP(P24,'G-3 Multipliers'!$A$2:$E$142,4,FALSE)) ->  | AG24: =IF(P24="","",VLOOKUP(P24,'G-3 Multipliers'!$A$2:$E$142,5,FALSE)) -> 
B25: ='A-1 Site Habitat Baseline'!AN24 ->  | C25: =IF(B25="","",IF(ISNA(VLOOKUP($B25,'A-1 Site Habitat Baseline'!$B$1:$O$258,3,FALSE)),"",(VLOOKUP($B25,'A-1 Site Habitat Baseline'!$B$1:$O$258,3,FALSE)))) ->  | D25: =IF(B25="","",IF(ISNA(VLOOKUP($B25,'A-1 Site Habitat Baseline'!$B$1:$O$258,4,FALSE)),"",(VLOOKUP($B25,'A-1 Site Habitat Baseline'!$B$1:$O$258,4,FALSE)))) ->  | E25: =IF(B25="","",IF(ISNA(VLOOKUP($B25,'A-1 Site Habitat Baseline'!$B$1:$O$258,5,FALSE)),"",(VLOOKUP($B25,'A-1 Site Habitat Baseline'!$B$1:$O$258,5,FALSE)))) ->  | F25: =IF(B25="","",IF(ISNA(VLOOKUP($B25,'A-1 Site Habitat Baseline'!$B$1:$O$258,6,FALSE)),"",(VLOOKUP($B25,'A-1 Site Habitat Baseline'!$B$1:$O$258,6,FALSE)))) ->  | G25: =IF(B25="","",IF(ISNA(VLOOKUP($B25,'A-1 Site Habitat Baseline'!$B$1:$O$258,7,FALSE)),"",(VLOOKUP($B25,'A-1 Site Habitat Baseline'!$B$1:$O$258,7,FALSE)))) ->  | H25: =IF(B25="","",IF(ISNA(VLOOKUP($B25,'A-1 Site Habitat Baseline'!$B$1:$O$258,8,FALSE)),"",(VLOOKUP($B25,'A-1 Site Habitat Baseline'!$B$1:$O$258,8,FALSE)))) ->  | I25: =IF(B25="","",IF(ISNA(VLOOKUP($B25,'A-1 Site Habitat Baseline'!$B$1:$O$258,9,FALSE)),"",(VLOOKUP($B25,'A-1 Site Habitat Baseline'!$B$1:$O$258,9,FALSE)))) ->  | J25: =IF(B25="","",IF(ISNA(VLOOKUP($B25,'A-1 Site Habitat Baseline'!$B$1:$O$258,10,FALSE)),"",(VLOOKUP($B25,'A-1 Site Habitat Baseline'!$B$1:$O$258,10,FALSE)))) ->  | K25: =IF(B25="","",IF(ISNA(VLOOKUP($B25,'A-1 Site Habitat Baseline'!$B$1:$O$258,11,FALSE)),"",(VLOOKUP($B25,'A-1 Site Habitat Baseline'!$B$1:$O$258,11,FALSE)))) ->  | L25: =IF(B25="","",IF(ISNA(VLOOKUP($B25,'A-1 Site Habitat Baseline'!$B$1:$O$258,13,FALSE)),"",(VLOOKUP($B25,'A-1 Site Habitat Baseline'!$B$1:$O$258,13,FALSE)))) ->  | M25: =IF(B25="","",IF(ISNA(VLOOKUP($B25,'A-1 Site Habitat Baseline'!$B$1:$O$258,14,FALSE)),"",(VLOOKUP($B25,'A-1 Site Habitat Baseline'!$B$1:$O$258,14,FALSE)))) ->  | N25: =IF(B25="","",IF(ISNA(VLOOKUP($B25,'A-1 Site Habitat Baseline'!$B$1:$Z$258,16,FALSE)),"",(VLOOKUP($B25,'A-1 Site Habitat Baseline'!$B$1:$Z$258,16,FALSE)))) ->  | O25: =IF(B25="","",IF(ISNA(VLOOKUP($B25,'A-1 Site Habitat Baseline'!$B$1:$Z$258,15,FALSE)),"",(VLOOKUP($B25,'A-1 Site Habitat Baseline'!$B$1:$Z$258,15,FALSE)))) ->  | Q25: =IF(B25="","",IF(AND(U25<F25,P25='G-1 All Habitats'!$A$65),E25&" - "&T25,IF(U25<F25,"Error Trading Down",E25&" - "&T25))) ->  | R25: =IF(C25="","",IF(AND(LEFT(C25,55)<>LEFT(P25,55),Q25= "High - High"),"Error - Not like for like",IF(AND(F25=U25,H25>W25),"Error - Can not reduce condition",IF(AND(F25=U25,H25=W25),"Error - No enhancement",IF(AND(U25<F25,P25='G-1 All Habitats'!$A$65),G25&" - "&V25,IF(U25<F25,"Error Trading Down",IF(AND(C25<>P25,F25<U25),"Lower Distinctiveness Habitat"&" - "&V25,G25&" - "&V25))))))) ->  | T25: =IF(P25="","",VLOOKUP(P25,'G-1 All Habitats'!$A$2:$L$135,10,FALSE)) ->  | U25: =IFERROR(VLOOKUP(T25,'G-1 All Habitats'!$S$3:$T$7,2,FALSE),"") ->  | W25: =IFERROR(INDEX('G-8 Condition Look up'!$A$3:$H$136,MATCH(P25,'G-8 Condition Look up'!$A$3:$A$136,0),MATCH(V25,'G-8 Condition Look up'!$A$3:$H$3,0)),"") ->  | Y25: =IF($X25="","",IF(VLOOKUP($X25,'G-3 Multipliers'!$H$3:$J$7,2,FALSE)=0,"Spatial Data Missing",VLOOKUP($X25,'G-3 Multipliers'!$H$3:$J$7,2,FALSE))) ->  | Z25: =IF($X25="","",IF(VLOOKUP($X25,'G-3 Multipliers'!$H$3:$J$7,3,FALSE)=0,"Spatial Data Missing",VLOOKUP($X25,'G-3 Multipliers'!$H$3:$J$7,3,FALSE))) ->  | AB25: =IF(AA25="","",IF(VLOOKUP(AA25,'G-3 Multipliers'!$L$3:$N$6,2,FALSE)=0,"Spatial Data Missing",VLOOKUP(AA25,'G-3 Multipliers'!$L$3:$N$6,2,FALSE))) ->  | AC25: =IF(AA25="","",IF(VLOOKUP(AA25,'G-3 Multipliers'!$L$3:$N$6,3,FALSE)=0,"Spatial Data Missing",VLOOKUP(AA25,'G-3 Multipliers'!$L$3:$N$6,3,FALSE))) ->  | AE25: =IFERROR(VLOOKUP(AD25,'G-4 Temporal multipliers'!$A$4:$C$36,3,FALSE),"") ->  | AF25: =IF(P25="","",VLOOKUP(P25,'G-3 Multipliers'!$A$2:$E$142,4,FALSE)) ->  | AG25: =IF(P25="","",VLOOKUP(P25,'G-3 Multipliers'!$A$2:$E$142,5,FALSE)) -> 
B26: ='A-1 Site Habitat Baseline'!AN25 ->  | C26: =IF(B26="","",IF(ISNA(VLOOKUP($B26,'A-1 Site Habitat Baseline'!$B$1:$O$258,3,FALSE)),"",(VLOOKUP($B26,'A-1 Site Habitat Baseline'!$B$1:$O$258,3,FALSE)))) ->  | D26: =IF(B26="","",IF(ISNA(VLOOKUP($B26,'A-1 Site Habitat Baseline'!$B$1:$O$258,4,FALSE)),"",(VLOOKUP($B26,'A-1 Site Habitat Baseline'!$B$1:$O$258,4,FALSE)))) ->  | E26: =IF(B26="","",IF(ISNA(VLOOKUP($B26,'A-1 Site Habitat Baseline'!$B$1:$O$258,5,FALSE)),"",(VLOOKUP($B26,'A-1 Site Habitat Baseline'!$B$1:$O$258,5,FALSE)))) ->  | F26: =IF(B26="","",IF(ISNA(VLOOKUP($B26,'A-1 Site Habitat Baseline'!$B$1:$O$258,6,FALSE)),"",(VLOOKUP($B26,'A-1 Site Habitat Baseline'!$B$1:$O$258,6,FALSE)))) ->  | G26: =IF(B26="","",IF(ISNA(VLOOKUP($B26,'A-1 Site Habitat Baseline'!$B$1:$O$258,7,FALSE)),"",(VLOOKUP($B26,'A-1 Site Habitat Baseline'!$B$1:$O$258,7,FALSE)))) ->  | H26: =IF(B26="","",IF(ISNA(VLOOKUP($B26,'A-1 Site Habitat Baseline'!$B$1:$O$258,8,FALSE)),"",(VLOOKUP($B26,'A-1 Site Habitat Baseline'!$B$1:$O$258,8,FALSE)))) ->  | I26: =IF(B26="","",IF(ISNA(VLOOKUP($B26,'A-1 Site Habitat Baseline'!$B$1:$O$258,9,FALSE)),"",(VLOOKUP($B26,'A-1 Site Habitat Baseline'!$B$1:$O$258,9,FALSE)))) ->  | J26: =IF(B26="","",IF(ISNA(VLOOKUP($B26,'A-1 Site Habitat Baseline'!$B$1:$O$258,10,FALSE)),"",(VLOOKUP($B26,'A-1 Site Habitat Baseline'!$B$1:$O$258,10,FALSE)))) ->  | K26: =IF(B26="","",IF(ISNA(VLOOKUP($B26,'A-1 Site Habitat Baseline'!$B$1:$O$258,11,FALSE)),"",(VLOOKUP($B26,'A-1 Site Habitat Baseline'!$B$1:$O$258,11,FALSE)))) ->  | L26: =IF(B26="","",IF(ISNA(VLOOKUP($B26,'A-1 Site Habitat Baseline'!$B$1:$O$258,13,FALSE)),"",(VLOOKUP($B26,'A-1 Site Habitat Baseline'!$B$1:$O$258,13,FALSE)))) ->  | M26: =IF(B26="","",IF(ISNA(VLOOKUP($B26,'A-1 Site Habitat Baseline'!$B$1:$O$258,14,FALSE)),"",(VLOOKUP($B26,'A-1 Site Habitat Baseline'!$B$1:$O$258,14,FALSE)))) ->  | N26: =IF(B26="","",IF(ISNA(VLOOKUP($B26,'A-1 Site Habitat Baseline'!$B$1:$Z$258,16,FALSE)),"",(VLOOKUP($B26,'A-1 Site Habitat Baseline'!$B$1:$Z$258,16,FALSE)))) ->  | O26: =IF(B26="","",IF(ISNA(VLOOKUP($B26,'A-1 Site Habitat Baseline'!$B$1:$Z$258,15,FALSE)),"",(VLOOKUP($B26,'A-1 Site Habitat Baseline'!$B$1:$Z$258,15,FALSE)))) ->  | Q26: =IF(B26="","",IF(AND(U26<F26,P26='G-1 All Habitats'!$A$65),E26&" - "&T26,IF(U26<F26,"Error Trading Down",E26&" - "&T26))) ->  | R26: =IF(C26="","",IF(AND(LEFT(C26,55)<>LEFT(P26,55),Q26= "High - High"),"Error - Not like for like",IF(AND(F26=U26,H26>W26),"Error - Can not reduce condition",IF(AND(F26=U26,H26=W26),"Error - No enhancement",IF(AND(U26<F26,P26='G-1 All Habitats'!$A$65),G26&" - "&V26,IF(U26<F26,"Error Trading Down",IF(AND(C26<>P26,F26<U26),"Lower Distinctiveness Habitat"&" - "&V26,G26&" - "&V26))))))) ->  | T26: =IF(P26="","",VLOOKUP(P26,'G-1 All Habitats'!$A$2:$L$135,10,FALSE)) ->  | U26: =IFERROR(VLOOKUP(T26,'G-1 All Habitats'!$S$3:$T$7,2,FALSE),"") ->  | W26: =IFERROR(INDEX('G-8 Condition Look up'!$A$3:$H$136,MATCH(P26,'G-8 Condition Look up'!$A$3:$A$136,0),MATCH(V26,'G-8 Condition Look up'!$A$3:$H$3,0)),"") ->  | Y26: =IF($X26="","",IF(VLOOKUP($X26,'G-3 Multipliers'!$H$3:$J$7,2,FALSE)=0,"Spatial Data Missing",VLOOKUP($X26,'G-3 Multipliers'!$H$3:$J$7,2,FALSE))) ->  | Z26: =IF($X26="","",IF(VLOOKUP($X26,'G-3 Multipliers'!$H$3:$J$7,3,FALSE)=0,"Spatial Data Missing",VLOOKUP($X26,'G-3 Multipliers'!$H$3:$J$7,3,FALSE))) ->  | AB26: =IF(AA26="","",IF(VLOOKUP(AA26,'G-3 Multipliers'!$L$3:$N$6,2,FALSE)=0,"Spatial Data Missing",VLOOKUP(AA26,'G-3 Multipliers'!$L$3:$N$6,2,FALSE))) ->  | AC26: =IF(AA26="","",IF(VLOOKUP(AA26,'G-3 Multipliers'!$L$3:$N$6,3,FALSE)=0,"Spatial Data Missing",VLOOKUP(AA26,'G-3 Multipliers'!$L$3:$N$6,3,FALSE))) ->  | AE26: =IFERROR(VLOOKUP(AD26,'G-4 Temporal multipliers'!$A$4:$C$36,3,FALSE),"") ->  | AF26: =IF(P26="","",VLOOKUP(P26,'G-3 Multipliers'!$A$2:$E$142,4,FALSE)) ->  | AG26: =IF(P26="","",VLOOKUP(P26,'G-3 Multipliers'!$A$2:$E$142,5,FALSE)) -> 
B27: ='A-1 Site Habitat Baseline'!AN26 ->  | C27: =IF(B27="","",IF(ISNA(VLOOKUP($B27,'A-1 Site Habitat Baseline'!$B$1:$O$258,3,FALSE)),"",(VLOOKUP($B27,'A-1 Site Habitat Baseline'!$B$1:$O$258,3,FALSE)))) ->  | D27: =IF(B27="","",IF(ISNA(VLOOKUP($B27,'A-1 Site Habitat Baseline'!$B$1:$O$258,4,FALSE)),"",(VLOOKUP($B27,'A-1 Site Habitat Baseline'!$B$1:$O$258,4,FALSE)))) ->  | E27: =IF(B27="","",IF(ISNA(VLOOKUP($B27,'A-1 Site Habitat Baseline'!$B$1:$O$258,5,FALSE)),"",(VLOOKUP($B27,'A-1 Site Habitat Baseline'!$B$1:$O$258,5,FALSE)))) ->  | F27: =IF(B27="","",IF(ISNA(VLOOKUP($B27,'A-1 Site Habitat Baseline'!$B$1:$O$258,6,FALSE)),"",(VLOOKUP($B27,'A-1 Site Habitat Baseline'!$B$1:$O$258,6,FALSE)))) ->  | G27: =IF(B27="","",IF(ISNA(VLOOKUP($B27,'A-1 Site Habitat Baseline'!$B$1:$O$258,7,FALSE)),"",(VLOOKUP($B27,'A-1 Site Habitat Baseline'!$B$1:$O$258,7,FALSE)))) ->  | H27: =IF(B27="","",IF(ISNA(VLOOKUP($B27,'A-1 Site Habitat Baseline'!$B$1:$O$258,8,FALSE)),"",(VLOOKUP($B27,'A-1 Site Habitat Baseline'!$B$1:$O$258,8,FALSE)))) ->  | I27: =IF(B27="","",IF(ISNA(VLOOKUP($B27,'A-1 Site Habitat Baseline'!$B$1:$O$258,9,FALSE)),"",(VLOOKUP($B27,'A-1 Site Habitat Baseline'!$B$1:$O$258,9,FALSE)))) ->  | J27: =IF(B27="","",IF(ISNA(VLOOKUP($B27,'A-1 Site Habitat Baseline'!$B$1:$O$258,10,FALSE)),"",(VLOOKUP($B27,'A-1 Site Habitat Baseline'!$B$1:$O$258,10,FALSE)))) ->  | K27: =IF(B27="","",IF(ISNA(VLOOKUP($B27,'A-1 Site Habitat Baseline'!$B$1:$O$258,11,FALSE)),"",(VLOOKUP($B27,'A-1 Site Habitat Baseline'!$B$1:$O$258,11,FALSE)))) ->  | L27: =IF(B27="","",IF(ISNA(VLOOKUP($B27,'A-1 Site Habitat Baseline'!$B$1:$O$258,13,FALSE)),"",(VLOOKUP($B27,'A-1 Site Habitat Baseline'!$B$1:$O$258,13,FALSE)))) ->  | M27: =IF(B27="","",IF(ISNA(VLOOKUP($B27,'A-1 Site Habitat Baseline'!$B$1:$O$258,14,FALSE)),"",(VLOOKUP($B27,'A-1 Site Habitat Baseline'!$B$1:$O$258,14,FALSE)))) ->  | N27: =IF(B27="","",IF(ISNA(VLOOKUP($B27,'A-1 Site Habitat Baseline'!$B$1:$Z$258,16,FALSE)),"",(VLOOKUP($B27,'A-1 Site Habitat Baseline'!$B$1:$Z$258,16,FALSE)))) ->  | O27: =IF(B27="","",IF(ISNA(VLOOKUP($B27,'A-1 Site Habitat Baseline'!$B$1:$Z$258,15,FALSE)),"",(VLOOKUP($B27,'A-1 Site Habitat Baseline'!$B$1:$Z$258,15,FALSE)))) ->  | Q27: =IF(B27="","",IF(AND(U27<F27,P27='G-1 All Habitats'!$A$65),E27&" - "&T27,IF(U27<F27,"Error Trading Down",E27&" - "&T27))) ->  | R27: =IF(C27="","",IF(AND(LEFT(C27,55)<>LEFT(P27,55),Q27= "High - High"),"Error - Not like for like",IF(AND(F27=U27,H27>W27),"Error - Can not reduce condition",IF(AND(F27=U27,H27=W27),"Error - No enhancement",IF(AND(U27<F27,P27='G-1 All Habitats'!$A$65),G27&" - "&V27,IF(U27<F27,"Error Trading Down",IF(AND(C27<>P27,F27<U27),"Lower Distinctiveness Habitat"&" - "&V27,G27&" - "&V27))))))) ->  | T27: =IF(P27="","",VLOOKUP(P27,'G-1 All Habitats'!$A$2:$L$135,10,FALSE)) ->  | U27: =IFERROR(VLOOKUP(T27,'G-1 All Habitats'!$S$3:$T$7,2,FALSE),"") ->  | W27: =IFERROR(INDEX('G-8 Condition Look up'!$A$3:$H$136,MATCH(P27,'G-8 Condition Look up'!$A$3:$A$136,0),MATCH(V27,'G-8 Condition Look up'!$A$3:$H$3,0)),"") ->  | Y27: =IF($X27="","",IF(VLOOKUP($X27,'G-3 Multipliers'!$H$3:$J$7,2,FALSE)=0,"Spatial Data Missing",VLOOKUP($X27,'G-3 Multipliers'!$H$3:$J$7,2,FALSE))) ->  | Z27: =IF($X27="","",IF(VLOOKUP($X27,'G-3 Multipliers'!$H$3:$J$7,3,FALSE)=0,"Spatial Data Missing",VLOOKUP($X27,'G-3 Multipliers'!$H$3:$J$7,3,FALSE))) ->  | AB27: =IF(AA27="","",IF(VLOOKUP(AA27,'G-3 Multipliers'!$L$3:$N$6,2,FALSE)=0,"Spatial Data Missing",VLOOKUP(AA27,'G-3 Multipliers'!$L$3:$N$6,2,FALSE))) ->  | AC27: =IF(AA27="","",IF(VLOOKUP(AA27,'G-3 Multipliers'!$L$3:$N$6,3,FALSE)=0,"Spatial Data Missing",VLOOKUP(AA27,'G-3 Multipliers'!$L$3:$N$6,3,FALSE))) ->  | AE27: =IFERROR(VLOOKUP(AD27,'G-4 Temporal multipliers'!$A$4:$C$36,3,FALSE),"") ->  | AF27: =IF(P27="","",VLOOKUP(P27,'G-3 Multipliers'!$A$2:$E$142,4,FALSE)) ->  | AG27: =IF(P27="","",VLOOKUP(P27,'G-3 Multipliers'!$A$2:$E$142,5,FALSE)) -> 
B28: ='A-1 Site Habitat Baseline'!AN27 ->  | C28: =IF(B28="","",IF(ISNA(VLOOKUP($B28,'A-1 Site Habitat Baseline'!$B$1:$O$258,3,FALSE)),"",(VLOOKUP($B28,'A-1 Site Habitat Baseline'!$B$1:$O$258,3,FALSE)))) ->  | D28: =IF(B28="","",IF(ISNA(VLOOKUP($B28,'A-1 Site Habitat Baseline'!$B$1:$O$258,4,FALSE)),"",(VLOOKUP($B28,'A-1 Site Habitat Baseline'!$B$1:$O$258,4,FALSE)))) ->  | E28: =IF(B28="","",IF(ISNA(VLOOKUP($B28,'A-1 Site Habitat Baseline'!$B$1:$O$258,5,FALSE)),"",(VLOOKUP($B28,'A-1 Site Habitat Baseline'!$B$1:$O$258,5,FALSE)))) ->  | F28: =IF(B28="","",IF(ISNA(VLOOKUP($B28,'A-1 Site Habitat Baseline'!$B$1:$O$258,6,FALSE)),"",(VLOOKUP($B28,'A-1 Site Habitat Baseline'!$B$1:$O$258,6,FALSE)))) ->  | G28: =IF(B28="","",IF(ISNA(VLOOKUP($B28,'A-1 Site Habitat Baseline'!$B$1:$O$258,7,FALSE)),"",(VLOOKUP($B28,'A-1 Site Habitat Baseline'!$B$1:$O$258,7,FALSE)))) ->  | H28: =IF(B28="","",IF(ISNA(VLOOKUP($B28,'A-1 Site Habitat Baseline'!$B$1:$O$258,8,FALSE)),"",(VLOOKUP($B28,'A-1 Site Habitat Baseline'!$B$1:$O$258,8,FALSE)))) ->  | I28: =IF(B28="","",IF(ISNA(VLOOKUP($B28,'A-1 Site Habitat Baseline'!$B$1:$O$258,9,FALSE)),"",(VLOOKUP($B28,'A-1 Site Habitat Baseline'!$B$1:$O$258,9,FALSE)))) ->  | J28: =IF(B28="","",IF(ISNA(VLOOKUP($B28,'A-1 Site Habitat Baseline'!$B$1:$O$258,10,FALSE)),"",(VLOOKUP($B28,'A-1 Site Habitat Baseline'!$B$1:$O$258,10,FALSE)))) ->  | K28: =IF(B28="","",IF(ISNA(VLOOKUP($B28,'A-1 Site Habitat Baseline'!$B$1:$O$258,11,FALSE)),"",(VLOOKUP($B28,'A-1 Site Habitat Baseline'!$B$1:$O$258,11,FALSE)))) ->  | L28: =IF(B28="","",IF(ISNA(VLOOKUP($B28,'A-1 Site Habitat Baseline'!$B$1:$O$258,13,FALSE)),"",(VLOOKUP($B28,'A-1 Site Habitat Baseline'!$B$1:$O$258,13,FALSE)))) ->  | M28: =IF(B28="","",IF(ISNA(VLOOKUP($B28,'A-1 Site Habitat Baseline'!$B$1:$O$258,14,FALSE)),"",(VLOOKUP($B28,'A-1 Site Habitat Baseline'!$B$1:$O$258,14,FALSE)))) ->  | N28: =IF(B28="","",IF(ISNA(VLOOKUP($B28,'A-1 Site Habitat Baseline'!$B$1:$Z$258,16,FALSE)),"",(VLOOKUP($B28,'A-1 Site Habitat Baseline'!$B$1:$Z$258,16,FALSE)))) ->  | O28: =IF(B28="","",IF(ISNA(VLOOKUP($B28,'A-1 Site Habitat Baseline'!$B$1:$Z$258,15,FALSE)),"",(VLOOKUP($B28,'A-1 Site Habitat Baseline'!$B$1:$Z$258,15,FALSE)))) ->  | Q28: =IF(B28="","",IF(AND(U28<F28,P28='G-1 All Habitats'!$A$65),E28&" - "&T28,IF(U28<F28,"Error Trading Down",E28&" - "&T28))) ->  | R28: =IF(C28="","",IF(AND(LEFT(C28,55)<>LEFT(P28,55),Q28= "High - High"),"Error - Not like for like",IF(AND(F28=U28,H28>W28),"Error - Can not reduce condition",IF(AND(F28=U28,H28=W28),"Error - No enhancement",IF(AND(U28<F28,P28='G-1 All Habitats'!$A$65),G28&" - "&V28,IF(U28<F28,"Error Trading Down",IF(AND(C28<>P28,F28<U28),"Lower Distinctiveness Habitat"&" - "&V28,G28&" - "&V28))))))) ->  | T28: =IF(P28="","",VLOOKUP(P28,'G-1 All Habitats'!$A$2:$L$135,10,FALSE)) ->  | U28: =IFERROR(VLOOKUP(T28,'G-1 All Habitats'!$S$3:$T$7,2,FALSE),"") ->  | W28: =IFERROR(INDEX('G-8 Condition Look up'!$A$3:$H$136,MATCH(P28,'G-8 Condition Look up'!$A$3:$A$136,0),MATCH(V28,'G-8 Condition Look up'!$A$3:$H$3,0)),"") ->  | Y28: =IF($X28="","",IF(VLOOKUP($X28,'G-3 Multipliers'!$H$3:$J$7,2,FALSE)=0,"Spatial Data Missing",VLOOKUP($X28,'G-3 Multipliers'!$H$3:$J$7,2,FALSE))) ->  | Z28: =IF($X28="","",IF(VLOOKUP($X28,'G-3 Multipliers'!$H$3:$J$7,3,FALSE)=0,"Spatial Data Missing",VLOOKUP($X28,'G-3 Multipliers'!$H$3:$J$7,3,FALSE))) ->  | AB28: =IF(AA28="","",IF(VLOOKUP(AA28,'G-3 Multipliers'!$L$3:$N$6,2,FALSE)=0,"Spatial Data Missing",VLOOKUP(AA28,'G-3 Multipliers'!$L$3:$N$6,2,FALSE))) ->  | AC28: =IF(AA28="","",IF(VLOOKUP(AA28,'G-3 Multipliers'!$L$3:$N$6,3,FALSE)=0,"Spatial Data Missing",VLOOKUP(AA28,'G-3 Multipliers'!$L$3:$N$6,3,FALSE))) ->  | AE28: =IFERROR(VLOOKUP(AD28,'G-4 Temporal multipliers'!$A$4:$C$36,3,FALSE),"") ->  | AF28: =IF(P28="","",VLOOKUP(P28,'G-3 Multipliers'!$A$2:$E$142,4,FALSE)) ->  | AG28: =IF(P28="","",VLOOKUP(P28,'G-3 Multipliers'!$A$2:$E$142,5,FALSE)) -> 
B29: ='A-1 Site Habitat Baseline'!AN28 ->  | C29: =IF(B29="","",IF(ISNA(VLOOKUP($B29,'A-1 Site Habitat Baseline'!$B$1:$O$258,3,FALSE)),"",(VLOOKUP($B29,'A-1 Site Habitat Baseline'!$B$1:$O$258,3,FALSE)))) ->  | D29: =IF(B29="","",IF(ISNA(VLOOKUP($B29,'A-1 Site Habitat Baseline'!$B$1:$O$258,4,FALSE)),"",(VLOOKUP($B29,'A-1 Site Habitat Baseline'!$B$1:$O$258,4,FALSE)))) ->  | E29: =IF(B29="","",IF(ISNA(VLOOKUP($B29,'A-1 Site Habitat Baseline'!$B$1:$O$258,5,FALSE)),"",(VLOOKUP($B29,'A-1 Site Habitat Baseline'!$B$1:$O$258,5,FALSE)))) ->  | F29: =IF(B29="","",IF(ISNA(VLOOKUP($B29,'A-1 Site Habitat Baseline'!$B$1:$O$258,6,FALSE)),"",(VLOOKUP($B29,'A-1 Site Habitat Baseline'!$B$1:$O$258,6,FALSE)))) ->  | G29: =IF(B29="","",IF(ISNA(VLOOKUP($B29,'A-1 Site Habitat Baseline'!$B$1:$O$258,7,FALSE)),"",(VLOOKUP($B29,'A-1 Site Habitat Baseline'!$B$1:$O$258,7,FALSE)))) ->  | H29: =IF(B29="","",IF(ISNA(VLOOKUP($B29,'A-1 Site Habitat Baseline'!$B$1:$O$258,8,FALSE)),"",(VLOOKUP($B29,'A-1 Site Habitat Baseline'!$B$1:$O$258,8,FALSE)))) ->  | I29: =IF(B29="","",IF(ISNA(VLOOKUP($B29,'A-1 Site Habitat Baseline'!$B$1:$O$258,9,FALSE)),"",(VLOOKUP($B29,'A-1 Site Habitat Baseline'!$B$1:$O$258,9,FALSE)))) ->  | J29: =IF(B29="","",IF(ISNA(VLOOKUP($B29,'A-1 Site Habitat Baseline'!$B$1:$O$258,10,FALSE)),"",(VLOOKUP($B29,'A-1 Site Habitat Baseline'!$B$1:$O$258,10,FALSE)))) ->  | K29: =IF(B29="","",IF(ISNA(VLOOKUP($B29,'A-1 Site Habitat Baseline'!$B$1:$O$258,11,FALSE)),"",(VLOOKUP($B29,'A-1 Site Habitat Baseline'!$B$1:$O$258,11,FALSE)))) ->  | L29: =IF(B29="","",IF(ISNA(VLOOKUP($B29,'A-1 Site Habitat Baseline'!$B$1:$O$258,13,FALSE)),"",(VLOOKUP($B29,'A-1 Site Habitat Baseline'!$B$1:$O$258,13,FALSE)))) ->  | M29: =IF(B29="","",IF(ISNA(VLOOKUP($B29,'A-1 Site Habitat Baseline'!$B$1:$O$258,14,FALSE)),"",(VLOOKUP($B29,'A-1 Site Habitat Baseline'!$B$1:$O$258,14,FALSE)))) ->  | N29: =IF(B29="","",IF(ISNA(VLOOKUP($B29,'A-1 Site Habitat Baseline'!$B$1:$Z$258,16,FALSE)),"",(VLOOKUP($B29,'A-1 Site Habitat Baseline'!$B$1:$Z$258,16,FALSE)))) ->  | O29: =IF(B29="","",IF(ISNA(VLOOKUP($B29,'A-1 Site Habitat Baseline'!$B$1:$Z$258,15,FALSE)),"",(VLOOKUP($B29,'A-1 Site Habitat Baseline'!$B$1:$Z$258,15,FALSE)))) ->  | Q29: =IF(B29="","",IF(AND(U29<F29,P29='G-1 All Habitats'!$A$65),E29&" - "&T29,IF(U29<F29,"Error Trading Down",E29&" - "&T29))) ->  | R29: =IF(C29="","",IF(AND(LEFT(C29,55)<>LEFT(P29,55),Q29= "High - High"),"Error - Not like for like",IF(AND(F29=U29,H29>W29),"Error - Can not reduce condition",IF(AND(F29=U29,H29=W29),"Error - No enhancement",IF(AND(U29<F29,P29='G-1 All Habitats'!$A$65),G29&" - "&V29,IF(U29<F29,"Error Trading Down",IF(AND(C29<>P29,F29<U29),"Lower Distinctiveness Habitat"&" - "&V29,G29&" - "&V29))))))) ->  | T29: =IF(P29="","",VLOOKUP(P29,'G-1 All Habitats'!$A$2:$L$135,10,FALSE)) ->  | U29: =IFERROR(VLOOKUP(T29,'G-1 All Habitats'!$S$3:$T$7,2,FALSE),"") ->  | W29: =IFERROR(INDEX('G-8 Condition Look up'!$A$3:$H$136,MATCH(P29,'G-8 Condition Look up'!$A$3:$A$136,0),MATCH(V29,'G-8 Condition Look up'!$A$3:$H$3,0)),"") ->  | Y29: =IF($X29="","",IF(VLOOKUP($X29,'G-3 Multipliers'!$H$3:$J$7,2,FALSE)=0,"Spatial Data Missing",VLOOKUP($X29,'G-3 Multipliers'!$H$3:$J$7,2,FALSE))) ->  | Z29: =IF($X29="","",IF(VLOOKUP($X29,'G-3 Multipliers'!$H$3:$J$7,3,FALSE)=0,"Spatial Data Missing",VLOOKUP($X29,'G-3 Multipliers'!$H$3:$J$7,3,FALSE))) ->  | AB29: =IF(AA29="","",IF(VLOOKUP(AA29,'G-3 Multipliers'!$L$3:$N$6,2,FALSE)=0,"Spatial Data Missing",VLOOKUP(AA29,'G-3 Multipliers'!$L$3:$N$6,2,FALSE))) ->  | AC29: =IF(AA29="","",IF(VLOOKUP(AA29,'G-3 Multipliers'!$L$3:$N$6,3,FALSE)=0,"Spatial Data Missing",VLOOKUP(AA29,'G-3 Multipliers'!$L$3:$N$6,3,FALSE))) ->  | AE29: =IFERROR(VLOOKUP(AD29,'G-4 Temporal multipliers'!$A$4:$C$36,3,FALSE),"") ->  | AF29: =IF(P29="","",VLOOKUP(P29,'G-3 Multipliers'!$A$2:$E$142,4,FALSE)) ->  | AG29: =IF(P29="","",VLOOKUP(P29,'G-3 Multipliers'!$A$2:$E$142,5,FALSE)) -> 
B30: ='A-1 Site Habitat Baseline'!AN29 ->  | C30: =IF(B30="","",IF(ISNA(VLOOKUP($B30,'A-1 Site Habitat Baseline'!$B$1:$O$258,3,FALSE)),"",(VLOOKUP($B30,'A-1 Site Habitat Baseline'!$B$1:$O$258,3,FALSE)))) ->  | D30: =IF(B30="","",IF(ISNA(VLOOKUP($B30,'A-1 Site Habitat Baseline'!$B$1:$O$258,4,FALSE)),"",(VLOOKUP($B30,'A-1 Site Habitat Baseline'!$B$1:$O$258,4,FALSE)))) ->  | E30: =IF(B30="","",IF(ISNA(VLOOKUP($B30,'A-1 Site Habitat Baseline'!$B$1:$O$258,5,FALSE)),"",(VLOOKUP($B30,'A-1 Site Habitat Baseline'!$B$1:$O$258,5,FALSE)))) ->  | F30: =IF(B30="","",IF(ISNA(VLOOKUP($B30,'A-1 Site Habitat Baseline'!$B$1:$O$258,6,FALSE)),"",(VLOOKUP($B30,'A-1 Site Habitat Baseline'!$B$1:$O$258,6,FALSE)))) ->  | G30: =IF(B30="","",IF(ISNA(VLOOKUP($B30,'A-1 Site Habitat Baseline'!$B$1:$O$258,7,FALSE)),"",(VLOOKUP($B30,'A-1 Site Habitat Baseline'!$B$1:$O$258,7,FALSE)))) ->  | H30: =IF(B30="","",IF(ISNA(VLOOKUP($B30,'A-1 Site Habitat Baseline'!$B$1:$O$258,8,FALSE)),"",(VLOOKUP($B30,'A-1 Site Habitat Baseline'!$B$1:$O$258,8,FALSE)))) ->  | I30: =IF(B30="","",IF(ISNA(VLOOKUP($B30,'A-1 Site Habitat Baseline'!$B$1:$O$258,9,FALSE)),"",(VLOOKUP($B30,'A-1 Site Habitat Baseline'!$B$1:$O$258,9,FALSE)))) ->  | J30: =IF(B30="","",IF(ISNA(VLOOKUP($B30,'A-1 Site Habitat Baseline'!$B$1:$O$258,10,FALSE)),"",(VLOOKUP($B30,'A-1 Site Habitat Baseline'!$B$1:$O$258,10,FALSE)))) ->  | K30: =IF(B30="","",IF(ISNA(VLOOKUP($B30,'A-1 Site Habitat Baseline'!$B$1:$O$258,11,FALSE)),"",(VLOOKUP($B30,'A-1 Site Habitat Baseline'!$B$1:$O$258,11,FALSE)))) ->  | L30: =IF(B30="","",IF(ISNA(VLOOKUP($B30,'A-1 Site Habitat Baseline'!$B$1:$O$258,13,FALSE)),"",(VLOOKUP($B30,'A-1 Site Habitat Baseline'!$B$1:$O$258,13,FALSE)))) ->  | M30: =IF(B30="","",IF(ISNA(VLOOKUP($B30,'A-1 Site Habitat Baseline'!$B$1:$O$258,14,FALSE)),"",(VLOOKUP($B30,'A-1 Site Habitat Baseline'!$B$1:$O$258,14,FALSE)))) ->  | N30: =IF(B30="","",IF(ISNA(VLOOKUP($B30,'A-1 Site Habitat Baseline'!$B$1:$Z$258,16,FALSE)),"",(VLOOKUP($B30,'A-1 Site Habitat Baseline'!$B$1:$Z$258,16,FALSE)))) ->  | O30: =IF(B30="","",IF(ISNA(VLOOKUP($B30,'A-1 Site Habitat Baseline'!$B$1:$Z$258,15,FALSE)),"",(VLOOKUP($B30,'A-1 Site Habitat Baseline'!$B$1:$Z$258,15,FALSE)))) ->  | Q30: =IF(B30="","",IF(AND(U30<F30,P30='G-1 All Habitats'!$A$65),E30&" - "&T30,IF(U30<F30,"Error Trading Down",E30&" - "&T30))) ->  | R30: =IF(C30="","",IF(AND(LEFT(C30,55)<>LEFT(P30,55),Q30= "High - High"),"Error - Not like for like",IF(AND(F30=U30,H30>W30),"Error - Can not reduce condition",IF(AND(F30=U30,H30=W30),"Error - No enhancement",IF(AND(U30<F30,P30='G-1 All Habitats'!$A$65),G30&" - "&V30,IF(U30<F30,"Error Trading Down",IF(AND(C30<>P30,F30<U30),"Lower Distinctiveness Habitat"&" - "&V30,G30&" - "&V30))))))) ->  | T30: =IF(P30="","",VLOOKUP(P30,'G-1 All Habitats'!$A$2:$L$135,10,FALSE)) ->  | U30: =IFERROR(VLOOKUP(T30,'G-1 All Habitats'!$S$3:$T$7,2,FALSE),"") ->  | W30: =IFERROR(INDEX('G-8 Condition Look up'!$A$3:$H$136,MATCH(P30,'G-8 Condition Look up'!$A$3:$A$136,0),MATCH(V30,'G-8 Condition Look up'!$A$3:$H$3,0)),"") ->  | Y30: =IF($X30="","",IF(VLOOKUP($X30,'G-3 Multipliers'!$H$3:$J$7,2,FALSE)=0,"Spatial Data Missing",VLOOKUP($X30,'G-3 Multipliers'!$H$3:$J$7,2,FALSE))) ->  | Z30: =IF($X30="","",IF(VLOOKUP($X30,'G-3 Multipliers'!$H$3:$J$7,3,FALSE)=0,"Spatial Data Missing",VLOOKUP($X30,'G-3 Multipliers'!$H$3:$J$7,3,FALSE))) ->  | AB30: =IF(AA30="","",IF(VLOOKUP(AA30,'G-3 Multipliers'!$L$3:$N$6,2,FALSE)=0,"Spatial Data Missing",VLOOKUP(AA30,'G-3 Multipliers'!$L$3:$N$6,2,FALSE))) ->  | AC30: =IF(AA30="","",IF(VLOOKUP(AA30,'G-3 Multipliers'!$L$3:$N$6,3,FALSE)=0,"Spatial Data Missing",VLOOKUP(AA30,'G-3 Multipliers'!$L$3:$N$6,3,FALSE))) ->  | AE30: =IFERROR(VLOOKUP(AD30,'G-4 Temporal multipliers'!$A$4:$C$36,3,FALSE),"") ->  | AF30: =IF(P30="","",VLOOKUP(P30,'G-3 Multipliers'!$A$2:$E$142,4,FALSE)) ->  | AG30: =IF(P30="","",VLOOKUP(P30,'G-3 Multipliers'!$A$2:$E$142,5,FALSE)) -> 
B31: ='A-1 Site Habitat Baseline'!AN30 ->  | C31: =IF(B31="","",IF(ISNA(VLOOKUP($B31,'A-1 Site Habitat Baseline'!$B$1:$O$258,3,FALSE)),"",(VLOOKUP($B31,'A-1 Site Habitat Baseline'!$B$1:$O$258,3,FALSE)))) ->  | D31: =IF(B31="","",IF(ISNA(VLOOKUP($B31,'A-1 Site Habitat Baseline'!$B$1:$O$258,4,FALSE)),"",(VLOOKUP($B31,'A-1 Site Habitat Baseline'!$B$1:$O$258,4,FALSE)))) ->  | E31: =IF(B31="","",IF(ISNA(VLOOKUP($B31,'A-1 Site Habitat Baseline'!$B$1:$O$258,5,FALSE)),"",(VLOOKUP($B31,'A-1 Site Habitat Baseline'!$B$1:$O$258,5,FALSE)))) ->  | F31: =IF(B31="","",IF(ISNA(VLOOKUP($B31,'A-1 Site Habitat Baseline'!$B$1:$O$258,6,FALSE)),"",(VLOOKUP($B31,'A-1 Site Habitat Baseline'!$B$1:$O$258,6,FALSE)))) ->  | G31: =IF(B31="","",IF(ISNA(VLOOKUP($B31,'A-1 Site Habitat Baseline'!$B$1:$O$258,7,FALSE)),"",(VLOOKUP($B31,'A-1 Site Habitat Baseline'!$B$1:$O$258,7,FALSE)))) ->  | H31: =IF(B31="","",IF(ISNA(VLOOKUP($B31,'A-1 Site Habitat Baseline'!$B$1:$O$258,8,FALSE)),"",(VLOOKUP($B31,'A-1 Site Habitat Baseline'!$B$1:$O$258,8,FALSE)))) ->  | I31: =IF(B31="","",IF(ISNA(VLOOKUP($B31,'A-1 Site Habitat Baseline'!$B$1:$O$258,9,FALSE)),"",(VLOOKUP($B31,'A-1 Site Habitat Baseline'!$B$1:$O$258,9,FALSE)))) ->  | J31: =IF(B31="","",IF(ISNA(VLOOKUP($B31,'A-1 Site Habitat Baseline'!$B$1:$O$258,10,FALSE)),"",(VLOOKUP($B31,'A-1 Site Habitat Baseline'!$B$1:$O$258,10,FALSE)))) ->  | K31: =IF(B31="","",IF(ISNA(VLOOKUP($B31,'A-1 Site Habitat Baseline'!$B$1:$O$258,11,FALSE)),"",(VLOOKUP($B31,'A-1 Site Habitat Baseline'!$B$1:$O$258,11,FALSE)))) ->  | L31: =IF(B31="","",IF(ISNA(VLOOKUP($B31,'A-1 Site Habitat Baseline'!$B$1:$O$258,13,FALSE)),"",(VLOOKUP($B31,'A-1 Site Habitat Baseline'!$B$1:$O$258,13,FALSE)))) ->  | M31: =IF(B31="","",IF(ISNA(VLOOKUP($B31,'A-1 Site Habitat Baseline'!$B$1:$O$258,14,FALSE)),"",(VLOOKUP($B31,'A-1 Site Habitat Baseline'!$B$1:$O$258,14,FALSE)))) ->  | N31: =IF(B31="","",IF(ISNA(VLOOKUP($B31,'A-1 Site Habitat Baseline'!$B$1:$Z$258,16,FALSE)),"",(VLOOKUP($B31,'A-1 Site Habitat Baseline'!$B$1:$Z$258,16,FALSE)))) ->  | O31: =IF(B31="","",IF(ISNA(VLOOKUP($B31,'A-1 Site Habitat Baseline'!$B$1:$Z$258,15,FALSE)),"",(VLOOKUP($B31,'A-1 Site Habitat Baseline'!$B$1:$Z$258,15,FALSE)))) ->  | Q31: =IF(B31="","",IF(AND(U31<F31,P31='G-1 All Habitats'!$A$65),E31&" - "&T31,IF(U31<F31,"Error Trading Down",E31&" - "&T31))) ->  | R31: =IF(C31="","",IF(AND(LEFT(C31,55)<>LEFT(P31,55),Q31= "High - High"),"Error - Not like for like",IF(AND(F31=U31,H31>W31),"Error - Can not reduce condition",IF(AND(F31=U31,H31=W31),"Error - No enhancement",IF(AND(U31<F31,P31='G-1 All Habitats'!$A$65),G31&" - "&V31,IF(U31<F31,"Error Trading Down",IF(AND(C31<>P31,F31<U31),"Lower Distinctiveness Habitat"&" - "&V31,G31&" - "&V31))))))) ->  | T31: =IF(P31="","",VLOOKUP(P31,'G-1 All Habitats'!$A$2:$L$135,10,FALSE)) ->  | U31: =IFERROR(VLOOKUP(T31,'G-1 All Habitats'!$S$3:$T$7,2,FALSE),"") ->  | W31: =IFERROR(INDEX('G-8 Condition Look up'!$A$3:$H$136,MATCH(P31,'G-8 Condition Look up'!$A$3:$A$136,0),MATCH(V31,'G-8 Condition Look up'!$A$3:$H$3,0)),"") ->  | Y31: =IF($X31="","",IF(VLOOKUP($X31,'G-3 Multipliers'!$H$3:$J$7,2,FALSE)=0,"Spatial Data Missing",VLOOKUP($X31,'G-3 Multipliers'!$H$3:$J$7,2,FALSE))) ->  | Z31: =IF($X31="","",IF(VLOOKUP($X31,'G-3 Multipliers'!$H$3:$J$7,3,FALSE)=0,"Spatial Data Missing",VLOOKUP($X31,'G-3 Multipliers'!$H$3:$J$7,3,FALSE))) ->  | AB31: =IF(AA31="","",IF(VLOOKUP(AA31,'G-3 Multipliers'!$L$3:$N$6,2,FALSE)=0,"Spatial Data Missing",VLOOKUP(AA31,'G-3 Multipliers'!$L$3:$N$6,2,FALSE))) ->  | AC31: =IF(AA31="","",IF(VLOOKUP(AA31,'G-3 Multipliers'!$L$3:$N$6,3,FALSE)=0,"Spatial Data Missing",VLOOKUP(AA31,'G-3 Multipliers'!$L$3:$N$6,3,FALSE))) ->  | AE31: =IFERROR(VLOOKUP(AD31,'G-4 Temporal multipliers'!$A$4:$C$36,3,FALSE),"") ->  | AF31: =IF(P31="","",VLOOKUP(P31,'G-3 Multipliers'!$A$2:$E$142,4,FALSE)) ->  | AG31: =IF(P31="","",VLOOKUP(P31,'G-3 Multipliers'!$A$2:$E$142,5,FALSE)) -> 
B32: ='A-1 Site Habitat Baseline'!AN31 ->  | C32: =IF(B32="","",IF(ISNA(VLOOKUP($B32,'A-1 Site Habitat Baseline'!$B$1:$O$258,3,FALSE)),"",(VLOOKUP($B32,'A-1 Site Habitat Baseline'!$B$1:$O$258,3,FALSE)))) ->  | D32: =IF(B32="","",IF(ISNA(VLOOKUP($B32,'A-1 Site Habitat Baseline'!$B$1:$O$258,4,FALSE)),"",(VLOOKUP($B32,'A-1 Site Habitat Baseline'!$B$1:$O$258,4,FALSE)))) ->  | E32: =IF(B32="","",IF(ISNA(VLOOKUP($B32,'A-1 Site Habitat Baseline'!$B$1:$O$258,5,FALSE)),"",(VLOOKUP($B32,'A-1 Site Habitat Baseline'!$B$1:$O$258,5,FALSE)))) ->  | F32: =IF(B32="","",IF(ISNA(VLOOKUP($B32,'A-1 Site Habitat Baseline'!$B$1:$O$258,6,FALSE)),"",(VLOOKUP($B32,'A-1 Site Habitat Baseline'!$B$1:$O$258,6,FALSE)))) ->  | G32: =IF(B32="","",IF(ISNA(VLOOKUP($B32,'A-1 Site Habitat Baseline'!$B$1:$O$258,7,FALSE)),"",(VLOOKUP($B32,'A-1 Site Habitat Baseline'!$B$1:$O$258,7,FALSE)))) ->  | H32: =IF(B32="","",IF(ISNA(VLOOKUP($B32,'A-1 Site Habitat Baseline'!$B$1:$O$258,8,FALSE)),"",(VLOOKUP($B32,'A-1 Site Habitat Baseline'!$B$1:$O$258,8,FALSE)))) ->  | I32: =IF(B32="","",IF(ISNA(VLOOKUP($B32,'A-1 Site Habitat Baseline'!$B$1:$O$258,9,FALSE)),"",(VLOOKUP($B32,'A-1 Site Habitat Baseline'!$B$1:$O$258,9,FALSE)))) ->  | J32: =IF(B32="","",IF(ISNA(VLOOKUP($B32,'A-1 Site Habitat Baseline'!$B$1:$O$258,10,FALSE)),"",(VLOOKUP($B32,'A-1 Site Habitat Baseline'!$B$1:$O$258,10,FALSE)))) ->  | K32: =IF(B32="","",IF(ISNA(VLOOKUP($B32,'A-1 Site Habitat Baseline'!$B$1:$O$258,11,FALSE)),"",(VLOOKUP($B32,'A-1 Site Habitat Baseline'!$B$1:$O$258,11,FALSE)))) ->  | L32: =IF(B32="","",IF(ISNA(VLOOKUP($B32,'A-1 Site Habitat Baseline'!$B$1:$O$258,13,FALSE)),"",(VLOOKUP($B32,'A-1 Site Habitat Baseline'!$B$1:$O$258,13,FALSE)))) ->  | M32: =IF(B32="","",IF(ISNA(VLOOKUP($B32,'A-1 Site Habitat Baseline'!$B$1:$O$258,14,FALSE)),"",(VLOOKUP($B32,'A-1 Site Habitat Baseline'!$B$1:$O$258,14,FALSE)))) ->  | N32: =IF(B32="","",IF(ISNA(VLOOKUP($B32,'A-1 Site Habitat Baseline'!$B$1:$Z$258,16,FALSE)),"",(VLOOKUP($B32,'A-1 Site Habitat Baseline'!$B$1:$Z$258,16,FALSE)))) ->  | O32: =IF(B32="","",IF(ISNA(VLOOKUP($B32,'A-1 Site Habitat Baseline'!$B$1:$Z$258,15,FALSE)),"",(VLOOKUP($B32,'A-1 Site Habitat Baseline'!$B$1:$Z$258,15,FALSE)))) ->  | Q32: =IF(B32="","",IF(AND(U32<F32,P32='G-1 All Habitats'!$A$65),E32&" - "&T32,IF(U32<F32,"Error Trading Down",E32&" - "&T32))) ->  | R32: =IF(C32="","",IF(AND(LEFT(C32,55)<>LEFT(P32,55),Q32= "High - High"),"Error - Not like for like",IF(AND(F32=U32,H32>W32),"Error - Can not reduce condition",IF(AND(F32=U32,H32=W32),"Error - No enhancement",IF(AND(U32<F32,P32='G-1 All Habitats'!$A$65),G32&" - "&V32,IF(U32<F32,"Error Trading Down",IF(AND(C32<>P32,F32<U32),"Lower Distinctiveness Habitat"&" - "&V32,G32&" - "&V32))))))) ->  | T32: =IF(P32="","",VLOOKUP(P32,'G-1 All Habitats'!$A$2:$L$135,10,FALSE)) ->  | U32: =IFERROR(VLOOKUP(T32,'G-1 All Habitats'!$S$3:$T$7,2,FALSE),"") ->  | W32: =IFERROR(INDEX('G-8 Condition Look up'!$A$3:$H$136,MATCH(P32,'G-8 Condition Look up'!$A$3:$A$136,0),MATCH(V32,'G-8 Condition Look up'!$A$3:$H$3,0)),"") ->  | Y32: =IF($X32="","",IF(VLOOKUP($X32,'G-3 Multipliers'!$H$3:$J$7,2,FALSE)=0,"Spatial Data Missing",VLOOKUP($X32,'G-3 Multipliers'!$H$3:$J$7,2,FALSE))) ->  | Z32: =IF($X32="","",IF(VLOOKUP($X32,'G-3 Multipliers'!$H$3:$J$7,3,FALSE)=0,"Spatial Data Missing",VLOOKUP($X32,'G-3 Multipliers'!$H$3:$J$7,3,FALSE))) ->  | AB32: =IF(AA32="","",IF(VLOOKUP(AA32,'G-3 Multipliers'!$L$3:$N$6,2,FALSE)=0,"Spatial Data Missing",VLOOKUP(AA32,'G-3 Multipliers'!$L$3:$N$6,2,FALSE))) ->  | AC32: =IF(AA32="","",IF(VLOOKUP(AA32,'G-3 Multipliers'!$L$3:$N$6,3,FALSE)=0,"Spatial Data Missing",VLOOKUP(AA32,'G-3 Multipliers'!$L$3:$N$6,3,FALSE))) ->  | AE32: =IFERROR(VLOOKUP(AD32,'G-4 Temporal multipliers'!$A$4:$C$36,3,FALSE),"") ->  | AF32: =IF(P32="","",VLOOKUP(P32,'G-3 Multipliers'!$A$2:$E$142,4,FALSE)) ->  | AG32: =IF(P32="","",VLOOKUP(P32,'G-3 Multipliers'!$A$2:$E$142,5,FALSE)) -> 
B33: ='A-1 Site Habitat Baseline'!AN32 ->  | C33: =IF(B33="","",IF(ISNA(VLOOKUP($B33,'A-1 Site Habitat Baseline'!$B$1:$O$258,3,FALSE)),"",(VLOOKUP($B33,'A-1 Site Habitat Baseline'!$B$1:$O$258,3,FALSE)))) ->  | D33: =IF(B33="","",IF(ISNA(VLOOKUP($B33,'A-1 Site Habitat Baseline'!$B$1:$O$258,4,FALSE)),"",(VLOOKUP($B33,'A-1 Site Habitat Baseline'!$B$1:$O$258,4,FALSE)))) ->  | E33: =IF(B33="","",IF(ISNA(VLOOKUP($B33,'A-1 Site Habitat Baseline'!$B$1:$O$258,5,FALSE)),"",(VLOOKUP($B33,'A-1 Site Habitat Baseline'!$B$1:$O$258,5,FALSE)))) ->  | F33: =IF(B33="","",IF(ISNA(VLOOKUP($B33,'A-1 Site Habitat Baseline'!$B$1:$O$258,6,FALSE)),"",(VLOOKUP($B33,'A-1 Site Habitat Baseline'!$B$1:$O$258,6,FALSE)))) ->  | G33: =IF(B33="","",IF(ISNA(VLOOKUP($B33,'A-1 Site Habitat Baseline'!$B$1:$O$258,7,FALSE)),"",(VLOOKUP($B33,'A-1 Site Habitat Baseline'!$B$1:$O$258,7,FALSE)))) ->  | H33: =IF(B33="","",IF(ISNA(VLOOKUP($B33,'A-1 Site Habitat Baseline'!$B$1:$O$258,8,FALSE)),"",(VLOOKUP($B33,'A-1 Site Habitat Baseline'!$B$1:$O$258,8,FALSE)))) ->  | I33: =IF(B33="","",IF(ISNA(VLOOKUP($B33,'A-1 Site Habitat Baseline'!$B$1:$O$258,9,FALSE)),"",(VLOOKUP($B33,'A-1 Site Habitat Baseline'!$B$1:$O$258,9,FALSE)))) ->  | J33: =IF(B33="","",IF(ISNA(VLOOKUP($B33,'A-1 Site Habitat Baseline'!$B$1:$O$258,10,FALSE)),"",(VLOOKUP($B33,'A-1 Site Habitat Baseline'!$B$1:$O$258,10,FALSE)))) ->  | K33: =IF(B33="","",IF(ISNA(VLOOKUP($B33,'A-1 Site Habitat Baseline'!$B$1:$O$258,11,FALSE)),"",(VLOOKUP($B33,'A-1 Site Habitat Baseline'!$B$1:$O$258,11,FALSE)))) ->  | L33: =IF(B33="","",IF(ISNA(VLOOKUP($B33,'A-1 Site Habitat Baseline'!$B$1:$O$258,13,FALSE)),"",(VLOOKUP($B33,'A-1 Site Habitat Baseline'!$B$1:$O$258,13,FALSE)))) ->  | M33: =IF(B33="","",IF(ISNA(VLOOKUP($B33,'A-1 Site Habitat Baseline'!$B$1:$O$258,14,FALSE)),"",(VLOOKUP($B33,'A-1 Site Habitat Baseline'!$B$1:$O$258,14,FALSE)))) ->  | N33: =IF(B33="","",IF(ISNA(VLOOKUP($B33,'A-1 Site Habitat Baseline'!$B$1:$Z$258,16,FALSE)),"",(VLOOKUP($B33,'A-1 Site Habitat Baseline'!$B$1:$Z$258,16,FALSE)))) ->  | O33: =IF(B33="","",IF(ISNA(VLOOKUP($B33,'A-1 Site Habitat Baseline'!$B$1:$Z$258,15,FALSE)),"",(VLOOKUP($B33,'A-1 Site Habitat Baseline'!$B$1:$Z$258,15,FALSE)))) ->  | Q33: =IF(B33="","",IF(AND(U33<F33,P33='G-1 All Habitats'!$A$65),E33&" - "&T33,IF(U33<F33,"Error Trading Down",E33&" - "&T33))) ->  | R33: =IF(C33="","",IF(AND(LEFT(C33,55)<>LEFT(P33,55),Q33= "High - High"),"Error - Not like for like",IF(AND(F33=U33,H33>W33),"Error - Can not reduce condition",IF(AND(F33=U33,H33=W33),"Error - No enhancement",IF(AND(U33<F33,P33='G-1 All Habitats'!$A$65),G33&" - "&V33,IF(U33<F33,"Error Trading Down",IF(AND(C33<>P33,F33<U33),"Lower Distinctiveness Habitat"&" - "&V33,G33&" - "&V33))))))) ->  | T33: =IF(P33="","",VLOOKUP(P33,'G-1 All Habitats'!$A$2:$L$135,10,FALSE)) ->  | U33: =IFERROR(VLOOKUP(T33,'G-1 All Habitats'!$S$3:$T$7,2,FALSE),"") ->  | W33: =IFERROR(INDEX('G-8 Condition Look up'!$A$3:$H$136,MATCH(P33,'G-8 Condition Look up'!$A$3:$A$136,0),MATCH(V33,'G-8 Condition Look up'!$A$3:$H$3,0)),"") ->  | Y33: =IF($X33="","",IF(VLOOKUP($X33,'G-3 Multipliers'!$H$3:$J$7,2,FALSE)=0,"Spatial Data Missing",VLOOKUP($X33,'G-3 Multipliers'!$H$3:$J$7,2,FALSE))) ->  | Z33: =IF($X33="","",IF(VLOOKUP($X33,'G-3 Multipliers'!$H$3:$J$7,3,FALSE)=0,"Spatial Data Missing",VLOOKUP($X33,'G-3 Multipliers'!$H$3:$J$7,3,FALSE))) ->  | AB33: =IF(AA33="","",IF(VLOOKUP(AA33,'G-3 Multipliers'!$L$3:$N$6,2,FALSE)=0,"Spatial Data Missing",VLOOKUP(AA33,'G-3 Multipliers'!$L$3:$N$6,2,FALSE))) ->  | AC33: =IF(AA33="","",IF(VLOOKUP(AA33,'G-3 Multipliers'!$L$3:$N$6,3,FALSE)=0,"Spatial Data Missing",VLOOKUP(AA33,'G-3 Multipliers'!$L$3:$N$6,3,FALSE))) ->  | AE33: =IFERROR(VLOOKUP(AD33,'G-4 Temporal multipliers'!$A$4:$C$36,3,FALSE),"") ->  | AF33: =IF(P33="","",VLOOKUP(P33,'G-3 Multipliers'!$A$2:$E$142,4,FALSE)) ->  | AG33: =IF(P33="","",VLOOKUP(P33,'G-3 Multipliers'!$A$2:$E$142,5,FALSE)) -> 
B34: ='A-1 Site Habitat Baseline'!AN33 ->  | C34: =IF(B34="","",IF(ISNA(VLOOKUP($B34,'A-1 Site Habitat Baseline'!$B$1:$O$258,3,FALSE)),"",(VLOOKUP($B34,'A-1 Site Habitat Baseline'!$B$1:$O$258,3,FALSE)))) ->  | D34: =IF(B34="","",IF(ISNA(VLOOKUP($B34,'A-1 Site Habitat Baseline'!$B$1:$O$258,4,FALSE)),"",(VLOOKUP($B34,'A-1 Site Habitat Baseline'!$B$1:$O$258,4,FALSE)))) ->  | E34: =IF(B34="","",IF(ISNA(VLOOKUP($B34,'A-1 Site Habitat Baseline'!$B$1:$O$258,5,FALSE)),"",(VLOOKUP($B34,'A-1 Site Habitat Baseline'!$B$1:$O$258,5,FALSE)))) ->  | F34: =IF(B34="","",IF(ISNA(VLOOKUP($B34,'A-1 Site Habitat Baseline'!$B$1:$O$258,6,FALSE)),"",(VLOOKUP($B34,'A-1 Site Habitat Baseline'!$B$1:$O$258,6,FALSE)))) ->  | G34: =IF(B34="","",IF(ISNA(VLOOKUP($B34,'A-1 Site Habitat Baseline'!$B$1:$O$258,7,FALSE)),"",(VLOOKUP($B34,'A-1 Site Habitat Baseline'!$B$1:$O$258,7,FALSE)))) ->  | H34: =IF(B34="","",IF(ISNA(VLOOKUP($B34,'A-1 Site Habitat Baseline'!$B$1:$O$258,8,FALSE)),"",(VLOOKUP($B34,'A-1 Site Habitat Baseline'!$B$1:$O$258,8,FALSE)))) ->  | I34: =IF(B34="","",IF(ISNA(VLOOKUP($B34,'A-1 Site Habitat Baseline'!$B$1:$O$258,9,FALSE)),"",(VLOOKUP($B34,'A-1 Site Habitat Baseline'!$B$1:$O$258,9,FALSE)))) ->  | J34: =IF(B34="","",IF(ISNA(VLOOKUP($B34,'A-1 Site Habitat Baseline'!$B$1:$O$258,10,FALSE)),"",(VLOOKUP($B34,'A-1 Site Habitat Baseline'!$B$1:$O$258,10,FALSE)))) ->  | K34: =IF(B34="","",IF(ISNA(VLOOKUP($B34,'A-1 Site Habitat Baseline'!$B$1:$O$258,11,FALSE)),"",(VLOOKUP($B34,'A-1 Site Habitat Baseline'!$B$1:$O$258,11,FALSE)))) ->  | L34: =IF(B34="","",IF(ISNA(VLOOKUP($B34,'A-1 Site Habitat Baseline'!$B$1:$O$258,13,FALSE)),"",(VLOOKUP($B34,'A-1 Site Habitat Baseline'!$B$1:$O$258,13,FALSE)))) ->  | M34: =IF(B34="","",IF(ISNA(VLOOKUP($B34,'A-1 Site Habitat Baseline'!$B$1:$O$258,14,FALSE)),"",(VLOOKUP($B34,'A-1 Site Habitat Baseline'!$B$1:$O$258,14,FALSE)))) ->  | N34: =IF(B34="","",IF(ISNA(VLOOKUP($B34,'A-1 Site Habitat Baseline'!$B$1:$Z$258,16,FALSE)),"",(VLOOKUP($B34,'A-1 Site Habitat Baseline'!$B$1:$Z$258,16,FALSE)))) ->  | O34: =IF(B34="","",IF(ISNA(VLOOKUP($B34,'A-1 Site Habitat Baseline'!$B$1:$Z$258,15,FALSE)),"",(VLOOKUP($B34,'A-1 Site Habitat Baseline'!$B$1:$Z$258,15,FALSE)))) ->  | Q34: =IF(B34="","",IF(AND(U34<F34,P34='G-1 All Habitats'!$A$65),E34&" - "&T34,IF(U34<F34,"Error Trading Down",E34&" - "&T34))) ->  | R34: =IF(C34="","",IF(AND(LEFT(C34,55)<>LEFT(P34,55),Q34= "High - High"),"Error - Not like for like",IF(AND(F34=U34,H34>W34),"Error - Can not reduce condition",IF(AND(F34=U34,H34=W34),"Error - No enhancement",IF(AND(U34<F34,P34='G-1 All Habitats'!$A$65),G34&" - "&V34,IF(U34<F34,"Error Trading Down",IF(AND(C34<>P34,F34<U34),"Lower Distinctiveness Habitat"&" - "&V34,G34&" - "&V34))))))) ->  | T34: =IF(P34="","",VLOOKUP(P34,'G-1 All Habitats'!$A$2:$L$135,10,FALSE)) ->  | U34: =IFERROR(VLOOKUP(T34,'G-1 All Habitats'!$S$3:$T$7,2,FALSE),"") ->  | W34: =IFERROR(INDEX('G-8 Condition Look up'!$A$3:$H$136,MATCH(P34,'G-8 Condition Look up'!$A$3:$A$136,0),MATCH(V34,'G-8 Condition Look up'!$A$3:$H$3,0)),"") ->  | Y34: =IF($X34="","",IF(VLOOKUP($X34,'G-3 Multipliers'!$H$3:$J$7,2,FALSE)=0,"Spatial Data Missing",VLOOKUP($X34,'G-3 Multipliers'!$H$3:$J$7,2,FALSE))) ->  | Z34: =IF($X34="","",IF(VLOOKUP($X34,'G-3 Multipliers'!$H$3:$J$7,3,FALSE)=0,"Spatial Data Missing",VLOOKUP($X34,'G-3 Multipliers'!$H$3:$J$7,3,FALSE))) ->  | AB34: =IF(AA34="","",IF(VLOOKUP(AA34,'G-3 Multipliers'!$L$3:$N$6,2,FALSE)=0,"Spatial Data Missing",VLOOKUP(AA34,'G-3 Multipliers'!$L$3:$N$6,2,FALSE))) ->  | AC34: =IF(AA34="","",IF(VLOOKUP(AA34,'G-3 Multipliers'!$L$3:$N$6,3,FALSE)=0,"Spatial Data Missing",VLOOKUP(AA34,'G-3 Multipliers'!$L$3:$N$6,3,FALSE))) ->  | AE34: =IFERROR(VLOOKUP(AD34,'G-4 Temporal multipliers'!$A$4:$C$36,3,FALSE),"") ->  | AF34: =IF(P34="","",VLOOKUP(P34,'G-3 Multipliers'!$A$2:$E$142,4,FALSE)) ->  | AG34: =IF(P34="","",VLOOKUP(P34,'G-3 Multipliers'!$A$2:$E$142,5,FALSE)) -> 
B35: ='A-1 Site Habitat Baseline'!AN34 ->  | C35: =IF(B35="","",IF(ISNA(VLOOKUP($B35,'A-1 Site Habitat Baseline'!$B$1:$O$258,3,FALSE)),"",(VLOOKUP($B35,'A-1 Site Habitat Baseline'!$B$1:$O$258,3,FALSE)))) ->  | D35: =IF(B35="","",IF(ISNA(VLOOKUP($B35,'A-1 Site Habitat Baseline'!$B$1:$O$258,4,FALSE)),"",(VLOOKUP($B35,'A-1 Site Habitat Baseline'!$B$1:$O$258,4,FALSE)))) ->  | E35: =IF(B35="","",IF(ISNA(VLOOKUP($B35,'A-1 Site Habitat Baseline'!$B$1:$O$258,5,FALSE)),"",(VLOOKUP($B35,'A-1 Site Habitat Baseline'!$B$1:$O$258,5,FALSE)))) ->  | F35: =IF(B35="","",IF(ISNA(VLOOKUP($B35,'A-1 Site Habitat Baseline'!$B$1:$O$258,6,FALSE)),"",(VLOOKUP($B35,'A-1 Site Habitat Baseline'!$B$1:$O$258,6,FALSE)))) ->  | G35: =IF(B35="","",IF(ISNA(VLOOKUP($B35,'A-1 Site Habitat Baseline'!$B$1:$O$258,7,FALSE)),"",(VLOOKUP($B35,'A-1 Site Habitat Baseline'!$B$1:$O$258,7,FALSE)))) ->  | H35: =IF(B35="","",IF(ISNA(VLOOKUP($B35,'A-1 Site Habitat Baseline'!$B$1:$O$258,8,FALSE)),"",(VLOOKUP($B35,'A-1 Site Habitat Baseline'!$B$1:$O$258,8,FALSE)))) ->  | I35: =IF(B35="","",IF(ISNA(VLOOKUP($B35,'A-1 Site Habitat Baseline'!$B$1:$O$258,9,FALSE)),"",(VLOOKUP($B35,'A-1 Site Habitat Baseline'!$B$1:$O$258,9,FALSE)))) ->  | J35: =IF(B35="","",IF(ISNA(VLOOKUP($B35,'A-1 Site Habitat Baseline'!$B$1:$O$258,10,FALSE)),"",(VLOOKUP($B35,'A-1 Site Habitat Baseline'!$B$1:$O$258,10,FALSE)))) ->  | K35: =IF(B35="","",IF(ISNA(VLOOKUP($B35,'A-1 Site Habitat Baseline'!$B$1:$O$258,11,FALSE)),"",(VLOOKUP($B35,'A-1 Site Habitat Baseline'!$B$1:$O$258,11,FALSE)))) ->  | L35: =IF(B35="","",IF(ISNA(VLOOKUP($B35,'A-1 Site Habitat Baseline'!$B$1:$O$258,13,FALSE)),"",(VLOOKUP($B35,'A-1 Site Habitat Baseline'!$B$1:$O$258,13,FALSE)))) ->  | M35: =IF(B35="","",IF(ISNA(VLOOKUP($B35,'A-1 Site Habitat Baseline'!$B$1:$O$258,14,FALSE)),"",(VLOOKUP($B35,'A-1 Site Habitat Baseline'!$B$1:$O$258,14,FALSE)))) ->  | N35: =IF(B35="","",IF(ISNA(VLOOKUP($B35,'A-1 Site Habitat Baseline'!$B$1:$Z$258,16,FALSE)),"",(VLOOKUP($B35,'A-1 Site Habitat Baseline'!$B$1:$Z$258,16,FALSE)))) ->  | O35: =IF(B35="","",IF(ISNA(VLOOKUP($B35,'A-1 Site Habitat Baseline'!$B$1:$Z$258,15,FALSE)),"",(VLOOKUP($B35,'A-1 Site Habitat Baseline'!$B$1:$Z$258,15,FALSE)))) ->  | Q35: =IF(B35="","",IF(AND(U35<F35,P35='G-1 All Habitats'!$A$65),E35&" - "&T35,IF(U35<F35,"Error Trading Down",E35&" - "&T35))) ->  | R35: =IF(C35="","",IF(AND(LEFT(C35,55)<>LEFT(P35,55),Q35= "High - High"),"Error - Not like for like",IF(AND(F35=U35,H35>W35),"Error - Can not reduce condition",IF(AND(F35=U35,H35=W35),"Error - No enhancement",IF(AND(U35<F35,P35='G-1 All Habitats'!$A$65),G35&" - "&V35,IF(U35<F35,"Error Trading Down",IF(AND(C35<>P35,F35<U35),"Lower Distinctiveness Habitat"&" - "&V35,G35&" - "&V35))))))) ->  | T35: =IF(P35="","",VLOOKUP(P35,'G-1 All Habitats'!$A$2:$L$135,10,FALSE)) ->  | U35: =IFERROR(VLOOKUP(T35,'G-1 All Habitats'!$S$3:$T$7,2,FALSE),"") ->  | W35: =IFERROR(INDEX('G-8 Condition Look up'!$A$3:$H$136,MATCH(P35,'G-8 Condition Look up'!$A$3:$A$136,0),MATCH(V35,'G-8 Condition Look up'!$A$3:$H$3,0)),"") ->  | Y35: =IF($X35="","",IF(VLOOKUP($X35,'G-3 Multipliers'!$H$3:$J$7,2,FALSE)=0,"Spatial Data Missing",VLOOKUP($X35,'G-3 Multipliers'!$H$3:$J$7,2,FALSE))) ->  | Z35: =IF($X35="","",IF(VLOOKUP($X35,'G-3 Multipliers'!$H$3:$J$7,3,FALSE)=0,"Spatial Data Missing",VLOOKUP($X35,'G-3 Multipliers'!$H$3:$J$7,3,FALSE))) ->  | AB35: =IF(AA35="","",IF(VLOOKUP(AA35,'G-3 Multipliers'!$L$3:$N$6,2,FALSE)=0,"Spatial Data Missing",VLOOKUP(AA35,'G-3 Multipliers'!$L$3:$N$6,2,FALSE))) ->  | AC35: =IF(AA35="","",IF(VLOOKUP(AA35,'G-3 Multipliers'!$L$3:$N$6,3,FALSE)=0,"Spatial Data Missing",VLOOKUP(AA35,'G-3 Multipliers'!$L$3:$N$6,3,FALSE))) ->  | AE35: =IFERROR(VLOOKUP(AD35,'G-4 Temporal multipliers'!$A$4:$C$36,3,FALSE),"") ->  | AF35: =IF(P35="","",VLOOKUP(P35,'G-3 Multipliers'!$A$2:$E$142,4,FALSE)) ->  | AG35: =IF(P35="","",VLOOKUP(P35,'G-3 Multipliers'!$A$2:$E$142,5,FALSE)) -> 
B36: ='A-1 Site Habitat Baseline'!AN35 ->  | C36: =IF(B36="","",IF(ISNA(VLOOKUP($B36,'A-1 Site Habitat Baseline'!$B$1:$O$258,3,FALSE)),"",(VLOOKUP($B36,'A-1 Site Habitat Baseline'!$B$1:$O$258,3,FALSE)))) ->  | D36: =IF(B36="","",IF(ISNA(VLOOKUP($B36,'A-1 Site Habitat Baseline'!$B$1:$O$258,4,FALSE)),"",(VLOOKUP($B36,'A-1 Site Habitat Baseline'!$B$1:$O$258,4,FALSE)))) ->  | E36: =IF(B36="","",IF(ISNA(VLOOKUP($B36,'A-1 Site Habitat Baseline'!$B$1:$O$258,5,FALSE)),"",(VLOOKUP($B36,'A-1 Site Habitat Baseline'!$B$1:$O$258,5,FALSE)))) ->  | F36: =IF(B36="","",IF(ISNA(VLOOKUP($B36,'A-1 Site Habitat Baseline'!$B$1:$O$258,6,FALSE)),"",(VLOOKUP($B36,'A-1 Site Habitat Baseline'!$B$1:$O$258,6,FALSE)))) ->  | G36: =IF(B36="","",IF(ISNA(VLOOKUP($B36,'A-1 Site Habitat Baseline'!$B$1:$O$258,7,FALSE)),"",(VLOOKUP($B36,'A-1 Site Habitat Baseline'!$B$1:$O$258,7,FALSE)))) ->  | H36: =IF(B36="","",IF(ISNA(VLOOKUP($B36,'A-1 Site Habitat Baseline'!$B$1:$O$258,8,FALSE)),"",(VLOOKUP($B36,'A-1 Site Habitat Baseline'!$B$1:$O$258,8,FALSE)))) ->  | I36: =IF(B36="","",IF(ISNA(VLOOKUP($B36,'A-1 Site Habitat Baseline'!$B$1:$O$258,9,FALSE)),"",(VLOOKUP($B36,'A-1 Site Habitat Baseline'!$B$1:$O$258,9,FALSE)))) ->  | J36: =IF(B36="","",IF(ISNA(VLOOKUP($B36,'A-1 Site Habitat Baseline'!$B$1:$O$258,10,FALSE)),"",(VLOOKUP($B36,'A-1 Site Habitat Baseline'!$B$1:$O$258,10,FALSE)))) ->  | K36: =IF(B36="","",IF(ISNA(VLOOKUP($B36,'A-1 Site Habitat Baseline'!$B$1:$O$258,11,FALSE)),"",(VLOOKUP($B36,'A-1 Site Habitat Baseline'!$B$1:$O$258,11,FALSE)))) ->  | L36: =IF(B36="","",IF(ISNA(VLOOKUP($B36,'A-1 Site Habitat Baseline'!$B$1:$O$258,13,FALSE)),"",(VLOOKUP($B36,'A-1 Site Habitat Baseline'!$B$1:$O$258,13,FALSE)))) ->  | M36: =IF(B36="","",IF(ISNA(VLOOKUP($B36,'A-1 Site Habitat Baseline'!$B$1:$O$258,14,FALSE)),"",(VLOOKUP($B36,'A-1 Site Habitat Baseline'!$B$1:$O$258,14,FALSE)))) ->  | N36: =IF(B36="","",IF(ISNA(VLOOKUP($B36,'A-1 Site Habitat Baseline'!$B$1:$Z$258,16,FALSE)),"",(VLOOKUP($B36,'A-1 Site Habitat Baseline'!$B$1:$Z$258,16,FALSE)))) ->  | O36: =IF(B36="","",IF(ISNA(VLOOKUP($B36,'A-1 Site Habitat Baseline'!$B$1:$Z$258,15,FALSE)),"",(VLOOKUP($B36,'A-1 Site Habitat Baseline'!$B$1:$Z$258,15,FALSE)))) ->  | Q36: =IF(B36="","",IF(AND(U36<F36,P36='G-1 All Habitats'!$A$65),E36&" - "&T36,IF(U36<F36,"Error Trading Down",E36&" - "&T36))) ->  | R36: =IF(C36="","",IF(AND(LEFT(C36,55)<>LEFT(P36,55),Q36= "High - High"),"Error - Not like for like",IF(AND(F36=U36,H36>W36),"Error - Can not reduce condition",IF(AND(F36=U36,H36=W36),"Error - No enhancement",IF(AND(U36<F36,P36='G-1 All Habitats'!$A$65),G36&" - "&V36,IF(U36<F36,"Error Trading Down",IF(AND(C36<>P36,F36<U36),"Lower Distinctiveness Habitat"&" - "&V36,G36&" - "&V36))))))) ->  | T36: =IF(P36="","",VLOOKUP(P36,'G-1 All Habitats'!$A$2:$L$135,10,FALSE)) ->  | U36: =IFERROR(VLOOKUP(T36,'G-1 All Habitats'!$S$3:$T$7,2,FALSE),"") ->  | W36: =IFERROR(INDEX('G-8 Condition Look up'!$A$3:$H$136,MATCH(P36,'G-8 Condition Look up'!$A$3:$A$136,0),MATCH(V36,'G-8 Condition Look up'!$A$3:$H$3,0)),"") ->  | Y36: =IF($X36="","",IF(VLOOKUP($X36,'G-3 Multipliers'!$H$3:$J$7,2,FALSE)=0,"Spatial Data Missing",VLOOKUP($X36,'G-3 Multipliers'!$H$3:$J$7,2,FALSE))) ->  | Z36: =IF($X36="","",IF(VLOOKUP($X36,'G-3 Multipliers'!$H$3:$J$7,3,FALSE)=0,"Spatial Data Missing",VLOOKUP($X36,'G-3 Multipliers'!$H$3:$J$7,3,FALSE))) ->  | AB36: =IF(AA36="","",IF(VLOOKUP(AA36,'G-3 Multipliers'!$L$3:$N$6,2,FALSE)=0,"Spatial Data Missing",VLOOKUP(AA36,'G-3 Multipliers'!$L$3:$N$6,2,FALSE))) ->  | AC36: =IF(AA36="","",IF(VLOOKUP(AA36,'G-3 Multipliers'!$L$3:$N$6,3,FALSE)=0,"Spatial Data Missing",VLOOKUP(AA36,'G-3 Multipliers'!$L$3:$N$6,3,FALSE))) ->  | AE36: =IFERROR(VLOOKUP(AD36,'G-4 Temporal multipliers'!$A$4:$C$36,3,FALSE),"") ->  | AF36: =IF(P36="","",VLOOKUP(P36,'G-3 Multipliers'!$A$2:$E$142,4,FALSE)) ->  | AG36: =IF(P36="","",VLOOKUP(P36,'G-3 Multipliers'!$A$2:$E$142,5,FALSE)) -> 
B37: ='A-1 Site Habitat Baseline'!AN36 ->  | C37: =IF(B37="","",IF(ISNA(VLOOKUP($B37,'A-1 Site Habitat Baseline'!$B$1:$O$258,3,FALSE)),"",(VLOOKUP($B37,'A-1 Site Habitat Baseline'!$B$1:$O$258,3,FALSE)))) ->  | D37: =IF(B37="","",IF(ISNA(VLOOKUP($B37,'A-1 Site Habitat Baseline'!$B$1:$O$258,4,FALSE)),"",(VLOOKUP($B37,'A-1 Site Habitat Baseline'!$B$1:$O$258,4,FALSE)))) ->  | E37: =IF(B37="","",IF(ISNA(VLOOKUP($B37,'A-1 Site Habitat Baseline'!$B$1:$O$258,5,FALSE)),"",(VLOOKUP($B37,'A-1 Site Habitat Baseline'!$B$1:$O$258,5,FALSE)))) ->  | F37: =IF(B37="","",IF(ISNA(VLOOKUP($B37,'A-1 Site Habitat Baseline'!$B$1:$O$258,6,FALSE)),"",(VLOOKUP($B37,'A-1 Site Habitat Baseline'!$B$1:$O$258,6,FALSE)))) ->  | G37: =IF(B37="","",IF(ISNA(VLOOKUP($B37,'A-1 Site Habitat Baseline'!$B$1:$O$258,7,FALSE)),"",(VLOOKUP($B37,'A-1 Site Habitat Baseline'!$B$1:$O$258,7,FALSE)))) ->  | H37: =IF(B37="","",IF(ISNA(VLOOKUP($B37,'A-1 Site Habitat Baseline'!$B$1:$O$258,8,FALSE)),"",(VLOOKUP($B37,'A-1 Site Habitat Baseline'!$B$1:$O$258,8,FALSE)))) ->  | I37: =IF(B37="","",IF(ISNA(VLOOKUP($B37,'A-1 Site Habitat Baseline'!$B$1:$O$258,9,FALSE)),"",(VLOOKUP($B37,'A-1 Site Habitat Baseline'!$B$1:$O$258,9,FALSE)))) ->  | J37: =IF(B37="","",IF(ISNA(VLOOKUP($B37,'A-1 Site Habitat Baseline'!$B$1:$O$258,10,FALSE)),"",(VLOOKUP($B37,'A-1 Site Habitat Baseline'!$B$1:$O$258,10,FALSE)))) ->  | K37: =IF(B37="","",IF(ISNA(VLOOKUP($B37,'A-1 Site Habitat Baseline'!$B$1:$O$258,11,FALSE)),"",(VLOOKUP($B37,'A-1 Site Habitat Baseline'!$B$1:$O$258,11,FALSE)))) ->  | L37: =IF(B37="","",IF(ISNA(VLOOKUP($B37,'A-1 Site Habitat Baseline'!$B$1:$O$258,13,FALSE)),"",(VLOOKUP($B37,'A-1 Site Habitat Baseline'!$B$1:$O$258,13,FALSE)))) ->  | M37: =IF(B37="","",IF(ISNA(VLOOKUP($B37,'A-1 Site Habitat Baseline'!$B$1:$O$258,14,FALSE)),"",(VLOOKUP($B37,'A-1 Site Habitat Baseline'!$B$1:$O$258,14,FALSE)))) ->  | N37: =IF(B37="","",IF(ISNA(VLOOKUP($B37,'A-1 Site Habitat Baseline'!$B$1:$Z$258,16,FALSE)),"",(VLOOKUP($B37,'A-1 Site Habitat Baseline'!$B$1:$Z$258,16,FALSE)))) ->  | O37: =IF(B37="","",IF(ISNA(VLOOKUP($B37,'A-1 Site Habitat Baseline'!$B$1:$Z$258,15,FALSE)),"",(VLOOKUP($B37,'A-1 Site Habitat Baseline'!$B$1:$Z$258,15,FALSE)))) ->  | Q37: =IF(B37="","",IF(AND(U37<F37,P37='G-1 All Habitats'!$A$65),E37&" - "&T37,IF(U37<F37,"Error Trading Down",E37&" - "&T37))) ->  | R37: =IF(C37="","",IF(AND(LEFT(C37,55)<>LEFT(P37,55),Q37= "High - High"),"Error - Not like for like",IF(AND(F37=U37,H37>W37),"Error - Can not reduce condition",IF(AND(F37=U37,H37=W37),"Error - No enhancement",IF(AND(U37<F37,P37='G-1 All Habitats'!$A$65),G37&" - "&V37,IF(U37<F37,"Error Trading Down",IF(AND(C37<>P37,F37<U37),"Lower Distinctiveness Habitat"&" - "&V37,G37&" - "&V37))))))) ->  | T37: =IF(P37="","",VLOOKUP(P37,'G-1 All Habitats'!$A$2:$L$135,10,FALSE)) ->  | U37: =IFERROR(VLOOKUP(T37,'G-1 All Habitats'!$S$3:$T$7,2,FALSE),"") ->  | W37: =IFERROR(INDEX('G-8 Condition Look up'!$A$3:$H$136,MATCH(P37,'G-8 Condition Look up'!$A$3:$A$136,0),MATCH(V37,'G-8 Condition Look up'!$A$3:$H$3,0)),"") ->  | Y37: =IF($X37="","",IF(VLOOKUP($X37,'G-3 Multipliers'!$H$3:$J$7,2,FALSE)=0,"Spatial Data Missing",VLOOKUP($X37,'G-3 Multipliers'!$H$3:$J$7,2,FALSE))) ->  | Z37: =IF($X37="","",IF(VLOOKUP($X37,'G-3 Multipliers'!$H$3:$J$7,3,FALSE)=0,"Spatial Data Missing",VLOOKUP($X37,'G-3 Multipliers'!$H$3:$J$7,3,FALSE))) ->  | AB37: =IF(AA37="","",IF(VLOOKUP(AA37,'G-3 Multipliers'!$L$3:$N$6,2,FALSE)=0,"Spatial Data Missing",VLOOKUP(AA37,'G-3 Multipliers'!$L$3:$N$6,2,FALSE))) ->  | AC37: =IF(AA37="","",IF(VLOOKUP(AA37,'G-3 Multipliers'!$L$3:$N$6,3,FALSE)=0,"Spatial Data Missing",VLOOKUP(AA37,'G-3 Multipliers'!$L$3:$N$6,3,FALSE))) ->  | AE37: =IFERROR(VLOOKUP(AD37,'G-4 Temporal multipliers'!$A$4:$C$36,3,FALSE),"") ->  | AF37: =IF(P37="","",VLOOKUP(P37,'G-3 Multipliers'!$A$2:$E$142,4,FALSE)) ->  | AG37: =IF(P37="","",VLOOKUP(P37,'G-3 Multipliers'!$A$2:$E$142,5,FALSE)) -> 
B38: ='A-1 Site Habitat Baseline'!AN37 ->  | C38: =IF(B38="","",IF(ISNA(VLOOKUP($B38,'A-1 Site Habitat Baseline'!$B$1:$O$258,3,FALSE)),"",(VLOOKUP($B38,'A-1 Site Habitat Baseline'!$B$1:$O$258,3,FALSE)))) ->  | D38: =IF(B38="","",IF(ISNA(VLOOKUP($B38,'A-1 Site Habitat Baseline'!$B$1:$O$258,4,FALSE)),"",(VLOOKUP($B38,'A-1 Site Habitat Baseline'!$B$1:$O$258,4,FALSE)))) ->  | E38: =IF(B38="","",IF(ISNA(VLOOKUP($B38,'A-1 Site Habitat Baseline'!$B$1:$O$258,5,FALSE)),"",(VLOOKUP($B38,'A-1 Site Habitat Baseline'!$B$1:$O$258,5,FALSE)))) ->  | F38: =IF(B38="","",IF(ISNA(VLOOKUP($B38,'A-1 Site Habitat Baseline'!$B$1:$O$258,6,FALSE)),"",(VLOOKUP($B38,'A-1 Site Habitat Baseline'!$B$1:$O$258,6,FALSE)))) ->  | G38: =IF(B38="","",IF(ISNA(VLOOKUP($B38,'A-1 Site Habitat Baseline'!$B$1:$O$258,7,FALSE)),"",(VLOOKUP($B38,'A-1 Site Habitat Baseline'!$B$1:$O$258,7,FALSE)))) ->  | H38: =IF(B38="","",IF(ISNA(VLOOKUP($B38,'A-1 Site Habitat Baseline'!$B$1:$O$258,8,FALSE)),"",(VLOOKUP($B38,'A-1 Site Habitat Baseline'!$B$1:$O$258,8,FALSE)))) ->  | I38: =IF(B38="","",IF(ISNA(VLOOKUP($B38,'A-1 Site Habitat Baseline'!$B$1:$O$258,9,FALSE)),"",(VLOOKUP($B38,'A-1 Site Habitat Baseline'!$B$1:$O$258,9,FALSE)))) ->  | J38: =IF(B38="","",IF(ISNA(VLOOKUP($B38,'A-1 Site Habitat Baseline'!$B$1:$O$258,10,FALSE)),"",(VLOOKUP($B38,'A-1 Site Habitat Baseline'!$B$1:$O$258,10,FALSE)))) ->  | K38: =IF(B38="","",IF(ISNA(VLOOKUP($B38,'A-1 Site Habitat Baseline'!$B$1:$O$258,11,FALSE)),"",(VLOOKUP($B38,'A-1 Site Habitat Baseline'!$B$1:$O$258,11,FALSE)))) ->  | L38: =IF(B38="","",IF(ISNA(VLOOKUP($B38,'A-1 Site Habitat Baseline'!$B$1:$O$258,13,FALSE)),"",(VLOOKUP($B38,'A-1 Site Habitat Baseline'!$B$1:$O$258,13,FALSE)))) ->  | M38: =IF(B38="","",IF(ISNA(VLOOKUP($B38,'A-1 Site Habitat Baseline'!$B$1:$O$258,14,FALSE)),"",(VLOOKUP($B38,'A-1 Site Habitat Baseline'!$B$1:$O$258,14,FALSE)))) ->  | N38: =IF(B38="","",IF(ISNA(VLOOKUP($B38,'A-1 Site Habitat Baseline'!$B$1:$Z$258,16,FALSE)),"",(VLOOKUP($B38,'A-1 Site Habitat Baseline'!$B$1:$Z$258,16,FALSE)))) ->  | O38: =IF(B38="","",IF(ISNA(VLOOKUP($B38,'A-1 Site Habitat Baseline'!$B$1:$Z$258,15,FALSE)),"",(VLOOKUP($B38,'A-1 Site Habitat Baseline'!$B$1:$Z$258,15,FALSE)))) ->  | Q38: =IF(B38="","",IF(AND(U38<F38,P38='G-1 All Habitats'!$A$65),E38&" - "&T38,IF(U38<F38,"Error Trading Down",E38&" - "&T38))) ->  | R38: =IF(C38="","",IF(AND(LEFT(C38,55)<>LEFT(P38,55),Q38= "High - High"),"Error - Not like for like",IF(AND(F38=U38,H38>W38),"Error - Can not reduce condition",IF(AND(F38=U38,H38=W38),"Error - No enhancement",IF(AND(U38<F38,P38='G-1 All Habitats'!$A$65),G38&" - "&V38,IF(U38<F38,"Error Trading Down",IF(AND(C38<>P38,F38<U38),"Lower Distinctiveness Habitat"&" - "&V38,G38&" - "&V38))))))) ->  | T38: =IF(P38="","",VLOOKUP(P38,'G-1 All Habitats'!$A$2:$L$135,10,FALSE)) ->  | U38: =IFERROR(VLOOKUP(T38,'G-1 All Habitats'!$S$3:$T$7,2,FALSE),"") ->  | W38: =IFERROR(INDEX('G-8 Condition Look up'!$A$3:$H$136,MATCH(P38,'G-8 Condition Look up'!$A$3:$A$136,0),MATCH(V38,'G-8 Condition Look up'!$A$3:$H$3,0)),"") ->  | Y38: =IF($X38="","",IF(VLOOKUP($X38,'G-3 Multipliers'!$H$3:$J$7,2,FALSE)=0,"Spatial Data Missing",VLOOKUP($X38,'G-3 Multipliers'!$H$3:$J$7,2,FALSE))) ->  | Z38: =IF($X38="","",IF(VLOOKUP($X38,'G-3 Multipliers'!$H$3:$J$7,3,FALSE)=0,"Spatial Data Missing",VLOOKUP($X38,'G-3 Multipliers'!$H$3:$J$7,3,FALSE))) ->  | AB38: =IF(AA38="","",IF(VLOOKUP(AA38,'G-3 Multipliers'!$L$3:$N$6,2,FALSE)=0,"Spatial Data Missing",VLOOKUP(AA38,'G-3 Multipliers'!$L$3:$N$6,2,FALSE))) ->  | AC38: =IF(AA38="","",IF(VLOOKUP(AA38,'G-3 Multipliers'!$L$3:$N$6,3,FALSE)=0,"Spatial Data Missing",VLOOKUP(AA38,'G-3 Multipliers'!$L$3:$N$6,3,FALSE))) ->  | AE38: =IFERROR(VLOOKUP(AD38,'G-4 Temporal multipliers'!$A$4:$C$36,3,FALSE),"") ->  | AF38: =IF(P38="","",VLOOKUP(P38,'G-3 Multipliers'!$A$2:$E$142,4,FALSE)) ->  | AG38: =IF(P38="","",VLOOKUP(P38,'G-3 Multipliers'!$A$2:$E$142,5,FALSE)) -> 
B39: ='A-1 Site Habitat Baseline'!AN38 ->  | C39: =IF(B39="","",IF(ISNA(VLOOKUP($B39,'A-1 Site Habitat Baseline'!$B$1:$O$258,3,FALSE)),"",(VLOOKUP($B39,'A-1 Site Habitat Baseline'!$B$1:$O$258,3,FALSE)))) ->  | D39: =IF(B39="","",IF(ISNA(VLOOKUP($B39,'A-1 Site Habitat Baseline'!$B$1:$O$258,4,FALSE)),"",(VLOOKUP($B39,'A-1 Site Habitat Baseline'!$B$1:$O$258,4,FALSE)))) ->  | E39: =IF(B39="","",IF(ISNA(VLOOKUP($B39,'A-1 Site Habitat Baseline'!$B$1:$O$258,5,FALSE)),"",(VLOOKUP($B39,'A-1 Site Habitat Baseline'!$B$1:$O$258,5,FALSE)))) ->  | F39: =IF(B39="","",IF(ISNA(VLOOKUP($B39,'A-1 Site Habitat Baseline'!$B$1:$O$258,6,FALSE)),"",(VLOOKUP($B39,'A-1 Site Habitat Baseline'!$B$1:$O$258,6,FALSE)))) ->  | G39: =IF(B39="","",IF(ISNA(VLOOKUP($B39,'A-1 Site Habitat Baseline'!$B$1:$O$258,7,FALSE)),"",(VLOOKUP($B39,'A-1 Site Habitat Baseline'!$B$1:$O$258,7,FALSE)))) ->  | H39: =IF(B39="","",IF(ISNA(VLOOKUP($B39,'A-1 Site Habitat Baseline'!$B$1:$O$258,8,FALSE)),"",(VLOOKUP($B39,'A-1 Site Habitat Baseline'!$B$1:$O$258,8,FALSE)))) ->  | I39: =IF(B39="","",IF(ISNA(VLOOKUP($B39,'A-1 Site Habitat Baseline'!$B$1:$O$258,9,FALSE)),"",(VLOOKUP($B39,'A-1 Site Habitat Baseline'!$B$1:$O$258,9,FALSE)))) ->  | J39: =IF(B39="","",IF(ISNA(VLOOKUP($B39,'A-1 Site Habitat Baseline'!$B$1:$O$258,10,FALSE)),"",(VLOOKUP($B39,'A-1 Site Habitat Baseline'!$B$1:$O$258,10,FALSE)))) ->  | K39: =IF(B39="","",IF(ISNA(VLOOKUP($B39,'A-1 Site Habitat Baseline'!$B$1:$O$258,11,FALSE)),"",(VLOOKUP($B39,'A-1 Site Habitat Baseline'!$B$1:$O$258,11,FALSE)))) ->  | L39: =IF(B39="","",IF(ISNA(VLOOKUP($B39,'A-1 Site Habitat Baseline'!$B$1:$O$258,13,FALSE)),"",(VLOOKUP($B39,'A-1 Site Habitat Baseline'!$B$1:$O$258,13,FALSE)))) ->  | M39: =IF(B39="","",IF(ISNA(VLOOKUP($B39,'A-1 Site Habitat Baseline'!$B$1:$O$258,14,FALSE)),"",(VLOOKUP($B39,'A-1 Site Habitat Baseline'!$B$1:$O$258,14,FALSE)))) ->  | N39: =IF(B39="","",IF(ISNA(VLOOKUP($B39,'A-1 Site Habitat Baseline'!$B$1:$Z$258,16,FALSE)),"",(VLOOKUP($B39,'A-1 Site Habitat Baseline'!$B$1:$Z$258,16,FALSE)))) ->  | O39: =IF(B39="","",IF(ISNA(VLOOKUP($B39,'A-1 Site Habitat Baseline'!$B$1:$Z$258,15,FALSE)),"",(VLOOKUP($B39,'A-1 Site Habitat Baseline'!$B$1:$Z$258,15,FALSE)))) ->  | Q39: =IF(B39="","",IF(AND(U39<F39,P39='G-1 All Habitats'!$A$65),E39&" - "&T39,IF(U39<F39,"Error Trading Down",E39&" - "&T39))) ->  | R39: =IF(C39="","",IF(AND(LEFT(C39,55)<>LEFT(P39,55),Q39= "High - High"),"Error - Not like for like",IF(AND(F39=U39,H39>W39),"Error - Can not reduce condition",IF(AND(F39=U39,H39=W39),"Error - No enhancement",IF(AND(U39<F39,P39='G-1 All Habitats'!$A$65),G39&" - "&V39,IF(U39<F39,"Error Trading Down",IF(AND(C39<>P39,F39<U39),"Lower Distinctiveness Habitat"&" - "&V39,G39&" - "&V39))))))) ->  | T39: =IF(P39="","",VLOOKUP(P39,'G-1 All Habitats'!$A$2:$L$135,10,FALSE)) ->  | U39: =IFERROR(VLOOKUP(T39,'G-1 All Habitats'!$S$3:$T$7,2,FALSE),"") ->  | W39: =IFERROR(INDEX('G-8 Condition Look up'!$A$3:$H$136,MATCH(P39,'G-8 Condition Look up'!$A$3:$A$136,0),MATCH(V39,'G-8 Condition Look up'!$A$3:$H$3,0)),"") ->  | Y39: =IF($X39="","",IF(VLOOKUP($X39,'G-3 Multipliers'!$H$3:$J$7,2,FALSE)=0,"Spatial Data Missing",VLOOKUP($X39,'G-3 Multipliers'!$H$3:$J$7,2,FALSE))) ->  | Z39: =IF($X39="","",IF(VLOOKUP($X39,'G-3 Multipliers'!$H$3:$J$7,3,FALSE)=0,"Spatial Data Missing",VLOOKUP($X39,'G-3 Multipliers'!$H$3:$J$7,3,FALSE))) ->  | AB39: =IF(AA39="","",IF(VLOOKUP(AA39,'G-3 Multipliers'!$L$3:$N$6,2,FALSE)=0,"Spatial Data Missing",VLOOKUP(AA39,'G-3 Multipliers'!$L$3:$N$6,2,FALSE))) ->  | AC39: =IF(AA39="","",IF(VLOOKUP(AA39,'G-3 Multipliers'!$L$3:$N$6,3,FALSE)=0,"Spatial Data Missing",VLOOKUP(AA39,'G-3 Multipliers'!$L$3:$N$6,3,FALSE))) ->  | AE39: =IFERROR(VLOOKUP(AD39,'G-4 Temporal multipliers'!$A$4:$C$36,3,FALSE),"") ->  | AF39: =IF(P39="","",VLOOKUP(P39,'G-3 Multipliers'!$A$2:$E$142,4,FALSE)) ->  | AG39: =IF(P39="","",VLOOKUP(P39,'G-3 Multipliers'!$A$2:$E$142,5,FALSE)) -> 
B40: ='A-1 Site Habitat Baseline'!AN39 ->  | C40: =IF(B40="","",IF(ISNA(VLOOKUP($B40,'A-1 Site Habitat Baseline'!$B$1:$O$258,3,FALSE)),"",(VLOOKUP($B40,'A-1 Site Habitat Baseline'!$B$1:$O$258,3,FALSE)))) ->  | D40: =IF(B40="","",IF(ISNA(VLOOKUP($B40,'A-1 Site Habitat Baseline'!$B$1:$O$258,4,FALSE)),"",(VLOOKUP($B40,'A-1 Site Habitat Baseline'!$B$1:$O$258,4,FALSE)))) ->  | E40: =IF(B40="","",IF(ISNA(VLOOKUP($B40,'A-1 Site Habitat Baseline'!$B$1:$O$258,5,FALSE)),"",(VLOOKUP($B40,'A-1 Site Habitat Baseline'!$B$1:$O$258,5,FALSE)))) ->  | F40: =IF(B40="","",IF(ISNA(VLOOKUP($B40,'A-1 Site Habitat Baseline'!$B$1:$O$258,6,FALSE)),"",(VLOOKUP($B40,'A-1 Site Habitat Baseline'!$B$1:$O$258,6,FALSE)))) ->  | G40: =IF(B40="","",IF(ISNA(VLOOKUP($B40,'A-1 Site Habitat Baseline'!$B$1:$O$258,7,FALSE)),"",(VLOOKUP($B40,'A-1 Site Habitat Baseline'!$B$1:$O$258,7,FALSE)))) ->  | H40: =IF(B40="","",IF(ISNA(VLOOKUP($B40,'A-1 Site Habitat Baseline'!$B$1:$O$258,8,FALSE)),"",(VLOOKUP($B40,'A-1 Site Habitat Baseline'!$B$1:$O$258,8,FALSE)))) ->  | I40: =IF(B40="","",IF(ISNA(VLOOKUP($B40,'A-1 Site Habitat Baseline'!$B$1:$O$258,9,FALSE)),"",(VLOOKUP($B40,'A-1 Site Habitat Baseline'!$B$1:$O$258,9,FALSE)))) ->  | J40: =IF(B40="","",IF(ISNA(VLOOKUP($B40,'A-1 Site Habitat Baseline'!$B$1:$O$258,10,FALSE)),"",(VLOOKUP($B40,'A-1 Site Habitat Baseline'!$B$1:$O$258,10,FALSE)))) ->  | K40: =IF(B40="","",IF(ISNA(VLOOKUP($B40,'A-1 Site Habitat Baseline'!$B$1:$O$258,11,FALSE)),"",(VLOOKUP($B40,'A-1 Site Habitat Baseline'!$B$1:$O$258,11,FALSE)))) ->  | L40: =IF(B40="","",IF(ISNA(VLOOKUP($B40,'A-1 Site Habitat Baseline'!$B$1:$O$258,13,FALSE)),"",(VLOOKUP($B40,'A-1 Site Habitat Baseline'!$B$1:$O$258,13,FALSE)))) ->  | M40: =IF(B40="","",IF(ISNA(VLOOKUP($B40,'A-1 Site Habitat Baseline'!$B$1:$O$258,14,FALSE)),"",(VLOOKUP($B40,'A-1 Site Habitat Baseline'!$B$1:$O$258,14,FALSE)))) ->  | N40: =IF(B40="","",IF(ISNA(VLOOKUP($B40,'A-1 Site Habitat Baseline'!$B$1:$Z$258,16,FALSE)),"",(VLOOKUP($B40,'A-1 Site Habitat Baseline'!$B$1:$Z$258,16,FALSE)))) ->  | O40: =IF(B40="","",IF(ISNA(VLOOKUP($B40,'A-1 Site Habitat Baseline'!$B$1:$Z$258,15,FALSE)),"",(VLOOKUP($B40,'A-1 Site Habitat Baseline'!$B$1:$Z$258,15,FALSE)))) ->  | Q40: =IF(B40="","",IF(AND(U40<F40,P40='G-1 All Habitats'!$A$65),E40&" - "&T40,IF(U40<F40,"Error Trading Down",E40&" - "&T40))) ->  | R40: =IF(C40="","",IF(AND(LEFT(C40,55)<>LEFT(P40,55),Q40= "High - High"),"Error - Not like for like",IF(AND(F40=U40,H40>W40),"Error - Can not reduce condition",IF(AND(F40=U40,H40=W40),"Error - No enhancement",IF(AND(U40<F40,P40='G-1 All Habitats'!$A$65),G40&" - "&V40,IF(U40<F40,"Error Trading Down",IF(AND(C40<>P40,F40<U40),"Lower Distinctiveness Habitat"&" - "&V40,G40&" - "&V40))))))) ->  | T40: =IF(P40="","",VLOOKUP(P40,'G-1 All Habitats'!$A$2:$L$135,10,FALSE)) ->  | U40: =IFERROR(VLOOKUP(T40,'G-1 All Habitats'!$S$3:$T$7,2,FALSE),"") ->  | W40: =IFERROR(INDEX('G-8 Condition Look up'!$A$3:$H$136,MATCH(P40,'G-8 Condition Look up'!$A$3:$A$136,0),MATCH(V40,'G-8 Condition Look up'!$A$3:$H$3,0)),"") ->  | Y40: =IF($X40="","",IF(VLOOKUP($X40,'G-3 Multipliers'!$H$3:$J$7,2,FALSE)=0,"Spatial Data Missing",VLOOKUP($X40,'G-3 Multipliers'!$H$3:$J$7,2,FALSE))) ->  | Z40: =IF($X40="","",IF(VLOOKUP($X40,'G-3 Multipliers'!$H$3:$J$7,3,FALSE)=0,"Spatial Data Missing",VLOOKUP($X40,'G-3 Multipliers'!$H$3:$J$7,3,FALSE))) ->  | AB40: =IF(AA40="","",IF(VLOOKUP(AA40,'G-3 Multipliers'!$L$3:$N$6,2,FALSE)=0,"Spatial Data Missing",VLOOKUP(AA40,'G-3 Multipliers'!$L$3:$N$6,2,FALSE))) ->  | AC40: =IF(AA40="","",IF(VLOOKUP(AA40,'G-3 Multipliers'!$L$3:$N$6,3,FALSE)=0,"Spatial Data Missing",VLOOKUP(AA40,'G-3 Multipliers'!$L$3:$N$6,3,FALSE))) ->  | AE40: =IFERROR(VLOOKUP(AD40,'G-4 Temporal multipliers'!$A$4:$C$36,3,FALSE),"") ->  | AF40: =IF(P40="","",VLOOKUP(P40,'G-3 Multipliers'!$A$2:$E$142,4,FALSE)) ->  | AG40: =IF(P40="","",VLOOKUP(P40,'G-3 Multipliers'!$A$2:$E$142,5,FALSE)) -> 
B41: ='A-1 Site Habitat Baseline'!AN40 ->  | C41: =IF(B41="","",IF(ISNA(VLOOKUP($B41,'A-1 Site Habitat Baseline'!$B$1:$O$258,3,FALSE)),"",(VLOOKUP($B41,'A-1 Site Habitat Baseline'!$B$1:$O$258,3,FALSE)))) ->  | D41: =IF(B41="","",IF(ISNA(VLOOKUP($B41,'A-1 Site Habitat Baseline'!$B$1:$O$258,4,FALSE)),"",(VLOOKUP($B41,'A-1 Site Habitat Baseline'!$B$1:$O$258,4,FALSE)))) ->  | E41: =IF(B41="","",IF(ISNA(VLOOKUP($B41,'A-1 Site Habitat Baseline'!$B$1:$O$258,5,FALSE)),"",(VLOOKUP($B41,'A-1 Site Habitat Baseline'!$B$1:$O$258,5,FALSE)))) ->  | F41: =IF(B41="","",IF(ISNA(VLOOKUP($B41,'A-1 Site Habitat Baseline'!$B$1:$O$258,6,FALSE)),"",(VLOOKUP($B41,'A-1 Site Habitat Baseline'!$B$1:$O$258,6,FALSE)))) ->  | G41: =IF(B41="","",IF(ISNA(VLOOKUP($B41,'A-1 Site Habitat Baseline'!$B$1:$O$258,7,FALSE)),"",(VLOOKUP($B41,'A-1 Site Habitat Baseline'!$B$1:$O$258,7,FALSE)))) ->  | H41: =IF(B41="","",IF(ISNA(VLOOKUP($B41,'A-1 Site Habitat Baseline'!$B$1:$O$258,8,FALSE)),"",(VLOOKUP($B41,'A-1 Site Habitat Baseline'!$B$1:$O$258,8,FALSE)))) ->  | I41: =IF(B41="","",IF(ISNA(VLOOKUP($B41,'A-1 Site Habitat Baseline'!$B$1:$O$258,9,FALSE)),"",(VLOOKUP($B41,'A-1 Site Habitat Baseline'!$B$1:$O$258,9,FALSE)))) ->  | J41: =IF(B41="","",IF(ISNA(VLOOKUP($B41,'A-1 Site Habitat Baseline'!$B$1:$O$258,10,FALSE)),"",(VLOOKUP($B41,'A-1 Site Habitat Baseline'!$B$1:$O$258,10,FALSE)))) ->  | K41: =IF(B41="","",IF(ISNA(VLOOKUP($B41,'A-1 Site Habitat Baseline'!$B$1:$O$258,11,FALSE)),"",(VLOOKUP($B41,'A-1 Site Habitat Baseline'!$B$1:$O$258,11,FALSE)))) ->  | L41: =IF(B41="","",IF(ISNA(VLOOKUP($B41,'A-1 Site Habitat Baseline'!$B$1:$O$258,13,FALSE)),"",(VLOOKUP($B41,'A-1 Site Habitat Baseline'!$B$1:$O$258,13,FALSE)))) ->  | M41: =IF(B41="","",IF(ISNA(VLOOKUP($B41,'A-1 Site Habitat Baseline'!$B$1:$O$258,14,FALSE)),"",(VLOOKUP($B41,'A-1 Site Habitat Baseline'!$B$1:$O$258,14,FALSE)))) ->  | N41: =IF(B41="","",IF(ISNA(VLOOKUP($B41,'A-1 Site Habitat Baseline'!$B$1:$Z$258,16,FALSE)),"",(VLOOKUP($B41,'A-1 Site Habitat Baseline'!$B$1:$Z$258,16,FALSE)))) ->  | O41: =IF(B41="","",IF(ISNA(VLOOKUP($B41,'A-1 Site Habitat Baseline'!$B$1:$Z$258,15,FALSE)),"",(VLOOKUP($B41,'A-1 Site Habitat Baseline'!$B$1:$Z$258,15,FALSE)))) ->  | Q41: =IF(B41="","",IF(AND(U41<F41,P41='G-1 All Habitats'!$A$65),E41&" - "&T41,IF(U41<F41,"Error Trading Down",E41&" - "&T41))) ->  | R41: =IF(C41="","",IF(AND(LEFT(C41,55)<>LEFT(P41,55),Q41= "High - High"),"Error - Not like for like",IF(AND(F41=U41,H41>W41),"Error - Can not reduce condition",IF(AND(F41=U41,H41=W41),"Error - No enhancement",IF(AND(U41<F41,P41='G-1 All Habitats'!$A$65),G41&" - "&V41,IF(U41<F41,"Error Trading Down",IF(AND(C41<>P41,F41<U41),"Lower Distinctiveness Habitat"&" - "&V41,G41&" - "&V41))))))) ->  | T41: =IF(P41="","",VLOOKUP(P41,'G-1 All Habitats'!$A$2:$L$135,10,FALSE)) ->  | U41: =IFERROR(VLOOKUP(T41,'G-1 All Habitats'!$S$3:$T$7,2,FALSE),"") ->  | W41: =IFERROR(INDEX('G-8 Condition Look up'!$A$3:$H$136,MATCH(P41,'G-8 Condition Look up'!$A$3:$A$136,0),MATCH(V41,'G-8 Condition Look up'!$A$3:$H$3,0)),"") ->  | Y41: =IF($X41="","",IF(VLOOKUP($X41,'G-3 Multipliers'!$H$3:$J$7,2,FALSE)=0,"Spatial Data Missing",VLOOKUP($X41,'G-3 Multipliers'!$H$3:$J$7,2,FALSE))) ->  | Z41: =IF($X41="","",IF(VLOOKUP($X41,'G-3 Multipliers'!$H$3:$J$7,3,FALSE)=0,"Spatial Data Missing",VLOOKUP($X41,'G-3 Multipliers'!$H$3:$J$7,3,FALSE))) ->  | AB41: =IF(AA41="","",IF(VLOOKUP(AA41,'G-3 Multipliers'!$L$3:$N$6,2,FALSE)=0,"Spatial Data Missing",VLOOKUP(AA41,'G-3 Multipliers'!$L$3:$N$6,2,FALSE))) ->  | AC41: =IF(AA41="","",IF(VLOOKUP(AA41,'G-3 Multipliers'!$L$3:$N$6,3,FALSE)=0,"Spatial Data Missing",VLOOKUP(AA41,'G-3 Multipliers'!$L$3:$N$6,3,FALSE))) ->  | AE41: =IFERROR(VLOOKUP(AD41,'G-4 Temporal multipliers'!$A$4:$C$36,3,FALSE),"") ->  | AF41: =IF(P41="","",VLOOKUP(P41,'G-3 Multipliers'!$A$2:$E$142,4,FALSE)) ->  | AG41: =IF(P41="","",VLOOKUP(P41,'G-3 Multipliers'!$A$2:$E$142,5,FALSE)) -> 
B42: ='A-1 Site Habitat Baseline'!AN41 ->  | C42: =IF(B42="","",IF(ISNA(VLOOKUP($B42,'A-1 Site Habitat Baseline'!$B$1:$O$258,3,FALSE)),"",(VLOOKUP($B42,'A-1 Site Habitat Baseline'!$B$1:$O$258,3,FALSE)))) ->  | D42: =IF(B42="","",IF(ISNA(VLOOKUP($B42,'A-1 Site Habitat Baseline'!$B$1:$O$258,4,FALSE)),"",(VLOOKUP($B42,'A-1 Site Habitat Baseline'!$B$1:$O$258,4,FALSE)))) ->  | E42: =IF(B42="","",IF(ISNA(VLOOKUP($B42,'A-1 Site Habitat Baseline'!$B$1:$O$258,5,FALSE)),"",(VLOOKUP($B42,'A-1 Site Habitat Baseline'!$B$1:$O$258,5,FALSE)))) ->  | F42: =IF(B42="","",IF(ISNA(VLOOKUP($B42,'A-1 Site Habitat Baseline'!$B$1:$O$258,6,FALSE)),"",(VLOOKUP($B42,'A-1 Site Habitat Baseline'!$B$1:$O$258,6,FALSE)))) ->  | G42: =IF(B42="","",IF(ISNA(VLOOKUP($B42,'A-1 Site Habitat Baseline'!$B$1:$O$258,7,FALSE)),"",(VLOOKUP($B42,'A-1 Site Habitat Baseline'!$B$1:$O$258,7,FALSE)))) ->  | H42: =IF(B42="","",IF(ISNA(VLOOKUP($B42,'A-1 Site Habitat Baseline'!$B$1:$O$258,8,FALSE)),"",(VLOOKUP($B42,'A-1 Site Habitat Baseline'!$B$1:$O$258,8,FALSE)))) ->  | I42: =IF(B42="","",IF(ISNA(VLOOKUP($B42,'A-1 Site Habitat Baseline'!$B$1:$O$258,9,FALSE)),"",(VLOOKUP($B42,'A-1 Site Habitat Baseline'!$B$1:$O$258,9,FALSE)))) ->  | J42: =IF(B42="","",IF(ISNA(VLOOKUP($B42,'A-1 Site Habitat Baseline'!$B$1:$O$258,10,FALSE)),"",(VLOOKUP($B42,'A-1 Site Habitat Baseline'!$B$1:$O$258,10,FALSE)))) ->  | K42: =IF(B42="","",IF(ISNA(VLOOKUP($B42,'A-1 Site Habitat Baseline'!$B$1:$O$258,11,FALSE)),"",(VLOOKUP($B42,'A-1 Site Habitat Baseline'!$B$1:$O$258,11,FALSE)))) ->  | L42: =IF(B42="","",IF(ISNA(VLOOKUP($B42,'A-1 Site Habitat Baseline'!$B$1:$O$258,13,FALSE)),"",(VLOOKUP($B42,'A-1 Site Habitat Baseline'!$B$1:$O$258,13,FALSE)))) ->  | M42: =IF(B42="","",IF(ISNA(VLOOKUP($B42,'A-1 Site Habitat Baseline'!$B$1:$O$258,14,FALSE)),"",(VLOOKUP($B42,'A-1 Site Habitat Baseline'!$B$1:$O$258,14,FALSE)))) ->  | N42: =IF(B42="","",IF(ISNA(VLOOKUP($B42,'A-1 Site Habitat Baseline'!$B$1:$Z$258,16,FALSE)),"",(VLOOKUP($B42,'A-1 Site Habitat Baseline'!$B$1:$Z$258,16,FALSE)))) ->  | O42: =IF(B42="","",IF(ISNA(VLOOKUP($B42,'A-1 Site Habitat Baseline'!$B$1:$Z$258,15,FALSE)),"",(VLOOKUP($B42,'A-1 Site Habitat Baseline'!$B$1:$Z$258,15,FALSE)))) ->  | Q42: =IF(B42="","",IF(AND(U42<F42,P42='G-1 All Habitats'!$A$65),E42&" - "&T42,IF(U42<F42,"Error Trading Down",E42&" - "&T42))) ->  | R42: =IF(C42="","",IF(AND(LEFT(C42,55)<>LEFT(P42,55),Q42= "High - High"),"Error - Not like for like",IF(AND(F42=U42,H42>W42),"Error - Can not reduce condition",IF(AND(F42=U42,H42=W42),"Error - No enhancement",IF(AND(U42<F42,P42='G-1 All Habitats'!$A$65),G42&" - "&V42,IF(U42<F42,"Error Trading Down",IF(AND(C42<>P42,F42<U42),"Lower Distinctiveness Habitat"&" - "&V42,G42&" - "&V42))))))) ->  | T42: =IF(P42="","",VLOOKUP(P42,'G-1 All Habitats'!$A$2:$L$135,10,FALSE)) ->  | U42: =IFERROR(VLOOKUP(T42,'G-1 All Habitats'!$S$3:$T$7,2,FALSE),"") ->  | W42: =IFERROR(INDEX('G-8 Condition Look up'!$A$3:$H$136,MATCH(P42,'G-8 Condition Look up'!$A$3:$A$136,0),MATCH(V42,'G-8 Condition Look up'!$A$3:$H$3,0)),"") ->  | Y42: =IF($X42="","",IF(VLOOKUP($X42,'G-3 Multipliers'!$H$3:$J$7,2,FALSE)=0,"Spatial Data Missing",VLOOKUP($X42,'G-3 Multipliers'!$H$3:$J$7,2,FALSE))) ->  | Z42: =IF($X42="","",IF(VLOOKUP($X42,'G-3 Multipliers'!$H$3:$J$7,3,FALSE)=0,"Spatial Data Missing",VLOOKUP($X42,'G-3 Multipliers'!$H$3:$J$7,3,FALSE))) ->  | AB42: =IF(AA42="","",IF(VLOOKUP(AA42,'G-3 Multipliers'!$L$3:$N$6,2,FALSE)=0,"Spatial Data Missing",VLOOKUP(AA42,'G-3 Multipliers'!$L$3:$N$6,2,FALSE))) ->  | AC42: =IF(AA42="","",IF(VLOOKUP(AA42,'G-3 Multipliers'!$L$3:$N$6,3,FALSE)=0,"Spatial Data Missing",VLOOKUP(AA42,'G-3 Multipliers'!$L$3:$N$6,3,FALSE))) ->  | AE42: =IFERROR(VLOOKUP(AD42,'G-4 Temporal multipliers'!$A$4:$C$36,3,FALSE),"") ->  | AF42: =IF(P42="","",VLOOKUP(P42,'G-3 Multipliers'!$A$2:$E$142,4,FALSE)) ->  | AG42: =IF(P42="","",VLOOKUP(P42,'G-3 Multipliers'!$A$2:$E$142,5,FALSE)) -> 
B43: ='A-1 Site Habitat Baseline'!AN42 ->  | C43: =IF(B43="","",IF(ISNA(VLOOKUP($B43,'A-1 Site Habitat Baseline'!$B$1:$O$258,3,FALSE)),"",(VLOOKUP($B43,'A-1 Site Habitat Baseline'!$B$1:$O$258,3,FALSE)))) ->  | D43: =IF(B43="","",IF(ISNA(VLOOKUP($B43,'A-1 Site Habitat Baseline'!$B$1:$O$258,4,FALSE)),"",(VLOOKUP($B43,'A-1 Site Habitat Baseline'!$B$1:$O$258,4,FALSE)))) ->  | E43: =IF(B43="","",IF(ISNA(VLOOKUP($B43,'A-1 Site Habitat Baseline'!$B$1:$O$258,5,FALSE)),"",(VLOOKUP($B43,'A-1 Site Habitat Baseline'!$B$1:$O$258,5,FALSE)))) ->  | F43: =IF(B43="","",IF(ISNA(VLOOKUP($B43,'A-1 Site Habitat Baseline'!$B$1:$O$258,6,FALSE)),"",(VLOOKUP($B43,'A-1 Site Habitat Baseline'!$B$1:$O$258,6,FALSE)))) ->  | G43: =IF(B43="","",IF(ISNA(VLOOKUP($B43,'A-1 Site Habitat Baseline'!$B$1:$O$258,7,FALSE)),"",(VLOOKUP($B43,'A-1 Site Habitat Baseline'!$B$1:$O$258,7,FALSE)))) ->  | H43: =IF(B43="","",IF(ISNA(VLOOKUP($B43,'A-1 Site Habitat Baseline'!$B$1:$O$258,8,FALSE)),"",(VLOOKUP($B43,'A-1 Site Habitat Baseline'!$B$1:$O$258,8,FALSE)))) ->  | I43: =IF(B43="","",IF(ISNA(VLOOKUP($B43,'A-1 Site Habitat Baseline'!$B$1:$O$258,9,FALSE)),"",(VLOOKUP($B43,'A-1 Site Habitat Baseline'!$B$1:$O$258,9,FALSE)))) ->  | J43: =IF(B43="","",IF(ISNA(VLOOKUP($B43,'A-1 Site Habitat Baseline'!$B$1:$O$258,10,FALSE)),"",(VLOOKUP($B43,'A-1 Site Habitat Baseline'!$B$1:$O$258,10,FALSE)))) ->  | K43: =IF(B43="","",IF(ISNA(VLOOKUP($B43,'A-1 Site Habitat Baseline'!$B$1:$O$258,11,FALSE)),"",(VLOOKUP($B43,'A-1 Site Habitat Baseline'!$B$1:$O$258,11,FALSE)))) ->  | L43: =IF(B43="","",IF(ISNA(VLOOKUP($B43,'A-1 Site Habitat Baseline'!$B$1:$O$258,13,FALSE)),"",(VLOOKUP($B43,'A-1 Site Habitat Baseline'!$B$1:$O$258,13,FALSE)))) ->  | M43: =IF(B43="","",IF(ISNA(VLOOKUP($B43,'A-1 Site Habitat Baseline'!$B$1:$O$258,14,FALSE)),"",(VLOOKUP($B43,'A-1 Site Habitat Baseline'!$B$1:$O$258,14,FALSE)))) ->  | N43: =IF(B43="","",IF(ISNA(VLOOKUP($B43,'A-1 Site Habitat Baseline'!$B$1:$Z$258,16,FALSE)),"",(VLOOKUP($B43,'A-1 Site Habitat Baseline'!$B$1:$Z$258,16,FALSE)))) ->  | O43: =IF(B43="","",IF(ISNA(VLOOKUP($B43,'A-1 Site Habitat Baseline'!$B$1:$Z$258,15,FALSE)),"",(VLOOKUP($B43,'A-1 Site Habitat Baseline'!$B$1:$Z$258,15,FALSE)))) ->  | Q43: =IF(B43="","",IF(AND(U43<F43,P43='G-1 All Habitats'!$A$65),E43&" - "&T43,IF(U43<F43,"Error Trading Down",E43&" - "&T43))) ->  | R43: =IF(C43="","",IF(AND(LEFT(C43,55)<>LEFT(P43,55),Q43= "High - High"),"Error - Not like for like",IF(AND(F43=U43,H43>W43),"Error - Can not reduce condition",IF(AND(F43=U43,H43=W43),"Error - No enhancement",IF(AND(U43<F43,P43='G-1 All Habitats'!$A$65),G43&" - "&V43,IF(U43<F43,"Error Trading Down",IF(AND(C43<>P43,F43<U43),"Lower Distinctiveness Habitat"&" - "&V43,G43&" - "&V43))))))) ->  | T43: =IF(P43="","",VLOOKUP(P43,'G-1 All Habitats'!$A$2:$L$135,10,FALSE)) ->  | U43: =IFERROR(VLOOKUP(T43,'G-1 All Habitats'!$S$3:$T$7,2,FALSE),"") ->  | W43: =IFERROR(INDEX('G-8 Condition Look up'!$A$3:$H$136,MATCH(P43,'G-8 Condition Look up'!$A$3:$A$136,0),MATCH(V43,'G-8 Condition Look up'!$A$3:$H$3,0)),"") ->  | Y43: =IF($X43="","",IF(VLOOKUP($X43,'G-3 Multipliers'!$H$3:$J$7,2,FALSE)=0,"Spatial Data Missing",VLOOKUP($X43,'G-3 Multipliers'!$H$3:$J$7,2,FALSE))) ->  | Z43: =IF($X43="","",IF(VLOOKUP($X43,'G-3 Multipliers'!$H$3:$J$7,3,FALSE)=0,"Spatial Data Missing",VLOOKUP($X43,'G-3 Multipliers'!$H$3:$J$7,3,FALSE))) ->  | AB43: =IF(AA43="","",IF(VLOOKUP(AA43,'G-3 Multipliers'!$L$3:$N$6,2,FALSE)=0,"Spatial Data Missing",VLOOKUP(AA43,'G-3 Multipliers'!$L$3:$N$6,2,FALSE))) ->  | AC43: =IF(AA43="","",IF(VLOOKUP(AA43,'G-3 Multipliers'!$L$3:$N$6,3,FALSE)=0,"Spatial Data Missing",VLOOKUP(AA43,'G-3 Multipliers'!$L$3:$N$6,3,FALSE))) ->  | AE43: =IFERROR(VLOOKUP(AD43,'G-4 Temporal multipliers'!$A$4:$C$36,3,FALSE),"") ->  | AF43: =IF(P43="","",VLOOKUP(P43,'G-3 Multipliers'!$A$2:$E$142,4,FALSE)) ->  | AG43: =IF(P43="","",VLOOKUP(P43,'G-3 Multipliers'!$A$2:$E$142,5,FALSE)) -> 
B44: ='A-1 Site Habitat Baseline'!AN43 ->  | C44: =IF(B44="","",IF(ISNA(VLOOKUP($B44,'A-1 Site Habitat Baseline'!$B$1:$O$258,3,FALSE)),"",(VLOOKUP($B44,'A-1 Site Habitat Baseline'!$B$1:$O$258,3,FALSE)))) ->  | D44: =IF(B44="","",IF(ISNA(VLOOKUP($B44,'A-1 Site Habitat Baseline'!$B$1:$O$258,4,FALSE)),"",(VLOOKUP($B44,'A-1 Site Habitat Baseline'!$B$1:$O$258,4,FALSE)))) ->  | E44: =IF(B44="","",IF(ISNA(VLOOKUP($B44,'A-1 Site Habitat Baseline'!$B$1:$O$258,5,FALSE)),"",(VLOOKUP($B44,'A-1 Site Habitat Baseline'!$B$1:$O$258,5,FALSE)))) ->  | F44: =IF(B44="","",IF(ISNA(VLOOKUP($B44,'A-1 Site Habitat Baseline'!$B$1:$O$258,6,FALSE)),"",(VLOOKUP($B44,'A-1 Site Habitat Baseline'!$B$1:$O$258,6,FALSE)))) ->  | G44: =IF(B44="","",IF(ISNA(VLOOKUP($B44,'A-1 Site Habitat Baseline'!$B$1:$O$258,7,FALSE)),"",(VLOOKUP($B44,'A-1 Site Habitat Baseline'!$B$1:$O$258,7,FALSE)))) ->  | H44: =IF(B44="","",IF(ISNA(VLOOKUP($B44,'A-1 Site Habitat Baseline'!$B$1:$O$258,8,FALSE)),"",(VLOOKUP($B44,'A-1 Site Habitat Baseline'!$B$1:$O$258,8,FALSE)))) ->  | I44: =IF(B44="","",IF(ISNA(VLOOKUP($B44,'A-1 Site Habitat Baseline'!$B$1:$O$258,9,FALSE)),"",(VLOOKUP($B44,'A-1 Site Habitat Baseline'!$B$1:$O$258,9,FALSE)))) ->  | J44: =IF(B44="","",IF(ISNA(VLOOKUP($B44,'A-1 Site Habitat Baseline'!$B$1:$O$258,10,FALSE)),"",(VLOOKUP($B44,'A-1 Site Habitat Baseline'!$B$1:$O$258,10,FALSE)))) ->  | K44: =IF(B44="","",IF(ISNA(VLOOKUP($B44,'A-1 Site Habitat Baseline'!$B$1:$O$258,11,FALSE)),"",(VLOOKUP($B44,'A-1 Site Habitat Baseline'!$B$1:$O$258,11,FALSE)))) ->  | L44: =IF(B44="","",IF(ISNA(VLOOKUP($B44,'A-1 Site Habitat Baseline'!$B$1:$O$258,13,FALSE)),"",(VLOOKUP($B44,'A-1 Site Habitat Baseline'!$B$1:$O$258,13,FALSE)))) ->  | M44: =IF(B44="","",IF(ISNA(VLOOKUP($B44,'A-1 Site Habitat Baseline'!$B$1:$O$258,14,FALSE)),"",(VLOOKUP($B44,'A-1 Site Habitat Baseline'!$B$1:$O$258,14,FALSE)))) ->  | N44: =IF(B44="","",IF(ISNA(VLOOKUP($B44,'A-1 Site Habitat Baseline'!$B$1:$Z$258,16,FALSE)),"",(VLOOKUP($B44,'A-1 Site Habitat Baseline'!$B$1:$Z$258,16,FALSE)))) ->  | O44: =IF(B44="","",IF(ISNA(VLOOKUP($B44,'A-1 Site Habitat Baseline'!$B$1:$Z$258,15,FALSE)),"",(VLOOKUP($B44,'A-1 Site Habitat Baseline'!$B$1:$Z$258,15,FALSE)))) ->  | Q44: =IF(B44="","",IF(AND(U44<F44,P44='G-1 All Habitats'!$A$65),E44&" - "&T44,IF(U44<F44,"Error Trading Down",E44&" - "&T44))) ->  | R44: =IF(C44="","",IF(AND(LEFT(C44,55)<>LEFT(P44,55),Q44= "High - High"),"Error - Not like for like",IF(AND(F44=U44,H44>W44),"Error - Can not reduce condition",IF(AND(F44=U44,H44=W44),"Error - No enhancement",IF(AND(U44<F44,P44='G-1 All Habitats'!$A$65),G44&" - "&V44,IF(U44<F44,"Error Trading Down",IF(AND(C44<>P44,F44<U44),"Lower Distinctiveness Habitat"&" - "&V44,G44&" - "&V44))))))) ->  | T44: =IF(P44="","",VLOOKUP(P44,'G-1 All Habitats'!$A$2:$L$135,10,FALSE)) ->  | U44: =IFERROR(VLOOKUP(T44,'G-1 All Habitats'!$S$3:$T$7,2,FALSE),"") ->  | W44: =IFERROR(INDEX('G-8 Condition Look up'!$A$3:$H$136,MATCH(P44,'G-8 Condition Look up'!$A$3:$A$136,0),MATCH(V44,'G-8 Condition Look up'!$A$3:$H$3,0)),"") ->  | Y44: =IF($X44="","",IF(VLOOKUP($X44,'G-3 Multipliers'!$H$3:$J$7,2,FALSE)=0,"Spatial Data Missing",VLOOKUP($X44,'G-3 Multipliers'!$H$3:$J$7,2,FALSE))) ->  | Z44: =IF($X44="","",IF(VLOOKUP($X44,'G-3 Multipliers'!$H$3:$J$7,3,FALSE)=0,"Spatial Data Missing",VLOOKUP($X44,'G-3 Multipliers'!$H$3:$J$7,3,FALSE))) ->  | AB44: =IF(AA44="","",IF(VLOOKUP(AA44,'G-3 Multipliers'!$L$3:$N$6,2,FALSE)=0,"Spatial Data Missing",VLOOKUP(AA44,'G-3 Multipliers'!$L$3:$N$6,2,FALSE))) ->  | AC44: =IF(AA44="","",IF(VLOOKUP(AA44,'G-3 Multipliers'!$L$3:$N$6,3,FALSE)=0,"Spatial Data Missing",VLOOKUP(AA44,'G-3 Multipliers'!$L$3:$N$6,3,FALSE))) ->  | AE44: =IFERROR(VLOOKUP(AD44,'G-4 Temporal multipliers'!$A$4:$C$36,3,FALSE),"") ->  | AF44: =IF(P44="","",VLOOKUP(P44,'G-3 Multipliers'!$A$2:$E$142,4,FALSE)) ->  | AG44: =IF(P44="","",VLOOKUP(P44,'G-3 Multipliers'!$A$2:$E$142,5,FALSE)) -> 
B45: ='A-1 Site Habitat Baseline'!AN44 ->  | C45: =IF(B45="","",IF(ISNA(VLOOKUP($B45,'A-1 Site Habitat Baseline'!$B$1:$O$258,3,FALSE)),"",(VLOOKUP($B45,'A-1 Site Habitat Baseline'!$B$1:$O$258,3,FALSE)))) ->  | D45: =IF(B45="","",IF(ISNA(VLOOKUP($B45,'A-1 Site Habitat Baseline'!$B$1:$O$258,4,FALSE)),"",(VLOOKUP($B45,'A-1 Site Habitat Baseline'!$B$1:$O$258,4,FALSE)))) ->  | E45: =IF(B45="","",IF(ISNA(VLOOKUP($B45,'A-1 Site Habitat Baseline'!$B$1:$O$258,5,FALSE)),"",(VLOOKUP($B45,'A-1 Site Habitat Baseline'!$B$1:$O$258,5,FALSE)))) ->  | F45: =IF(B45="","",IF(ISNA(VLOOKUP($B45,'A-1 Site Habitat Baseline'!$B$1:$O$258,6,FALSE)),"",(VLOOKUP($B45,'A-1 Site Habitat Baseline'!$B$1:$O$258,6,FALSE)))) ->  | G45: =IF(B45="","",IF(ISNA(VLOOKUP($B45,'A-1 Site Habitat Baseline'!$B$1:$O$258,7,FALSE)),"",(VLOOKUP($B45,'A-1 Site Habitat Baseline'!$B$1:$O$258,7,FALSE)))) ->  | H45: =IF(B45="","",IF(ISNA(VLOOKUP($B45,'A-1 Site Habitat Baseline'!$B$1:$O$258,8,FALSE)),"",(VLOOKUP($B45,'A-1 Site Habitat Baseline'!$B$1:$O$258,8,FALSE)))) ->  | I45: =IF(B45="","",IF(ISNA(VLOOKUP($B45,'A-1 Site Habitat Baseline'!$B$1:$O$258,9,FALSE)),"",(VLOOKUP($B45,'A-1 Site Habitat Baseline'!$B$1:$O$258,9,FALSE)))) ->  | J45: =IF(B45="","",IF(ISNA(VLOOKUP($B45,'A-1 Site Habitat Baseline'!$B$1:$O$258,10,FALSE)),"",(VLOOKUP($B45,'A-1 Site Habitat Baseline'!$B$1:$O$258,10,FALSE)))) ->  | K45: =IF(B45="","",IF(ISNA(VLOOKUP($B45,'A-1 Site Habitat Baseline'!$B$1:$O$258,11,FALSE)),"",(VLOOKUP($B45,'A-1 Site Habitat Baseline'!$B$1:$O$258,11,FALSE)))) ->  | L45: =IF(B45="","",IF(ISNA(VLOOKUP($B45,'A-1 Site Habitat Baseline'!$B$1:$O$258,13,FALSE)),"",(VLOOKUP($B45,'A-1 Site Habitat Baseline'!$B$1:$O$258,13,FALSE)))) ->  | M45: =IF(B45="","",IF(ISNA(VLOOKUP($B45,'A-1 Site Habitat Baseline'!$B$1:$O$258,14,FALSE)),"",(VLOOKUP($B45,'A-1 Site Habitat Baseline'!$B$1:$O$258,14,FALSE)))) ->  | N45: =IF(B45="","",IF(ISNA(VLOOKUP($B45,'A-1 Site Habitat Baseline'!$B$1:$Z$258,16,FALSE)),"",(VLOOKUP($B45,'A-1 Site Habitat Baseline'!$B$1:$Z$258,16,FALSE)))) ->  | O45: =IF(B45="","",IF(ISNA(VLOOKUP($B45,'A-1 Site Habitat Baseline'!$B$1:$Z$258,15,FALSE)),"",(VLOOKUP($B45,'A-1 Site Habitat Baseline'!$B$1:$Z$258,15,FALSE)))) ->  | Q45: =IF(B45="","",IF(AND(U45<F45,P45='G-1 All Habitats'!$A$65),E45&" - "&T45,IF(U45<F45,"Error Trading Down",E45&" - "&T45))) ->  | R45: =IF(C45="","",IF(AND(LEFT(C45,55)<>LEFT(P45,55),Q45= "High - High"),"Error - Not like for like",IF(AND(F45=U45,H45>W45),"Error - Can not reduce condition",IF(AND(F45=U45,H45=W45),"Error - No enhancement",IF(AND(U45<F45,P45='G-1 All Habitats'!$A$65),G45&" - "&V45,IF(U45<F45,"Error Trading Down",IF(AND(C45<>P45,F45<U45),"Lower Distinctiveness Habitat"&" - "&V45,G45&" - "&V45))))))) ->  | T45: =IF(P45="","",VLOOKUP(P45,'G-1 All Habitats'!$A$2:$L$135,10,FALSE)) ->  | U45: =IFERROR(VLOOKUP(T45,'G-1 All Habitats'!$S$3:$T$7,2,FALSE),"") ->  | W45: =IFERROR(INDEX('G-8 Condition Look up'!$A$3:$H$136,MATCH(P45,'G-8 Condition Look up'!$A$3:$A$136,0),MATCH(V45,'G-8 Condition Look up'!$A$3:$H$3,0)),"") ->  | Y45: =IF($X45="","",IF(VLOOKUP($X45,'G-3 Multipliers'!$H$3:$J$7,2,FALSE)=0,"Spatial Data Missing",VLOOKUP($X45,'G-3 Multipliers'!$H$3:$J$7,2,FALSE))) ->  | Z45: =IF($X45="","",IF(VLOOKUP($X45,'G-3 Multipliers'!$H$3:$J$7,3,FALSE)=0,"Spatial Data Missing",VLOOKUP($X45,'G-3 Multipliers'!$H$3:$J$7,3,FALSE))) ->  | AB45: =IF(AA45="","",IF(VLOOKUP(AA45,'G-3 Multipliers'!$L$3:$N$6,2,FALSE)=0,"Spatial Data Missing",VLOOKUP(AA45,'G-3 Multipliers'!$L$3:$N$6,2,FALSE))) ->  | AC45: =IF(AA45="","",IF(VLOOKUP(AA45,'G-3 Multipliers'!$L$3:$N$6,3,FALSE)=0,"Spatial Data Missing",VLOOKUP(AA45,'G-3 Multipliers'!$L$3:$N$6,3,FALSE))) ->  | AE45: =IFERROR(VLOOKUP(AD45,'G-4 Temporal multipliers'!$A$4:$C$36,3,FALSE),"") ->  | AF45: =IF(P45="","",VLOOKUP(P45,'G-3 Multipliers'!$A$2:$E$142,4,FALSE)) ->  | AG45: =IF(P45="","",VLOOKUP(P45,'G-3 Multipliers'!$A$2:$E$142,5,FALSE)) -> 
B46: ='A-1 Site Habitat Baseline'!AN45 ->  | C46: =IF(B46="","",IF(ISNA(VLOOKUP($B46,'A-1 Site Habitat Baseline'!$B$1:$O$258,3,FALSE)),"",(VLOOKUP($B46,'A-1 Site Habitat Baseline'!$B$1:$O$258,3,FALSE)))) ->  | D46: =IF(B46="","",IF(ISNA(VLOOKUP($B46,'A-1 Site Habitat Baseline'!$B$1:$O$258,4,FALSE)),"",(VLOOKUP($B46,'A-1 Site Habitat Baseline'!$B$1:$O$258,4,FALSE)))) ->  | E46: =IF(B46="","",IF(ISNA(VLOOKUP($B46,'A-1 Site Habitat Baseline'!$B$1:$O$258,5,FALSE)),"",(VLOOKUP($B46,'A-1 Site Habitat Baseline'!$B$1:$O$258,5,FALSE)))) ->  | F46: =IF(B46="","",IF(ISNA(VLOOKUP($B46,'A-1 Site Habitat Baseline'!$B$1:$O$258,6,FALSE)),"",(VLOOKUP($B46,'A-1 Site Habitat Baseline'!$B$1:$O$258,6,FALSE)))) ->  | G46: =IF(B46="","",IF(ISNA(VLOOKUP($B46,'A-1 Site Habitat Baseline'!$B$1:$O$258,7,FALSE)),"",(VLOOKUP($B46,'A-1 Site Habitat Baseline'!$B$1:$O$258,7,FALSE)))) ->  | H46: =IF(B46="","",IF(ISNA(VLOOKUP($B46,'A-1 Site Habitat Baseline'!$B$1:$O$258,8,FALSE)),"",(VLOOKUP($B46,'A-1 Site Habitat Baseline'!$B$1:$O$258,8,FALSE)))) ->  | I46: =IF(B46="","",IF(ISNA(VLOOKUP($B46,'A-1 Site Habitat Baseline'!$B$1:$O$258,9,FALSE)),"",(VLOOKUP($B46,'A-1 Site Habitat Baseline'!$B$1:$O$258,9,FALSE)))) ->  | J46: =IF(B46="","",IF(ISNA(VLOOKUP($B46,'A-1 Site Habitat Baseline'!$B$1:$O$258,10,FALSE)),"",(VLOOKUP($B46,'A-1 Site Habitat Baseline'!$B$1:$O$258,10,FALSE)))) ->  | K46: =IF(B46="","",IF(ISNA(VLOOKUP($B46,'A-1 Site Habitat Baseline'!$B$1:$O$258,11,FALSE)),"",(VLOOKUP($B46,'A-1 Site Habitat Baseline'!$B$1:$O$258,11,FALSE)))) ->  | L46: =IF(B46="","",IF(ISNA(VLOOKUP($B46,'A-1 Site Habitat Baseline'!$B$1:$O$258,13,FALSE)),"",(VLOOKUP($B46,'A-1 Site Habitat Baseline'!$B$1:$O$258,13,FALSE)))) ->  | M46: =IF(B46="","",IF(ISNA(VLOOKUP($B46,'A-1 Site Habitat Baseline'!$B$1:$O$258,14,FALSE)),"",(VLOOKUP($B46,'A-1 Site Habitat Baseline'!$B$1:$O$258,14,FALSE)))) ->  | N46: =IF(B46="","",IF(ISNA(VLOOKUP($B46,'A-1 Site Habitat Baseline'!$B$1:$Z$258,16,FALSE)),"",(VLOOKUP($B46,'A-1 Site Habitat Baseline'!$B$1:$Z$258,16,FALSE)))) ->  | O46: =IF(B46="","",IF(ISNA(VLOOKUP($B46,'A-1 Site Habitat Baseline'!$B$1:$Z$258,15,FALSE)),"",(VLOOKUP($B46,'A-1 Site Habitat Baseline'!$B$1:$Z$258,15,FALSE)))) ->  | Q46: =IF(B46="","",IF(AND(U46<F46,P46='G-1 All Habitats'!$A$65),E46&" - "&T46,IF(U46<F46,"Error Trading Down",E46&" - "&T46))) ->  | R46: =IF(C46="","",IF(AND(LEFT(C46,55)<>LEFT(P46,55),Q46= "High - High"),"Error - Not like for like",IF(AND(F46=U46,H46>W46),"Error - Can not reduce condition",IF(AND(F46=U46,H46=W46),"Error - No enhancement",IF(AND(U46<F46,P46='G-1 All Habitats'!$A$65),G46&" - "&V46,IF(U46<F46,"Error Trading Down",IF(AND(C46<>P46,F46<U46),"Lower Distinctiveness Habitat"&" - "&V46,G46&" - "&V46))))))) ->  | T46: =IF(P46="","",VLOOKUP(P46,'G-1 All Habitats'!$A$2:$L$135,10,FALSE)) ->  | U46: =IFERROR(VLOOKUP(T46,'G-1 All Habitats'!$S$3:$T$7,2,FALSE),"") ->  | W46: =IFERROR(INDEX('G-8 Condition Look up'!$A$3:$H$136,MATCH(P46,'G-8 Condition Look up'!$A$3:$A$136,0),MATCH(V46,'G-8 Condition Look up'!$A$3:$H$3,0)),"") ->  | Y46: =IF($X46="","",IF(VLOOKUP($X46,'G-3 Multipliers'!$H$3:$J$7,2,FALSE)=0,"Spatial Data Missing",VLOOKUP($X46,'G-3 Multipliers'!$H$3:$J$7,2,FALSE))) ->  | Z46: =IF($X46="","",IF(VLOOKUP($X46,'G-3 Multipliers'!$H$3:$J$7,3,FALSE)=0,"Spatial Data Missing",VLOOKUP($X46,'G-3 Multipliers'!$H$3:$J$7,3,FALSE))) ->  | AB46: =IF(AA46="","",IF(VLOOKUP(AA46,'G-3 Multipliers'!$L$3:$N$6,2,FALSE)=0,"Spatial Data Missing",VLOOKUP(AA46,'G-3 Multipliers'!$L$3:$N$6,2,FALSE))) ->  | AC46: =IF(AA46="","",IF(VLOOKUP(AA46,'G-3 Multipliers'!$L$3:$N$6,3,FALSE)=0,"Spatial Data Missing",VLOOKUP(AA46,'G-3 Multipliers'!$L$3:$N$6,3,FALSE))) ->  | AE46: =IFERROR(VLOOKUP(AD46,'G-4 Temporal multipliers'!$A$4:$C$36,3,FALSE),"") ->  | AF46: =IF(P46="","",VLOOKUP(P46,'G-3 Multipliers'!$A$2:$E$142,4,FALSE)) ->  | AG46: =IF(P46="","",VLOOKUP(P46,'G-3 Multipliers'!$A$2:$E$142,5,FALSE)) -> 
B47: ='A-1 Site Habitat Baseline'!AN46 ->  | C47: =IF(B47="","",IF(ISNA(VLOOKUP($B47,'A-1 Site Habitat Baseline'!$B$1:$O$258,3,FALSE)),"",(VLOOKUP($B47,'A-1 Site Habitat Baseline'!$B$1:$O$258,3,FALSE)))) ->  | D47: =IF(B47="","",IF(ISNA(VLOOKUP($B47,'A-1 Site Habitat Baseline'!$B$1:$O$258,4,FALSE)),"",(VLOOKUP($B47,'A-1 Site Habitat Baseline'!$B$1:$O$258,4,FALSE)))) ->  | E47: =IF(B47="","",IF(ISNA(VLOOKUP($B47,'A-1 Site Habitat Baseline'!$B$1:$O$258,5,FALSE)),"",(VLOOKUP($B47,'A-1 Site Habitat Baseline'!$B$1:$O$258,5,FALSE)))) ->  | F47: =IF(B47="","",IF(ISNA(VLOOKUP($B47,'A-1 Site Habitat Baseline'!$B$1:$O$258,6,FALSE)),"",(VLOOKUP($B47,'A-1 Site Habitat Baseline'!$B$1:$O$258,6,FALSE)))) ->  | G47: =IF(B47="","",IF(ISNA(VLOOKUP($B47,'A-1 Site Habitat Baseline'!$B$1:$O$258,7,FALSE)),"",(VLOOKUP($B47,'A-1 Site Habitat Baseline'!$B$1:$O$258,7,FALSE)))) ->  | H47: =IF(B47="","",IF(ISNA(VLOOKUP($B47,'A-1 Site Habitat Baseline'!$B$1:$O$258,8,FALSE)),"",(VLOOKUP($B47,'A-1 Site Habitat Baseline'!$B$1:$O$258,8,FALSE)))) ->  | I47: =IF(B47="","",IF(ISNA(VLOOKUP($B47,'A-1 Site Habitat Baseline'!$B$1:$O$258,9,FALSE)),"",(VLOOKUP($B47,'A-1 Site Habitat Baseline'!$B$1:$O$258,9,FALSE)))) ->  | J47: =IF(B47="","",IF(ISNA(VLOOKUP($B47,'A-1 Site Habitat Baseline'!$B$1:$O$258,10,FALSE)),"",(VLOOKUP($B47,'A-1 Site Habitat Baseline'!$B$1:$O$258,10,FALSE)))) ->  | K47: =IF(B47="","",IF(ISNA(VLOOKUP($B47,'A-1 Site Habitat Baseline'!$B$1:$O$258,11,FALSE)),"",(VLOOKUP($B47,'A-1 Site Habitat Baseline'!$B$1:$O$258,11,FALSE)))) ->  | L47: =IF(B47="","",IF(ISNA(VLOOKUP($B47,'A-1 Site Habitat Baseline'!$B$1:$O$258,13,FALSE)),"",(VLOOKUP($B47,'A-1 Site Habitat Baseline'!$B$1:$O$258,13,FALSE)))) ->  | M47: =IF(B47="","",IF(ISNA(VLOOKUP($B47,'A-1 Site Habitat Baseline'!$B$1:$O$258,14,FALSE)),"",(VLOOKUP($B47,'A-1 Site Habitat Baseline'!$B$1:$O$258,14,FALSE)))) ->  | N47: =IF(B47="","",IF(ISNA(VLOOKUP($B47,'A-1 Site Habitat Baseline'!$B$1:$Z$258,16,FALSE)),"",(VLOOKUP($B47,'A-1 Site Habitat Baseline'!$B$1:$Z$258,16,FALSE)))) ->  | O47: =IF(B47="","",IF(ISNA(VLOOKUP($B47,'A-1 Site Habitat Baseline'!$B$1:$Z$258,15,FALSE)),"",(VLOOKUP($B47,'A-1 Site Habitat Baseline'!$B$1:$Z$258,15,FALSE)))) ->  | Q47: =IF(B47="","",IF(AND(U47<F47,P47='G-1 All Habitats'!$A$65),E47&" - "&T47,IF(U47<F47,"Error Trading Down",E47&" - "&T47))) ->  | R47: =IF(C47="","",IF(AND(LEFT(C47,55)<>LEFT(P47,55),Q47= "High - High"),"Error - Not like for like",IF(AND(F47=U47,H47>W47),"Error - Can not reduce condition",IF(AND(F47=U47,H47=W47),"Error - No enhancement",IF(AND(U47<F47,P47='G-1 All Habitats'!$A$65),G47&" - "&V47,IF(U47<F47,"Error Trading Down",IF(AND(C47<>P47,F47<U47),"Lower Distinctiveness Habitat"&" - "&V47,G47&" - "&V47))))))) ->  | T47: =IF(P47="","",VLOOKUP(P47,'G-1 All Habitats'!$A$2:$L$135,10,FALSE)) ->  | U47: =IFERROR(VLOOKUP(T47,'G-1 All Habitats'!$S$3:$T$7,2,FALSE),"") ->  | W47: =IFERROR(INDEX('G-8 Condition Look up'!$A$3:$H$136,MATCH(P47,'G-8 Condition Look up'!$A$3:$A$136,0),MATCH(V47,'G-8 Condition Look up'!$A$3:$H$3,0)),"") ->  | Y47: =IF($X47="","",IF(VLOOKUP($X47,'G-3 Multipliers'!$H$3:$J$7,2,FALSE)=0,"Spatial Data Missing",VLOOKUP($X47,'G-3 Multipliers'!$H$3:$J$7,2,FALSE))) ->  | Z47: =IF($X47="","",IF(VLOOKUP($X47,'G-3 Multipliers'!$H$3:$J$7,3,FALSE)=0,"Spatial Data Missing",VLOOKUP($X47,'G-3 Multipliers'!$H$3:$J$7,3,FALSE))) ->  | AB47: =IF(AA47="","",IF(VLOOKUP(AA47,'G-3 Multipliers'!$L$3:$N$6,2,FALSE)=0,"Spatial Data Missing",VLOOKUP(AA47,'G-3 Multipliers'!$L$3:$N$6,2,FALSE))) ->  | AC47: =IF(AA47="","",IF(VLOOKUP(AA47,'G-3 Multipliers'!$L$3:$N$6,3,FALSE)=0,"Spatial Data Missing",VLOOKUP(AA47,'G-3 Multipliers'!$L$3:$N$6,3,FALSE))) ->  | AE47: =IFERROR(VLOOKUP(AD47,'G-4 Temporal multipliers'!$A$4:$C$36,3,FALSE),"") ->  | AF47: =IF(P47="","",VLOOKUP(P47,'G-3 Multipliers'!$A$2:$E$142,4,FALSE)) ->  | AG47: =IF(P47="","",VLOOKUP(P47,'G-3 Multipliers'!$A$2:$E$142,5,FALSE)) -> 
B48: ='A-1 Site Habitat Baseline'!AN47 ->  | C48: =IF(B48="","",IF(ISNA(VLOOKUP($B48,'A-1 Site Habitat Baseline'!$B$1:$O$258,3,FALSE)),"",(VLOOKUP($B48,'A-1 Site Habitat Baseline'!$B$1:$O$258,3,FALSE)))) ->  | D48: =IF(B48="","",IF(ISNA(VLOOKUP($B48,'A-1 Site Habitat Baseline'!$B$1:$O$258,4,FALSE)),"",(VLOOKUP($B48,'A-1 Site Habitat Baseline'!$B$1:$O$258,4,FALSE)))) ->  | E48: =IF(B48="","",IF(ISNA(VLOOKUP($B48,'A-1 Site Habitat Baseline'!$B$1:$O$258,5,FALSE)),"",(VLOOKUP($B48,'A-1 Site Habitat Baseline'!$B$1:$O$258,5,FALSE)))) ->  | F48: =IF(B48="","",IF(ISNA(VLOOKUP($B48,'A-1 Site Habitat Baseline'!$B$1:$O$258,6,FALSE)),"",(VLOOKUP($B48,'A-1 Site Habitat Baseline'!$B$1:$O$258,6,FALSE)))) ->  | G48: =IF(B48="","",IF(ISNA(VLOOKUP($B48,'A-1 Site Habitat Baseline'!$B$1:$O$258,7,FALSE)),"",(VLOOKUP($B48,'A-1 Site Habitat Baseline'!$B$1:$O$258,7,FALSE)))) ->  | H48: =IF(B48="","",IF(ISNA(VLOOKUP($B48,'A-1 Site Habitat Baseline'!$B$1:$O$258,8,FALSE)),"",(VLOOKUP($B48,'A-1 Site Habitat Baseline'!$B$1:$O$258,8,FALSE)))) ->  | I48: =IF(B48="","",IF(ISNA(VLOOKUP($B48,'A-1 Site Habitat Baseline'!$B$1:$O$258,9,FALSE)),"",(VLOOKUP($B48,'A-1 Site Habitat Baseline'!$B$1:$O$258,9,FALSE)))) ->  | J48: =IF(B48="","",IF(ISNA(VLOOKUP($B48,'A-1 Site Habitat Baseline'!$B$1:$O$258,10,FALSE)),"",(VLOOKUP($B48,'A-1 Site Habitat Baseline'!$B$1:$O$258,10,FALSE)))) ->  | K48: =IF(B48="","",IF(ISNA(VLOOKUP($B48,'A-1 Site Habitat Baseline'!$B$1:$O$258,11,FALSE)),"",(VLOOKUP($B48,'A-1 Site Habitat Baseline'!$B$1:$O$258,11,FALSE)))) ->  | L48: =IF(B48="","",IF(ISNA(VLOOKUP($B48,'A-1 Site Habitat Baseline'!$B$1:$O$258,13,FALSE)),"",(VLOOKUP($B48,'A-1 Site Habitat Baseline'!$B$1:$O$258,13,FALSE)))) ->  | M48: =IF(B48="","",IF(ISNA(VLOOKUP($B48,'A-1 Site Habitat Baseline'!$B$1:$O$258,14,FALSE)),"",(VLOOKUP($B48,'A-1 Site Habitat Baseline'!$B$1:$O$258,14,FALSE)))) ->  | N48: =IF(B48="","",IF(ISNA(VLOOKUP($B48,'A-1 Site Habitat Baseline'!$B$1:$Z$258,16,FALSE)),"",(VLOOKUP($B48,'A-1 Site Habitat Baseline'!$B$1:$Z$258,16,FALSE)))) ->  | O48: =IF(B48="","",IF(ISNA(VLOOKUP($B48,'A-1 Site Habitat Baseline'!$B$1:$Z$258,15,FALSE)),"",(VLOOKUP($B48,'A-1 Site Habitat Baseline'!$B$1:$Z$258,15,FALSE)))) ->  | Q48: =IF(B48="","",IF(AND(U48<F48,P48='G-1 All Habitats'!$A$65),E48&" - "&T48,IF(U48<F48,"Error Trading Down",E48&" - "&T48))) ->  | R48: =IF(C48="","",IF(AND(LEFT(C48,55)<>LEFT(P48,55),Q48= "High - High"),"Error - Not like for like",IF(AND(F48=U48,H48>W48),"Error - Can not reduce condition",IF(AND(F48=U48,H48=W48),"Error - No enhancement",IF(AND(U48<F48,P48='G-1 All Habitats'!$A$65),G48&" - "&V48,IF(U48<F48,"Error Trading Down",IF(AND(C48<>P48,F48<U48),"Lower Distinctiveness Habitat"&" - "&V48,G48&" - "&V48))))))) ->  | T48: =IF(P48="","",VLOOKUP(P48,'G-1 All Habitats'!$A$2:$L$135,10,FALSE)) ->  | U48: =IFERROR(VLOOKUP(T48,'G-1 All Habitats'!$S$3:$T$7,2,FALSE),"") ->  | W48: =IFERROR(INDEX('G-8 Condition Look up'!$A$3:$H$136,MATCH(P48,'G-8 Condition Look up'!$A$3:$A$136,0),MATCH(V48,'G-8 Condition Look up'!$A$3:$H$3,0)),"") ->  | Y48: =IF($X48="","",IF(VLOOKUP($X48,'G-3 Multipliers'!$H$3:$J$7,2,FALSE)=0,"Spatial Data Missing",VLOOKUP($X48,'G-3 Multipliers'!$H$3:$J$7,2,FALSE))) ->  | Z48: =IF($X48="","",IF(VLOOKUP($X48,'G-3 Multipliers'!$H$3:$J$7,3,FALSE)=0,"Spatial Data Missing",VLOOKUP($X48,'G-3 Multipliers'!$H$3:$J$7,3,FALSE))) ->  | AB48: =IF(AA48="","",IF(VLOOKUP(AA48,'G-3 Multipliers'!$L$3:$N$6,2,FALSE)=0,"Spatial Data Missing",VLOOKUP(AA48,'G-3 Multipliers'!$L$3:$N$6,2,FALSE))) ->  | AC48: =IF(AA48="","",IF(VLOOKUP(AA48,'G-3 Multipliers'!$L$3:$N$6,3,FALSE)=0,"Spatial Data Missing",VLOOKUP(AA48,'G-3 Multipliers'!$L$3:$N$6,3,FALSE))) ->  | AE48: =IFERROR(VLOOKUP(AD48,'G-4 Temporal multipliers'!$A$4:$C$36,3,FALSE),"") ->  | AF48: =IF(P48="","",VLOOKUP(P48,'G-3 Multipliers'!$A$2:$E$142,4,FALSE)) ->  | AG48: =IF(P48="","",VLOOKUP(P48,'G-3 Multipliers'!$A$2:$E$142,5,FALSE)) -> 
B49: ='A-1 Site Habitat Baseline'!AN48 ->  | C49: =IF(B49="","",IF(ISNA(VLOOKUP($B49,'A-1 Site Habitat Baseline'!$B$1:$O$258,3,FALSE)),"",(VLOOKUP($B49,'A-1 Site Habitat Baseline'!$B$1:$O$258,3,FALSE)))) ->  | D49: =IF(B49="","",IF(ISNA(VLOOKUP($B49,'A-1 Site Habitat Baseline'!$B$1:$O$258,4,FALSE)),"",(VLOOKUP($B49,'A-1 Site Habitat Baseline'!$B$1:$O$258,4,FALSE)))) ->  | E49: =IF(B49="","",IF(ISNA(VLOOKUP($B49,'A-1 Site Habitat Baseline'!$B$1:$O$258,5,FALSE)),"",(VLOOKUP($B49,'A-1 Site Habitat Baseline'!$B$1:$O$258,5,FALSE)))) ->  | F49: =IF(B49="","",IF(ISNA(VLOOKUP($B49,'A-1 Site Habitat Baseline'!$B$1:$O$258,6,FALSE)),"",(VLOOKUP($B49,'A-1 Site Habitat Baseline'!$B$1:$O$258,6,FALSE)))) ->  | G49: =IF(B49="","",IF(ISNA(VLOOKUP($B49,'A-1 Site Habitat Baseline'!$B$1:$O$258,7,FALSE)),"",(VLOOKUP($B49,'A-1 Site Habitat Baseline'!$B$1:$O$258,7,FALSE)))) ->  | H49: =IF(B49="","",IF(ISNA(VLOOKUP($B49,'A-1 Site Habitat Baseline'!$B$1:$O$258,8,FALSE)),"",(VLOOKUP($B49,'A-1 Site Habitat Baseline'!$B$1:$O$258,8,FALSE)))) ->  | I49: =IF(B49="","",IF(ISNA(VLOOKUP($B49,'A-1 Site Habitat Baseline'!$B$1:$O$258,9,FALSE)),"",(VLOOKUP($B49,'A-1 Site Habitat Baseline'!$B$1:$O$258,9,FALSE)))) ->  | J49: =IF(B49="","",IF(ISNA(VLOOKUP($B49,'A-1 Site Habitat Baseline'!$B$1:$O$258,10,FALSE)),"",(VLOOKUP($B49,'A-1 Site Habitat Baseline'!$B$1:$O$258,10,FALSE)))) ->  | K49: =IF(B49="","",IF(ISNA(VLOOKUP($B49,'A-1 Site Habitat Baseline'!$B$1:$O$258,11,FALSE)),"",(VLOOKUP($B49,'A-1 Site Habitat Baseline'!$B$1:$O$258,11,FALSE)))) ->  | L49: =IF(B49="","",IF(ISNA(VLOOKUP($B49,'A-1 Site Habitat Baseline'!$B$1:$O$258,13,FALSE)),"",(VLOOKUP($B49,'A-1 Site Habitat Baseline'!$B$1:$O$258,13,FALSE)))) ->  | M49: =IF(B49="","",IF(ISNA(VLOOKUP($B49,'A-1 Site Habitat Baseline'!$B$1:$O$258,14,FALSE)),"",(VLOOKUP($B49,'A-1 Site Habitat Baseline'!$B$1:$O$258,14,FALSE)))) ->  | N49: =IF(B49="","",IF(ISNA(VLOOKUP($B49,'A-1 Site Habitat Baseline'!$B$1:$Z$258,16,FALSE)),"",(VLOOKUP($B49,'A-1 Site Habitat Baseline'!$B$1:$Z$258,16,FALSE)))) ->  | O49: =IF(B49="","",IF(ISNA(VLOOKUP($B49,'A-1 Site Habitat Baseline'!$B$1:$Z$258,15,FALSE)),"",(VLOOKUP($B49,'A-1 Site Habitat Baseline'!$B$1:$Z$258,15,FALSE)))) ->  | Q49: =IF(B49="","",IF(AND(U49<F49,P49='G-1 All Habitats'!$A$65),E49&" - "&T49,IF(U49<F49,"Error Trading Down",E49&" - "&T49))) ->  | R49: =IF(C49="","",IF(AND(LEFT(C49,55)<>LEFT(P49,55),Q49= "High - High"),"Error - Not like for like",IF(AND(F49=U49,H49>W49),"Error - Can not reduce condition",IF(AND(F49=U49,H49=W49),"Error - No enhancement",IF(AND(U49<F49,P49='G-1 All Habitats'!$A$65),G49&" - "&V49,IF(U49<F49,"Error Trading Down",IF(AND(C49<>P49,F49<U49),"Lower Distinctiveness Habitat"&" - "&V49,G49&" - "&V49))))))) ->  | T49: =IF(P49="","",VLOOKUP(P49,'G-1 All Habitats'!$A$2:$L$135,10,FALSE)) ->  | U49: =IFERROR(VLOOKUP(T49,'G-1 All Habitats'!$S$3:$T$7,2,FALSE),"") ->  | W49: =IFERROR(INDEX('G-8 Condition Look up'!$A$3:$H$136,MATCH(P49,'G-8 Condition Look up'!$A$3:$A$136,0),MATCH(V49,'G-8 Condition Look up'!$A$3:$H$3,0)),"") ->  | Y49: =IF($X49="","",IF(VLOOKUP($X49,'G-3 Multipliers'!$H$3:$J$7,2,FALSE)=0,"Spatial Data Missing",VLOOKUP($X49,'G-3 Multipliers'!$H$3:$J$7,2,FALSE))) ->  | Z49: =IF($X49="","",IF(VLOOKUP($X49,'G-3 Multipliers'!$H$3:$J$7,3,FALSE)=0,"Spatial Data Missing",VLOOKUP($X49,'G-3 Multipliers'!$H$3:$J$7,3,FALSE))) ->  | AB49: =IF(AA49="","",IF(VLOOKUP(AA49,'G-3 Multipliers'!$L$3:$N$6,2,FALSE)=0,"Spatial Data Missing",VLOOKUP(AA49,'G-3 Multipliers'!$L$3:$N$6,2,FALSE))) ->  | AC49: =IF(AA49="","",IF(VLOOKUP(AA49,'G-3 Multipliers'!$L$3:$N$6,3,FALSE)=0,"Spatial Data Missing",VLOOKUP(AA49,'G-3 Multipliers'!$L$3:$N$6,3,FALSE))) ->  | AE49: =IFERROR(VLOOKUP(AD49,'G-4 Temporal multipliers'!$A$4:$C$36,3,FALSE),"") ->  | AF49: =IF(P49="","",VLOOKUP(P49,'G-3 Multipliers'!$A$2:$E$142,4,FALSE)) ->  | AG49: =IF(P49="","",VLOOKUP(P49,'G-3 Multipliers'!$A$2:$E$142,5,FALSE)) -> 
B50: ='A-1 Site Habitat Baseline'!AN49 ->  | C50: =IF(B50="","",IF(ISNA(VLOOKUP($B50,'A-1 Site Habitat Baseline'!$B$1:$O$258,3,FALSE)),"",(VLOOKUP($B50,'A-1 Site Habitat Baseline'!$B$1:$O$258,3,FALSE)))) ->  | D50: =IF(B50="","",IF(ISNA(VLOOKUP($B50,'A-1 Site Habitat Baseline'!$B$1:$O$258,4,FALSE)),"",(VLOOKUP($B50,'A-1 Site Habitat Baseline'!$B$1:$O$258,4,FALSE)))) ->  | E50: =IF(B50="","",IF(ISNA(VLOOKUP($B50,'A-1 Site Habitat Baseline'!$B$1:$O$258,5,FALSE)),"",(VLOOKUP($B50,'A-1 Site Habitat Baseline'!$B$1:$O$258,5,FALSE)))) ->  | F50: =IF(B50="","",IF(ISNA(VLOOKUP($B50,'A-1 Site Habitat Baseline'!$B$1:$O$258,6,FALSE)),"",(VLOOKUP($B50,'A-1 Site Habitat Baseline'!$B$1:$O$258,6,FALSE)))) ->  | G50: =IF(B50="","",IF(ISNA(VLOOKUP($B50,'A-1 Site Habitat Baseline'!$B$1:$O$258,7,FALSE)),"",(VLOOKUP($B50,'A-1 Site Habitat Baseline'!$B$1:$O$258,7,FALSE)))) ->  | H50: =IF(B50="","",IF(ISNA(VLOOKUP($B50,'A-1 Site Habitat Baseline'!$B$1:$O$258,8,FALSE)),"",(VLOOKUP($B50,'A-1 Site Habitat Baseline'!$B$1:$O$258,8,FALSE)))) ->  | I50: =IF(B50="","",IF(ISNA(VLOOKUP($B50,'A-1 Site Habitat Baseline'!$B$1:$O$258,9,FALSE)),"",(VLOOKUP($B50,'A-1 Site Habitat Baseline'!$B$1:$O$258,9,FALSE)))) ->  | J50: =IF(B50="","",IF(ISNA(VLOOKUP($B50,'A-1 Site Habitat Baseline'!$B$1:$O$258,10,FALSE)),"",(VLOOKUP($B50,'A-1 Site Habitat Baseline'!$B$1:$O$258,10,FALSE)))) ->  | K50: =IF(B50="","",IF(ISNA(VLOOKUP($B50,'A-1 Site Habitat Baseline'!$B$1:$O$258,11,FALSE)),"",(VLOOKUP($B50,'A-1 Site Habitat Baseline'!$B$1:$O$258,11,FALSE)))) ->  | L50: =IF(B50="","",IF(ISNA(VLOOKUP($B50,'A-1 Site Habitat Baseline'!$B$1:$O$258,13,FALSE)),"",(VLOOKUP($B50,'A-1 Site Habitat Baseline'!$B$1:$O$258,13,FALSE)))) ->  | M50: =IF(B50="","",IF(ISNA(VLOOKUP($B50,'A-1 Site Habitat Baseline'!$B$1:$O$258,14,FALSE)),"",(VLOOKUP($B50,'A-1 Site Habitat Baseline'!$B$1:$O$258,14,FALSE)))) ->  | N50: =IF(B50="","",IF(ISNA(VLOOKUP($B50,'A-1 Site Habitat Baseline'!$B$1:$Z$258,16,FALSE)),"",(VLOOKUP($B50,'A-1 Site Habitat Baseline'!$B$1:$Z$258,16,FALSE)))) ->  | O50: =IF(B50="","",IF(ISNA(VLOOKUP($B50,'A-1 Site Habitat Baseline'!$B$1:$Z$258,15,FALSE)),"",(VLOOKUP($B50,'A-1 Site Habitat Baseline'!$B$1:$Z$258,15,FALSE)))) ->  | Q50: =IF(B50="","",IF(AND(U50<F50,P50='G-1 All Habitats'!$A$65),E50&" - "&T50,IF(U50<F50,"Error Trading Down",E50&" - "&T50))) ->  | R50: =IF(C50="","",IF(AND(LEFT(C50,55)<>LEFT(P50,55),Q50= "High - High"),"Error - Not like for like",IF(AND(F50=U50,H50>W50),"Error - Can not reduce condition",IF(AND(F50=U50,H50=W50),"Error - No enhancement",IF(AND(U50<F50,P50='G-1 All Habitats'!$A$65),G50&" - "&V50,IF(U50<F50,"Error Trading Down",IF(AND(C50<>P50,F50<U50),"Lower Distinctiveness Habitat"&" - "&V50,G50&" - "&V50))))))) ->  | T50: =IF(P50="","",VLOOKUP(P50,'G-1 All Habitats'!$A$2:$L$135,10,FALSE)) ->  | U50: =IFERROR(VLOOKUP(T50,'G-1 All Habitats'!$S$3:$T$7,2,FALSE),"") ->  | W50: =IFERROR(INDEX('G-8 Condition Look up'!$A$3:$H$136,MATCH(P50,'G-8 Condition Look up'!$A$3:$A$136,0),MATCH(V50,'G-8 Condition Look up'!$A$3:$H$3,0)),"") ->  | Y50: =IF($X50="","",IF(VLOOKUP($X50,'G-3 Multipliers'!$H$3:$J$7,2,FALSE)=0,"Spatial Data Missing",VLOOKUP($X50,'G-3 Multipliers'!$H$3:$J$7,2,FALSE))) ->  | Z50: =IF($X50="","",IF(VLOOKUP($X50,'G-3 Multipliers'!$H$3:$J$7,3,FALSE)=0,"Spatial Data Missing",VLOOKUP($X50,'G-3 Multipliers'!$H$3:$J$7,3,FALSE))) ->  | AB50: =IF(AA50="","",IF(VLOOKUP(AA50,'G-3 Multipliers'!$L$3:$N$6,2,FALSE)=0,"Spatial Data Missing",VLOOKUP(AA50,'G-3 Multipliers'!$L$3:$N$6,2,FALSE))) ->  | AC50: =IF(AA50="","",IF(VLOOKUP(AA50,'G-3 Multipliers'!$L$3:$N$6,3,FALSE)=0,"Spatial Data Missing",VLOOKUP(AA50,'G-3 Multipliers'!$L$3:$N$6,3,FALSE))) ->  | AE50: =IFERROR(VLOOKUP(AD50,'G-4 Temporal multipliers'!$A$4:$C$36,3,FALSE),"") ->  | AF50: =IF(P50="","",VLOOKUP(P50,'G-3 Multipliers'!$A$2:$E$142,4,FALSE)) ->  | AG50: =IF(P50="","",VLOOKUP(P50,'G-3 Multipliers'!$A$2:$E$142,5,FALSE)) -> 
B51: ='A-1 Site Habitat Baseline'!AN50 ->  | C51: =IF(B51="","",IF(ISNA(VLOOKUP($B51,'A-1 Site Habitat Baseline'!$B$1:$O$258,3,FALSE)),"",(VLOOKUP($B51,'A-1 Site Habitat Baseline'!$B$1:$O$258,3,FALSE)))) ->  | D51: =IF(B51="","",IF(ISNA(VLOOKUP($B51,'A-1 Site Habitat Baseline'!$B$1:$O$258,4,FALSE)),"",(VLOOKUP($B51,'A-1 Site Habitat Baseline'!$B$1:$O$258,4,FALSE)))) ->  | E51: =IF(B51="","",IF(ISNA(VLOOKUP($B51,'A-1 Site Habitat Baseline'!$B$1:$O$258,5,FALSE)),"",(VLOOKUP($B51,'A-1 Site Habitat Baseline'!$B$1:$O$258,5,FALSE)))) ->  | F51: =IF(B51="","",IF(ISNA(VLOOKUP($B51,'A-1 Site Habitat Baseline'!$B$1:$O$258,6,FALSE)),"",(VLOOKUP($B51,'A-1 Site Habitat Baseline'!$B$1:$O$258,6,FALSE)))) ->  | G51: =IF(B51="","",IF(ISNA(VLOOKUP($B51,'A-1 Site Habitat Baseline'!$B$1:$O$258,7,FALSE)),"",(VLOOKUP($B51,'A-1 Site Habitat Baseline'!$B$1:$O$258,7,FALSE)))) ->  | H51: =IF(B51="","",IF(ISNA(VLOOKUP($B51,'A-1 Site Habitat Baseline'!$B$1:$O$258,8,FALSE)),"",(VLOOKUP($B51,'A-1 Site Habitat Baseline'!$B$1:$O$258,8,FALSE)))) ->  | I51: =IF(B51="","",IF(ISNA(VLOOKUP($B51,'A-1 Site Habitat Baseline'!$B$1:$O$258,9,FALSE)),"",(VLOOKUP($B51,'A-1 Site Habitat Baseline'!$B$1:$O$258,9,FALSE)))) ->  | J51: =IF(B51="","",IF(ISNA(VLOOKUP($B51,'A-1 Site Habitat Baseline'!$B$1:$O$258,10,FALSE)),"",(VLOOKUP($B51,'A-1 Site Habitat Baseline'!$B$1:$O$258,10,FALSE)))) ->  | K51: =IF(B51="","",IF(ISNA(VLOOKUP($B51,'A-1 Site Habitat Baseline'!$B$1:$O$258,11,FALSE)),"",(VLOOKUP($B51,'A-1 Site Habitat Baseline'!$B$1:$O$258,11,FALSE)))) ->  | L51: =IF(B51="","",IF(ISNA(VLOOKUP($B51,'A-1 Site Habitat Baseline'!$B$1:$O$258,13,FALSE)),"",(VLOOKUP($B51,'A-1 Site Habitat Baseline'!$B$1:$O$258,13,FALSE)))) ->  | M51: =IF(B51="","",IF(ISNA(VLOOKUP($B51,'A-1 Site Habitat Baseline'!$B$1:$O$258,14,FALSE)),"",(VLOOKUP($B51,'A-1 Site Habitat Baseline'!$B$1:$O$258,14,FALSE)))) ->  | N51: =IF(B51="","",IF(ISNA(VLOOKUP($B51,'A-1 Site Habitat Baseline'!$B$1:$Z$258,16,FALSE)),"",(VLOOKUP($B51,'A-1 Site Habitat Baseline'!$B$1:$Z$258,16,FALSE)))) ->  | O51: =IF(B51="","",IF(ISNA(VLOOKUP($B51,'A-1 Site Habitat Baseline'!$B$1:$Z$258,15,FALSE)),"",(VLOOKUP($B51,'A-1 Site Habitat Baseline'!$B$1:$Z$258,15,FALSE)))) ->  | Q51: =IF(B51="","",IF(AND(U51<F51,P51='G-1 All Habitats'!$A$65),E51&" - "&T51,IF(U51<F51,"Error Trading Down",E51&" - "&T51))) ->  | R51: =IF(C51="","",IF(AND(LEFT(C51,55)<>LEFT(P51,55),Q51= "High - High"),"Error - Not like for like",IF(AND(F51=U51,H51>W51),"Error - Can not reduce condition",IF(AND(F51=U51,H51=W51),"Error - No enhancement",IF(AND(U51<F51,P51='G-1 All Habitats'!$A$65),G51&" - "&V51,IF(U51<F51,"Error Trading Down",IF(AND(C51<>P51,F51<U51),"Lower Distinctiveness Habitat"&" - "&V51,G51&" - "&V51))))))) ->  | T51: =IF(P51="","",VLOOKUP(P51,'G-1 All Habitats'!$A$2:$L$135,10,FALSE)) ->  | U51: =IFERROR(VLOOKUP(T51,'G-1 All Habitats'!$S$3:$T$7,2,FALSE),"") ->  | W51: =IFERROR(INDEX('G-8 Condition Look up'!$A$3:$H$136,MATCH(P51,'G-8 Condition Look up'!$A$3:$A$136,0),MATCH(V51,'G-8 Condition Look up'!$A$3:$H$3,0)),"") ->  | Y51: =IF($X51="","",IF(VLOOKUP($X51,'G-3 Multipliers'!$H$3:$J$7,2,FALSE)=0,"Spatial Data Missing",VLOOKUP($X51,'G-3 Multipliers'!$H$3:$J$7,2,FALSE))) ->  | Z51: =IF($X51="","",IF(VLOOKUP($X51,'G-3 Multipliers'!$H$3:$J$7,3,FALSE)=0,"Spatial Data Missing",VLOOKUP($X51,'G-3 Multipliers'!$H$3:$J$7,3,FALSE))) ->  | AB51: =IF(AA51="","",IF(VLOOKUP(AA51,'G-3 Multipliers'!$L$3:$N$6,2,FALSE)=0,"Spatial Data Missing",VLOOKUP(AA51,'G-3 Multipliers'!$L$3:$N$6,2,FALSE))) ->  | AC51: =IF(AA51="","",IF(VLOOKUP(AA51,'G-3 Multipliers'!$L$3:$N$6,3,FALSE)=0,"Spatial Data Missing",VLOOKUP(AA51,'G-3 Multipliers'!$L$3:$N$6,3,FALSE))) ->  | AE51: =IFERROR(VLOOKUP(AD51,'G-4 Temporal multipliers'!$A$4:$C$36,3,FALSE),"") ->  | AF51: =IF(P51="","",VLOOKUP(P51,'G-3 Multipliers'!$A$2:$E$142,4,FALSE)) ->  | AG51: =IF(P51="","",VLOOKUP(P51,'G-3 Multipliers'!$A$2:$E$142,5,FALSE)) -> 
B52: ='A-1 Site Habitat Baseline'!AN51 ->  | C52: =IF(B52="","",IF(ISNA(VLOOKUP($B52,'A-1 Site Habitat Baseline'!$B$1:$O$258,3,FALSE)),"",(VLOOKUP($B52,'A-1 Site Habitat Baseline'!$B$1:$O$258,3,FALSE)))) ->  | D52: =IF(B52="","",IF(ISNA(VLOOKUP($B52,'A-1 Site Habitat Baseline'!$B$1:$O$258,4,FALSE)),"",(VLOOKUP($B52,'A-1 Site Habitat Baseline'!$B$1:$O$258,4,FALSE)))) ->  | E52: =IF(B52="","",IF(ISNA(VLOOKUP($B52,'A-1 Site Habitat Baseline'!$B$1:$O$258,5,FALSE)),"",(VLOOKUP($B52,'A-1 Site Habitat Baseline'!$B$1:$O$258,5,FALSE)))) ->  | F52: =IF(B52="","",IF(ISNA(VLOOKUP($B52,'A-1 Site Habitat Baseline'!$B$1:$O$258,6,FALSE)),"",(VLOOKUP($B52,'A-1 Site Habitat Baseline'!$B$1:$O$258,6,FALSE)))) ->  | G52: =IF(B52="","",IF(ISNA(VLOOKUP($B52,'A-1 Site Habitat Baseline'!$B$1:$O$258,7,FALSE)),"",(VLOOKUP($B52,'A-1 Site Habitat Baseline'!$B$1:$O$258,7,FALSE)))) ->  | H52: =IF(B52="","",IF(ISNA(VLOOKUP($B52,'A-1 Site Habitat Baseline'!$B$1:$O$258,8,FALSE)),"",(VLOOKUP($B52,'A-1 Site Habitat Baseline'!$B$1:$O$258,8,FALSE)))) ->  | I52: =IF(B52="","",IF(ISNA(VLOOKUP($B52,'A-1 Site Habitat Baseline'!$B$1:$O$258,9,FALSE)),"",(VLOOKUP($B52,'A-1 Site Habitat Baseline'!$B$1:$O$258,9,FALSE)))) ->  | J52: =IF(B52="","",IF(ISNA(VLOOKUP($B52,'A-1 Site Habitat Baseline'!$B$1:$O$258,10,FALSE)),"",(VLOOKUP($B52,'A-1 Site Habitat Baseline'!$B$1:$O$258,10,FALSE)))) ->  | K52: =IF(B52="","",IF(ISNA(VLOOKUP($B52,'A-1 Site Habitat Baseline'!$B$1:$O$258,11,FALSE)),"",(VLOOKUP($B52,'A-1 Site Habitat Baseline'!$B$1:$O$258,11,FALSE)))) ->  | L52: =IF(B52="","",IF(ISNA(VLOOKUP($B52,'A-1 Site Habitat Baseline'!$B$1:$O$258,13,FALSE)),"",(VLOOKUP($B52,'A-1 Site Habitat Baseline'!$B$1:$O$258,13,FALSE)))) ->  | M52: =IF(B52="","",IF(ISNA(VLOOKUP($B52,'A-1 Site Habitat Baseline'!$B$1:$O$258,14,FALSE)),"",(VLOOKUP($B52,'A-1 Site Habitat Baseline'!$B$1:$O$258,14,FALSE)))) ->  | N52: =IF(B52="","",IF(ISNA(VLOOKUP($B52,'A-1 Site Habitat Baseline'!$B$1:$Z$258,16,FALSE)),"",(VLOOKUP($B52,'A-1 Site Habitat Baseline'!$B$1:$Z$258,16,FALSE)))) ->  | O52: =IF(B52="","",IF(ISNA(VLOOKUP($B52,'A-1 Site Habitat Baseline'!$B$1:$Z$258,15,FALSE)),"",(VLOOKUP($B52,'A-1 Site Habitat Baseline'!$B$1:$Z$258,15,FALSE)))) ->  | Q52: =IF(B52="","",IF(AND(U52<F52,P52='G-1 All Habitats'!$A$65),E52&" - "&T52,IF(U52<F52,"Error Trading Down",E52&" - "&T52))) ->  | R52: =IF(C52="","",IF(AND(LEFT(C52,55)<>LEFT(P52,55),Q52= "High - High"),"Error - Not like for like",IF(AND(F52=U52,H52>W52),"Error - Can not reduce condition",IF(AND(F52=U52,H52=W52),"Error - No enhancement",IF(AND(U52<F52,P52='G-1 All Habitats'!$A$65),G52&" - "&V52,IF(U52<F52,"Error Trading Down",IF(AND(C52<>P52,F52<U52),"Lower Distinctiveness Habitat"&" - "&V52,G52&" - "&V52))))))) ->  | T52: =IF(P52="","",VLOOKUP(P52,'G-1 All Habitats'!$A$2:$L$135,10,FALSE)) ->  | U52: =IFERROR(VLOOKUP(T52,'G-1 All Habitats'!$S$3:$T$7,2,FALSE),"") ->  | W52: =IFERROR(INDEX('G-8 Condition Look up'!$A$3:$H$136,MATCH(P52,'G-8 Condition Look up'!$A$3:$A$136,0),MATCH(V52,'G-8 Condition Look up'!$A$3:$H$3,0)),"") ->  | Y52: =IF($X52="","",IF(VLOOKUP($X52,'G-3 Multipliers'!$H$3:$J$7,2,FALSE)=0,"Spatial Data Missing",VLOOKUP($X52,'G-3 Multipliers'!$H$3:$J$7,2,FALSE))) ->  | Z52: =IF($X52="","",IF(VLOOKUP($X52,'G-3 Multipliers'!$H$3:$J$7,3,FALSE)=0,"Spatial Data Missing",VLOOKUP($X52,'G-3 Multipliers'!$H$3:$J$7,3,FALSE))) ->  | AB52: =IF(AA52="","",IF(VLOOKUP(AA52,'G-3 Multipliers'!$L$3:$N$6,2,FALSE)=0,"Spatial Data Missing",VLOOKUP(AA52,'G-3 Multipliers'!$L$3:$N$6,2,FALSE))) ->  | AC52: =IF(AA52="","",IF(VLOOKUP(AA52,'G-3 Multipliers'!$L$3:$N$6,3,FALSE)=0,"Spatial Data Missing",VLOOKUP(AA52,'G-3 Multipliers'!$L$3:$N$6,3,FALSE))) ->  | AE52: =IFERROR(VLOOKUP(AD52,'G-4 Temporal multipliers'!$A$4:$C$36,3,FALSE),"") ->  | AF52: =IF(P52="","",VLOOKUP(P52,'G-3 Multipliers'!$A$2:$E$142,4,FALSE)) ->  | AG52: =IF(P52="","",VLOOKUP(P52,'G-3 Multipliers'!$A$2:$E$142,5,FALSE)) -> 
B53: ='A-1 Site Habitat Baseline'!AN52 ->  | C53: =IF(B53="","",IF(ISNA(VLOOKUP($B53,'A-1 Site Habitat Baseline'!$B$1:$O$258,3,FALSE)),"",(VLOOKUP($B53,'A-1 Site Habitat Baseline'!$B$1:$O$258,3,FALSE)))) ->  | D53: =IF(B53="","",IF(ISNA(VLOOKUP($B53,'A-1 Site Habitat Baseline'!$B$1:$O$258,4,FALSE)),"",(VLOOKUP($B53,'A-1 Site Habitat Baseline'!$B$1:$O$258,4,FALSE)))) ->  | E53: =IF(B53="","",IF(ISNA(VLOOKUP($B53,'A-1 Site Habitat Baseline'!$B$1:$O$258,5,FALSE)),"",(VLOOKUP($B53,'A-1 Site Habitat Baseline'!$B$1:$O$258,5,FALSE)))) ->  | F53: =IF(B53="","",IF(ISNA(VLOOKUP($B53,'A-1 Site Habitat Baseline'!$B$1:$O$258,6,FALSE)),"",(VLOOKUP($B53,'A-1 Site Habitat Baseline'!$B$1:$O$258,6,FALSE)))) ->  | G53: =IF(B53="","",IF(ISNA(VLOOKUP($B53,'A-1 Site Habitat Baseline'!$B$1:$O$258,7,FALSE)),"",(VLOOKUP($B53,'A-1 Site Habitat Baseline'!$B$1:$O$258,7,FALSE)))) ->  | H53: =IF(B53="","",IF(ISNA(VLOOKUP($B53,'A-1 Site Habitat Baseline'!$B$1:$O$258,8,FALSE)),"",(VLOOKUP($B53,'A-1 Site Habitat Baseline'!$B$1:$O$258,8,FALSE)))) ->  | I53: =IF(B53="","",IF(ISNA(VLOOKUP($B53,'A-1 Site Habitat Baseline'!$B$1:$O$258,9,FALSE)),"",(VLOOKUP($B53,'A-1 Site Habitat Baseline'!$B$1:$O$258,9,FALSE)))) ->  | J53: =IF(B53="","",IF(ISNA(VLOOKUP($B53,'A-1 Site Habitat Baseline'!$B$1:$O$258,10,FALSE)),"",(VLOOKUP($B53,'A-1 Site Habitat Baseline'!$B$1:$O$258,10,FALSE)))) ->  | K53: =IF(B53="","",IF(ISNA(VLOOKUP($B53,'A-1 Site Habitat Baseline'!$B$1:$O$258,11,FALSE)),"",(VLOOKUP($B53,'A-1 Site Habitat Baseline'!$B$1:$O$258,11,FALSE)))) ->  | L53: =IF(B53="","",IF(ISNA(VLOOKUP($B53,'A-1 Site Habitat Baseline'!$B$1:$O$258,13,FALSE)),"",(VLOOKUP($B53,'A-1 Site Habitat Baseline'!$B$1:$O$258,13,FALSE)))) ->  | M53: =IF(B53="","",IF(ISNA(VLOOKUP($B53,'A-1 Site Habitat Baseline'!$B$1:$O$258,14,FALSE)),"",(VLOOKUP($B53,'A-1 Site Habitat Baseline'!$B$1:$O$258,14,FALSE)))) ->  | N53: =IF(B53="","",IF(ISNA(VLOOKUP($B53,'A-1 Site Habitat Baseline'!$B$1:$Z$258,16,FALSE)),"",(VLOOKUP($B53,'A-1 Site Habitat Baseline'!$B$1:$Z$258,16,FALSE)))) ->  | O53: =IF(B53="","",IF(ISNA(VLOOKUP($B53,'A-1 Site Habitat Baseline'!$B$1:$Z$258,15,FALSE)),"",(VLOOKUP($B53,'A-1 Site Habitat Baseline'!$B$1:$Z$258,15,FALSE)))) ->  | Q53: =IF(B53="","",IF(AND(U53<F53,P53='G-1 All Habitats'!$A$65),E53&" - "&T53,IF(U53<F53,"Error Trading Down",E53&" - "&T53))) ->  | R53: =IF(C53="","",IF(AND(LEFT(C53,55)<>LEFT(P53,55),Q53= "High - High"),"Error - Not like for like",IF(AND(F53=U53,H53>W53),"Error - Can not reduce condition",IF(AND(F53=U53,H53=W53),"Error - No enhancement",IF(AND(U53<F53,P53='G-1 All Habitats'!$A$65),G53&" - "&V53,IF(U53<F53,"Error Trading Down",IF(AND(C53<>P53,F53<U53),"Lower Distinctiveness Habitat"&" - "&V53,G53&" - "&V53))))))) ->  | T53: =IF(P53="","",VLOOKUP(P53,'G-1 All Habitats'!$A$2:$L$135,10,FALSE)) ->  | U53: =IFERROR(VLOOKUP(T53,'G-1 All Habitats'!$S$3:$T$7,2,FALSE),"") ->  | W53: =IFERROR(INDEX('G-8 Condition Look up'!$A$3:$H$136,MATCH(P53,'G-8 Condition Look up'!$A$3:$A$136,0),MATCH(V53,'G-8 Condition Look up'!$A$3:$H$3,0)),"") ->  | Y53: =IF($X53="","",IF(VLOOKUP($X53,'G-3 Multipliers'!$H$3:$J$7,2,FALSE)=0,"Spatial Data Missing",VLOOKUP($X53,'G-3 Multipliers'!$H$3:$J$7,2,FALSE))) ->  | Z53: =IF($X53="","",IF(VLOOKUP($X53,'G-3 Multipliers'!$H$3:$J$7,3,FALSE)=0,"Spatial Data Missing",VLOOKUP($X53,'G-3 Multipliers'!$H$3:$J$7,3,FALSE))) ->  | AB53: =IF(AA53="","",IF(VLOOKUP(AA53,'G-3 Multipliers'!$L$3:$N$6,2,FALSE)=0,"Spatial Data Missing",VLOOKUP(AA53,'G-3 Multipliers'!$L$3:$N$6,2,FALSE))) ->  | AC53: =IF(AA53="","",IF(VLOOKUP(AA53,'G-3 Multipliers'!$L$3:$N$6,3,FALSE)=0,"Spatial Data Missing",VLOOKUP(AA53,'G-3 Multipliers'!$L$3:$N$6,3,FALSE))) ->  | AE53: =IFERROR(VLOOKUP(AD53,'G-4 Temporal multipliers'!$A$4:$C$36,3,FALSE),"") ->  | AF53: =IF(P53="","",VLOOKUP(P53,'G-3 Multipliers'!$A$2:$E$142,4,FALSE)) ->  | AG53: =IF(P53="","",VLOOKUP(P53,'G-3 Multipliers'!$A$2:$E$142,5,FALSE)) -> 
B54: ='A-1 Site Habitat Baseline'!AN53 ->  | C54: =IF(B54="","",IF(ISNA(VLOOKUP($B54,'A-1 Site Habitat Baseline'!$B$1:$O$258,3,FALSE)),"",(VLOOKUP($B54,'A-1 Site Habitat Baseline'!$B$1:$O$258,3,FALSE)))) ->  | D54: =IF(B54="","",IF(ISNA(VLOOKUP($B54,'A-1 Site Habitat Baseline'!$B$1:$O$258,4,FALSE)),"",(VLOOKUP($B54,'A-1 Site Habitat Baseline'!$B$1:$O$258,4,FALSE)))) ->  | E54: =IF(B54="","",IF(ISNA(VLOOKUP($B54,'A-1 Site Habitat Baseline'!$B$1:$O$258,5,FALSE)),"",(VLOOKUP($B54,'A-1 Site Habitat Baseline'!$B$1:$O$258,5,FALSE)))) ->  | F54: =IF(B54="","",IF(ISNA(VLOOKUP($B54,'A-1 Site Habitat Baseline'!$B$1:$O$258,6,FALSE)),"",(VLOOKUP($B54,'A-1 Site Habitat Baseline'!$B$1:$O$258,6,FALSE)))) ->  | G54: =IF(B54="","",IF(ISNA(VLOOKUP($B54,'A-1 Site Habitat Baseline'!$B$1:$O$258,7,FALSE)),"",(VLOOKUP($B54,'A-1 Site Habitat Baseline'!$B$1:$O$258,7,FALSE)))) ->  | H54: =IF(B54="","",IF(ISNA(VLOOKUP($B54,'A-1 Site Habitat Baseline'!$B$1:$O$258,8,FALSE)),"",(VLOOKUP($B54,'A-1 Site Habitat Baseline'!$B$1:$O$258,8,FALSE)))) ->  | I54: =IF(B54="","",IF(ISNA(VLOOKUP($B54,'A-1 Site Habitat Baseline'!$B$1:$O$258,9,FALSE)),"",(VLOOKUP($B54,'A-1 Site Habitat Baseline'!$B$1:$O$258,9,FALSE)))) ->  | J54: =IF(B54="","",IF(ISNA(VLOOKUP($B54,'A-1 Site Habitat Baseline'!$B$1:$O$258,10,FALSE)),"",(VLOOKUP($B54,'A-1 Site Habitat Baseline'!$B$1:$O$258,10,FALSE)))) ->  | K54: =IF(B54="","",IF(ISNA(VLOOKUP($B54,'A-1 Site Habitat Baseline'!$B$1:$O$258,11,FALSE)),"",(VLOOKUP($B54,'A-1 Site Habitat Baseline'!$B$1:$O$258,11,FALSE)))) ->  | L54: =IF(B54="","",IF(ISNA(VLOOKUP($B54,'A-1 Site Habitat Baseline'!$B$1:$O$258,13,FALSE)),"",(VLOOKUP($B54,'A-1 Site Habitat Baseline'!$B$1:$O$258,13,FALSE)))) ->  | M54: =IF(B54="","",IF(ISNA(VLOOKUP($B54,'A-1 Site Habitat Baseline'!$B$1:$O$258,14,FALSE)),"",(VLOOKUP($B54,'A-1 Site Habitat Baseline'!$B$1:$O$258,14,FALSE)))) ->  | N54: =IF(B54="","",IF(ISNA(VLOOKUP($B54,'A-1 Site Habitat Baseline'!$B$1:$Z$258,16,FALSE)),"",(VLOOKUP($B54,'A-1 Site Habitat Baseline'!$B$1:$Z$258,16,FALSE)))) ->  | O54: =IF(B54="","",IF(ISNA(VLOOKUP($B54,'A-1 Site Habitat Baseline'!$B$1:$Z$258,15,FALSE)),"",(VLOOKUP($B54,'A-1 Site Habitat Baseline'!$B$1:$Z$258,15,FALSE)))) ->  | Q54: =IF(B54="","",IF(AND(U54<F54,P54='G-1 All Habitats'!$A$65),E54&" - "&T54,IF(U54<F54,"Error Trading Down",E54&" - "&T54))) ->  | R54: =IF(C54="","",IF(AND(LEFT(C54,55)<>LEFT(P54,55),Q54= "High - High"),"Error - Not like for like",IF(AND(F54=U54,H54>W54),"Error - Can not reduce condition",IF(AND(F54=U54,H54=W54),"Error - No enhancement",IF(AND(U54<F54,P54='G-1 All Habitats'!$A$65),G54&" - "&V54,IF(U54<F54,"Error Trading Down",IF(AND(C54<>P54,F54<U54),"Lower Distinctiveness Habitat"&" - "&V54,G54&" - "&V54))))))) ->  | T54: =IF(P54="","",VLOOKUP(P54,'G-1 All Habitats'!$A$2:$L$135,10,FALSE)) ->  | U54: =IFERROR(VLOOKUP(T54,'G-1 All Habitats'!$S$3:$T$7,2,FALSE),"") ->  | W54: =IFERROR(INDEX('G-8 Condition Look up'!$A$3:$H$136,MATCH(P54,'G-8 Condition Look up'!$A$3:$A$136,0),MATCH(V54,'G-8 Condition Look up'!$A$3:$H$3,0)),"") ->  | Y54: =IF($X54="","",IF(VLOOKUP($X54,'G-3 Multipliers'!$H$3:$J$7,2,FALSE)=0,"Spatial Data Missing",VLOOKUP($X54,'G-3 Multipliers'!$H$3:$J$7,2,FALSE))) ->  | Z54: =IF($X54="","",IF(VLOOKUP($X54,'G-3 Multipliers'!$H$3:$J$7,3,FALSE)=0,"Spatial Data Missing",VLOOKUP($X54,'G-3 Multipliers'!$H$3:$J$7,3,FALSE))) ->  | AB54: =IF(AA54="","",IF(VLOOKUP(AA54,'G-3 Multipliers'!$L$3:$N$6,2,FALSE)=0,"Spatial Data Missing",VLOOKUP(AA54,'G-3 Multipliers'!$L$3:$N$6,2,FALSE))) ->  | AC54: =IF(AA54="","",IF(VLOOKUP(AA54,'G-3 Multipliers'!$L$3:$N$6,3,FALSE)=0,"Spatial Data Missing",VLOOKUP(AA54,'G-3 Multipliers'!$L$3:$N$6,3,FALSE))) ->  | AE54: =IFERROR(VLOOKUP(AD54,'G-4 Temporal multipliers'!$A$4:$C$36,3,FALSE),"") ->  | AF54: =IF(P54="","",VLOOKUP(P54,'G-3 Multipliers'!$A$2:$E$142,4,FALSE)) ->  | AG54: =IF(P54="","",VLOOKUP(P54,'G-3 Multipliers'!$A$2:$E$142,5,FALSE)) -> 
B55: ='A-1 Site Habitat Baseline'!AN54 ->  | C55: =IF(B55="","",IF(ISNA(VLOOKUP($B55,'A-1 Site Habitat Baseline'!$B$1:$O$258,3,FALSE)),"",(VLOOKUP($B55,'A-1 Site Habitat Baseline'!$B$1:$O$258,3,FALSE)))) ->  | D55: =IF(B55="","",IF(ISNA(VLOOKUP($B55,'A-1 Site Habitat Baseline'!$B$1:$O$258,4,FALSE)),"",(VLOOKUP($B55,'A-1 Site Habitat Baseline'!$B$1:$O$258,4,FALSE)))) ->  | E55: =IF(B55="","",IF(ISNA(VLOOKUP($B55,'A-1 Site Habitat Baseline'!$B$1:$O$258,5,FALSE)),"",(VLOOKUP($B55,'A-1 Site Habitat Baseline'!$B$1:$O$258,5,FALSE)))) ->  | F55: =IF(B55="","",IF(ISNA(VLOOKUP($B55,'A-1 Site Habitat Baseline'!$B$1:$O$258,6,FALSE)),"",(VLOOKUP($B55,'A-1 Site Habitat Baseline'!$B$1:$O$258,6,FALSE)))) ->  | G55: =IF(B55="","",IF(ISNA(VLOOKUP($B55,'A-1 Site Habitat Baseline'!$B$1:$O$258,7,FALSE)),"",(VLOOKUP($B55,'A-1 Site Habitat Baseline'!$B$1:$O$258,7,FALSE)))) ->  | H55: =IF(B55="","",IF(ISNA(VLOOKUP($B55,'A-1 Site Habitat Baseline'!$B$1:$O$258,8,FALSE)),"",(VLOOKUP($B55,'A-1 Site Habitat Baseline'!$B$1:$O$258,8,FALSE)))) ->  | I55: =IF(B55="","",IF(ISNA(VLOOKUP($B55,'A-1 Site Habitat Baseline'!$B$1:$O$258,9,FALSE)),"",(VLOOKUP($B55,'A-1 Site Habitat Baseline'!$B$1:$O$258,9,FALSE)))) ->  | J55: =IF(B55="","",IF(ISNA(VLOOKUP($B55,'A-1 Site Habitat Baseline'!$B$1:$O$258,10,FALSE)),"",(VLOOKUP($B55,'A-1 Site Habitat Baseline'!$B$1:$O$258,10,FALSE)))) ->  | K55: =IF(B55="","",IF(ISNA(VLOOKUP($B55,'A-1 Site Habitat Baseline'!$B$1:$O$258,11,FALSE)),"",(VLOOKUP($B55,'A-1 Site Habitat Baseline'!$B$1:$O$258,11,FALSE)))) ->  | L55: =IF(B55="","",IF(ISNA(VLOOKUP($B55,'A-1 Site Habitat Baseline'!$B$1:$O$258,13,FALSE)),"",(VLOOKUP($B55,'A-1 Site Habitat Baseline'!$B$1:$O$258,13,FALSE)))) ->  | M55: =IF(B55="","",IF(ISNA(VLOOKUP($B55,'A-1 Site Habitat Baseline'!$B$1:$O$258,14,FALSE)),"",(VLOOKUP($B55,'A-1 Site Habitat Baseline'!$B$1:$O$258,14,FALSE)))) ->  | N55: =IF(B55="","",IF(ISNA(VLOOKUP($B55,'A-1 Site Habitat Baseline'!$B$1:$Z$258,16,FALSE)),"",(VLOOKUP($B55,'A-1 Site Habitat Baseline'!$B$1:$Z$258,16,FALSE)))) ->  | O55: =IF(B55="","",IF(ISNA(VLOOKUP($B55,'A-1 Site Habitat Baseline'!$B$1:$Z$258,15,FALSE)),"",(VLOOKUP($B55,'A-1 Site Habitat Baseline'!$B$1:$Z$258,15,FALSE)))) ->  | Q55: =IF(B55="","",IF(AND(U55<F55,P55='G-1 All Habitats'!$A$65),E55&" - "&T55,IF(U55<F55,"Error Trading Down",E55&" - "&T55))) ->  | R55: =IF(C55="","",IF(AND(LEFT(C55,55)<>LEFT(P55,55),Q55= "High - High"),"Error - Not like for like",IF(AND(F55=U55,H55>W55),"Error - Can not reduce condition",IF(AND(F55=U55,H55=W55),"Error - No enhancement",IF(AND(U55<F55,P55='G-1 All Habitats'!$A$65),G55&" - "&V55,IF(U55<F55,"Error Trading Down",IF(AND(C55<>P55,F55<U55),"Lower Distinctiveness Habitat"&" - "&V55,G55&" - "&V55))))))) ->  | T55: =IF(P55="","",VLOOKUP(P55,'G-1 All Habitats'!$A$2:$L$135,10,FALSE)) ->  | U55: =IFERROR(VLOOKUP(T55,'G-1 All Habitats'!$S$3:$T$7,2,FALSE),"") ->  | W55: =IFERROR(INDEX('G-8 Condition Look up'!$A$3:$H$136,MATCH(P55,'G-8 Condition Look up'!$A$3:$A$136,0),MATCH(V55,'G-8 Condition Look up'!$A$3:$H$3,0)),"") ->  | Y55: =IF($X55="","",IF(VLOOKUP($X55,'G-3 Multipliers'!$H$3:$J$7,2,FALSE)=0,"Spatial Data Missing",VLOOKUP($X55,'G-3 Multipliers'!$H$3:$J$7,2,FALSE))) ->  | Z55: =IF($X55="","",IF(VLOOKUP($X55,'G-3 Multipliers'!$H$3:$J$7,3,FALSE)=0,"Spatial Data Missing",VLOOKUP($X55,'G-3 Multipliers'!$H$3:$J$7,3,FALSE))) ->  | AB55: =IF(AA55="","",IF(VLOOKUP(AA55,'G-3 Multipliers'!$L$3:$N$6,2,FALSE)=0,"Spatial Data Missing",VLOOKUP(AA55,'G-3 Multipliers'!$L$3:$N$6,2,FALSE))) ->  | AC55: =IF(AA55="","",IF(VLOOKUP(AA55,'G-3 Multipliers'!$L$3:$N$6,3,FALSE)=0,"Spatial Data Missing",VLOOKUP(AA55,'G-3 Multipliers'!$L$3:$N$6,3,FALSE))) ->  | AE55: =IFERROR(VLOOKUP(AD55,'G-4 Temporal multipliers'!$A$4:$C$36,3,FALSE),"") ->  | AF55: =IF(P55="","",VLOOKUP(P55,'G-3 Multipliers'!$A$2:$E$142,4,FALSE)) ->  | AG55: =IF(P55="","",VLOOKUP(P55,'G-3 Multipliers'!$A$2:$E$142,5,FALSE)) -> 
B56: ='A-1 Site Habitat Baseline'!AN55 ->  | C56: =IF(B56="","",IF(ISNA(VLOOKUP($B56,'A-1 Site Habitat Baseline'!$B$1:$O$258,3,FALSE)),"",(VLOOKUP($B56,'A-1 Site Habitat Baseline'!$B$1:$O$258,3,FALSE)))) ->  | D56: =IF(B56="","",IF(ISNA(VLOOKUP($B56,'A-1 Site Habitat Baseline'!$B$1:$O$258,4,FALSE)),"",(VLOOKUP($B56,'A-1 Site Habitat Baseline'!$B$1:$O$258,4,FALSE)))) ->  | E56: =IF(B56="","",IF(ISNA(VLOOKUP($B56,'A-1 Site Habitat Baseline'!$B$1:$O$258,5,FALSE)),"",(VLOOKUP($B56,'A-1 Site Habitat Baseline'!$B$1:$O$258,5,FALSE)))) ->  | F56: =IF(B56="","",IF(ISNA(VLOOKUP($B56,'A-1 Site Habitat Baseline'!$B$1:$O$258,6,FALSE)),"",(VLOOKUP($B56,'A-1 Site Habitat Baseline'!$B$1:$O$258,6,FALSE)))) ->  | G56: =IF(B56="","",IF(ISNA(VLOOKUP($B56,'A-1 Site Habitat Baseline'!$B$1:$O$258,7,FALSE)),"",(VLOOKUP($B56,'A-1 Site Habitat Baseline'!$B$1:$O$258,7,FALSE)))) ->  | H56: =IF(B56="","",IF(ISNA(VLOOKUP($B56,'A-1 Site Habitat Baseline'!$B$1:$O$258,8,FALSE)),"",(VLOOKUP($B56,'A-1 Site Habitat Baseline'!$B$1:$O$258,8,FALSE)))) ->  | I56: =IF(B56="","",IF(ISNA(VLOOKUP($B56,'A-1 Site Habitat Baseline'!$B$1:$O$258,9,FALSE)),"",(VLOOKUP($B56,'A-1 Site Habitat Baseline'!$B$1:$O$258,9,FALSE)))) ->  | J56: =IF(B56="","",IF(ISNA(VLOOKUP($B56,'A-1 Site Habitat Baseline'!$B$1:$O$258,10,FALSE)),"",(VLOOKUP($B56,'A-1 Site Habitat Baseline'!$B$1:$O$258,10,FALSE)))) ->  | K56: =IF(B56="","",IF(ISNA(VLOOKUP($B56,'A-1 Site Habitat Baseline'!$B$1:$O$258,11,FALSE)),"",(VLOOKUP($B56,'A-1 Site Habitat Baseline'!$B$1:$O$258,11,FALSE)))) ->  | L56: =IF(B56="","",IF(ISNA(VLOOKUP($B56,'A-1 Site Habitat Baseline'!$B$1:$O$258,13,FALSE)),"",(VLOOKUP($B56,'A-1 Site Habitat Baseline'!$B$1:$O$258,13,FALSE)))) ->  | M56: =IF(B56="","",IF(ISNA(VLOOKUP($B56,'A-1 Site Habitat Baseline'!$B$1:$O$258,14,FALSE)),"",(VLOOKUP($B56,'A-1 Site Habitat Baseline'!$B$1:$O$258,14,FALSE)))) ->  | N56: =IF(B56="","",IF(ISNA(VLOOKUP($B56,'A-1 Site Habitat Baseline'!$B$1:$Z$258,16,FALSE)),"",(VLOOKUP($B56,'A-1 Site Habitat Baseline'!$B$1:$Z$258,16,FALSE)))) ->  | O56: =IF(B56="","",IF(ISNA(VLOOKUP($B56,'A-1 Site Habitat Baseline'!$B$1:$Z$258,15,FALSE)),"",(VLOOKUP($B56,'A-1 Site Habitat Baseline'!$B$1:$Z$258,15,FALSE)))) ->  | Q56: =IF(B56="","",IF(AND(U56<F56,P56='G-1 All Habitats'!$A$65),E56&" - "&T56,IF(U56<F56,"Error Trading Down",E56&" - "&T56))) ->  | R56: =IF(C56="","",IF(AND(LEFT(C56,55)<>LEFT(P56,55),Q56= "High - High"),"Error - Not like for like",IF(AND(F56=U56,H56>W56),"Error - Can not reduce condition",IF(AND(F56=U56,H56=W56),"Error - No enhancement",IF(AND(U56<F56,P56='G-1 All Habitats'!$A$65),G56&" - "&V56,IF(U56<F56,"Error Trading Down",IF(AND(C56<>P56,F56<U56),"Lower Distinctiveness Habitat"&" - "&V56,G56&" - "&V56))))))) ->  | T56: =IF(P56="","",VLOOKUP(P56,'G-1 All Habitats'!$A$2:$L$135,10,FALSE)) ->  | U56: =IFERROR(VLOOKUP(T56,'G-1 All Habitats'!$S$3:$T$7,2,FALSE),"") ->  | W56: =IFERROR(INDEX('G-8 Condition Look up'!$A$3:$H$136,MATCH(P56,'G-8 Condition Look up'!$A$3:$A$136,0),MATCH(V56,'G-8 Condition Look up'!$A$3:$H$3,0)),"") ->  | Y56: =IF($X56="","",IF(VLOOKUP($X56,'G-3 Multipliers'!$H$3:$J$7,2,FALSE)=0,"Spatial Data Missing",VLOOKUP($X56,'G-3 Multipliers'!$H$3:$J$7,2,FALSE))) ->  | Z56: =IF($X56="","",IF(VLOOKUP($X56,'G-3 Multipliers'!$H$3:$J$7,3,FALSE)=0,"Spatial Data Missing",VLOOKUP($X56,'G-3 Multipliers'!$H$3:$J$7,3,FALSE))) ->  | AB56: =IF(AA56="","",IF(VLOOKUP(AA56,'G-3 Multipliers'!$L$3:$N$6,2,FALSE)=0,"Spatial Data Missing",VLOOKUP(AA56,'G-3 Multipliers'!$L$3:$N$6,2,FALSE))) ->  | AC56: =IF(AA56="","",IF(VLOOKUP(AA56,'G-3 Multipliers'!$L$3:$N$6,3,FALSE)=0,"Spatial Data Missing",VLOOKUP(AA56,'G-3 Multipliers'!$L$3:$N$6,3,FALSE))) ->  | AE56: =IFERROR(VLOOKUP(AD56,'G-4 Temporal multipliers'!$A$4:$C$36,3,FALSE),"") ->  | AF56: =IF(P56="","",VLOOKUP(P56,'G-3 Multipliers'!$A$2:$E$142,4,FALSE)) ->  | AG56: =IF(P56="","",VLOOKUP(P56,'G-3 Multipliers'!$A$2:$E$142,5,FALSE)) -> 
B57: ='A-1 Site Habitat Baseline'!AN56 ->  | C57: =IF(B57="","",IF(ISNA(VLOOKUP($B57,'A-1 Site Habitat Baseline'!$B$1:$O$258,3,FALSE)),"",(VLOOKUP($B57,'A-1 Site Habitat Baseline'!$B$1:$O$258,3,FALSE)))) ->  | D57: =IF(B57="","",IF(ISNA(VLOOKUP($B57,'A-1 Site Habitat Baseline'!$B$1:$O$258,4,FALSE)),"",(VLOOKUP($B57,'A-1 Site Habitat Baseline'!$B$1:$O$258,4,FALSE)))) ->  | E57: =IF(B57="","",IF(ISNA(VLOOKUP($B57,'A-1 Site Habitat Baseline'!$B$1:$O$258,5,FALSE)),"",(VLOOKUP($B57,'A-1 Site Habitat Baseline'!$B$1:$O$258,5,FALSE)))) ->  | F57: =IF(B57="","",IF(ISNA(VLOOKUP($B57,'A-1 Site Habitat Baseline'!$B$1:$O$258,6,FALSE)),"",(VLOOKUP($B57,'A-1 Site Habitat Baseline'!$B$1:$O$258,6,FALSE)))) ->  | G57: =IF(B57="","",IF(ISNA(VLOOKUP($B57,'A-1 Site Habitat Baseline'!$B$1:$O$258,7,FALSE)),"",(VLOOKUP($B57,'A-1 Site Habitat Baseline'!$B$1:$O$258,7,FALSE)))) ->  | H57: =IF(B57="","",IF(ISNA(VLOOKUP($B57,'A-1 Site Habitat Baseline'!$B$1:$O$258,8,FALSE)),"",(VLOOKUP($B57,'A-1 Site Habitat Baseline'!$B$1:$O$258,8,FALSE)))) ->  | I57: =IF(B57="","",IF(ISNA(VLOOKUP($B57,'A-1 Site Habitat Baseline'!$B$1:$O$258,9,FALSE)),"",(VLOOKUP($B57,'A-1 Site Habitat Baseline'!$B$1:$O$258,9,FALSE)))) ->  | J57: =IF(B57="","",IF(ISNA(VLOOKUP($B57,'A-1 Site Habitat Baseline'!$B$1:$O$258,10,FALSE)),"",(VLOOKUP($B57,'A-1 Site Habitat Baseline'!$B$1:$O$258,10,FALSE)))) ->  | K57: =IF(B57="","",IF(ISNA(VLOOKUP($B57,'A-1 Site Habitat Baseline'!$B$1:$O$258,11,FALSE)),"",(VLOOKUP($B57,'A-1 Site Habitat Baseline'!$B$1:$O$258,11,FALSE)))) ->  | L57: =IF(B57="","",IF(ISNA(VLOOKUP($B57,'A-1 Site Habitat Baseline'!$B$1:$O$258,13,FALSE)),"",(VLOOKUP($B57,'A-1 Site Habitat Baseline'!$B$1:$O$258,13,FALSE)))) ->  | M57: =IF(B57="","",IF(ISNA(VLOOKUP($B57,'A-1 Site Habitat Baseline'!$B$1:$O$258,14,FALSE)),"",(VLOOKUP($B57,'A-1 Site Habitat Baseline'!$B$1:$O$258,14,FALSE)))) ->  | N57: =IF(B57="","",IF(ISNA(VLOOKUP($B57,'A-1 Site Habitat Baseline'!$B$1:$Z$258,16,FALSE)),"",(VLOOKUP($B57,'A-1 Site Habitat Baseline'!$B$1:$Z$258,16,FALSE)))) ->  | O57: =IF(B57="","",IF(ISNA(VLOOKUP($B57,'A-1 Site Habitat Baseline'!$B$1:$Z$258,15,FALSE)),"",(VLOOKUP($B57,'A-1 Site Habitat Baseline'!$B$1:$Z$258,15,FALSE)))) ->  | Q57: =IF(B57="","",IF(AND(U57<F57,P57='G-1 All Habitats'!$A$65),E57&" - "&T57,IF(U57<F57,"Error Trading Down",E57&" - "&T57))) ->  | R57: =IF(C57="","",IF(AND(LEFT(C57,55)<>LEFT(P57,55),Q57= "High - High"),"Error - Not like for like",IF(AND(F57=U57,H57>W57),"Error - Can not reduce condition",IF(AND(F57=U57,H57=W57),"Error - No enhancement",IF(AND(U57<F57,P57='G-1 All Habitats'!$A$65),G57&" - "&V57,IF(U57<F57,"Error Trading Down",IF(AND(C57<>P57,F57<U57),"Lower Distinctiveness Habitat"&" - "&V57,G57&" - "&V57))))))) ->  | T57: =IF(P57="","",VLOOKUP(P57,'G-1 All Habitats'!$A$2:$L$135,10,FALSE)) ->  | U57: =IFERROR(VLOOKUP(T57,'G-1 All Habitats'!$S$3:$T$7,2,FALSE),"") ->  | W57: =IFERROR(INDEX('G-8 Condition Look up'!$A$3:$H$136,MATCH(P57,'G-8 Condition Look up'!$A$3:$A$136,0),MATCH(V57,'G-8 Condition Look up'!$A$3:$H$3,0)),"") ->  | Y57: =IF($X57="","",IF(VLOOKUP($X57,'G-3 Multipliers'!$H$3:$J$7,2,FALSE)=0,"Spatial Data Missing",VLOOKUP($X57,'G-3 Multipliers'!$H$3:$J$7,2,FALSE))) ->  | Z57: =IF($X57="","",IF(VLOOKUP($X57,'G-3 Multipliers'!$H$3:$J$7,3,FALSE)=0,"Spatial Data Missing",VLOOKUP($X57,'G-3 Multipliers'!$H$3:$J$7,3,FALSE))) ->  | AB57: =IF(AA57="","",IF(VLOOKUP(AA57,'G-3 Multipliers'!$L$3:$N$6,2,FALSE)=0,"Spatial Data Missing",VLOOKUP(AA57,'G-3 Multipliers'!$L$3:$N$6,2,FALSE))) ->  | AC57: =IF(AA57="","",IF(VLOOKUP(AA57,'G-3 Multipliers'!$L$3:$N$6,3,FALSE)=0,"Spatial Data Missing",VLOOKUP(AA57,'G-3 Multipliers'!$L$3:$N$6,3,FALSE))) ->  | AE57: =IFERROR(VLOOKUP(AD57,'G-4 Temporal multipliers'!$A$4:$C$36,3,FALSE),"") ->  | AF57: =IF(P57="","",VLOOKUP(P57,'G-3 Multipliers'!$A$2:$E$142,4,FALSE)) ->  | AG57: =IF(P57="","",VLOOKUP(P57,'G-3 Multipliers'!$A$2:$E$142,5,FALSE)) -> 
B58: ='A-1 Site Habitat Baseline'!AN57 ->  | C58: =IF(B58="","",IF(ISNA(VLOOKUP($B58,'A-1 Site Habitat Baseline'!$B$1:$O$258,3,FALSE)),"",(VLOOKUP($B58,'A-1 Site Habitat Baseline'!$B$1:$O$258,3,FALSE)))) ->  | D58: =IF(B58="","",IF(ISNA(VLOOKUP($B58,'A-1 Site Habitat Baseline'!$B$1:$O$258,4,FALSE)),"",(VLOOKUP($B58,'A-1 Site Habitat Baseline'!$B$1:$O$258,4,FALSE)))) ->  | E58: =IF(B58="","",IF(ISNA(VLOOKUP($B58,'A-1 Site Habitat Baseline'!$B$1:$O$258,5,FALSE)),"",(VLOOKUP($B58,'A-1 Site Habitat Baseline'!$B$1:$O$258,5,FALSE)))) ->  | F58: =IF(B58="","",IF(ISNA(VLOOKUP($B58,'A-1 Site Habitat Baseline'!$B$1:$O$258,6,FALSE)),"",(VLOOKUP($B58,'A-1 Site Habitat Baseline'!$B$1:$O$258,6,FALSE)))) ->  | G58: =IF(B58="","",IF(ISNA(VLOOKUP($B58,'A-1 Site Habitat Baseline'!$B$1:$O$258,7,FALSE)),"",(VLOOKUP($B58,'A-1 Site Habitat Baseline'!$B$1:$O$258,7,FALSE)))) ->  | H58: =IF(B58="","",IF(ISNA(VLOOKUP($B58,'A-1 Site Habitat Baseline'!$B$1:$O$258,8,FALSE)),"",(VLOOKUP($B58,'A-1 Site Habitat Baseline'!$B$1:$O$258,8,FALSE)))) ->  | I58: =IF(B58="","",IF(ISNA(VLOOKUP($B58,'A-1 Site Habitat Baseline'!$B$1:$O$258,9,FALSE)),"",(VLOOKUP($B58,'A-1 Site Habitat Baseline'!$B$1:$O$258,9,FALSE)))) ->  | J58: =IF(B58="","",IF(ISNA(VLOOKUP($B58,'A-1 Site Habitat Baseline'!$B$1:$O$258,10,FALSE)),"",(VLOOKUP($B58,'A-1 Site Habitat Baseline'!$B$1:$O$258,10,FALSE)))) ->  | K58: =IF(B58="","",IF(ISNA(VLOOKUP($B58,'A-1 Site Habitat Baseline'!$B$1:$O$258,11,FALSE)),"",(VLOOKUP($B58,'A-1 Site Habitat Baseline'!$B$1:$O$258,11,FALSE)))) ->  | L58: =IF(B58="","",IF(ISNA(VLOOKUP($B58,'A-1 Site Habitat Baseline'!$B$1:$O$258,13,FALSE)),"",(VLOOKUP($B58,'A-1 Site Habitat Baseline'!$B$1:$O$258,13,FALSE)))) ->  | M58: =IF(B58="","",IF(ISNA(VLOOKUP($B58,'A-1 Site Habitat Baseline'!$B$1:$O$258,14,FALSE)),"",(VLOOKUP($B58,'A-1 Site Habitat Baseline'!$B$1:$O$258,14,FALSE)))) ->  | N58: =IF(B58="","",IF(ISNA(VLOOKUP($B58,'A-1 Site Habitat Baseline'!$B$1:$Z$258,16,FALSE)),"",(VLOOKUP($B58,'A-1 Site Habitat Baseline'!$B$1:$Z$258,16,FALSE)))) ->  | O58: =IF(B58="","",IF(ISNA(VLOOKUP($B58,'A-1 Site Habitat Baseline'!$B$1:$Z$258,15,FALSE)),"",(VLOOKUP($B58,'A-1 Site Habitat Baseline'!$B$1:$Z$258,15,FALSE)))) ->  | Q58: =IF(B58="","",IF(AND(U58<F58,P58='G-1 All Habitats'!$A$65),E58&" - "&T58,IF(U58<F58,"Error Trading Down",E58&" - "&T58))) ->  | R58: =IF(C58="","",IF(AND(LEFT(C58,55)<>LEFT(P58,55),Q58= "High - High"),"Error - Not like for like",IF(AND(F58=U58,H58>W58),"Error - Can not reduce condition",IF(AND(F58=U58,H58=W58),"Error - No enhancement",IF(AND(U58<F58,P58='G-1 All Habitats'!$A$65),G58&" - "&V58,IF(U58<F58,"Error Trading Down",IF(AND(C58<>P58,F58<U58),"Lower Distinctiveness Habitat"&" - "&V58,G58&" - "&V58))))))) ->  | T58: =IF(P58="","",VLOOKUP(P58,'G-1 All Habitats'!$A$2:$L$135,10,FALSE)) ->  | U58: =IFERROR(VLOOKUP(T58,'G-1 All Habitats'!$S$3:$T$7,2,FALSE),"") ->  | W58: =IFERROR(INDEX('G-8 Condition Look up'!$A$3:$H$136,MATCH(P58,'G-8 Condition Look up'!$A$3:$A$136,0),MATCH(V58,'G-8 Condition Look up'!$A$3:$H$3,0)),"") ->  | Y58: =IF($X58="","",IF(VLOOKUP($X58,'G-3 Multipliers'!$H$3:$J$7,2,FALSE)=0,"Spatial Data Missing",VLOOKUP($X58,'G-3 Multipliers'!$H$3:$J$7,2,FALSE))) ->  | Z58: =IF($X58="","",IF(VLOOKUP($X58,'G-3 Multipliers'!$H$3:$J$7,3,FALSE)=0,"Spatial Data Missing",VLOOKUP($X58,'G-3 Multipliers'!$H$3:$J$7,3,FALSE))) ->  | AB58: =IF(AA58="","",IF(VLOOKUP(AA58,'G-3 Multipliers'!$L$3:$N$6,2,FALSE)=0,"Spatial Data Missing",VLOOKUP(AA58,'G-3 Multipliers'!$L$3:$N$6,2,FALSE))) ->  | AC58: =IF(AA58="","",IF(VLOOKUP(AA58,'G-3 Multipliers'!$L$3:$N$6,3,FALSE)=0,"Spatial Data Missing",VLOOKUP(AA58,'G-3 Multipliers'!$L$3:$N$6,3,FALSE))) ->  | AE58: =IFERROR(VLOOKUP(AD58,'G-4 Temporal multipliers'!$A$4:$C$36,3,FALSE),"") ->  | AF58: =IF(P58="","",VLOOKUP(P58,'G-3 Multipliers'!$A$2:$E$142,4,FALSE)) ->  | AG58: =IF(P58="","",VLOOKUP(P58,'G-3 Multipliers'!$A$2:$E$142,5,FALSE)) -> 
B59: ='A-1 Site Habitat Baseline'!AN58 ->  | C59: =IF(B59="","",IF(ISNA(VLOOKUP($B59,'A-1 Site Habitat Baseline'!$B$1:$O$258,3,FALSE)),"",(VLOOKUP($B59,'A-1 Site Habitat Baseline'!$B$1:$O$258,3,FALSE)))) ->  | D59: =IF(B59="","",IF(ISNA(VLOOKUP($B59,'A-1 Site Habitat Baseline'!$B$1:$O$258,4,FALSE)),"",(VLOOKUP($B59,'A-1 Site Habitat Baseline'!$B$1:$O$258,4,FALSE)))) ->  | E59: =IF(B59="","",IF(ISNA(VLOOKUP($B59,'A-1 Site Habitat Baseline'!$B$1:$O$258,5,FALSE)),"",(VLOOKUP($B59,'A-1 Site Habitat Baseline'!$B$1:$O$258,5,FALSE)))) ->  | F59: =IF(B59="","",IF(ISNA(VLOOKUP($B59,'A-1 Site Habitat Baseline'!$B$1:$O$258,6,FALSE)),"",(VLOOKUP($B59,'A-1 Site Habitat Baseline'!$B$1:$O$258,6,FALSE)))) ->  | G59: =IF(B59="","",IF(ISNA(VLOOKUP($B59,'A-1 Site Habitat Baseline'!$B$1:$O$258,7,FALSE)),"",(VLOOKUP($B59,'A-1 Site Habitat Baseline'!$B$1:$O$258,7,FALSE)))) ->  | H59: =IF(B59="","",IF(ISNA(VLOOKUP($B59,'A-1 Site Habitat Baseline'!$B$1:$O$258,8,FALSE)),"",(VLOOKUP($B59,'A-1 Site Habitat Baseline'!$B$1:$O$258,8,FALSE)))) ->  | I59: =IF(B59="","",IF(ISNA(VLOOKUP($B59,'A-1 Site Habitat Baseline'!$B$1:$O$258,9,FALSE)),"",(VLOOKUP($B59,'A-1 Site Habitat Baseline'!$B$1:$O$258,9,FALSE)))) ->  | J59: =IF(B59="","",IF(ISNA(VLOOKUP($B59,'A-1 Site Habitat Baseline'!$B$1:$O$258,10,FALSE)),"",(VLOOKUP($B59,'A-1 Site Habitat Baseline'!$B$1:$O$258,10,FALSE)))) ->  | K59: =IF(B59="","",IF(ISNA(VLOOKUP($B59,'A-1 Site Habitat Baseline'!$B$1:$O$258,11,FALSE)),"",(VLOOKUP($B59,'A-1 Site Habitat Baseline'!$B$1:$O$258,11,FALSE)))) ->  | L59: =IF(B59="","",IF(ISNA(VLOOKUP($B59,'A-1 Site Habitat Baseline'!$B$1:$O$258,13,FALSE)),"",(VLOOKUP($B59,'A-1 Site Habitat Baseline'!$B$1:$O$258,13,FALSE)))) ->  | M59: =IF(B59="","",IF(ISNA(VLOOKUP($B59,'A-1 Site Habitat Baseline'!$B$1:$O$258,14,FALSE)),"",(VLOOKUP($B59,'A-1 Site Habitat Baseline'!$B$1:$O$258,14,FALSE)))) ->  | N59: =IF(B59="","",IF(ISNA(VLOOKUP($B59,'A-1 Site Habitat Baseline'!$B$1:$Z$258,16,FALSE)),"",(VLOOKUP($B59,'A-1 Site Habitat Baseline'!$B$1:$Z$258,16,FALSE)))) ->  | O59: =IF(B59="","",IF(ISNA(VLOOKUP($B59,'A-1 Site Habitat Baseline'!$B$1:$Z$258,15,FALSE)),"",(VLOOKUP($B59,'A-1 Site Habitat Baseline'!$B$1:$Z$258,15,FALSE)))) ->  | Q59: =IF(B59="","",IF(AND(U59<F59,P59='G-1 All Habitats'!$A$65),E59&" - "&T59,IF(U59<F59,"Error Trading Down",E59&" - "&T59))) ->  | R59: =IF(C59="","",IF(AND(LEFT(C59,55)<>LEFT(P59,55),Q59= "High - High"),"Error - Not like for like",IF(AND(F59=U59,H59>W59),"Error - Can not reduce condition",IF(AND(F59=U59,H59=W59),"Error - No enhancement",IF(AND(U59<F59,P59='G-1 All Habitats'!$A$65),G59&" - "&V59,IF(U59<F59,"Error Trading Down",IF(AND(C59<>P59,F59<U59),"Lower Distinctiveness Habitat"&" - "&V59,G59&" - "&V59))))))) ->  | T59: =IF(P59="","",VLOOKUP(P59,'G-1 All Habitats'!$A$2:$L$135,10,FALSE)) ->  | U59: =IFERROR(VLOOKUP(T59,'G-1 All Habitats'!$S$3:$T$7,2,FALSE),"") ->  | W59: =IFERROR(INDEX('G-8 Condition Look up'!$A$3:$H$136,MATCH(P59,'G-8 Condition Look up'!$A$3:$A$136,0),MATCH(V59,'G-8 Condition Look up'!$A$3:$H$3,0)),"") ->  | Y59: =IF($X59="","",IF(VLOOKUP($X59,'G-3 Multipliers'!$H$3:$J$7,2,FALSE)=0,"Spatial Data Missing",VLOOKUP($X59,'G-3 Multipliers'!$H$3:$J$7,2,FALSE))) ->  | Z59: =IF($X59="","",IF(VLOOKUP($X59,'G-3 Multipliers'!$H$3:$J$7,3,FALSE)=0,"Spatial Data Missing",VLOOKUP($X59,'G-3 Multipliers'!$H$3:$J$7,3,FALSE))) ->  | AB59: =IF(AA59="","",IF(VLOOKUP(AA59,'G-3 Multipliers'!$L$3:$N$6,2,FALSE)=0,"Spatial Data Missing",VLOOKUP(AA59,'G-3 Multipliers'!$L$3:$N$6,2,FALSE))) ->  | AC59: =IF(AA59="","",IF(VLOOKUP(AA59,'G-3 Multipliers'!$L$3:$N$6,3,FALSE)=0,"Spatial Data Missing",VLOOKUP(AA59,'G-3 Multipliers'!$L$3:$N$6,3,FALSE))) ->  | AE59: =IFERROR(VLOOKUP(AD59,'G-4 Temporal multipliers'!$A$4:$C$36,3,FALSE),"") ->  | AF59: =IF(P59="","",VLOOKUP(P59,'G-3 Multipliers'!$A$2:$E$142,4,FALSE)) ->  | AG59: =IF(P59="","",VLOOKUP(P59,'G-3 Multipliers'!$A$2:$E$142,5,FALSE)) -> 
B60: ='A-1 Site Habitat Baseline'!AN59 ->  | C60: =IF(B60="","",IF(ISNA(VLOOKUP($B60,'A-1 Site Habitat Baseline'!$B$1:$O$258,3,FALSE)),"",(VLOOKUP($B60,'A-1 Site Habitat Baseline'!$B$1:$O$258,3,FALSE)))) ->  | D60: =IF(B60="","",IF(ISNA(VLOOKUP($B60,'A-1 Site Habitat Baseline'!$B$1:$O$258,4,FALSE)),"",(VLOOKUP($B60,'A-1 Site Habitat Baseline'!$B$1:$O$258,4,FALSE)))) ->  | E60: =IF(B60="","",IF(ISNA(VLOOKUP($B60,'A-1 Site Habitat Baseline'!$B$1:$O$258,5,FALSE)),"",(VLOOKUP($B60,'A-1 Site Habitat Baseline'!$B$1:$O$258,5,FALSE)))) ->  | F60: =IF(B60="","",IF(ISNA(VLOOKUP($B60,'A-1 Site Habitat Baseline'!$B$1:$O$258,6,FALSE)),"",(VLOOKUP($B60,'A-1 Site Habitat Baseline'!$B$1:$O$258,6,FALSE)))) ->  | G60: =IF(B60="","",IF(ISNA(VLOOKUP($B60,'A-1 Site Habitat Baseline'!$B$1:$O$258,7,FALSE)),"",(VLOOKUP($B60,'A-1 Site Habitat Baseline'!$B$1:$O$258,7,FALSE)))) ->  | H60: =IF(B60="","",IF(ISNA(VLOOKUP($B60,'A-1 Site Habitat Baseline'!$B$1:$O$258,8,FALSE)),"",(VLOOKUP($B60,'A-1 Site Habitat Baseline'!$B$1:$O$258,8,FALSE)))) ->  | I60: =IF(B60="","",IF(ISNA(VLOOKUP($B60,'A-1 Site Habitat Baseline'!$B$1:$O$258,9,FALSE)),"",(VLOOKUP($B60,'A-1 Site Habitat Baseline'!$B$1:$O$258,9,FALSE)))) ->  | J60: =IF(B60="","",IF(ISNA(VLOOKUP($B60,'A-1 Site Habitat Baseline'!$B$1:$O$258,10,FALSE)),"",(VLOOKUP($B60,'A-1 Site Habitat Baseline'!$B$1:$O$258,10,FALSE)))) ->  | K60: =IF(B60="","",IF(ISNA(VLOOKUP($B60,'A-1 Site Habitat Baseline'!$B$1:$O$258,11,FALSE)),"",(VLOOKUP($B60,'A-1 Site Habitat Baseline'!$B$1:$O$258,11,FALSE)))) ->  | L60: =IF(B60="","",IF(ISNA(VLOOKUP($B60,'A-1 Site Habitat Baseline'!$B$1:$O$258,13,FALSE)),"",(VLOOKUP($B60,'A-1 Site Habitat Baseline'!$B$1:$O$258,13,FALSE)))) ->  | M60: =IF(B60="","",IF(ISNA(VLOOKUP($B60,'A-1 Site Habitat Baseline'!$B$1:$O$258,14,FALSE)),"",(VLOOKUP($B60,'A-1 Site Habitat Baseline'!$B$1:$O$258,14,FALSE)))) ->  | N60: =IF(B60="","",IF(ISNA(VLOOKUP($B60,'A-1 Site Habitat Baseline'!$B$1:$Z$258,16,FALSE)),"",(VLOOKUP($B60,'A-1 Site Habitat Baseline'!$B$1:$Z$258,16,FALSE)))) ->  | O60: =IF(B60="","",IF(ISNA(VLOOKUP($B60,'A-1 Site Habitat Baseline'!$B$1:$Z$258,15,FALSE)),"",(VLOOKUP($B60,'A-1 Site Habitat Baseline'!$B$1:$Z$258,15,FALSE)))) ->  | Q60: =IF(B60="","",IF(AND(U60<F60,P60='G-1 All Habitats'!$A$65),E60&" - "&T60,IF(U60<F60,"Error Trading Down",E60&" - "&T60))) ->  | R60: =IF(C60="","",IF(AND(LEFT(C60,55)<>LEFT(P60,55),Q60= "High - High"),"Error - Not like for like",IF(AND(F60=U60,H60>W60),"Error - Can not reduce condition",IF(AND(F60=U60,H60=W60),"Error - No enhancement",IF(AND(U60<F60,P60='G-1 All Habitats'!$A$65),G60&" - "&V60,IF(U60<F60,"Error Trading Down",IF(AND(C60<>P60,F60<U60),"Lower Distinctiveness Habitat"&" - "&V60,G60&" - "&V60))))))) ->  | T60: =IF(P60="","",VLOOKUP(P60,'G-1 All Habitats'!$A$2:$L$135,10,FALSE)) ->  | U60: =IFERROR(VLOOKUP(T60,'G-1 All Habitats'!$S$3:$T$7,2,FALSE),"") ->  | W60: =IFERROR(INDEX('G-8 Condition Look up'!$A$3:$H$136,MATCH(P60,'G-8 Condition Look up'!$A$3:$A$136,0),MATCH(V60,'G-8 Condition Look up'!$A$3:$H$3,0)),"") ->  | Y60: =IF($X60="","",IF(VLOOKUP($X60,'G-3 Multipliers'!$H$3:$J$7,2,FALSE)=0,"Spatial Data Missing",VLOOKUP($X60,'G-3 Multipliers'!$H$3:$J$7,2,FALSE))) ->  | Z60: =IF($X60="","",IF(VLOOKUP($X60,'G-3 Multipliers'!$H$3:$J$7,3,FALSE)=0,"Spatial Data Missing",VLOOKUP($X60,'G-3 Multipliers'!$H$3:$J$7,3,FALSE))) ->  | AB60: =IF(AA60="","",IF(VLOOKUP(AA60,'G-3 Multipliers'!$L$3:$N$6,2,FALSE)=0,"Spatial Data Missing",VLOOKUP(AA60,'G-3 Multipliers'!$L$3:$N$6,2,FALSE))) ->  | AC60: =IF(AA60="","",IF(VLOOKUP(AA60,'G-3 Multipliers'!$L$3:$N$6,3,FALSE)=0,"Spatial Data Missing",VLOOKUP(AA60,'G-3 Multipliers'!$L$3:$N$6,3,FALSE))) ->  | AE60: =IFERROR(VLOOKUP(AD60,'G-4 Temporal multipliers'!$A$4:$C$36,3,FALSE),"") ->  | AF60: =IF(P60="","",VLOOKUP(P60,'G-3 Multipliers'!$A$2:$E$142,4,FALSE)) ->  | AG60: =IF(P60="","",VLOOKUP(P60,'G-3 Multipliers'!$A$2:$E$142,5,FALSE)) -> 
B61: ='A-1 Site Habitat Baseline'!AN60 ->  | C61: =IF(B61="","",IF(ISNA(VLOOKUP($B61,'A-1 Site Habitat Baseline'!$B$1:$O$258,3,FALSE)),"",(VLOOKUP($B61,'A-1 Site Habitat Baseline'!$B$1:$O$258,3,FALSE)))) ->  | D61: =IF(B61="","",IF(ISNA(VLOOKUP($B61,'A-1 Site Habitat Baseline'!$B$1:$O$258,4,FALSE)),"",(VLOOKUP($B61,'A-1 Site Habitat Baseline'!$B$1:$O$258,4,FALSE)))) ->  | E61: =IF(B61="","",IF(ISNA(VLOOKUP($B61,'A-1 Site Habitat Baseline'!$B$1:$O$258,5,FALSE)),"",(VLOOKUP($B61,'A-1 Site Habitat Baseline'!$B$1:$O$258,5,FALSE)))) ->  | F61: =IF(B61="","",IF(ISNA(VLOOKUP($B61,'A-1 Site Habitat Baseline'!$B$1:$O$258,6,FALSE)),"",(VLOOKUP($B61,'A-1 Site Habitat Baseline'!$B$1:$O$258,6,FALSE)))) ->  | G61: =IF(B61="","",IF(ISNA(VLOOKUP($B61,'A-1 Site Habitat Baseline'!$B$1:$O$258,7,FALSE)),"",(VLOOKUP($B61,'A-1 Site Habitat Baseline'!$B$1:$O$258,7,FALSE)))) ->  | H61: =IF(B61="","",IF(ISNA(VLOOKUP($B61,'A-1 Site Habitat Baseline'!$B$1:$O$258,8,FALSE)),"",(VLOOKUP($B61,'A-1 Site Habitat Baseline'!$B$1:$O$258,8,FALSE)))) ->  | I61: =IF(B61="","",IF(ISNA(VLOOKUP($B61,'A-1 Site Habitat Baseline'!$B$1:$O$258,9,FALSE)),"",(VLOOKUP($B61,'A-1 Site Habitat Baseline'!$B$1:$O$258,9,FALSE)))) ->  | J61: =IF(B61="","",IF(ISNA(VLOOKUP($B61,'A-1 Site Habitat Baseline'!$B$1:$O$258,10,FALSE)),"",(VLOOKUP($B61,'A-1 Site Habitat Baseline'!$B$1:$O$258,10,FALSE)))) ->  | K61: =IF(B61="","",IF(ISNA(VLOOKUP($B61,'A-1 Site Habitat Baseline'!$B$1:$O$258,11,FALSE)),"",(VLOOKUP($B61,'A-1 Site Habitat Baseline'!$B$1:$O$258,11,FALSE)))) ->  | L61: =IF(B61="","",IF(ISNA(VLOOKUP($B61,'A-1 Site Habitat Baseline'!$B$1:$O$258,13,FALSE)),"",(VLOOKUP($B61,'A-1 Site Habitat Baseline'!$B$1:$O$258,13,FALSE)))) ->  | M61: =IF(B61="","",IF(ISNA(VLOOKUP($B61,'A-1 Site Habitat Baseline'!$B$1:$O$258,14,FALSE)),"",(VLOOKUP($B61,'A-1 Site Habitat Baseline'!$B$1:$O$258,14,FALSE)))) ->  | N61: =IF(B61="","",IF(ISNA(VLOOKUP($B61,'A-1 Site Habitat Baseline'!$B$1:$Z$258,16,FALSE)),"",(VLOOKUP($B61,'A-1 Site Habitat Baseline'!$B$1:$Z$258,16,FALSE)))) ->  | O61: =IF(B61="","",IF(ISNA(VLOOKUP($B61,'A-1 Site Habitat Baseline'!$B$1:$Z$258,15,FALSE)),"",(VLOOKUP($B61,'A-1 Site Habitat Baseline'!$B$1:$Z$258,15,FALSE)))) ->  | Q61: =IF(B61="","",IF(AND(U61<F61,P61='G-1 All Habitats'!$A$65),E61&" - "&T61,IF(U61<F61,"Error Trading Down",E61&" - "&T61))) ->  | R61: =IF(C61="","",IF(AND(LEFT(C61,55)<>LEFT(P61,55),Q61= "High - High"),"Error - Not like for like",IF(AND(F61=U61,H61>W61),"Error - Can not reduce condition",IF(AND(F61=U61,H61=W61),"Error - No enhancement",IF(AND(U61<F61,P61='G-1 All Habitats'!$A$65),G61&" - "&V61,IF(U61<F61,"Error Trading Down",IF(AND(C61<>P61,F61<U61),"Lower Distinctiveness Habitat"&" - "&V61,G61&" - "&V61))))))) ->  | T61: =IF(P61="","",VLOOKUP(P61,'G-1 All Habitats'!$A$2:$L$135,10,FALSE)) ->  | U61: =IFERROR(VLOOKUP(T61,'G-1 All Habitats'!$S$3:$T$7,2,FALSE),"") ->  | W61: =IFERROR(INDEX('G-8 Condition Look up'!$A$3:$H$136,MATCH(P61,'G-8 Condition Look up'!$A$3:$A$136,0),MATCH(V61,'G-8 Condition Look up'!$A$3:$H$3,0)),"") ->  | Y61: =IF($X61="","",IF(VLOOKUP($X61,'G-3 Multipliers'!$H$3:$J$7,2,FALSE)=0,"Spatial Data Missing",VLOOKUP($X61,'G-3 Multipliers'!$H$3:$J$7,2,FALSE))) ->  | Z61: =IF($X61="","",IF(VLOOKUP($X61,'G-3 Multipliers'!$H$3:$J$7,3,FALSE)=0,"Spatial Data Missing",VLOOKUP($X61,'G-3 Multipliers'!$H$3:$J$7,3,FALSE))) ->  | AB61: =IF(AA61="","",IF(VLOOKUP(AA61,'G-3 Multipliers'!$L$3:$N$6,2,FALSE)=0,"Spatial Data Missing",VLOOKUP(AA61,'G-3 Multipliers'!$L$3:$N$6,2,FALSE))) ->  | AC61: =IF(AA61="","",IF(VLOOKUP(AA61,'G-3 Multipliers'!$L$3:$N$6,3,FALSE)=0,"Spatial Data Missing",VLOOKUP(AA61,'G-3 Multipliers'!$L$3:$N$6,3,FALSE))) ->  | AE61: =IFERROR(VLOOKUP(AD61,'G-4 Temporal multipliers'!$A$4:$C$36,3,FALSE),"") ->  | AF61: =IF(P61="","",VLOOKUP(P61,'G-3 Multipliers'!$A$2:$E$142,4,FALSE)) ->  | AG61: =IF(P61="","",VLOOKUP(P61,'G-3 Multipliers'!$A$2:$E$142,5,FALSE)) -> 
B62: ='A-1 Site Habitat Baseline'!AN61 ->  | C62: =IF(B62="","",IF(ISNA(VLOOKUP($B62,'A-1 Site Habitat Baseline'!$B$1:$O$258,3,FALSE)),"",(VLOOKUP($B62,'A-1 Site Habitat Baseline'!$B$1:$O$258,3,FALSE)))) ->  | D62: =IF(B62="","",IF(ISNA(VLOOKUP($B62,'A-1 Site Habitat Baseline'!$B$1:$O$258,4,FALSE)),"",(VLOOKUP($B62,'A-1 Site Habitat Baseline'!$B$1:$O$258,4,FALSE)))) ->  | E62: =IF(B62="","",IF(ISNA(VLOOKUP($B62,'A-1 Site Habitat Baseline'!$B$1:$O$258,5,FALSE)),"",(VLOOKUP($B62,'A-1 Site Habitat Baseline'!$B$1:$O$258,5,FALSE)))) ->  | F62: =IF(B62="","",IF(ISNA(VLOOKUP($B62,'A-1 Site Habitat Baseline'!$B$1:$O$258,6,FALSE)),"",(VLOOKUP($B62,'A-1 Site Habitat Baseline'!$B$1:$O$258,6,FALSE)))) ->  | G62: =IF(B62="","",IF(ISNA(VLOOKUP($B62,'A-1 Site Habitat Baseline'!$B$1:$O$258,7,FALSE)),"",(VLOOKUP($B62,'A-1 Site Habitat Baseline'!$B$1:$O$258,7,FALSE)))) ->  | H62: =IF(B62="","",IF(ISNA(VLOOKUP($B62,'A-1 Site Habitat Baseline'!$B$1:$O$258,8,FALSE)),"",(VLOOKUP($B62,'A-1 Site Habitat Baseline'!$B$1:$O$258,8,FALSE)))) ->  | I62: =IF(B62="","",IF(ISNA(VLOOKUP($B62,'A-1 Site Habitat Baseline'!$B$1:$O$258,9,FALSE)),"",(VLOOKUP($B62,'A-1 Site Habitat Baseline'!$B$1:$O$258,9,FALSE)))) ->  | J62: =IF(B62="","",IF(ISNA(VLOOKUP($B62,'A-1 Site Habitat Baseline'!$B$1:$O$258,10,FALSE)),"",(VLOOKUP($B62,'A-1 Site Habitat Baseline'!$B$1:$O$258,10,FALSE)))) ->  | K62: =IF(B62="","",IF(ISNA(VLOOKUP($B62,'A-1 Site Habitat Baseline'!$B$1:$O$258,11,FALSE)),"",(VLOOKUP($B62,'A-1 Site Habitat Baseline'!$B$1:$O$258,11,FALSE)))) ->  | L62: =IF(B62="","",IF(ISNA(VLOOKUP($B62,'A-1 Site Habitat Baseline'!$B$1:$O$258,13,FALSE)),"",(VLOOKUP($B62,'A-1 Site Habitat Baseline'!$B$1:$O$258,13,FALSE)))) ->  | M62: =IF(B62="","",IF(ISNA(VLOOKUP($B62,'A-1 Site Habitat Baseline'!$B$1:$O$258,14,FALSE)),"",(VLOOKUP($B62,'A-1 Site Habitat Baseline'!$B$1:$O$258,14,FALSE)))) ->  | N62: =IF(B62="","",IF(ISNA(VLOOKUP($B62,'A-1 Site Habitat Baseline'!$B$1:$Z$258,16,FALSE)),"",(VLOOKUP($B62,'A-1 Site Habitat Baseline'!$B$1:$Z$258,16,FALSE)))) ->  | O62: =IF(B62="","",IF(ISNA(VLOOKUP($B62,'A-1 Site Habitat Baseline'!$B$1:$Z$258,15,FALSE)),"",(VLOOKUP($B62,'A-1 Site Habitat Baseline'!$B$1:$Z$258,15,FALSE)))) ->  | Q62: =IF(B62="","",IF(AND(U62<F62,P62='G-1 All Habitats'!$A$65),E62&" - "&T62,IF(U62<F62,"Error Trading Down",E62&" - "&T62))) ->  | R62: =IF(C62="","",IF(AND(LEFT(C62,55)<>LEFT(P62,55),Q62= "High - High"),"Error - Not like for like",IF(AND(F62=U62,H62>W62),"Error - Can not reduce condition",IF(AND(F62=U62,H62=W62),"Error - No enhancement",IF(AND(U62<F62,P62='G-1 All Habitats'!$A$65),G62&" - "&V62,IF(U62<F62,"Error Trading Down",IF(AND(C62<>P62,F62<U62),"Lower Distinctiveness Habitat"&" - "&V62,G62&" - "&V62))))))) ->  | T62: =IF(P62="","",VLOOKUP(P62,'G-1 All Habitats'!$A$2:$L$135,10,FALSE)) ->  | U62: =IFERROR(VLOOKUP(T62,'G-1 All Habitats'!$S$3:$T$7,2,FALSE),"") ->  | W62: =IFERROR(INDEX('G-8 Condition Look up'!$A$3:$H$136,MATCH(P62,'G-8 Condition Look up'!$A$3:$A$136,0),MATCH(V62,'G-8 Condition Look up'!$A$3:$H$3,0)),"") ->  | Y62: =IF($X62="","",IF(VLOOKUP($X62,'G-3 Multipliers'!$H$3:$J$7,2,FALSE)=0,"Spatial Data Missing",VLOOKUP($X62,'G-3 Multipliers'!$H$3:$J$7,2,FALSE))) ->  | Z62: =IF($X62="","",IF(VLOOKUP($X62,'G-3 Multipliers'!$H$3:$J$7,3,FALSE)=0,"Spatial Data Missing",VLOOKUP($X62,'G-3 Multipliers'!$H$3:$J$7,3,FALSE))) ->  | AB62: =IF(AA62="","",IF(VLOOKUP(AA62,'G-3 Multipliers'!$L$3:$N$6,2,FALSE)=0,"Spatial Data Missing",VLOOKUP(AA62,'G-3 Multipliers'!$L$3:$N$6,2,FALSE))) ->  | AC62: =IF(AA62="","",IF(VLOOKUP(AA62,'G-3 Multipliers'!$L$3:$N$6,3,FALSE)=0,"Spatial Data Missing",VLOOKUP(AA62,'G-3 Multipliers'!$L$3:$N$6,3,FALSE))) ->  | AE62: =IFERROR(VLOOKUP(AD62,'G-4 Temporal multipliers'!$A$4:$C$36,3,FALSE),"") ->  | AF62: =IF(P62="","",VLOOKUP(P62,'G-3 Multipliers'!$A$2:$E$142,4,FALSE)) ->  | AG62: =IF(P62="","",VLOOKUP(P62,'G-3 Multipliers'!$A$2:$E$142,5,FALSE)) -> 
B63: ='A-1 Site Habitat Baseline'!AN62 ->  | C63: =IF(B63="","",IF(ISNA(VLOOKUP($B63,'A-1 Site Habitat Baseline'!$B$1:$O$258,3,FALSE)),"",(VLOOKUP($B63,'A-1 Site Habitat Baseline'!$B$1:$O$258,3,FALSE)))) ->  | D63: =IF(B63="","",IF(ISNA(VLOOKUP($B63,'A-1 Site Habitat Baseline'!$B$1:$O$258,4,FALSE)),"",(VLOOKUP($B63,'A-1 Site Habitat Baseline'!$B$1:$O$258,4,FALSE)))) ->  | E63: =IF(B63="","",IF(ISNA(VLOOKUP($B63,'A-1 Site Habitat Baseline'!$B$1:$O$258,5,FALSE)),"",(VLOOKUP($B63,'A-1 Site Habitat Baseline'!$B$1:$O$258,5,FALSE)))) ->  | F63: =IF(B63="","",IF(ISNA(VLOOKUP($B63,'A-1 Site Habitat Baseline'!$B$1:$O$258,6,FALSE)),"",(VLOOKUP($B63,'A-1 Site Habitat Baseline'!$B$1:$O$258,6,FALSE)))) ->  | G63: =IF(B63="","",IF(ISNA(VLOOKUP($B63,'A-1 Site Habitat Baseline'!$B$1:$O$258,7,FALSE)),"",(VLOOKUP($B63,'A-1 Site Habitat Baseline'!$B$1:$O$258,7,FALSE)))) ->  | H63: =IF(B63="","",IF(ISNA(VLOOKUP($B63,'A-1 Site Habitat Baseline'!$B$1:$O$258,8,FALSE)),"",(VLOOKUP($B63,'A-1 Site Habitat Baseline'!$B$1:$O$258,8,FALSE)))) ->  | I63: =IF(B63="","",IF(ISNA(VLOOKUP($B63,'A-1 Site Habitat Baseline'!$B$1:$O$258,9,FALSE)),"",(VLOOKUP($B63,'A-1 Site Habitat Baseline'!$B$1:$O$258,9,FALSE)))) ->  | J63: =IF(B63="","",IF(ISNA(VLOOKUP($B63,'A-1 Site Habitat Baseline'!$B$1:$O$258,10,FALSE)),"",(VLOOKUP($B63,'A-1 Site Habitat Baseline'!$B$1:$O$258,10,FALSE)))) ->  | K63: =IF(B63="","",IF(ISNA(VLOOKUP($B63,'A-1 Site Habitat Baseline'!$B$1:$O$258,11,FALSE)),"",(VLOOKUP($B63,'A-1 Site Habitat Baseline'!$B$1:$O$258,11,FALSE)))) ->  | L63: =IF(B63="","",IF(ISNA(VLOOKUP($B63,'A-1 Site Habitat Baseline'!$B$1:$O$258,13,FALSE)),"",(VLOOKUP($B63,'A-1 Site Habitat Baseline'!$B$1:$O$258,13,FALSE)))) ->  | M63: =IF(B63="","",IF(ISNA(VLOOKUP($B63,'A-1 Site Habitat Baseline'!$B$1:$O$258,14,FALSE)),"",(VLOOKUP($B63,'A-1 Site Habitat Baseline'!$B$1:$O$258,14,FALSE)))) ->  | N63: =IF(B63="","",IF(ISNA(VLOOKUP($B63,'A-1 Site Habitat Baseline'!$B$1:$Z$258,16,FALSE)),"",(VLOOKUP($B63,'A-1 Site Habitat Baseline'!$B$1:$Z$258,16,FALSE)))) ->  | O63: =IF(B63="","",IF(ISNA(VLOOKUP($B63,'A-1 Site Habitat Baseline'!$B$1:$Z$258,15,FALSE)),"",(VLOOKUP($B63,'A-1 Site Habitat Baseline'!$B$1:$Z$258,15,FALSE)))) ->  | Q63: =IF(B63="","",IF(AND(U63<F63,P63='G-1 All Habitats'!$A$65),E63&" - "&T63,IF(U63<F63,"Error Trading Down",E63&" - "&T63))) ->  | R63: =IF(C63="","",IF(AND(LEFT(C63,55)<>LEFT(P63,55),Q63= "High - High"),"Error - Not like for like",IF(AND(F63=U63,H63>W63),"Error - Can not reduce condition",IF(AND(F63=U63,H63=W63),"Error - No enhancement",IF(AND(U63<F63,P63='G-1 All Habitats'!$A$65),G63&" - "&V63,IF(U63<F63,"Error Trading Down",IF(AND(C63<>P63,F63<U63),"Lower Distinctiveness Habitat"&" - "&V63,G63&" - "&V63))))))) ->  | T63: =IF(P63="","",VLOOKUP(P63,'G-1 All Habitats'!$A$2:$L$135,10,FALSE)) ->  | U63: =IFERROR(VLOOKUP(T63,'G-1 All Habitats'!$S$3:$T$7,2,FALSE),"") ->  | W63: =IFERROR(INDEX('G-8 Condition Look up'!$A$3:$H$136,MATCH(P63,'G-8 Condition Look up'!$A$3:$A$136,0),MATCH(V63,'G-8 Condition Look up'!$A$3:$H$3,0)),"") ->  | Y63: =IF($X63="","",IF(VLOOKUP($X63,'G-3 Multipliers'!$H$3:$J$7,2,FALSE)=0,"Spatial Data Missing",VLOOKUP($X63,'G-3 Multipliers'!$H$3:$J$7,2,FALSE))) ->  | Z63: =IF($X63="","",IF(VLOOKUP($X63,'G-3 Multipliers'!$H$3:$J$7,3,FALSE)=0,"Spatial Data Missing",VLOOKUP($X63,'G-3 Multipliers'!$H$3:$J$7,3,FALSE))) ->  | AB63: =IF(AA63="","",IF(VLOOKUP(AA63,'G-3 Multipliers'!$L$3:$N$6,2,FALSE)=0,"Spatial Data Missing",VLOOKUP(AA63,'G-3 Multipliers'!$L$3:$N$6,2,FALSE))) ->  | AC63: =IF(AA63="","",IF(VLOOKUP(AA63,'G-3 Multipliers'!$L$3:$N$6,3,FALSE)=0,"Spatial Data Missing",VLOOKUP(AA63,'G-3 Multipliers'!$L$3:$N$6,3,FALSE))) ->  | AE63: =IFERROR(VLOOKUP(AD63,'G-4 Temporal multipliers'!$A$4:$C$36,3,FALSE),"") ->  | AF63: =IF(P63="","",VLOOKUP(P63,'G-3 Multipliers'!$A$2:$E$142,4,FALSE)) ->  | AG63: =IF(P63="","",VLOOKUP(P63,'G-3 Multipliers'!$A$2:$E$142,5,FALSE)) -> 
B64: ='A-1 Site Habitat Baseline'!AN63 ->  | C64: =IF(B64="","",IF(ISNA(VLOOKUP($B64,'A-1 Site Habitat Baseline'!$B$1:$O$258,3,FALSE)),"",(VLOOKUP($B64,'A-1 Site Habitat Baseline'!$B$1:$O$258,3,FALSE)))) ->  | D64: =IF(B64="","",IF(ISNA(VLOOKUP($B64,'A-1 Site Habitat Baseline'!$B$1:$O$258,4,FALSE)),"",(VLOOKUP($B64,'A-1 Site Habitat Baseline'!$B$1:$O$258,4,FALSE)))) ->  | E64: =IF(B64="","",IF(ISNA(VLOOKUP($B64,'A-1 Site Habitat Baseline'!$B$1:$O$258,5,FALSE)),"",(VLOOKUP($B64,'A-1 Site Habitat Baseline'!$B$1:$O$258,5,FALSE)))) ->  | F64: =IF(B64="","",IF(ISNA(VLOOKUP($B64,'A-1 Site Habitat Baseline'!$B$1:$O$258,6,FALSE)),"",(VLOOKUP($B64,'A-1 Site Habitat Baseline'!$B$1:$O$258,6,FALSE)))) ->  | G64: =IF(B64="","",IF(ISNA(VLOOKUP($B64,'A-1 Site Habitat Baseline'!$B$1:$O$258,7,FALSE)),"",(VLOOKUP($B64,'A-1 Site Habitat Baseline'!$B$1:$O$258,7,FALSE)))) ->  | H64: =IF(B64="","",IF(ISNA(VLOOKUP($B64,'A-1 Site Habitat Baseline'!$B$1:$O$258,8,FALSE)),"",(VLOOKUP($B64,'A-1 Site Habitat Baseline'!$B$1:$O$258,8,FALSE)))) ->  | I64: =IF(B64="","",IF(ISNA(VLOOKUP($B64,'A-1 Site Habitat Baseline'!$B$1:$O$258,9,FALSE)),"",(VLOOKUP($B64,'A-1 Site Habitat Baseline'!$B$1:$O$258,9,FALSE)))) ->  | J64: =IF(B64="","",IF(ISNA(VLOOKUP($B64,'A-1 Site Habitat Baseline'!$B$1:$O$258,10,FALSE)),"",(VLOOKUP($B64,'A-1 Site Habitat Baseline'!$B$1:$O$258,10,FALSE)))) ->  | K64: =IF(B64="","",IF(ISNA(VLOOKUP($B64,'A-1 Site Habitat Baseline'!$B$1:$O$258,11,FALSE)),"",(VLOOKUP($B64,'A-1 Site Habitat Baseline'!$B$1:$O$258,11,FALSE)))) ->  | L64: =IF(B64="","",IF(ISNA(VLOOKUP($B64,'A-1 Site Habitat Baseline'!$B$1:$O$258,13,FALSE)),"",(VLOOKUP($B64,'A-1 Site Habitat Baseline'!$B$1:$O$258,13,FALSE)))) ->  | M64: =IF(B64="","",IF(ISNA(VLOOKUP($B64,'A-1 Site Habitat Baseline'!$B$1:$O$258,14,FALSE)),"",(VLOOKUP($B64,'A-1 Site Habitat Baseline'!$B$1:$O$258,14,FALSE)))) ->  | N64: =IF(B64="","",IF(ISNA(VLOOKUP($B64,'A-1 Site Habitat Baseline'!$B$1:$Z$258,16,FALSE)),"",(VLOOKUP($B64,'A-1 Site Habitat Baseline'!$B$1:$Z$258,16,FALSE)))) ->  | O64: =IF(B64="","",IF(ISNA(VLOOKUP($B64,'A-1 Site Habitat Baseline'!$B$1:$Z$258,15,FALSE)),"",(VLOOKUP($B64,'A-1 Site Habitat Baseline'!$B$1:$Z$258,15,FALSE)))) ->  | Q64: =IF(B64="","",IF(AND(U64<F64,P64='G-1 All Habitats'!$A$65),E64&" - "&T64,IF(U64<F64,"Error Trading Down",E64&" - "&T64))) ->  | R64: =IF(C64="","",IF(AND(LEFT(C64,55)<>LEFT(P64,55),Q64= "High - High"),"Error - Not like for like",IF(AND(F64=U64,H64>W64),"Error - Can not reduce condition",IF(AND(F64=U64,H64=W64),"Error - No enhancement",IF(AND(U64<F64,P64='G-1 All Habitats'!$A$65),G64&" - "&V64,IF(U64<F64,"Error Trading Down",IF(AND(C64<>P64,F64<U64),"Lower Distinctiveness Habitat"&" - "&V64,G64&" - "&V64))))))) ->  | T64: =IF(P64="","",VLOOKUP(P64,'G-1 All Habitats'!$A$2:$L$135,10,FALSE)) ->  | U64: =IFERROR(VLOOKUP(T64,'G-1 All Habitats'!$S$3:$T$7,2,FALSE),"") ->  | W64: =IFERROR(INDEX('G-8 Condition Look up'!$A$3:$H$136,MATCH(P64,'G-8 Condition Look up'!$A$3:$A$136,0),MATCH(V64,'G-8 Condition Look up'!$A$3:$H$3,0)),"") ->  | Y64: =IF($X64="","",IF(VLOOKUP($X64,'G-3 Multipliers'!$H$3:$J$7,2,FALSE)=0,"Spatial Data Missing",VLOOKUP($X64,'G-3 Multipliers'!$H$3:$J$7,2,FALSE))) ->  | Z64: =IF($X64="","",IF(VLOOKUP($X64,'G-3 Multipliers'!$H$3:$J$7,3,FALSE)=0,"Spatial Data Missing",VLOOKUP($X64,'G-3 Multipliers'!$H$3:$J$7,3,FALSE))) ->  | AB64: =IF(AA64="","",IF(VLOOKUP(AA64,'G-3 Multipliers'!$L$3:$N$6,2,FALSE)=0,"Spatial Data Missing",VLOOKUP(AA64,'G-3 Multipliers'!$L$3:$N$6,2,FALSE))) ->  | AC64: =IF(AA64="","",IF(VLOOKUP(AA64,'G-3 Multipliers'!$L$3:$N$6,3,FALSE)=0,"Spatial Data Missing",VLOOKUP(AA64,'G-3 Multipliers'!$L$3:$N$6,3,FALSE))) ->  | AE64: =IFERROR(VLOOKUP(AD64,'G-4 Temporal multipliers'!$A$4:$C$36,3,FALSE),"") ->  | AF64: =IF(P64="","",VLOOKUP(P64,'G-3 Multipliers'!$A$2:$E$142,4,FALSE)) ->  | AG64: =IF(P64="","",VLOOKUP(P64,'G-3 Multipliers'!$A$2:$E$142,5,FALSE)) -> 
B65: ='A-1 Site Habitat Baseline'!AN64 ->  | C65: =IF(B65="","",IF(ISNA(VLOOKUP($B65,'A-1 Site Habitat Baseline'!$B$1:$O$258,3,FALSE)),"",(VLOOKUP($B65,'A-1 Site Habitat Baseline'!$B$1:$O$258,3,FALSE)))) ->  | D65: =IF(B65="","",IF(ISNA(VLOOKUP($B65,'A-1 Site Habitat Baseline'!$B$1:$O$258,4,FALSE)),"",(VLOOKUP($B65,'A-1 Site Habitat Baseline'!$B$1:$O$258,4,FALSE)))) ->  | E65: =IF(B65="","",IF(ISNA(VLOOKUP($B65,'A-1 Site Habitat Baseline'!$B$1:$O$258,5,FALSE)),"",(VLOOKUP($B65,'A-1 Site Habitat Baseline'!$B$1:$O$258,5,FALSE)))) ->  | F65: =IF(B65="","",IF(ISNA(VLOOKUP($B65,'A-1 Site Habitat Baseline'!$B$1:$O$258,6,FALSE)),"",(VLOOKUP($B65,'A-1 Site Habitat Baseline'!$B$1:$O$258,6,FALSE)))) ->  | G65: =IF(B65="","",IF(ISNA(VLOOKUP($B65,'A-1 Site Habitat Baseline'!$B$1:$O$258,7,FALSE)),"",(VLOOKUP($B65,'A-1 Site Habitat Baseline'!$B$1:$O$258,7,FALSE)))) ->  | H65: =IF(B65="","",IF(ISNA(VLOOKUP($B65,'A-1 Site Habitat Baseline'!$B$1:$O$258,8,FALSE)),"",(VLOOKUP($B65,'A-1 Site Habitat Baseline'!$B$1:$O$258,8,FALSE)))) ->  | I65: =IF(B65="","",IF(ISNA(VLOOKUP($B65,'A-1 Site Habitat Baseline'!$B$1:$O$258,9,FALSE)),"",(VLOOKUP($B65,'A-1 Site Habitat Baseline'!$B$1:$O$258,9,FALSE)))) ->  | J65: =IF(B65="","",IF(ISNA(VLOOKUP($B65,'A-1 Site Habitat Baseline'!$B$1:$O$258,10,FALSE)),"",(VLOOKUP($B65,'A-1 Site Habitat Baseline'!$B$1:$O$258,10,FALSE)))) ->  | K65: =IF(B65="","",IF(ISNA(VLOOKUP($B65,'A-1 Site Habitat Baseline'!$B$1:$O$258,11,FALSE)),"",(VLOOKUP($B65,'A-1 Site Habitat Baseline'!$B$1:$O$258,11,FALSE)))) ->  | L65: =IF(B65="","",IF(ISNA(VLOOKUP($B65,'A-1 Site Habitat Baseline'!$B$1:$O$258,13,FALSE)),"",(VLOOKUP($B65,'A-1 Site Habitat Baseline'!$B$1:$O$258,13,FALSE)))) ->  | M65: =IF(B65="","",IF(ISNA(VLOOKUP($B65,'A-1 Site Habitat Baseline'!$B$1:$O$258,14,FALSE)),"",(VLOOKUP($B65,'A-1 Site Habitat Baseline'!$B$1:$O$258,14,FALSE)))) ->  | N65: =IF(B65="","",IF(ISNA(VLOOKUP($B65,'A-1 Site Habitat Baseline'!$B$1:$Z$258,16,FALSE)),"",(VLOOKUP($B65,'A-1 Site Habitat Baseline'!$B$1:$Z$258,16,FALSE)))) ->  | O65: =IF(B65="","",IF(ISNA(VLOOKUP($B65,'A-1 Site Habitat Baseline'!$B$1:$Z$258,15,FALSE)),"",(VLOOKUP($B65,'A-1 Site Habitat Baseline'!$B$1:$Z$258,15,FALSE)))) ->  | Q65: =IF(B65="","",IF(AND(U65<F65,P65='G-1 All Habitats'!$A$65),E65&" - "&T65,IF(U65<F65,"Error Trading Down",E65&" - "&T65))) ->  | R65: =IF(C65="","",IF(AND(LEFT(C65,55)<>LEFT(P65,55),Q65= "High - High"),"Error - Not like for like",IF(AND(F65=U65,H65>W65),"Error - Can not reduce condition",IF(AND(F65=U65,H65=W65),"Error - No enhancement",IF(AND(U65<F65,P65='G-1 All Habitats'!$A$65),G65&" - "&V65,IF(U65<F65,"Error Trading Down",IF(AND(C65<>P65,F65<U65),"Lower Distinctiveness Habitat"&" - "&V65,G65&" - "&V65))))))) ->  | T65: =IF(P65="","",VLOOKUP(P65,'G-1 All Habitats'!$A$2:$L$135,10,FALSE)) ->  | U65: =IFERROR(VLOOKUP(T65,'G-1 All Habitats'!$S$3:$T$7,2,FALSE),"") ->  | W65: =IFERROR(INDEX('G-8 Condition Look up'!$A$3:$H$136,MATCH(P65,'G-8 Condition Look up'!$A$3:$A$136,0),MATCH(V65,'G-8 Condition Look up'!$A$3:$H$3,0)),"") ->  | Y65: =IF($X65="","",IF(VLOOKUP($X65,'G-3 Multipliers'!$H$3:$J$7,2,FALSE)=0,"Spatial Data Missing",VLOOKUP($X65,'G-3 Multipliers'!$H$3:$J$7,2,FALSE))) ->  | Z65: =IF($X65="","",IF(VLOOKUP($X65,'G-3 Multipliers'!$H$3:$J$7,3,FALSE)=0,"Spatial Data Missing",VLOOKUP($X65,'G-3 Multipliers'!$H$3:$J$7,3,FALSE))) ->  | AB65: =IF(AA65="","",IF(VLOOKUP(AA65,'G-3 Multipliers'!$L$3:$N$6,2,FALSE)=0,"Spatial Data Missing",VLOOKUP(AA65,'G-3 Multipliers'!$L$3:$N$6,2,FALSE))) ->  | AC65: =IF(AA65="","",IF(VLOOKUP(AA65,'G-3 Multipliers'!$L$3:$N$6,3,FALSE)=0,"Spatial Data Missing",VLOOKUP(AA65,'G-3 Multipliers'!$L$3:$N$6,3,FALSE))) ->  | AE65: =IFERROR(VLOOKUP(AD65,'G-4 Temporal multipliers'!$A$4:$C$36,3,FALSE),"") ->  | AF65: =IF(P65="","",VLOOKUP(P65,'G-3 Multipliers'!$A$2:$E$142,4,FALSE)) ->  | AG65: =IF(P65="","",VLOOKUP(P65,'G-3 Multipliers'!$A$2:$E$142,5,FALSE)) -> 
B66: ='A-1 Site Habitat Baseline'!AN65 ->  | C66: =IF(B66="","",IF(ISNA(VLOOKUP($B66,'A-1 Site Habitat Baseline'!$B$1:$O$258,3,FALSE)),"",(VLOOKUP($B66,'A-1 Site Habitat Baseline'!$B$1:$O$258,3,FALSE)))) ->  | D66: =IF(B66="","",IF(ISNA(VLOOKUP($B66,'A-1 Site Habitat Baseline'!$B$1:$O$258,4,FALSE)),"",(VLOOKUP($B66,'A-1 Site Habitat Baseline'!$B$1:$O$258,4,FALSE)))) ->  | E66: =IF(B66="","",IF(ISNA(VLOOKUP($B66,'A-1 Site Habitat Baseline'!$B$1:$O$258,5,FALSE)),"",(VLOOKUP($B66,'A-1 Site Habitat Baseline'!$B$1:$O$258,5,FALSE)))) ->  | F66: =IF(B66="","",IF(ISNA(VLOOKUP($B66,'A-1 Site Habitat Baseline'!$B$1:$O$258,6,FALSE)),"",(VLOOKUP($B66,'A-1 Site Habitat Baseline'!$B$1:$O$258,6,FALSE)))) ->  | G66: =IF(B66="","",IF(ISNA(VLOOKUP($B66,'A-1 Site Habitat Baseline'!$B$1:$O$258,7,FALSE)),"",(VLOOKUP($B66,'A-1 Site Habitat Baseline'!$B$1:$O$258,7,FALSE)))) ->  | H66: =IF(B66="","",IF(ISNA(VLOOKUP($B66,'A-1 Site Habitat Baseline'!$B$1:$O$258,8,FALSE)),"",(VLOOKUP($B66,'A-1 Site Habitat Baseline'!$B$1:$O$258,8,FALSE)))) ->  | I66: =IF(B66="","",IF(ISNA(VLOOKUP($B66,'A-1 Site Habitat Baseline'!$B$1:$O$258,9,FALSE)),"",(VLOOKUP($B66,'A-1 Site Habitat Baseline'!$B$1:$O$258,9,FALSE)))) ->  | J66: =IF(B66="","",IF(ISNA(VLOOKUP($B66,'A-1 Site Habitat Baseline'!$B$1:$O$258,10,FALSE)),"",(VLOOKUP($B66,'A-1 Site Habitat Baseline'!$B$1:$O$258,10,FALSE)))) ->  | K66: =IF(B66="","",IF(ISNA(VLOOKUP($B66,'A-1 Site Habitat Baseline'!$B$1:$O$258,11,FALSE)),"",(VLOOKUP($B66,'A-1 Site Habitat Baseline'!$B$1:$O$258,11,FALSE)))) ->  | L66: =IF(B66="","",IF(ISNA(VLOOKUP($B66,'A-1 Site Habitat Baseline'!$B$1:$O$258,13,FALSE)),"",(VLOOKUP($B66,'A-1 Site Habitat Baseline'!$B$1:$O$258,13,FALSE)))) ->  | M66: =IF(B66="","",IF(ISNA(VLOOKUP($B66,'A-1 Site Habitat Baseline'!$B$1:$O$258,14,FALSE)),"",(VLOOKUP($B66,'A-1 Site Habitat Baseline'!$B$1:$O$258,14,FALSE)))) ->  | N66: =IF(B66="","",IF(ISNA(VLOOKUP($B66,'A-1 Site Habitat Baseline'!$B$1:$Z$258,16,FALSE)),"",(VLOOKUP($B66,'A-1 Site Habitat Baseline'!$B$1:$Z$258,16,FALSE)))) ->  | O66: =IF(B66="","",IF(ISNA(VLOOKUP($B66,'A-1 Site Habitat Baseline'!$B$1:$Z$258,15,FALSE)),"",(VLOOKUP($B66,'A-1 Site Habitat Baseline'!$B$1:$Z$258,15,FALSE)))) ->  | Q66: =IF(B66="","",IF(AND(U66<F66,P66='G-1 All Habitats'!$A$65),E66&" - "&T66,IF(U66<F66,"Error Trading Down",E66&" - "&T66))) ->  | R66: =IF(C66="","",IF(AND(LEFT(C66,55)<>LEFT(P66,55),Q66= "High - High"),"Error - Not like for like",IF(AND(F66=U66,H66>W66),"Error - Can not reduce condition",IF(AND(F66=U66,H66=W66),"Error - No enhancement",IF(AND(U66<F66,P66='G-1 All Habitats'!$A$65),G66&" - "&V66,IF(U66<F66,"Error Trading Down",IF(AND(C66<>P66,F66<U66),"Lower Distinctiveness Habitat"&" - "&V66,G66&" - "&V66))))))) ->  | T66: =IF(P66="","",VLOOKUP(P66,'G-1 All Habitats'!$A$2:$L$135,10,FALSE)) ->  | U66: =IFERROR(VLOOKUP(T66,'G-1 All Habitats'!$S$3:$T$7,2,FALSE),"") ->  | W66: =IFERROR(INDEX('G-8 Condition Look up'!$A$3:$H$136,MATCH(P66,'G-8 Condition Look up'!$A$3:$A$136,0),MATCH(V66,'G-8 Condition Look up'!$A$3:$H$3,0)),"") ->  | Y66: =IF($X66="","",IF(VLOOKUP($X66,'G-3 Multipliers'!$H$3:$J$7,2,FALSE)=0,"Spatial Data Missing",VLOOKUP($X66,'G-3 Multipliers'!$H$3:$J$7,2,FALSE))) ->  | Z66: =IF($X66="","",IF(VLOOKUP($X66,'G-3 Multipliers'!$H$3:$J$7,3,FALSE)=0,"Spatial Data Missing",VLOOKUP($X66,'G-3 Multipliers'!$H$3:$J$7,3,FALSE))) ->  | AB66: =IF(AA66="","",IF(VLOOKUP(AA66,'G-3 Multipliers'!$L$3:$N$6,2,FALSE)=0,"Spatial Data Missing",VLOOKUP(AA66,'G-3 Multipliers'!$L$3:$N$6,2,FALSE))) ->  | AC66: =IF(AA66="","",IF(VLOOKUP(AA66,'G-3 Multipliers'!$L$3:$N$6,3,FALSE)=0,"Spatial Data Missing",VLOOKUP(AA66,'G-3 Multipliers'!$L$3:$N$6,3,FALSE))) ->  | AE66: =IFERROR(VLOOKUP(AD66,'G-4 Temporal multipliers'!$A$4:$C$36,3,FALSE),"") ->  | AF66: =IF(P66="","",VLOOKUP(P66,'G-3 Multipliers'!$A$2:$E$142,4,FALSE)) ->  | AG66: =IF(P66="","",VLOOKUP(P66,'G-3 Multipliers'!$A$2:$E$142,5,FALSE)) -> 
B67: ='A-1 Site Habitat Baseline'!AN66 ->  | C67: =IF(B67="","",IF(ISNA(VLOOKUP($B67,'A-1 Site Habitat Baseline'!$B$1:$O$258,3,FALSE)),"",(VLOOKUP($B67,'A-1 Site Habitat Baseline'!$B$1:$O$258,3,FALSE)))) ->  | D67: =IF(B67="","",IF(ISNA(VLOOKUP($B67,'A-1 Site Habitat Baseline'!$B$1:$O$258,4,FALSE)),"",(VLOOKUP($B67,'A-1 Site Habitat Baseline'!$B$1:$O$258,4,FALSE)))) ->  | E67: =IF(B67="","",IF(ISNA(VLOOKUP($B67,'A-1 Site Habitat Baseline'!$B$1:$O$258,5,FALSE)),"",(VLOOKUP($B67,'A-1 Site Habitat Baseline'!$B$1:$O$258,5,FALSE)))) ->  | F67: =IF(B67="","",IF(ISNA(VLOOKUP($B67,'A-1 Site Habitat Baseline'!$B$1:$O$258,6,FALSE)),"",(VLOOKUP($B67,'A-1 Site Habitat Baseline'!$B$1:$O$258,6,FALSE)))) ->  | G67: =IF(B67="","",IF(ISNA(VLOOKUP($B67,'A-1 Site Habitat Baseline'!$B$1:$O$258,7,FALSE)),"",(VLOOKUP($B67,'A-1 Site Habitat Baseline'!$B$1:$O$258,7,FALSE)))) ->  | H67: =IF(B67="","",IF(ISNA(VLOOKUP($B67,'A-1 Site Habitat Baseline'!$B$1:$O$258,8,FALSE)),"",(VLOOKUP($B67,'A-1 Site Habitat Baseline'!$B$1:$O$258,8,FALSE)))) ->  | I67: =IF(B67="","",IF(ISNA(VLOOKUP($B67,'A-1 Site Habitat Baseline'!$B$1:$O$258,9,FALSE)),"",(VLOOKUP($B67,'A-1 Site Habitat Baseline'!$B$1:$O$258,9,FALSE)))) ->  | J67: =IF(B67="","",IF(ISNA(VLOOKUP($B67,'A-1 Site Habitat Baseline'!$B$1:$O$258,10,FALSE)),"",(VLOOKUP($B67,'A-1 Site Habitat Baseline'!$B$1:$O$258,10,FALSE)))) ->  | K67: =IF(B67="","",IF(ISNA(VLOOKUP($B67,'A-1 Site Habitat Baseline'!$B$1:$O$258,11,FALSE)),"",(VLOOKUP($B67,'A-1 Site Habitat Baseline'!$B$1:$O$258,11,FALSE)))) ->  | L67: =IF(B67="","",IF(ISNA(VLOOKUP($B67,'A-1 Site Habitat Baseline'!$B$1:$O$258,13,FALSE)),"",(VLOOKUP($B67,'A-1 Site Habitat Baseline'!$B$1:$O$258,13,FALSE)))) ->  | M67: =IF(B67="","",IF(ISNA(VLOOKUP($B67,'A-1 Site Habitat Baseline'!$B$1:$O$258,14,FALSE)),"",(VLOOKUP($B67,'A-1 Site Habitat Baseline'!$B$1:$O$258,14,FALSE)))) ->  | N67: =IF(B67="","",IF(ISNA(VLOOKUP($B67,'A-1 Site Habitat Baseline'!$B$1:$Z$258,16,FALSE)),"",(VLOOKUP($B67,'A-1 Site Habitat Baseline'!$B$1:$Z$258,16,FALSE)))) ->  | O67: =IF(B67="","",IF(ISNA(VLOOKUP($B67,'A-1 Site Habitat Baseline'!$B$1:$Z$258,15,FALSE)),"",(VLOOKUP($B67,'A-1 Site Habitat Baseline'!$B$1:$Z$258,15,FALSE)))) ->  | Q67: =IF(B67="","",IF(AND(U67<F67,P67='G-1 All Habitats'!$A$65),E67&" - "&T67,IF(U67<F67,"Error Trading Down",E67&" - "&T67))) ->  | R67: =IF(C67="","",IF(AND(LEFT(C67,55)<>LEFT(P67,55),Q67= "High - High"),"Error - Not like for like",IF(AND(F67=U67,H67>W67),"Error - Can not reduce condition",IF(AND(F67=U67,H67=W67),"Error - No enhancement",IF(AND(U67<F67,P67='G-1 All Habitats'!$A$65),G67&" - "&V67,IF(U67<F67,"Error Trading Down",IF(AND(C67<>P67,F67<U67),"Lower Distinctiveness Habitat"&" - "&V67,G67&" - "&V67))))))) ->  | T67: =IF(P67="","",VLOOKUP(P67,'G-1 All Habitats'!$A$2:$L$135,10,FALSE)) ->  | U67: =IFERROR(VLOOKUP(T67,'G-1 All Habitats'!$S$3:$T$7,2,FALSE),"") ->  | W67: =IFERROR(INDEX('G-8 Condition Look up'!$A$3:$H$136,MATCH(P67,'G-8 Condition Look up'!$A$3:$A$136,0),MATCH(V67,'G-8 Condition Look up'!$A$3:$H$3,0)),"") ->  | Y67: =IF($X67="","",IF(VLOOKUP($X67,'G-3 Multipliers'!$H$3:$J$7,2,FALSE)=0,"Spatial Data Missing",VLOOKUP($X67,'G-3 Multipliers'!$H$3:$J$7,2,FALSE))) ->  | Z67: =IF($X67="","",IF(VLOOKUP($X67,'G-3 Multipliers'!$H$3:$J$7,3,FALSE)=0,"Spatial Data Missing",VLOOKUP($X67,'G-3 Multipliers'!$H$3:$J$7,3,FALSE))) ->  | AB67: =IF(AA67="","",IF(VLOOKUP(AA67,'G-3 Multipliers'!$L$3:$N$6,2,FALSE)=0,"Spatial Data Missing",VLOOKUP(AA67,'G-3 Multipliers'!$L$3:$N$6,2,FALSE))) ->  | AC67: =IF(AA67="","",IF(VLOOKUP(AA67,'G-3 Multipliers'!$L$3:$N$6,3,FALSE)=0,"Spatial Data Missing",VLOOKUP(AA67,'G-3 Multipliers'!$L$3:$N$6,3,FALSE))) ->  | AE67: =IFERROR(VLOOKUP(AD67,'G-4 Temporal multipliers'!$A$4:$C$36,3,FALSE),"") ->  | AF67: =IF(P67="","",VLOOKUP(P67,'G-3 Multipliers'!$A$2:$E$142,4,FALSE)) ->  | AG67: =IF(P67="","",VLOOKUP(P67,'G-3 Multipliers'!$A$2:$E$142,5,FALSE)) -> 
B68: ='A-1 Site Habitat Baseline'!AN67 ->  | C68: =IF(B68="","",IF(ISNA(VLOOKUP($B68,'A-1 Site Habitat Baseline'!$B$1:$O$258,3,FALSE)),"",(VLOOKUP($B68,'A-1 Site Habitat Baseline'!$B$1:$O$258,3,FALSE)))) ->  | D68: =IF(B68="","",IF(ISNA(VLOOKUP($B68,'A-1 Site Habitat Baseline'!$B$1:$O$258,4,FALSE)),"",(VLOOKUP($B68,'A-1 Site Habitat Baseline'!$B$1:$O$258,4,FALSE)))) ->  | E68: =IF(B68="","",IF(ISNA(VLOOKUP($B68,'A-1 Site Habitat Baseline'!$B$1:$O$258,5,FALSE)),"",(VLOOKUP($B68,'A-1 Site Habitat Baseline'!$B$1:$O$258,5,FALSE)))) ->  | F68: =IF(B68="","",IF(ISNA(VLOOKUP($B68,'A-1 Site Habitat Baseline'!$B$1:$O$258,6,FALSE)),"",(VLOOKUP($B68,'A-1 Site Habitat Baseline'!$B$1:$O$258,6,FALSE)))) ->  | G68: =IF(B68="","",IF(ISNA(VLOOKUP($B68,'A-1 Site Habitat Baseline'!$B$1:$O$258,7,FALSE)),"",(VLOOKUP($B68,'A-1 Site Habitat Baseline'!$B$1:$O$258,7,FALSE)))) ->  | H68: =IF(B68="","",IF(ISNA(VLOOKUP($B68,'A-1 Site Habitat Baseline'!$B$1:$O$258,8,FALSE)),"",(VLOOKUP($B68,'A-1 Site Habitat Baseline'!$B$1:$O$258,8,FALSE)))) ->  | I68: =IF(B68="","",IF(ISNA(VLOOKUP($B68,'A-1 Site Habitat Baseline'!$B$1:$O$258,9,FALSE)),"",(VLOOKUP($B68,'A-1 Site Habitat Baseline'!$B$1:$O$258,9,FALSE)))) ->  | J68: =IF(B68="","",IF(ISNA(VLOOKUP($B68,'A-1 Site Habitat Baseline'!$B$1:$O$258,10,FALSE)),"",(VLOOKUP($B68,'A-1 Site Habitat Baseline'!$B$1:$O$258,10,FALSE)))) ->  | K68: =IF(B68="","",IF(ISNA(VLOOKUP($B68,'A-1 Site Habitat Baseline'!$B$1:$O$258,11,FALSE)),"",(VLOOKUP($B68,'A-1 Site Habitat Baseline'!$B$1:$O$258,11,FALSE)))) ->  | L68: =IF(B68="","",IF(ISNA(VLOOKUP($B68,'A-1 Site Habitat Baseline'!$B$1:$O$258,13,FALSE)),"",(VLOOKUP($B68,'A-1 Site Habitat Baseline'!$B$1:$O$258,13,FALSE)))) ->  | M68: =IF(B68="","",IF(ISNA(VLOOKUP($B68,'A-1 Site Habitat Baseline'!$B$1:$O$258,14,FALSE)),"",(VLOOKUP($B68,'A-1 Site Habitat Baseline'!$B$1:$O$258,14,FALSE)))) ->  | N68: =IF(B68="","",IF(ISNA(VLOOKUP($B68,'A-1 Site Habitat Baseline'!$B$1:$Z$258,16,FALSE)),"",(VLOOKUP($B68,'A-1 Site Habitat Baseline'!$B$1:$Z$258,16,FALSE)))) ->  | O68: =IF(B68="","",IF(ISNA(VLOOKUP($B68,'A-1 Site Habitat Baseline'!$B$1:$Z$258,15,FALSE)),"",(VLOOKUP($B68,'A-1 Site Habitat Baseline'!$B$1:$Z$258,15,FALSE)))) ->  | Q68: =IF(B68="","",IF(AND(U68<F68,P68='G-1 All Habitats'!$A$65),E68&" - "&T68,IF(U68<F68,"Error Trading Down",E68&" - "&T68))) ->  | R68: =IF(C68="","",IF(AND(LEFT(C68,55)<>LEFT(P68,55),Q68= "High - High"),"Error - Not like for like",IF(AND(F68=U68,H68>W68),"Error - Can not reduce condition",IF(AND(F68=U68,H68=W68),"Error - No enhancement",IF(AND(U68<F68,P68='G-1 All Habitats'!$A$65),G68&" - "&V68,IF(U68<F68,"Error Trading Down",IF(AND(C68<>P68,F68<U68),"Lower Distinctiveness Habitat"&" - "&V68,G68&" - "&V68))))))) ->  | T68: =IF(P68="","",VLOOKUP(P68,'G-1 All Habitats'!$A$2:$L$135,10,FALSE)) ->  | U68: =IFERROR(VLOOKUP(T68,'G-1 All Habitats'!$S$3:$T$7,2,FALSE),"") ->  | W68: =IFERROR(INDEX('G-8 Condition Look up'!$A$3:$H$136,MATCH(P68,'G-8 Condition Look up'!$A$3:$A$136,0),MATCH(V68,'G-8 Condition Look up'!$A$3:$H$3,0)),"") ->  | Y68: =IF($X68="","",IF(VLOOKUP($X68,'G-3 Multipliers'!$H$3:$J$7,2,FALSE)=0,"Spatial Data Missing",VLOOKUP($X68,'G-3 Multipliers'!$H$3:$J$7,2,FALSE))) ->  | Z68: =IF($X68="","",IF(VLOOKUP($X68,'G-3 Multipliers'!$H$3:$J$7,3,FALSE)=0,"Spatial Data Missing",VLOOKUP($X68,'G-3 Multipliers'!$H$3:$J$7,3,FALSE))) ->  | AB68: =IF(AA68="","",IF(VLOOKUP(AA68,'G-3 Multipliers'!$L$3:$N$6,2,FALSE)=0,"Spatial Data Missing",VLOOKUP(AA68,'G-3 Multipliers'!$L$3:$N$6,2,FALSE))) ->  | AC68: =IF(AA68="","",IF(VLOOKUP(AA68,'G-3 Multipliers'!$L$3:$N$6,3,FALSE)=0,"Spatial Data Missing",VLOOKUP(AA68,'G-3 Multipliers'!$L$3:$N$6,3,FALSE))) ->  | AE68: =IFERROR(VLOOKUP(AD68,'G-4 Temporal multipliers'!$A$4:$C$36,3,FALSE),"") ->  | AF68: =IF(P68="","",VLOOKUP(P68,'G-3 Multipliers'!$A$2:$E$142,4,FALSE)) ->  | AG68: =IF(P68="","",VLOOKUP(P68,'G-3 Multipliers'!$A$2:$E$142,5,FALSE)) -> 
B69: ='A-1 Site Habitat Baseline'!AN68 ->  | C69: =IF(B69="","",IF(ISNA(VLOOKUP($B69,'A-1 Site Habitat Baseline'!$B$1:$O$258,3,FALSE)),"",(VLOOKUP($B69,'A-1 Site Habitat Baseline'!$B$1:$O$258,3,FALSE)))) ->  | D69: =IF(B69="","",IF(ISNA(VLOOKUP($B69,'A-1 Site Habitat Baseline'!$B$1:$O$258,4,FALSE)),"",(VLOOKUP($B69,'A-1 Site Habitat Baseline'!$B$1:$O$258,4,FALSE)))) ->  | E69: =IF(B69="","",IF(ISNA(VLOOKUP($B69,'A-1 Site Habitat Baseline'!$B$1:$O$258,5,FALSE)),"",(VLOOKUP($B69,'A-1 Site Habitat Baseline'!$B$1:$O$258,5,FALSE)))) ->  | F69: =IF(B69="","",IF(ISNA(VLOOKUP($B69,'A-1 Site Habitat Baseline'!$B$1:$O$258,6,FALSE)),"",(VLOOKUP($B69,'A-1 Site Habitat Baseline'!$B$1:$O$258,6,FALSE)))) ->  | G69: =IF(B69="","",IF(ISNA(VLOOKUP($B69,'A-1 Site Habitat Baseline'!$B$1:$O$258,7,FALSE)),"",(VLOOKUP($B69,'A-1 Site Habitat Baseline'!$B$1:$O$258,7,FALSE)))) ->  | H69: =IF(B69="","",IF(ISNA(VLOOKUP($B69,'A-1 Site Habitat Baseline'!$B$1:$O$258,8,FALSE)),"",(VLOOKUP($B69,'A-1 Site Habitat Baseline'!$B$1:$O$258,8,FALSE)))) ->  | I69: =IF(B69="","",IF(ISNA(VLOOKUP($B69,'A-1 Site Habitat Baseline'!$B$1:$O$258,9,FALSE)),"",(VLOOKUP($B69,'A-1 Site Habitat Baseline'!$B$1:$O$258,9,FALSE)))) ->  | J69: =IF(B69="","",IF(ISNA(VLOOKUP($B69,'A-1 Site Habitat Baseline'!$B$1:$O$258,10,FALSE)),"",(VLOOKUP($B69,'A-1 Site Habitat Baseline'!$B$1:$O$258,10,FALSE)))) ->  | K69: =IF(B69="","",IF(ISNA(VLOOKUP($B69,'A-1 Site Habitat Baseline'!$B$1:$O$258,11,FALSE)),"",(VLOOKUP($B69,'A-1 Site Habitat Baseline'!$B$1:$O$258,11,FALSE)))) ->  | L69: =IF(B69="","",IF(ISNA(VLOOKUP($B69,'A-1 Site Habitat Baseline'!$B$1:$O$258,13,FALSE)),"",(VLOOKUP($B69,'A-1 Site Habitat Baseline'!$B$1:$O$258,13,FALSE)))) ->  | M69: =IF(B69="","",IF(ISNA(VLOOKUP($B69,'A-1 Site Habitat Baseline'!$B$1:$O$258,14,FALSE)),"",(VLOOKUP($B69,'A-1 Site Habitat Baseline'!$B$1:$O$258,14,FALSE)))) ->  | N69: =IF(B69="","",IF(ISNA(VLOOKUP($B69,'A-1 Site Habitat Baseline'!$B$1:$Z$258,16,FALSE)),"",(VLOOKUP($B69,'A-1 Site Habitat Baseline'!$B$1:$Z$258,16,FALSE)))) ->  | O69: =IF(B69="","",IF(ISNA(VLOOKUP($B69,'A-1 Site Habitat Baseline'!$B$1:$Z$258,15,FALSE)),"",(VLOOKUP($B69,'A-1 Site Habitat Baseline'!$B$1:$Z$258,15,FALSE)))) ->  | Q69: =IF(B69="","",IF(AND(U69<F69,P69='G-1 All Habitats'!$A$65),E69&" - "&T69,IF(U69<F69,"Error Trading Down",E69&" - "&T69))) ->  | R69: =IF(C69="","",IF(AND(LEFT(C69,55)<>LEFT(P69,55),Q69= "High - High"),"Error - Not like for like",IF(AND(F69=U69,H69>W69),"Error - Can not reduce condition",IF(AND(F69=U69,H69=W69),"Error - No enhancement",IF(AND(U69<F69,P69='G-1 All Habitats'!$A$65),G69&" - "&V69,IF(U69<F69,"Error Trading Down",IF(AND(C69<>P69,F69<U69),"Lower Distinctiveness Habitat"&" - "&V69,G69&" - "&V69))))))) ->  | T69: =IF(P69="","",VLOOKUP(P69,'G-1 All Habitats'!$A$2:$L$135,10,FALSE)) ->  | U69: =IFERROR(VLOOKUP(T69,'G-1 All Habitats'!$S$3:$T$7,2,FALSE),"") ->  | W69: =IFERROR(INDEX('G-8 Condition Look up'!$A$3:$H$136,MATCH(P69,'G-8 Condition Look up'!$A$3:$A$136,0),MATCH(V69,'G-8 Condition Look up'!$A$3:$H$3,0)),"") ->  | Y69: =IF($X69="","",IF(VLOOKUP($X69,'G-3 Multipliers'!$H$3:$J$7,2,FALSE)=0,"Spatial Data Missing",VLOOKUP($X69,'G-3 Multipliers'!$H$3:$J$7,2,FALSE))) ->  | Z69: =IF($X69="","",IF(VLOOKUP($X69,'G-3 Multipliers'!$H$3:$J$7,3,FALSE)=0,"Spatial Data Missing",VLOOKUP($X69,'G-3 Multipliers'!$H$3:$J$7,3,FALSE))) ->  | AB69: =IF(AA69="","",IF(VLOOKUP(AA69,'G-3 Multipliers'!$L$3:$N$6,2,FALSE)=0,"Spatial Data Missing",VLOOKUP(AA69,'G-3 Multipliers'!$L$3:$N$6,2,FALSE))) ->  | AC69: =IF(AA69="","",IF(VLOOKUP(AA69,'G-3 Multipliers'!$L$3:$N$6,3,FALSE)=0,"Spatial Data Missing",VLOOKUP(AA69,'G-3 Multipliers'!$L$3:$N$6,3,FALSE))) ->  | AE69: =IFERROR(VLOOKUP(AD69,'G-4 Temporal multipliers'!$A$4:$C$36,3,FALSE),"") ->  | AF69: =IF(P69="","",VLOOKUP(P69,'G-3 Multipliers'!$A$2:$E$142,4,FALSE)) ->  | AG69: =IF(P69="","",VLOOKUP(P69,'G-3 Multipliers'!$A$2:$E$142,5,FALSE)) -> 
B70: ='A-1 Site Habitat Baseline'!AN69 ->  | C70: =IF(B70="","",IF(ISNA(VLOOKUP($B70,'A-1 Site Habitat Baseline'!$B$1:$O$258,3,FALSE)),"",(VLOOKUP($B70,'A-1 Site Habitat Baseline'!$B$1:$O$258,3,FALSE)))) ->  | D70: =IF(B70="","",IF(ISNA(VLOOKUP($B70,'A-1 Site Habitat Baseline'!$B$1:$O$258,4,FALSE)),"",(VLOOKUP($B70,'A-1 Site Habitat Baseline'!$B$1:$O$258,4,FALSE)))) ->  | E70: =IF(B70="","",IF(ISNA(VLOOKUP($B70,'A-1 Site Habitat Baseline'!$B$1:$O$258,5,FALSE)),"",(VLOOKUP($B70,'A-1 Site Habitat Baseline'!$B$1:$O$258,5,FALSE)))) ->  | F70: =IF(B70="","",IF(ISNA(VLOOKUP($B70,'A-1 Site Habitat Baseline'!$B$1:$O$258,6,FALSE)),"",(VLOOKUP($B70,'A-1 Site Habitat Baseline'!$B$1:$O$258,6,FALSE)))) ->  | G70: =IF(B70="","",IF(ISNA(VLOOKUP($B70,'A-1 Site Habitat Baseline'!$B$1:$O$258,7,FALSE)),"",(VLOOKUP($B70,'A-1 Site Habitat Baseline'!$B$1:$O$258,7,FALSE)))) ->  | H70: =IF(B70="","",IF(ISNA(VLOOKUP($B70,'A-1 Site Habitat Baseline'!$B$1:$O$258,8,FALSE)),"",(VLOOKUP($B70,'A-1 Site Habitat Baseline'!$B$1:$O$258,8,FALSE)))) ->  | I70: =IF(B70="","",IF(ISNA(VLOOKUP($B70,'A-1 Site Habitat Baseline'!$B$1:$O$258,9,FALSE)),"",(VLOOKUP($B70,'A-1 Site Habitat Baseline'!$B$1:$O$258,9,FALSE)))) ->  | J70: =IF(B70="","",IF(ISNA(VLOOKUP($B70,'A-1 Site Habitat Baseline'!$B$1:$O$258,10,FALSE)),"",(VLOOKUP($B70,'A-1 Site Habitat Baseline'!$B$1:$O$258,10,FALSE)))) ->  | K70: =IF(B70="","",IF(ISNA(VLOOKUP($B70,'A-1 Site Habitat Baseline'!$B$1:$O$258,11,FALSE)),"",(VLOOKUP($B70,'A-1 Site Habitat Baseline'!$B$1:$O$258,11,FALSE)))) ->  | L70: =IF(B70="","",IF(ISNA(VLOOKUP($B70,'A-1 Site Habitat Baseline'!$B$1:$O$258,13,FALSE)),"",(VLOOKUP($B70,'A-1 Site Habitat Baseline'!$B$1:$O$258,13,FALSE)))) ->  | M70: =IF(B70="","",IF(ISNA(VLOOKUP($B70,'A-1 Site Habitat Baseline'!$B$1:$O$258,14,FALSE)),"",(VLOOKUP($B70,'A-1 Site Habitat Baseline'!$B$1:$O$258,14,FALSE)))) ->  | N70: =IF(B70="","",IF(ISNA(VLOOKUP($B70,'A-1 Site Habitat Baseline'!$B$1:$Z$258,16,FALSE)),"",(VLOOKUP($B70,'A-1 Site Habitat Baseline'!$B$1:$Z$258,16,FALSE)))) ->  | O70: =IF(B70="","",IF(ISNA(VLOOKUP($B70,'A-1 Site Habitat Baseline'!$B$1:$Z$258,15,FALSE)),"",(VLOOKUP($B70,'A-1 Site Habitat Baseline'!$B$1:$Z$258,15,FALSE)))) ->  | Q70: =IF(B70="","",IF(AND(U70<F70,P70='G-1 All Habitats'!$A$65),E70&" - "&T70,IF(U70<F70,"Error Trading Down",E70&" - "&T70))) ->  | R70: =IF(C70="","",IF(AND(LEFT(C70,55)<>LEFT(P70,55),Q70= "High - High"),"Error - Not like for like",IF(AND(F70=U70,H70>W70),"Error - Can not reduce condition",IF(AND(F70=U70,H70=W70),"Error - No enhancement",IF(AND(U70<F70,P70='G-1 All Habitats'!$A$65),G70&" - "&V70,IF(U70<F70,"Error Trading Down",IF(AND(C70<>P70,F70<U70),"Lower Distinctiveness Habitat"&" - "&V70,G70&" - "&V70))))))) ->  | T70: =IF(P70="","",VLOOKUP(P70,'G-1 All Habitats'!$A$2:$L$135,10,FALSE)) ->  | U70: =IFERROR(VLOOKUP(T70,'G-1 All Habitats'!$S$3:$T$7,2,FALSE),"") ->  | W70: =IFERROR(INDEX('G-8 Condition Look up'!$A$3:$H$136,MATCH(P70,'G-8 Condition Look up'!$A$3:$A$136,0),MATCH(V70,'G-8 Condition Look up'!$A$3:$H$3,0)),"") ->  | Y70: =IF($X70="","",IF(VLOOKUP($X70,'G-3 Multipliers'!$H$3:$J$7,2,FALSE)=0,"Spatial Data Missing",VLOOKUP($X70,'G-3 Multipliers'!$H$3:$J$7,2,FALSE))) ->  | Z70: =IF($X70="","",IF(VLOOKUP($X70,'G-3 Multipliers'!$H$3:$J$7,3,FALSE)=0,"Spatial Data Missing",VLOOKUP($X70,'G-3 Multipliers'!$H$3:$J$7,3,FALSE))) ->  | AB70: =IF(AA70="","",IF(VLOOKUP(AA70,'G-3 Multipliers'!$L$3:$N$6,2,FALSE)=0,"Spatial Data Missing",VLOOKUP(AA70,'G-3 Multipliers'!$L$3:$N$6,2,FALSE))) ->  | AC70: =IF(AA70="","",IF(VLOOKUP(AA70,'G-3 Multipliers'!$L$3:$N$6,3,FALSE)=0,"Spatial Data Missing",VLOOKUP(AA70,'G-3 Multipliers'!$L$3:$N$6,3,FALSE))) ->  | AE70: =IFERROR(VLOOKUP(AD70,'G-4 Temporal multipliers'!$A$4:$C$36,3,FALSE),"") ->  | AF70: =IF(P70="","",VLOOKUP(P70,'G-3 Multipliers'!$A$2:$E$142,4,FALSE)) ->  | AG70: =IF(P70="","",VLOOKUP(P70,'G-3 Multipliers'!$A$2:$E$142,5,FALSE)) -> 
B71: ='A-1 Site Habitat Baseline'!AN70 ->  | C71: =IF(B71="","",IF(ISNA(VLOOKUP($B71,'A-1 Site Habitat Baseline'!$B$1:$O$258,3,FALSE)),"",(VLOOKUP($B71,'A-1 Site Habitat Baseline'!$B$1:$O$258,3,FALSE)))) ->  | D71: =IF(B71="","",IF(ISNA(VLOOKUP($B71,'A-1 Site Habitat Baseline'!$B$1:$O$258,4,FALSE)),"",(VLOOKUP($B71,'A-1 Site Habitat Baseline'!$B$1:$O$258,4,FALSE)))) ->  | E71: =IF(B71="","",IF(ISNA(VLOOKUP($B71,'A-1 Site Habitat Baseline'!$B$1:$O$258,5,FALSE)),"",(VLOOKUP($B71,'A-1 Site Habitat Baseline'!$B$1:$O$258,5,FALSE)))) ->  | F71: =IF(B71="","",IF(ISNA(VLOOKUP($B71,'A-1 Site Habitat Baseline'!$B$1:$O$258,6,FALSE)),"",(VLOOKUP($B71,'A-1 Site Habitat Baseline'!$B$1:$O$258,6,FALSE)))) ->  | G71: =IF(B71="","",IF(ISNA(VLOOKUP($B71,'A-1 Site Habitat Baseline'!$B$1:$O$258,7,FALSE)),"",(VLOOKUP($B71,'A-1 Site Habitat Baseline'!$B$1:$O$258,7,FALSE)))) ->  | H71: =IF(B71="","",IF(ISNA(VLOOKUP($B71,'A-1 Site Habitat Baseline'!$B$1:$O$258,8,FALSE)),"",(VLOOKUP($B71,'A-1 Site Habitat Baseline'!$B$1:$O$258,8,FALSE)))) ->  | I71: =IF(B71="","",IF(ISNA(VLOOKUP($B71,'A-1 Site Habitat Baseline'!$B$1:$O$258,9,FALSE)),"",(VLOOKUP($B71,'A-1 Site Habitat Baseline'!$B$1:$O$258,9,FALSE)))) ->  | J71: =IF(B71="","",IF(ISNA(VLOOKUP($B71,'A-1 Site Habitat Baseline'!$B$1:$O$258,10,FALSE)),"",(VLOOKUP($B71,'A-1 Site Habitat Baseline'!$B$1:$O$258,10,FALSE)))) ->  | K71: =IF(B71="","",IF(ISNA(VLOOKUP($B71,'A-1 Site Habitat Baseline'!$B$1:$O$258,11,FALSE)),"",(VLOOKUP($B71,'A-1 Site Habitat Baseline'!$B$1:$O$258,11,FALSE)))) ->  | L71: =IF(B71="","",IF(ISNA(VLOOKUP($B71,'A-1 Site Habitat Baseline'!$B$1:$O$258,13,FALSE)),"",(VLOOKUP($B71,'A-1 Site Habitat Baseline'!$B$1:$O$258,13,FALSE)))) ->  | M71: =IF(B71="","",IF(ISNA(VLOOKUP($B71,'A-1 Site Habitat Baseline'!$B$1:$O$258,14,FALSE)),"",(VLOOKUP($B71,'A-1 Site Habitat Baseline'!$B$1:$O$258,14,FALSE)))) ->  | N71: =IF(B71="","",IF(ISNA(VLOOKUP($B71,'A-1 Site Habitat Baseline'!$B$1:$Z$258,16,FALSE)),"",(VLOOKUP($B71,'A-1 Site Habitat Baseline'!$B$1:$Z$258,16,FALSE)))) ->  | O71: =IF(B71="","",IF(ISNA(VLOOKUP($B71,'A-1 Site Habitat Baseline'!$B$1:$Z$258,15,FALSE)),"",(VLOOKUP($B71,'A-1 Site Habitat Baseline'!$B$1:$Z$258,15,FALSE)))) ->  | Q71: =IF(B71="","",IF(AND(U71<F71,P71='G-1 All Habitats'!$A$65),E71&" - "&T71,IF(U71<F71,"Error Trading Down",E71&" - "&T71))) ->  | R71: =IF(C71="","",IF(AND(LEFT(C71,55)<>LEFT(P71,55),Q71= "High - High"),"Error - Not like for like",IF(AND(F71=U71,H71>W71),"Error - Can not reduce condition",IF(AND(F71=U71,H71=W71),"Error - No enhancement",IF(AND(U71<F71,P71='G-1 All Habitats'!$A$65),G71&" - "&V71,IF(U71<F71,"Error Trading Down",IF(AND(C71<>P71,F71<U71),"Lower Distinctiveness Habitat"&" - "&V71,G71&" - "&V71))))))) ->  | T71: =IF(P71="","",VLOOKUP(P71,'G-1 All Habitats'!$A$2:$L$135,10,FALSE)) ->  | U71: =IFERROR(VLOOKUP(T71,'G-1 All Habitats'!$S$3:$T$7,2,FALSE),"") ->  | W71: =IFERROR(INDEX('G-8 Condition Look up'!$A$3:$H$136,MATCH(P71,'G-8 Condition Look up'!$A$3:$A$136,0),MATCH(V71,'G-8 Condition Look up'!$A$3:$H$3,0)),"") ->  | Y71: =IF($X71="","",IF(VLOOKUP($X71,'G-3 Multipliers'!$H$3:$J$7,2,FALSE)=0,"Spatial Data Missing",VLOOKUP($X71,'G-3 Multipliers'!$H$3:$J$7,2,FALSE))) ->  | Z71: =IF($X71="","",IF(VLOOKUP($X71,'G-3 Multipliers'!$H$3:$J$7,3,FALSE)=0,"Spatial Data Missing",VLOOKUP($X71,'G-3 Multipliers'!$H$3:$J$7,3,FALSE))) ->  | AB71: =IF(AA71="","",IF(VLOOKUP(AA71,'G-3 Multipliers'!$L$3:$N$6,2,FALSE)=0,"Spatial Data Missing",VLOOKUP(AA71,'G-3 Multipliers'!$L$3:$N$6,2,FALSE))) ->  | AC71: =IF(AA71="","",IF(VLOOKUP(AA71,'G-3 Multipliers'!$L$3:$N$6,3,FALSE)=0,"Spatial Data Missing",VLOOKUP(AA71,'G-3 Multipliers'!$L$3:$N$6,3,FALSE))) ->  | AE71: =IFERROR(VLOOKUP(AD71,'G-4 Temporal multipliers'!$A$4:$C$36,3,FALSE),"") ->  | AF71: =IF(P71="","",VLOOKUP(P71,'G-3 Multipliers'!$A$2:$E$142,4,FALSE)) ->  | AG71: =IF(P71="","",VLOOKUP(P71,'G-3 Multipliers'!$A$2:$E$142,5,FALSE)) -> 
